Workbook

Sheet Terms
A1: =RIGHT( CELL("filename",$A$1), LEN( CELL("filename",$A$1)) - SEARCH("]", CELL("filename",$A$1))) ->  | C1: =Inputs!$E$71 -> Simplified Mining FARI model: February 2022
B8: =Translate!E$627 -> FARI terms of use
B10: =Translate!E$628 -> The Fiscal Analysis of Resource Industries (FARI or the “Methodology”) is made available to User by the International Monetary Fund (IMF) and subject to the following terms and conditions of use (“Terms”). By proceeding to use of the Methodology, User agrees and accepts the Terms.
B12: =Translate!E$629 -> TERMS
B13: =Translate!E$630 -> 1. The Methodology is intended as a tool to perform economic and fiscal analysis of extractive industries projects and to support general capacity building for government officials and civil society. User may adapt, modify or alter the Methodology to the extent necessary to fit the purpose of User’s internal use, provided that such adaptations, modifications or alterations shall not affect the integrity of the Methodology.
B14: =Translate!E$631 -> 2. The Methodology has not been configured as a formal forecasting tool and is not designed or intended for such use. The Methodology is made available “as is” and the IMF makes no warranty or representation of the accuracy, adequacy or fitness for a particular purpose of the Methodology.
B15: =Translate!E$632 -> 3. All proprietary rights in the Methodology, including intellectual property rights, belong to the IMF. All other rights, whether now existing or which may hereafter come into existence which are not expressly authorized by these Terms, are hereby reserved to and by the IMF.
B16: =Translate!E$633 -> 4. User shall give appropriate credit to the IMF in all applications and outputs derived from the use of the Methodology, in a way which does not suggest that the IMF endorses User or any User's use of the Methodology and the outputs deriving thereof.
B17: =Translate!E$634 -> 5. Access to and use of the Methodology are at the User's own risk and responsibility. The IMF bears no responsibility or liability for damage of any kind, also for indirect or consequential damages resulting from access to or use of this Methodology.
B19: =Translate!E$635 -> Accept terms of use to continue.

Sheet ReadMe
A1: =RIGHT( CELL("filename",$B$1), LEN( CELL("filename",$B$1)) - SEARCH("]", CELL("filename",$B$1))) ->  | D1: =Inputs!$E$71 -> Simplified Mining FARI model: February 2022
C3: =Translate!E$477 -> Authors | E3: =Translate!E684 -> IMF Fiscal Affairs Department, Tax Policy Division | J3: =Translate!E$744 -> Sheets | K3: =Translate!$E$639 -> Checks | N3: =Translate!$E$444 & ": " & Translate!$E$591 -> Check: Translation of options | O3: =Translate!$E$639 -> Checks
C4: =Translate!E$478 -> Contact in IMF FAD | E4: Thomas Benninger (tbenninger@imf.org) | J4: =Translate!E$745 -> top row | N4: =Translate!E$745 -> top row
C5: =Translate!E$479 -> Owner | E5: =Translate!E685 -> © IMF Fiscal Affairs Department. All rights reserved | J5: =Dashboard!F$60 ->  | K5: =Dashboard!K$60 -> 0 | L5: =Dashboard!L$60 -> Check | N5: =Inputs!E$41 -> Check: ELT applies | O5: =Inputs!F$41 -> 0 | P5: =Inputs!G$41 -> Check
J6: =Inputs!E$102 ->  | K6: =Inputs!F$102 -> 0 | L6: =Inputs!G$102 -> Check | N6: =Dashboard!R$130 -> Check: Select metric | O6: =Dashboard!S$130 -> 0 | P6: =Dashboard!T$130 -> Check
C7: =Translate!E$480 -> Overall checks | D7: =SUM(ReadMe!K4:K14) -> 0 | E7: =Translate!$E$639 -> Checks | J7: =FiscalModel!E807 ->  | K7: =FiscalModel!F807 -> 0 | L7: =FiscalModel!G807 -> Check | N7: =FiscalModel!E$7 -> Check: Translation of options | O7: =FiscalModel!F$7 -> 0 | P7: =FiscalModel!G$7 -> Check
C8: =Track!G1 -> Track changes | D8: =Track!F1 -> 0 | E8: =Translate!E$481 -> Changes | J8: =Analysis!E325 ->  | K8: =Analysis!F325 -> 0 | L8: =Analysis!G325 -> Check | N8: =Translate!E$746 -> bottom row
J9: =Charts!E154 ->  | K9: =Charts!F154 -> 0 | L9: =Charts!G154 -> Check
J10: =ProjectCashflows!E$290 ->  | K10: =ProjectCashflows!F$290 -> 0 | L10: =ProjectCashflows!G$290 -> Check
J11: ='Gold(2MMoz)'!E$83 ->  | K11: ='Gold(2MMoz)'!F$83 -> 0 | L11: ='Gold(2MMoz)'!G$83 -> Check
J12: ='IronOre(250MMt)'!E$83 ->  | K12: ='IronOre(250MMt)'!F$83 -> 0 | L12: ='IronOre(250MMt)'!G$83 -> Check
J13: ='Coal(250MMt)'!E$83 ->  | K13: ='Coal(250MMt)'!F$83 -> 0 | L13: ='Coal(250MMt)'!G$83 -> Check
J14: =Translate!E$746 -> bottom row
B16: =Translate!E$686 -> This model is accompanied by an IMF Technical Note and Manual, which should also be read before using the model.
A18: =Translate!E$687 -> User guide
C19: =Translate!$E$694 -> Model structure
D20: =Translate!$E$640 -> The model applies user-configured fiscal regimes to user-configured mining project examples. This simplified model is currently configured to handle mining projects for gold, iron ore, diamond and coal. However, the user can easily change the model for analyzing another mineral. The model structure is set out in the MODEL MAP sheet.
C21: =Translate!$E$639 -> Checks | D21: =Translate!$E$641 -> The model has a number of checks to test its internal consistency. These checks will remain green. If the master check cell is red, there is a problem in the model. Either an error needs to be corrected, or the check itself refined. In either case, red checks must be addressed.
C23: =Translate!E$761 -> Change model language | D23: =Translate!E$762 -> Select language on DASHBOARD
D24: =Translate!E$760 -> All checks related to the translation of options need to be green before using the model. After changing the language of the model, all drop-down options need to be re-selected for the model to function properly. Please click on each check to verify that the correct options are selected. All checks should be green.
C25: =Translate!$E$695 -> FAST modeling standard
D26: =Translate!$E$642 -> This model has been structured broadly in line with the FAST modeling standard (www.fast-standard.org/). Color coding: is set out in the KEY sheet cells. The user should only need to change cells with yellow background. See KEY sheet
B27: =Translate!E$322 -> Inputs
C28: =Translate!$E$696 -> Fiscal regime assumptions
D29: =Translate!$E$643 -> Fiscal regime inputs, including tax parameters and rates, are entered in the yellow cells in FISCSALMODEL sheet. Either amend an existing set of parameters or use a blank column to create a new regime. Give the regime a name, as this becomes the label used to select the regime from the DASHBOARD.
C30: =Translate!$E$697 -> Financing and economic assumptions
D31: =Translate!$E$644 -> Debt financing can have a significant impact on government revenues. Financing inputs are included in each fiscal regime, making it straight-forward to compare the incremental effect of financing by having the duplicate fiscal regimes with and without financing.
D32: =Translate!$E$645 -> LIBOR real terms interest rates and inflation rates are entered in the INPUT sheet. Proportion of costs financed, interest rate and repayment period are included in fiscal regime parameters.
D33: =Translate!$E$646 -> The model is currently set up assuming a mining company (whether local or international) invests and manages a project with the option of state participation. Results are presented for the mining company and, if applicable, state equity, plus the lender, plus the aggregate of the Mining Company’s equity plus lender. The latter is the parent company perspective and is used in the model as the primary investor evaluation metric for breakeven price analysis.
C34: =Translate!$E$698 -> Project data
D35: =Translate!$E$647 -> Projects are defined in separate project sheets. New projects can be created simply by (1) copying an existing project sheet (2) renaming the sheet tab (3) modifying production and cost profiles; then (4) add the new project sheet tab name to the project list in the INPUT sheet. This last step makes the new project available for selection using the parameter on the DASHBOARD
D36: =Translate!$E$648 -> In each project example:
E37: =Translate!$E$677 -> Annual costs are entered in constant terms of the model start year.
E38: =Translate!$E$678 -> Mineral production is entered as the annual production in terms of the mineral’s unit of production (e.g. iron ore measured in metric tons or gold in thousand of ounces).
E39: =Translate!$E$679 -> Costs are broken down into exploration, development, sustaining capital, operating costs and decommissioning costs to enable different fiscal treatment for each. For example, exploration costs can be expensed for income tax while development costs are depreciated.
B40: =Translate!$E$700 -> Workings/calculations
D41: =Translate!$E$649 -> The logic flow in the model is as set out in the MODELMAP:
D42: =Translate!$E$650 -> Select project example
D43: =Translate!$E$651 -> Select applicable fiscal regime
D44: =Translate!$E$652 -> Set mineral price(s)
D45: =Translate!$E$653 -> The PROJECTCASHFLOWS sheet imports project data from the selected project example sheet
D46: =Translate!$E$654 -> Fiscal calculations are done in the FISCALMODEL sheet
D47: =Translate!$E$655 -> The ANALYSIS sheet compiles results from the model and derives outcomes for each participant on a (1) Full-cycle basis (from the start of exploration) and (2) from FID (in practice when development costs are first incurred). Comprehensive IRR and NPV calculations are undertaken for each project participant from both perspectives.
B48: =Translate!E$312 -> Dashboard
D49: =Translate!$E$656 -> The DASHBOARD is where the user will spend most time driving the model.
D50: =Translate!$E$657 -> Select fiscal regime: drop-down list on top left
E51: =Translate!$E$680 -> Fiscal regime parameters are entered in INPUTS
D52: =Translate!$E$658 -> Select project: drop-down list on top left
E53: =Translate!$E$681 -> Project data is entered in individual project example sheets
D54: =Translate!$E$659 -> Change mineral price(s): entered top left
C55: =Translate!$E$699 -> Dashboard results
D56: =Translate!$E$660 -> Participant cashflows (table top-centre)
E57: =Translate!$E$682 -> IRR; undiscounted and NPV cashflows for (1) project (pre-tax net cashflows); (2) mining company; (3) mining company + lender (parent company perspective assuming parent provides the debt financing); (4) government including or excluding state participation
E58: =Translate!$E$683 -> Average effective tax rates and government share of project benefits (see technical note)
D59: =Translate!$E$661 -> Project cashflows (table top-right). Breakdown of revenues and costs on undiscounted real dollars and US$ / unit of measurement for primary mineral.
D60: =Translate!$E$662 -> Government revenues (table centre-right). Summary of government revenues by category.
D61: =Translate!$E$663 -> Project statistics (table and chart lower-Left)
D62: =Translate!$E$664 -> Production profile and unit operating costs (chart lower-right)
D63: =Translate!$E$665 -> Government revenue profile: Chart in centre. Annual revenues by category, plus pie chart showing breakdown over project life.
B64: =Translate!E$447 -> Dashboard Analytical Routines
C65: =Translate!$E$448 -> Results for selected fiscal regimes
D66: =Translate!$E$666 -> Compares key results for regimes selected by user. User chooses regimes to compare from drop-down lists in yellow cells at the top of the table. Then press F9 to update.
D67: =Translate!$E$667 -> If cells are left blank results are zero or #NA, enabling only two regimes to be compared side by side
D68: =Translate!$E$668 -> Press F9 to ensure table updates
C69: =Translate!$E$449 -> Government revenues profiles under selected regimes
D70: =Translate!$E$669 -> Compares annual revenue profile for regimes selected by user. Select regimes using drop-down list at left of the table
D71: =Translate!$E$668 -> Press F9 to ensure table updates
C72: =Translate!$E$450 -> Progressivity analysis across a range of mineral prices
D73: =Translate!$E$670 -> Sensitivity analysis showing results for user-selected metric across a user-defined range of primary mineral prices
D74: =Translate!$E$671 -> Select metric from drop-down list. Either AETR or share of project benefits, undiscounted or NPV.
D75: =Translate!$E$672 -> Enter start primary mineral price and increment to create range for analysis.
D76: =Translate!$E$668 -> Press F9 to ensure table updates
C77: =Translate!$E$451 -> Breakeven mineral price and marginal effective tax rate
D78: =Translate!$E$673 -> Determines the price for the primary mineral necessary under each regime to achieve a user-specified after-tax IRR
D79: =Translate!$E$674 -> Pressing the button marked “breakeven” initiates a macro that determines the breakeven price for each selected regime using Excel’s GOAL-SEEK mechanism.
D80: =Translate!$E$675 -> METR is the proportion of pre-tax IRR taken by the fiscal regime, at the breakeven point, as described in the FAD Technical Note
C81: =Dashboard!A$176 -> Net present value table: full-cycle, real
D82: =Translate!$E$676 -> Sharing of project post-tax net present value and average effective tax rate between government, investors, and state participation at different discount rates.
D83: =Translate!$E$668 -> Press F9 to ensure table updates
D90: \

Sheet ModelMap
A1: =RIGHT( CELL("filename",$A$1), LEN( CELL("filename",$A$1)) - SEARCH("]", CELL("filename",$A$1))) ->  | E1: =ReadMe!D$7 -> 0 | F1: =ReadMe!E$7 -> Checks
C3: =Terms!A1 ->  | E3: =Dashboard ->  | G3: =Dashboard!A63 -> Dashboard Analytical Routines | I3: =FiscalModel!A1 ->  | K3: =ProjectCashflows!A1 ->  | M3: =Translate!E$741 -> Project examples
G4: =Dashboard!A65 -> Results for selected fiscal regimes | I4: =FiscalModel!A4 -> Fiscal regime parameters | K4: =ProjectCashflows!A4 -> Data for selected project | M4: ='Gold(2MMoz)'!A1 -> 
C5: =ReadMe!A1 ->  | G5: =Dashboard!A95 -> Government revenues profiles under selected regimes | I5: =FiscalModel!A70 -> Decommissioning fund | K5: =ProjectCashflows!A43 -> Model timeline | M5: ='IronOre(250MMt)'!A1 -> 
G6: =Dashboard!A121 -> Progressivity analysis across a range of mineral prices | I6: =FiscalModel!A131 -> Bonus | K6: =ProjectCashflows!A51 -> Project data with sensitivity factors applied | M6: ='Coal(250MMt)'!A1 -> 
C7: =$A$1 ->  | G7: =Dashboard!A153 -> Breakeven mineral price and marginal effective tax rate | I7: =FiscalModel!A138 -> Royalty | K7: =ProjectCashflows!A$73 -> Project cashflows: real
G8: =Dashboard!A$176 -> Net present value table: full-cycle, real | I8: =FiscalModel!A181 -> Carbon tax | K8: =ProjectCashflows!A$101 -> Economic limit test (ELT)
C9: =Key!A1 ->  | I9: =FiscalModel!A255 -> Project cashflows after decommissioning, royalty, bonus and carbon tax | K9: =ProjectCashflows!A$138 -> Project cashflows: real, after ELT
G10: =Inputs!A1 ->  | I10: =FiscalModel!A271 -> Project debt financing | K10: =ProjectCashflows!A$180 -> Flags
C11: =Translate!A1 ->  | G11: =Inputs!A5 -> Model timeline | I11: =FiscalModel!A351 -> CIT depreciation | K11: =ProjectCashflows!A$208 -> Inflation Indices
G12: =Inputs!A9 -> Project selection and sensitivities | I12: =FiscalModel!A441 -> Corporate income tax | K12: =ProjectCashflows!A$227 -> Project cashflows: nominal, after ELT
C13: =Track!A1 ->  | G13: =Inputs!A43 -> Economic assumptions | I13: =FiscalModel!A480 -> Resource rent tax: Cumulative cashflow | K13: =ProjectCashflows!A$269 -> GHG emissions from coal combustion
G14: =Inputs!A49 -> Evaluation parameters | I14: =FiscalModel!A$532 -> VAT cashflow: Simplified approach assuming VAT is creditable | K14: =ProjectCashflows!A285 -> 
G15: =Inputs!A67 -> Model name and version | I15: =FiscalModel!A$591 -> Mining company cashflows
G16: =Inputs!A73 -> Technical parameters | I16: =FiscalModel!A$611 -> Mining company economic limit | K16: =Analysis!A1 -> 
I17: =FiscalModel!A625 -> State participation (Share of mining company equity) | K17: =Analysis!A4 -> Analysis: nominal, full-cycle
I18: =FiscalModel!A690 -> State participation (Share of mining company loan) | K18: =Analysis!A67 -> Analysis: full-cycle, real
I19: =FiscalModel!A712 -> Parent company cashflows | K19: =Analysis!A208 -> Analysis: FID forward, real
I20: =FiscalModel!A730 -> Government revenues | K20: =Analysis!A310 -> 
I21: =FiscalModel!A776 -> Cashflow reconciliation
I22: =FiscalModel!A791 ->  | K22: =Charts!A1 -> 
K23: =Charts!A4 -> Government revenues
K24: =Charts!A71 -> Project revenues and costs
K25: =Charts!A112 -> Production Versus Unit Operating Costs
K26: =Charts!A150 -> 
B30: =Translate!E$742 -> To: | G30: =Translate!E$743 -> Go to sheet:
B31: =Translate!E733 -> Enter Fiscal Regime Assumptions | G31: =Inputs!A1 -> 
B32: =Translate!E734 -> Enter Project Data | G32: ='Gold(2MMoz)'!A$1 -> 
G33: ='IronOre(250MMt)'!A$1 -> 
G34: ='Coal(250MMt)'!A$1 -> 
B35: =Translate!E735 -> Select fiscal regime | G35: =Dashboard!A$1 -> 
B36: =Translate!E736 -> Select project | G36: =Dashboard!A$1 -> 
B37: =Translate!E737 -> Change mineral price | G37: =Dashboard!A$1 -> 
B38: =Translate!E738 -> Review results | G38: =Dashboard!A$1 -> 
B39: =Translate!E739 -> Review detailed results | G39: =Analysis!A1 -> 
B40: =Translate!E740 -> Analytical routines | G40: =Dashboard!A$63 -> Dashboard Analytical Routines

Sheet Key
A1: =RIGHT( CELL("filename",$A$1), LEN( CELL("filename",$A$1)) - SEARCH("]", CELL("filename",$A$1))) -> 
A8: =Translate!E$732 -> Key
B9: =Translate!E$688 -> Sheet tabs
D10: =Translate!$E$312 -> Dashboard | H10: =Translate!$E$701 -> White
D12: =Translate!$E$313 -> Input sheets | H12: =Translate!$E$702 -> Light yellow
D14: =Translate!$E$314 -> Calculation sheets | H14: =Translate!$E$703 -> Transparent/light gray
D16: =Translate!$E$315 -> Key output sheets | H16: =Translate!$E$704 -> Pale blue
D18: =Translate!$E$316 -> Documentation sheets | H18: =Translate!$E$705 -> Dark gray
D20: =Translate!$E$317 -> Quality control sheets | H20: =Translate!$E$706 -> Turquoise
B22: =Translate!E$689 -> Font colour only
D23: =Translate!$E$318 -> Imported from another sheet | H23: =Translate!$E$707 -> Blue font
D24: =Translate!$E$319 -> Exported to another sheet (except from Input sheets) | H24: =Translate!$E$708 -> Red font
D25: =Translate!$E$320 -> Within sheet link or calculation | H25: =Translate!$E$709 -> Black font
D26: =Translate!$E$321 -> Calling fiscal parameter from fiscal regime inputs | H26: =Translate!$E$710 -> Green font
B28: =Translate!E$690 -> Font + shade combinations
D29: =Translate!$E$322 -> Inputs | H29: =Translate!$E$711 -> Black font + Light Yellow shade
D31: =Translate!$E$323 -> Calculations | H31: =Translate!$E$712 -> Transparent
D33: =Translate!$E$324 -> Blocks of data linked by arrays OR Indirect formula | H33: =Translate!$E$713 -> Blue font and blue shade
D35: =Translate!$E$325 -> Within-worksheet counter-flow | H35: =Translate!$E$714 -> Black font + light gray shade on entire row
D37: =Translate!$E$326 -> Empty cells being deliberately referenced | H37: =Translate!$E$715 -> Empty cell with light gray shade
D39: =Translate!$E$327 -> Section separator | H39: =Translate!$E$716 -> White font + pale blue shade on entire row
B41: =Translate!E$691 -> Error checks & alerts
D42: =Translate!$E$328 -> OK | H42: =Translate!$E$717 -> Green shade
D44: =Translate!$E$329 -> Error | H44: =Translate!$E$718 -> Red shade
D46: =Translate!$E$330 -> Alert | H46: =Translate!$E$719 -> Gold shade
A49: =Translate!E$692 -> Abbreviations
D50: =Translate!$E$331 -> Average effective tax rate | H50: =Translate!E$512 -> AETR
D51: =Translate!E$752 -> British thermal units | H51: =Translate!E$751 -> Btu
D52: =Translate!$E$332 -> Carbon dioxide equivalent | H52: =Translate!E$731 -> CO2 eq
D53: =Translate!E$30 -> Corporate income tax | H53: =Translate!E$31 -> CIT
D54: =Translate!$E$333 -> Economic limit | H54: =Translate!E$455 -> EL
D55: =Translate!$E$334 -> Economic limit test | H55: =Translate!E$335 -> ELT
D56: =Translate!$E$336 -> Final investment decision (start of development) | H56: =Translate!E$563 -> FID
D57: =Translate!E$758 -> Greenhouse gas emissions | H57: =Translate!E$759 -> GHG
D58: =Translate!$E$338 -> Grams | H58: =Translate!E$339 -> g
D59: =Translate!$E$340 -> Internal rate of return | H59: =Translate!E$13 -> IRR
D60: =Translate!E$536 -> London Interbank Offered Rate | H60: =Translate!K$537 -> LIBOR
D61: =Translate!$E$341 -> Megajoules | H61: =Translate!E$342 -> MJ
D62: =Translate!$E$343 -> Million | H62: =Translate!E$344 -> mn
D63: =Translate!$E$345 -> Net present value | H63: =Translate!E$8 -> NPV
D64: =Translate!$E$346 -> Percent per year | H64: ="% " & Translate!E$18 -> % p.a.
D65: =Translate!E$44 -> Resource rent tax | H65: =Translate!E$45 -> RRT
D66: =Translate!$E$347 -> Thousands of dry tonnes | H66: =Translate!E$597 -> DMT
D67: =Translate!$E$348 -> Thousands of tonnes | H67: =Translate!E$598 -> MT
D68: =Translate!E$349 -> tons | H68: =Translate!E$350 -> t
D69: =Translate!$E$720 -> United States Dollars | H69: =Translate!$E$9 -> US$
A71: =Translate!E$693 -> Name ranges used in the model
D72: Breakeven1 | E72: =Dashboard!$U$161
D73: BreakevenMacroDifference | E73: =Dashboard!$T$166
D74: BreakevenRegimeCount | E74: =Dashboard!$S$160
D75: BreakevenResults | E75: =Dashboard!$T$162:$T$169
D76: BreakevenResultsTable | E76: =Dashboard!$U$162:$Y$169
D77: CHK_TOL | E77: =Inputs!$F$73
D78: Dashboard | E78: =Dashboard!$A$1
D79: Language_Selected | E79: =Dashboard!$C$5

Sheet Track
A1: =RIGHT( CELL("filename",$A$1), LEN( CELL("filename",$A$1)) - SEARCH("]", CELL("filename",$A$1))) ->  | F1: =SUM(I5:I102) -> 0 | G1: =Translate!E$446 -> Track changes
E2: Baseline | F2: ="<= " & Translate!E$553 -> <= Compare live results to
I4: =MATCH(E2, L4:N4, 0) -> 2 | J4: =Translate!E$279 -> Difference | M4: Baseline
E5: =Translate!E$617 -> Top of track results
A7: =Translate!$E$566 -> Dashboard parameters and results
B9: =Translate!$E$616 -> Dashboard parameters | P9: =Translate!$E$721 -> Purpose of this sheet is to save a set of baseline results so that the model can be confirmed to be / brought back to baseline, or changes in results over time can be documented. Process for creating a new saved case:
E10: =Dashboard!B$6 -> Fiscal regime selected | F10: =Dashboard!C$6 -> Royalty + CIT | G10: =Dashboard!D$6 -> Option | I10: =IF(ABS(J10) > CHK_TOL, 1, 0) -> 0 | J10: =IF(F10=INDEX(L10:M10, $I$4), 0, 1) -> 0 | M10: Royalty + CIT
E11: =Dashboard!B$7 -> Selected project | F11: =Dashboard!C$7 -> Gold(2MMoz) | G11: =Dashboard!D$7 -> Option | I11: =IF(ABS(J11) > CHK_TOL, 1, 0) -> 0 | J11: =IF(F11=INDEX(L11:M11, $I$4), 0, 1) -> 0 | M11: Gold(2MMoz)
E12: =ProjectCashflows!E$144 -> Gold sales, after ELT, Total | F12: =Dashboard!C28 -> 2000 | G12: =Dashboard!D28 -> 000 ounce | I12: 0 | J12: =IF(OR(ISTEXT(F12), ISTEXT(INDEX(L12:M12, $I$4))), 0, F12 - INDEX(L12:M12, $I$4)) -> 0 | M12: 2000
E13: =Dashboard!B$17 -> Gold (into model) | F13: =Dashboard!C$17 -> 1500 | G13: =Dashboard!D$17 -> US$ 2021 / ounce | I13: 0 | J13: 0 | M13: 1500 | P13: =Translate!$E$722 -> 1. Select column M
E14: =Dashboard!B$19 -> Price sensitivity | F14: =Dashboard!C$19 -> 1 | G14: =Dashboard!D$19 -> factor | I14: =IF(ABS(J14) > CHK_TOL, 1, 0) -> 0 | J14: =IF(OR(ISTEXT(F14), ISTEXT(INDEX(L14:M14, $I$4))), 0, F14 - INDEX(L14:M14, $I$4)) -> 0 | M14: 1 | P14: =Translate!$E$723 -> 2. Copy column M and immediately Right click insert copied cells. This duplicates the existing saved results set
E15: =Dashboard!B$20 -> Production sensitivity | F15: =Dashboard!C$20 -> 1 | G15: =Dashboard!D$20 -> factor | I15: 0 | J15: 0 | M15: 1 | P15: =Translate!$E$724 -> 3. Now copy the live results from column F between Row 5 and 89 (i.e. each gray row)
E16: =Dashboard!B$21 -> Exploration cost sensitivity | F16: =Dashboard!C$21 -> 1 | G16: =Dashboard!D$21 -> factor | I16: 0 | J16: 0 | M16: 1 | P16: =Translate!$E$725 -> 4. Paste as values over the newly created duplicate saved results
E17: =Dashboard!B$22 -> Capex sensitivity (Development; Replacement; Decommissioning) | F17: =Dashboard!C$22 -> 1 | G17: =Dashboard!D$22 -> factor | I17: 0 | J17: 0 | M17: 1 | P17: =Translate!$E$726 -> 5. Rename the new saved results case in row 4
E18: =Dashboard!B$23 -> Operating cost sensitivity | F18: =Dashboard!C$23 -> 1 | G18: =Dashboard!D$23 -> factor | I18: 0 | J18: 0 | M18: 1 | P18: =Translate!$E$727 -> 6. Track sheet will show differences between live results and saved case selected at E2
P19: =Translate!$E$728 -> 7. Additional results and/or parameters can be added to results set. For example, fiscal parameters for baseline mission country regime could be captured to ensure no inadvertent changes
B20: =Analysis!C$122 -> Project participants: full-cycle, real
E21: =Dashboard!F$5 -> Project | F21: =Dashboard!I$5 -> 1504 | G21: =Dashboard!$I$3 -> US$ mn 2021 | I21: =IF(ABS(J21) > CHK_TOL, 1, 0) -> 0 | J21: =IF(OR(ISTEXT(F21), ISTEXT(INDEX(L21:M21, $I$4))), 0, F21 - INDEX(L21:M21, $I$4)) -> 0 | M21: 1504
E22: =Dashboard!F$6 -> Mining company | F22: =Dashboard!I6 -> 831.0130476 | G22: =Dashboard!$I$3 -> US$ mn 2021 | I22: =IF(ABS(J22) > CHK_TOL, 1, 0) -> 0 | J22: 0 | M22: 831.0130476
E23: =Dashboard!F$7 -> Lender (Parent company share) | F23: =Dashboard!I7 -> 60.79444783 | G23: =Dashboard!$I$3 -> US$ mn 2021 | I23: 0 | J23: 0 | M23: 60.79444783
E24: =Dashboard!F$8 -> Mining company + lender | F24: =Dashboard!I$8 -> 891.8074954 | G24: =Dashboard!$I$3 -> US$ mn 2021 | I24: 0 | J24: 0 | M24: 891.8074954
E25: =Dashboard!F$11 -> Government incl. participation | F25: =Dashboard!I$11 -> 611.7925046 | G25: =Dashboard!$I$3 -> US$ mn 2021 | I25: 0 | J25: 0 | M25: 611.7925046
E26: =Dashboard!F$14 -> Net decommissioning fund | F26: =Dashboard!I$14 -> -0.4 | G26: =Dashboard!$I$3 -> US$ mn 2021 | I26: 0 | J26: 0 | M26: -0.4
E27: =Dashboard!F$12 -> Government share (AETR) | F27: =Dashboard!I$12 -> 0.4067769313 | G27: =Dashboard!$I$3 -> US$ mn 2021 | I27: 0 | J27: 0 | M27: 0.4067769313
E28: =Dashboard!F$13 -> Government share of project benefits | F28: =Dashboard!I$13 -> 0.3163353178 | G28: =Dashboard!$I$3 -> US$ mn 2021 | I28: 0 | J28: 0 | M28: 0.3163353178
B30: =Translate!$E$16 & ": " & Inputs!F$83 & ", " & Inputs!F$85 & ", " & Inputs!F$59 -> Project participants: full-cycle, real, NPV8
E31: =Dashboard!F$5 -> Project | F31: =Dashboard!K$5 -> 505.1398131 | G31: =Dashboard!$K$3 -> US$ mn NPV8.0 real | I31: =IF(ABS(J31) > CHK_TOL, 1, 0) -> 0 | J31: =IF(OR(ISTEXT(F31), ISTEXT(INDEX(L31:M31, $I$4))), 0, F31 - INDEX(L31:M31, $I$4)) -> 0 | M31: 505.1398131
E32: =Dashboard!F$6 -> Mining company | F32: =Dashboard!K$6 -> 282.6938776 | G32: =Dashboard!$K$3 -> US$ mn NPV8.0 real | I32: =IF(ABS(J32) > CHK_TOL, 1, 0) -> 0 | J32: 0 | M32: 282.6938776
E33: =Dashboard!F$7 -> Lender (Parent company share) | F33: =Dashboard!K$7 -> -16.75651152 | G33: =Dashboard!$K$3 -> US$ mn NPV8.0 real | I33: 0 | J33: 0 | M33: -16.75651152
E34: =Dashboard!F$8 -> Mining company + lender | F34: =Dashboard!K$8 -> 265.9373661 | G34: =Dashboard!$K$3 -> US$ mn NPV8.0 real | I34: 0 | J34: 0 | M34: 265.9373661
E35: =Dashboard!F$11 -> Government incl. participation | F35: =Dashboard!K$11 -> 237.3099695 | G35: =Dashboard!$K$3 -> US$ mn NPV8.0 real | I35: 0 | J35: 0 | M35: 237.3099695
E36: =Dashboard!F$14 -> Net decommissioning fund | F36: =Dashboard!K$14 -> -1.892477547 | G36: =Dashboard!$K$3 -> US$ mn NPV8.0 real | I36: 0 | J36: 0 | M36: -1.892477547
E37: =Dashboard!F$12 -> Government share (AETR) | F37: =Dashboard!K$12 -> 0.4697906665 | G37: =Dashboard!$K$3 -> US$ mn NPV8.0 real | I37: 0 | J37: 0 | M37: 0.4697906665
E38: =Dashboard!F$13 -> Government share of project benefits | F38: =Dashboard!K$13 -> 0.2878299183 | G38: =Dashboard!$K$3 -> US$ mn NPV8.0 real | I38: 0 | J38: 0 | M38: 0.2878299183
B40: =Translate!E$15 -> Project cashflows
E41: =Dashboard!N$5 -> Sales revenues: gross, after ELT | F41: =Dashboard!O$5 -> 3000 | G41: =Dashboard!$O$3 -> US$ mn 2021 | I41: =IF(ABS(J41) > CHK_TOL, 1, 0) -> 0 | J41: =IF(OR(ISTEXT(F41), ISTEXT(INDEX(L41:M41, $I$4))), 0, F41 - INDEX(L41:M41, $I$4)) -> 0 | M41: 3000
E42: =Dashboard!N$6 -> Transport costs post-fiscal point, after ELT | F42: =Dashboard!O$6 -> 50 | G42: =Dashboard!$O$3 -> US$ mn 2021 | I42: =IF(ABS(J42) > CHK_TOL, 1, 0) -> 0 | J42: 0 | M42: 50
E43: =Dashboard!N$7 -> Sales revenues: net, after ELT | F43: =Dashboard!O$7 -> 2950 | G43: =Dashboard!$O$3 -> US$ mn 2021 | I43: 0 | J43: 0 | M43: 2950
E44: =Dashboard!N$9 -> Exploration costs, after ELT | F44: =Dashboard!O$9 -> 30 | G44: =Dashboard!$O$3 -> US$ mn 2021 | I44: 0 | J44: 0 | M44: 30
E45: =Dashboard!N$10 -> Development costs, after ELT | F45: =Dashboard!O$10 -> 400 | G45: =Dashboard!$O$3 -> US$ mn 2021 | I45: 0 | J45: 0 | M45: 400
E46: =Dashboard!N$11 -> Replacement capital costs, after ELT | F46: =Dashboard!O$11 -> 96 | G46: =Dashboard!$O$3 -> US$ mn 2021 | I46: 0 | J46: 0 | M46: 96
E47: =Dashboard!N$12 -> Operating costs, after ELT | F47: =Dashboard!O$12 -> 900 | G47: =Dashboard!$O$3 -> US$ mn 2021 | I47: 0 | J47: 0 | M47: 900
E48: =Dashboard!N$13 -> Decommissioning costs, after ELT | F48: =Dashboard!O$13 -> 20 | G48: =Dashboard!$O$3 -> US$ mn 2021 | I48: 0 | J48: 0 | M48: 20
E49: =Dashboard!N$14 -> Project costs, after ELT | F49: =Dashboard!O$14 -> 1446 | G49: =Dashboard!$O$3 -> US$ mn 2021 | I49: 0 | J49: 0 | M49: 1446
E51: =Dashboard!N$16 -> Project cashflow before decommissioning fund | F51: =Dashboard!O$16 -> 1504 | G51: =Dashboard!$O$3 -> US$ mn 2021 | I51: =IF(ABS(J51) > CHK_TOL, 1, 0) -> 0 | J51: =IF(OR(ISTEXT(F51), ISTEXT(INDEX(L51:M51, $I$4))), 0, F51 - INDEX(L51:M51, $I$4)) -> 0 | M51: 1504
A53: =Translate!$E$567 -> Primary fiscal regime results
E55: =Dashboard!B$6 -> Fiscal regime selected | F55: =Dashboard!C$6 -> Royalty + CIT | G55: =Dashboard!D$6 -> Option | I55: =IF(ABS(J55) > CHK_TOL, 1, 0) -> 0 | J55: =IF(F55=INDEX(L55:M55, $I$4), 0, 1) -> 0 | M55: Royalty + CIT
E57: =Dashboard!N$21 -> Royalty | F57: =Dashboard!O$21 -> 147.5 | G57: =Dashboard!$O$19 -> US$ mn 2021 | I57: =IF(ABS(J57) > CHK_TOL, 1, 0) -> 0 | J57: =IF(OR(ISTEXT(F57), ISTEXT(INDEX(L57:M57, $I$4))), 0, F57 - INDEX(L57:M57, $I$4)) -> 0 | M57: 147.5
E58: =Dashboard!N$20 -> Signature bonus | F58: =Dashboard!O$20 -> 0 | G58: =Dashboard!$O$19 -> US$ mn 2021 | I58: 0 | J58: 0 | M58: 0
E59: =Dashboard!N$23 -> CIT: Mining company | F59: =Dashboard!O$23 -> 362.4117728 | G59: =Dashboard!$O$19 -> US$ mn 2021 | I59: 0 | J59: 0 | M59: 362.4117728
E60: =Dashboard!N$24 -> RRT: Mining company | F60: =Dashboard!O$24 -> 0 | G60: =Dashboard!$O$19 -> US$ mn 2021 | I60: 0 | J60: 0 | M60: 0
E61: =Dashboard!N$25 -> Dividend withholding tax | F61: =Dashboard!O$25 -> 95.7221746 | G61: =Dashboard!$O$19 -> US$ mn 2021 | I61: 0 | J61: 0 | M61: 95.7221746
E62: =Dashboard!N$26 -> Interest withholding tax | F62: =Dashboard!O$26 -> 6.158557237 | G62: =Dashboard!$O$19 -> US$ mn 2021 | I62: 0 | J62: 0 | M62: 6.158557237
E63: =Dashboard!N$27 -> VAT cashflow: government | F63: =Dashboard!O$27 -> 0 | G63: =Dashboard!$O$19 -> US$ mn 2021 | I63: =IF(ABS(J63) > CHK_TOL, 1, 0) -> 0 | J63: =IF(OR(ISTEXT(F63), ISTEXT(INDEX(L63:M63, $I$4))), 0, F63 - INDEX(L63:M63, $I$4)) -> 0 | M63: 0
E64: =Dashboard!N$28 -> Government revenues excluding participation | F64: =Dashboard!O$28 -> 611.7925046 | G64: =Dashboard!$O$19 -> US$ mn 2021 | I64: 0 | J64: 0 | M64: 611.7925046
E65: =Dashboard!N$29 -> State participation cashflows including share of loan | F65: =Dashboard!O$29 -> 0 | G65: =Dashboard!$O$19 -> US$ mn 2021 | I65: 0 | J65: 0 | M65: 0
E66: =Dashboard!N$30 -> Government revenues including participation | F66: =Dashboard!O$30 -> 611.7925046 | G66: =Dashboard!$O$19 -> US$ mn 2021 | I66: 0 | J66: 0 | M66: 611.7925046
E67: =Dashboard!N$31 -> Government share (AETR) | F67: =Dashboard!O$31 -> 0.4067769313 | G67: =Dashboard!$O$19 -> US$ mn 2021 | I67: 0 | J67: 0 | M67: 0.4067769313
A69: =Translate!$E$448 -> Results for selected fiscal regimes
B71: =Dashboard!R$79 -> Government revenues including participation
E72: =TRANSPOSE(Dashboard!U68:Y68) -> Royalty + CIT | F72: =TRANSPOSE(Dashboard!U79:Y79) -> 611.7925046 | G72: =Dashboard!S$79 -> US$ mn 2021 | I72: =IF(ABS(J72) > CHK_TOL, 1, 0) -> 0 | J72: =IF(OR(ISTEXT(F72), ISTEXT(INDEX(L72:M72, $I$4))), 0, F72 - INDEX(L72:M72, $I$4)) -> 0 | M72: 611.7925046
E73: High royalty / low CIT | F73: 603.7392174 | G73: =Dashboard!S$79 -> US$ mn 2021 | I73: 0 | J73: 0 | M73: 603.7392174
E74: RRT | F74: 636.9499477 | G74: =Dashboard!S$79 -> US$ mn 2021 | I74: 0 | J74: 0 | M74: 636.9499477
E75: Royalty + CIT + SP | F75: 614.096142 | G75: =Dashboard!S$79 -> US$ mn 2021 | I75: 0 | J75: 0 | M75: 614.096142
E76: Royalty + CIT, no debt | F76: 639.8369604 | G76: =Dashboard!S$79 -> US$ mn 2021 | I76: 0 | J76: 0 | M76: 639.8369604
B78: =Dashboard!R$89 -> AETR: full-cycle, undiscounted
E79: =TRANSPOSE( Dashboard!U68:Y68) -> Royalty + CIT | F79: =TRANSPOSE(Dashboard!U89:Y89) -> 0.4067769313 | G79: =Dashboard!S$89 -> % | I79: =IF(ABS(J79) > CHK_TOL, 1, 0) -> 0 | J79: =IF(OR(ISTEXT(F79), ISTEXT(INDEX(L79:M79, $I$4))), 0, F79 - INDEX(L79:M79, $I$4)) -> 0 | M79: 0.4067769313
E80: High royalty / low CIT | F80: 0.401422352 | G80: =Dashboard!S$89 -> % | I80: 0 | J80: 0 | M80: 0.401422352
E81: RRT | F81: 0.4235039546 | G81: =Dashboard!S$89 -> % | I81: 0 | J81: 0 | M81: 0.4235039546
E82: Royalty + CIT + SP | F82: 0.408308605 | G82: =Dashboard!S$89 -> % | I82: 0 | J82: 0 | M82: 0.408308605
E83: Royalty + CIT, no debt | F83: 0.4254235109 | G83: =Dashboard!S$89 -> % | I83: 0 | J83: 0 | M83: 0.4254235109
A85: =Translate!$E$639 -> Checks
E87: =ReadMe!J$5 ->  | F87: =ReadMe!K$5 -> 0 | G87: =ReadMe!L$5 -> Check | I87: =IF(ABS(J87) > CHK_TOL, 1, 0) -> 0 | J87: =IF(OR(ISTEXT(F87), ISTEXT(INDEX(L87:N87, $I$4))), 0, F87 - INDEX(L87:N87, $I$4)) -> 0 | M87: 0
E88: =ReadMe!J$6 ->  | F88: =ReadMe!K$6 -> 0 | G88: =ReadMe!L$6 -> Check | I88: =IF(ABS(J88) > CHK_TOL, 1, 0) -> 0 | J88: 0 | M88: 0
E89: =ReadMe!J$7 ->  | F89: =ReadMe!K$7 -> 0 | G89: =ReadMe!L$7 -> Check | I89: 0 | J89: 0 | M89: 0
E90: =ReadMe!J$8 ->  | F90: =ReadMe!K$8 -> 0 | G90: =ReadMe!L$8 -> Check | I90: 0 | J90: 0 | M90: 0
E91: =ReadMe!J$9 ->  | F91: =ReadMe!K$9 -> 0 | G91: =ReadMe!L$9 -> Check | I91: 0 | J91: 0 | M91: 0
E92: =ReadMe!J$10 ->  | F92: =ReadMe!K$10 -> 0 | G92: =ReadMe!L$10 -> Check | I92: 0 | J92: 0 | M92: 0
E93: =ReadMe!J$11 ->  | F93: =ReadMe!K$11 -> 0 | G93: =ReadMe!L$11 -> Check | I93: 0 | J93: 0 | M93: 0
E94: =ReadMe!J$12 ->  | F94: =ReadMe!K$12 -> 0 | G94: =ReadMe!L$12 -> Check | I94: 0 | J94: 0 | M94: 0
A96: =Translate!$E$568 -> Model info
E98: =Translate!E$613 -> Date | F98: =TODAY() -> 2023-03-06 | M98: 2022-07-05
E99: =Translate!E$614 -> Time | F99: =NOW() -> 44991.70507 | M99: 44747.5112
E100: =Translate!E$615 -> File | F100: =MID(CELL("filename",$A$1), SEARCH("[", CELL("filename",$A$1)) + 1, SEARCH("]", CELL("filename",$A$1)) - SEARCH("[", CELL("filename",$A$1)) - 1) ->  | M100: FARI Simplified Mining 5b.xlsm
E102: =Translate!E$618 -> Bottom of track results
A103: =Translate!$E$569 -> Comments and version changes
E104: =Translate!E$619 -> Describe changes

Sheet Dashboard
A1: =RIGHT( CELL("filename",$A$1), LEN( CELL("filename",$A$1)) - SEARCH("]", CELL("filename",$A$1))) ->  | C1: =ReadMe!D7 -> 0 | D1: =ReadMe!E7 -> Checks | F1: =Inputs!E71 -> Simplified Mining FARI model: February 2022 | J1: =Track!$F$1 -> 0 | K1: =Track!G1 -> Track changes
B3: =Translate!$E$453 -> Project, Fiscal Regime & Prices | F3: =Translate!E353 -> Participant cashflows | G3: =Translate!E$13 & ": " & Inputs!F$85 -> IRR: real | I3: =Inputs!F$53 -> US$ mn 2021 | K3: =Inputs!$F$58 -> US$ mn NPV8.0 real | N3: =Translate!E$366 -> Project cashflows and government revenues | O3: =Analysis!$F$70 -> US$ mn 2021 | P3: =D17 -> US$ 2021 / ounce
G4: =Inputs!F$83 -> full-cycle | H4: =Inputs!F$84 -> FID forward | I4: =Inputs!F$83 -> full-cycle | J4: =Inputs!F$84 -> FID forward | K4: =Inputs!F$83 -> full-cycle | L4: =Inputs!F$84 -> FID forward
B5: =Translate!$E$482 -> Language | C5: English | D5: =Translate!$E$351 -> Option | F5: =Translate!E504 -> Project | G5: =Analysis!F154 -> 0.2771083168 | H5: =Analysis!F255 -> 0.3235772206 | I5: =Analysis!F136 -> 1504 | J5: =Analysis!F237 -> 1534 | K5: =Analysis!F191 -> 505.1398131 | L5: =Analysis!F292 -> 671.3918043 | N5: =Analysis!E73 -> Sales revenues: gross, after ELT | O5: =Analysis!F86 -> 3000 | P5: =Analysis!F107 -> 1500
B6: =Translate!$E$483 -> Fiscal regime selected | C6: Royalty + CIT | D6: =Translate!$E$351 -> Option | F6: =Translate!E459 -> Mining company | G6: =Analysis!F155 -> 0.3138494662 | H6: =Analysis!F256 -> 0.5099234975 | I6: =IFERROR(Analysis!F141, 0) -> 831.0130476 | J6: =IFERROR( Analysis!F242, 0) -> 861.0130476 | K6: =Analysis!F196 -> 282.6938776 | L6: =Analysis!F297 -> 391.17399 | N6: =Analysis!E74 -> Transport costs post-fiscal point, after ELT | O6: =Analysis!F87 -> 50 | P6: =Analysis!F108 -> 25
B7: =Translate!$E$484 -> Selected project | C7: Gold(2MMoz) | D7: =Translate!$E$351 -> Option | F7: =Translate!E505 -> Lender (Parent company share) | G7: =Analysis!F156 -> 0.0547626494 | H7: =Analysis!F257 -> 0.0547626494 | I7: =IFERROR(Analysis!F142, 0) -> 60.79444783 | J7: =IFERROR( Analysis!F243, 0) -> 60.79444783 | K7: =Analysis!F197 -> -16.75651152 | L7: =Analysis!F298 -> -21.10837864 | N7: =Analysis!E75 -> Sales revenues: net, after ELT | O7: =Analysis!F88 -> 2950 | P7: =Analysis!F109 -> 1475
F8: =Translate!E506 -> Mining company + lender | G8: =Analysis!F157 -> 0.2071171646 | H8: =Analysis!F258 -> 0.2432474505 | I8: =IFERROR( Analysis!F143, 0) -> 891.8074954 | J8: =IFERROR( Analysis!F244, 0) -> 921.8074954 | K8: =Analysis!F198 -> 265.9373661 | L8: =Analysis!F299 -> 370.0656113
B9: =ProjectCashflows!E$9 -> Mineral | C9: =ProjectCashflows!F$9 -> Gold | D9: =ProjectCashflows!G$9 -> Label | F9: =Translate!E507 -> Government excl. participation | I9: =IFERROR( Analysis!F138, 0) -> 611.7925046 | J9: =IFERROR(Analysis!F239, 0) -> 611.7925046 | K9: =Analysis!F193 -> 237.3099695 | L9: =Analysis!F294 -> 298.9422163 | N9: =Analysis!E77 -> Exploration costs, after ELT | O9: =Analysis!F90 -> 30 | P9: =Analysis!F111 -> 15
F10: =Translate!E152 -> State participation | G10: =Analysis!F158 -> 0 | H10: =Analysis!F259 -> 0 | I10: =IFERROR( Analysis!F139, 0) -> 0 | J10: =IFERROR(Analysis!F240, 0) -> 0 | K10: =Analysis!F194 -> 0 | L10: =Analysis!F295 -> 0 | N10: =Analysis!E78 -> Development costs, after ELT | O10: =Analysis!F91 -> 400 | P10: =Analysis!F112 -> 200
B11: =Translate!$E$485 -> Prices (constant real terms) | F11: =Translate!E508 -> Government incl. participation | I11: =IFERROR( Analysis!F140, 0) -> 611.7925046 | J11: =IFERROR(Analysis!F241, 0) -> 611.7925046 | K11: =Analysis!F195 -> 237.3099695 | L11: =Analysis!F296 -> 298.9422163 | N11: =Analysis!E79 -> Replacement capital costs, after ELT | O11: =Analysis!F92 -> 96 | P11: =Analysis!F113 -> 48
B12: =Translate!$E$486 -> Gold | C12: 1500 | D12: =Inputs!F$52 & " / " & Translate!E$599 -> US$ 2021 / ounce | F12: =Translate!E$509 -> Government share (AETR) | I12: =IFERROR( Analysis!F150, 0) -> 0.4067769313 | J12: =IFERROR(Analysis!F251, 0) -> 0.398821711 | K12: =Analysis!F205 -> 0.4697906665 | L12: =Analysis!F306 -> 0.4452574702 | N12: =Analysis!E80 -> Operating costs, after ELT | O12: =Analysis!F93 -> 900 | P12: =Analysis!F114 -> 450
B13: =Translate!$E$487 -> Iron Ore | C13: 80 | D13: =Inputs!F$52 & " / " & Translate!E$597 -> US$ 2021 / DMT | F13: =Translate!E510 -> Government share of project benefits | I13: =IFERROR( Analysis!F151, 0) -> 0.3163353178 | J13: =IFERROR( Analysis!F252, 0) -> 0.3163353178 | K13: =Analysis!F206 -> 0.2878299183 | L13: =Analysis!F307 -> 0.2878299183 | N13: =Analysis!E81 -> Decommissioning costs, after ELT | O13: =Analysis!F94 -> 20 | P13: =Analysis!F115 -> 10
B14: =Translate!$E$488 -> Diamond | C14: 250 | D14: =Inputs!F$52 & " / " & Translate!E$592 -> US$ 2021 / carat | F14: =Translate!E511 -> Net decommissioning fund | I14: =IFERROR( Analysis!F137, 0) -> -0.4 | J14: =IFERROR(Analysis!F238, 0) -> -0.4 | K14: =Analysis!F192 -> -1.892477547 | L14: =Analysis!F293 -> -2.383976676 | N14: =Analysis!E82 -> Project costs, after ELT | O14: =Analysis!F95 -> 1446 | P14: =Analysis!F116 -> 723
B15: =Translate!$E$489 -> Coal | C15: 140 | D15: =Inputs!F$52 & " / " & Translate!E$598 -> US$ 2021 / MT | F15: =Translate!$E$444 & ": " & Translate!$E$12 -> Check: Cashflows | I15: =IF( ABS( I5 - I6 - I7 - I9 - I10 + I14) > CHK_TOL, 1, 0) -> 0 | J15: =IF( ABS( J5 - J6 - J7 - J9 - J10 + J14) > CHK_TOL, 1, 0) -> 0 | K15: =IF( ABS( K5 - K6 - K7 - K9 - K10 + K14) > CHK_TOL, 1, 0) -> 0 | L15: =IF( ABS( L5 - L6 - L7 - L9 - L10 + L14) > CHK_TOL, 1, 0) -> 0
B16: =Translate!$E$490 -> OtherMineral | F16: =Translate!$E$444 & ": " & Translate!$E$512 -> Check: AETR | I16: =IF( ABS( I11 / I5 - I12) > CHK_TOL, 1, 0) -> 0 | J16: =IF( ABS( J11 / J5 - J12) > CHK_TOL, 1, 0) -> 0 | K16: =IF( ABS( K11 / K5 - K12) > CHK_TOL, 1, 0) -> 0 | L16: =IF( ABS( L11 / L5 - L12) > CHK_TOL, 1, 0) -> 0 | N16: =Analysis!E84 -> Project cashflow before decommissioning fund | O16: =Analysis!F97 -> 1504 | P16: =Analysis!F118 -> 752
B17: =C9 & " " & Translate!$E$442 -> Gold (into model) | C17: =INDEX(C12:C16, MATCH(C9, B12:B16, 0)) -> 1500 | D17: =INDEX(D12:D16, MATCH(C9, B12:B16, 0)) -> US$ 2021 / ounce
B19: =Translate!$E$491 -> Price sensitivity | C19: 1 | D19: =Translate!E$356 -> factor | N19: =Translate!E$39 -> Government revenues | O19: =Analysis!$F$70 -> US$ mn 2021 | P19: ="% " & Translate!$E$19 -> % Total
B20: =Translate!$E$492 -> Production sensitivity | C20: 1 | D20: =Translate!E$356 -> factor | N20: =FiscalModel!E749 -> Signature bonus | O20: =FiscalModel!F762 -> 0 | P20: =IFERROR(O20 / $O$30, 0) -> 0
B21: =Translate!$E$493 -> Exploration cost sensitivity | C21: 1 | D21: =Translate!E$356 -> factor | N21: =FiscalModel!E750 -> Royalty | O21: =FiscalModel!F763 -> 147.5 | P21: 0.2410948138
B22: =Translate!$E$494 -> Capex sensitivity (Development; Replacement; Decommissioning) | C22: 1 | D22: =Translate!E$356 -> factor | N22: =FiscalModel!E751 -> Carbon tax | O22: =FiscalModel!F764 -> 0 | P22: 0
B23: =Translate!$E$495 -> Operating cost sensitivity | C23: 1 | D23: =Translate!E$356 -> factor | N23: =FiscalModel!E752 -> CIT: Mining company | O23: =FiscalModel!F765 -> 362.4117728 | P23: 0.5923769416
N24: =FiscalModel!E753 -> RRT: Mining company | O24: =FiscalModel!F766 -> 0 | P24: 0
B25: =Translate!$E$496 -> Discount rate | C25: 0.08 | D25: ="% " & Inputs!F$85 -> % real | N25: =FiscalModel!E754 -> Dividend withholding tax | O25: =FiscalModel!F767 -> 95.7221746 | P25: 0.1564618296
N26: =FiscalModel!E755 -> Interest withholding tax | O26: =FiscalModel!F768 -> 6.158557237 | P26: 0.01006641499
B27: =Translate!$E$454 -> Project statistics and economic limit (EL) | N27: =FiscalModel!E756 -> VAT cashflow: government | O27: =FiscalModel!F769 -> 0 | P27: 0
B28: =ProjectCashflows!E144 -> Gold sales, after ELT, Total | C28: =ProjectCashflows!F144 -> 2000 | D28: =ProjectCashflows!G144 -> 000 ounce | N28: =FiscalModel!E757 -> Government revenues excluding participation | O28: =FiscalModel!F770 -> 611.7925046 | P28: 1
B29: =ProjectCashflows!E195 -> Production years after ELT | C29: =ProjectCashflows!F195 -> 17 | D29: =ProjectCashflows!G195 -> Years | N29: =FiscalModel!E758 -> State participation cashflows including share of loan | O29: =FiscalModel!F771 -> 0 | P29: 0
B30: =ProjectCashflows!E$133 -> EL reached before project end | C30: =ProjectCashflows!F$133 -> 0 | D30: =ProjectCashflows!G$133 -> Years | N30: =FiscalModel!E759 -> Government revenues including participation | O30: =FiscalModel!F772 -> 611.7925046 | P30: 1
B31: =FiscalModel!E$623 -> Mining company post-fiscal EL reached before project EL | N31: =Translate!E$509 -> Government share (AETR) | O31: =O30 / I5 -> 0.4067769313
C32: =FiscalModel!F$623 -> 0 | D32: =FiscalModel!G$623 -> Years
B52: =Translate!$E$456 -> Links to analytical routines | F52: =A1 & ": " & Translate!$E$609 -> 
B53: =A65 -> Results for selected fiscal regimes | K53: =Translate!E$565 -> do not delete row
B54: =A95 -> Government revenues profiles under selected regimes | F54: =F15 -> Check: Cashflows | K54: =IF( ABS( SUM(I15:L15) ) > 0, 1, 0) -> 0 | L54: =Translate!E$444 -> Check
B55: =A121 -> Progressivity analysis across a range of mineral prices | F55: =F16 -> Check: AETR | K55: =IF( ABS( SUM(I16:L16) ) > 0, 1, 0) -> 0 | L55: =Translate!E$444 -> Check
B56: =A153 -> Breakeven mineral price and marginal effective tax rate | F56: =Translate!$E$444 & ": " & Translate!$E$39 -> Check: Government revenues | K56: =IF( ABS(SUM(O20:O27) + O29 - O30) > CHK_TOL, 1, 0) -> 0 | L56: =Translate!E$444 -> Check
B57: =A176 -> Net present value table: full-cycle, real | F57: =R93 -> Check: Government revenues data table | K57: =IF( ABS(T93) > CHK_TOL, 1, 0) -> 0 | L57: =Translate!E$444 -> Check
F58: =R197 -> Check: : Net present value table: full-cycle, real | K58: =U197 -> 0 | L58: =Translate!E$444 -> Check
K59: =Translate!E$565 -> do not delete row
F60: =Translate!$E$639 & ": " & $A$1 ->  | K60: =SUM(K53:K59) -> 0 | L60: =Translate!E$444 -> Check
A63: =Translate!$E$447 -> Dashboard Analytical Routines
A65: =Translate!$E$448 -> Results for selected fiscal regimes | E65: =Translate!E$584 -> Return to | F65: =$A$1 -> 
T67: =Translate!E$515 -> Live results | U67: =Translate!E$516 -> Select regimes to compare | Y67: =Translate!E$747 -> Difference between two selected regimes | Z67: => | AA67: Royalty + CIT
B68: =Translate!$E$497 & " 1" -> Chart details 1 | R68: =Translate!$E$513 -> Fiscal regime | T68: =C6 -> Royalty + CIT | U68: Royalty + CIT | V68: =FiscalModel!L11 -> High royalty / low CIT | W68: =FiscalModel!M11 -> RRT | X68: Royalty + CIT + SP | Y68: Royalty + CIT, no debt | AA68: High royalty / low CIT
B69: =Translate!E$580 -> Government revenues under alternative regimes | C69: =Translate!$E$498 -> Chart title | R69: =N21 -> Royalty | S69: =$O$19 -> US$ mn 2021 | T69: =IFERROR(O21, 0) -> 147.5 | U69: 147.5 | V69: 265.5 | W69: 59 | X69: 147.5 | Y69: 147.5 | AA69: =INDEX(U69:Y69, , MATCH(AA$67, U$68:Y$68, 0)) - INDEX(U69:Y69, , MATCH(AA$68, U$68:Y$68, 0)) -> -118
B70: =Dashboard!$S$69 -> US$ mn 2021 | C70: =Translate!$E$499 & " 1" -> Vertical axis 1 | R70: =N22 -> Carbon tax | S70: US$ mn 2021 | T70: =IFERROR(O22, 0) -> 0 | U70: 0 | V70: 0 | W70: 0 | X70: 0 | Y70: 0
B71: =Dashboard!$R$90 -> AETR: full-cycle, NPV8 | C71: =Translate!$E$499 & " 2" -> Vertical axis 2 | R71: =N20 -> Signature bonus | S71: US$ mn 2021 | T71: =IFERROR(O20, 0) -> 0 | U71: 0 | V71: 0 | W71: 0 | X71: 0 | Y71: 0 | AA71: =INDEX(U71:Y71, , MATCH(AA$67, U$68:Y$68, 0)) - INDEX(U71:Y71, , MATCH(AA$68, U$68:Y$68, 0)) -> 0
B72: =Translate!E$581 -> Fiscal regimes | C72: =Translate!$E$500 -> Horizontal axis | R72: =N23 -> CIT: Mining company | S72: US$ mn 2021 | T72: =IFERROR(O23, 0) -> 362.4117728 | U72: 362.4117728 | V72: 235.4394885 | W72: 207.3322132 | X72: 258.865552 | Y72: 386.818623 | AA72: =INDEX(U72:Y72, , MATCH(AA$67, U$68:Y$68, 0)) - INDEX(U72:Y72, , MATCH(AA$68, U$68:Y$68, 0)) -> 126.9722843
B73: =Translate!E504 & ": " & C$7 -> Project: Gold(2MMoz) | C73: =Translate!$E$501 -> Text box | R73: RRT: Mining company | S73: US$ mn 2021 | T73: 0 | U73: 0 | V73: 0 | W73: 271.5636203 | X73: 0 | Y73: 0 | AA73: =INDEX(U73:Y73, , MATCH(AA$67, U$68:Y$68, 0)) - INDEX(U73:Y73, , MATCH(AA$68, U$68:Y$68, 0)) -> 0
R74: Dividend withholding tax | S74: US$ mn 2021 | T74: 95.7221746 | U74: 95.7221746 | V74: 96.64117164 | W74: 92.89555694 | X74: 95.48148919 | Y74: 105.5183374 | AA74: =INDEX(U74:Y74, , MATCH(AA$67, U$68:Y$68, 0)) - INDEX(U74:Y74, , MATCH(AA$68, U$68:Y$68, 0)) -> -0.9189970488
B75: =Translate!$E$497 & " 2" -> Chart details 2 | R75: Interest withholding tax | S75: US$ mn 2021 | T75: 6.158557237 | U75: 6.158557237 | V75: 6.158557237 | W75: 6.158557237 | X75: 6.158557237 | Y75: 0 | AA75: =INDEX(U75:Y75, , MATCH(AA$67, U$68:Y$68, 0)) - INDEX(U75:Y75, , MATCH(AA$68, U$68:Y$68, 0)) -> 0
R76: VAT cashflow: government | S76: US$ mn 2021 | T76: 0 | U76: 0 | V76: 0 | W76: 0 | X76: 0 | Y76: 0
B77: =Translate!E$582 -> Investor NPV & IRR under alternative regimes | C77: =Translate!$E$498 -> Chart title | R77: Government revenues excluding participation | S77: US$ mn 2021 | T77: 611.7925046 | U77: 611.7925046 | V77: 603.7392174 | W77: 636.9499477 | X77: 508.0055984 | Y77: 639.8369604 | AA77: =INDEX(U77:Y77, , MATCH(AA$67, U$68:Y$68, 0)) - INDEX(U77:Y77, , MATCH(AA$68, U$68:Y$68, 0)) -> 8.053287237
B78: =Dashboard!$S$84 -> US$ mn NPV8.0 real | C78: =Translate!$E$499 & " 1" -> Vertical axis 1 | R78: State participation cashflows including share of loan | S78: US$ mn 2021 | T78: 0 | U78: 0 | V78: 0 | W78: 0 | X78: 106.0905435 | Y78: 0 | AA78: =INDEX(U78:Y78, , MATCH(AA$67, U$68:Y$68, 0)) - INDEX(U78:Y78, , MATCH(AA$68, U$68:Y$68, 0)) -> 0
B79: =Dashboard!$S$81 -> % real | C79: =Translate!$E$499 & " 2" -> Vertical axis 2 | R79: Government revenues including participation | S79: US$ mn 2021 | T79: 611.7925046 | U79: 611.7925046 | V79: 603.7392174 | W79: 636.9499477 | X79: 614.096142 | Y79: 639.8369604 | AA79: =INDEX(U79:Y79, , MATCH(AA$67, U$68:Y$68, 0)) - INDEX(U79:Y79, , MATCH(AA$68, U$68:Y$68, 0)) -> 8.053287237
B80: =Translate!E$581 -> Fiscal regimes | C80: =Translate!$E$500 -> Horizontal axis | R80: =Translate!E$13 & ": " & Inputs!F$84 & ", " & Inputs!F$85 -> IRR: FID forward, real | T80: ------------------- | U80: ------------------- | V80: ------------------- | W80: ------------------- | X80: ------------------- | Y80: ------------------- | AA80: --------------
B81: =Translate!E504 & ": " & C$7 -> Project: Gold(2MMoz) | C81: =Translate!$E$501 -> Text box | R81: =Translate!E$13 & ": " & Translate!E$504 -> IRR: Project | S81: ="% " & Inputs!F$85 -> % real | T81: =IFERROR( IF( T68= 0, NA(), H5), 0) -> 0.3235772206 | U81: 0.3235772206 | V81: 0.3235772206 | W81: 0.3235772206 | X81: 0.3235772206 | Y81: 0.3235772206 | AA81: =INDEX(U81:Y81, , MATCH(AA$67, U$68:Y$68, 0)) - INDEX(U81:Y81, , MATCH(AA$68, U$68:Y$68, 0)) -> 0
R82: =Translate!E$13 & ": " & Translate!E$506 -> IRR: Mining company + lender | S82: ="% " & Inputs!F$85 -> % real | T82: =IFERROR( IF( T68 = 0, NA(), H8), 0) -> 0.2432474505 | U82: 0.2432474505 | V82: 0.2364956992 | W82: 0.2497464417 | X82: 0.2379300218 | Y82: 0.2291460423 | AA82: =INDEX(U82:Y82, , MATCH(AA$67, U$68:Y$68, 0)) - INDEX(U82:Y82, , MATCH(AA$68, U$68:Y$68, 0)) -> 0.006751751297
R83: =Translate!$E$16 & ": " & Inputs!F$84 & ", " & Inputs!F$85 & ", " & Inputs!F$59 -> Project participants: FID forward, real, NPV8 | T83: ------------------- | U83: ------------------- | V83: ------------------- | W83: ------------------- | X83: ------------------- | Y83: ------------------- | AA83: --------------
R84: =F5 & " " & Inputs!F$59 -> Project NPV8 | S84: =Inputs!$F$58 -> US$ mn NPV8.0 real | T84: =IFERROR( IF(T68 = 0, NA(), IFERROR(L5, NA())), 0) -> 671.3918043 | U84: 671.3918043 | V84: 671.3918043 | W84: 671.3918043 | X84: 671.3918043 | Y84: 671.3918043 | AA84: =INDEX(U84:Y84, , MATCH(AA$67, U$68:Y$68, 0)) - INDEX(U84:Y84, , MATCH(AA$68, U$68:Y$68, 0)) -> 0
R85: =F6 & " " & Inputs!F$59 -> Mining company NPV8 | S85: =Inputs!$F$58 -> US$ mn NPV8.0 real | T85: =IFERROR(L6, 0) -> 391.17399 | U85: 391.17399 | V85: 387.6922699 | W85: 389.2415768 | X85: 385.1565452 | Y85: 344.6083428 | AA85: =INDEX(U85:Y85, , MATCH(AA$67, U$68:Y$68, 0)) - INDEX(U85:Y85, , MATCH(AA$68, U$68:Y$68, 0)) -> 3.481720115
R86: =F8 & " " & Inputs!F$59 -> Mining company + lender NPV8 | S86: =Inputs!$F$58 -> US$ mn NPV8.0 real | T86: =IFERROR(L8, 0) -> 370.0656113 | U86: 370.0656113 | V86: 366.5838912 | W86: 368.1331982 | X86: 364.0481666 | Y86: 344.6083428 | AA86: =INDEX(U86:Y86, , MATCH(AA$67, U$68:Y$68, 0)) - INDEX(U86:Y86, , MATCH(AA$68, U$68:Y$68, 0)) -> 3.481720115
R87: =F11 & " " & Inputs!F$59 -> Government incl. participation NPV8 | S87: =Inputs!$F$58 -> US$ mn NPV8.0 real | T87: =IFERROR(L11, 0) -> 298.9422163 | U87: 298.9422163 | V87: 302.4239364 | W87: 300.8746294 | X87: 304.959661 | Y87: 324.3994848 | AA87: =INDEX(U87:Y87, , MATCH(AA$67, U$68:Y$68, 0)) - INDEX(U87:Y87, , MATCH(AA$68, U$68:Y$68, 0)) -> -3.481720115
R88: =Translate!$E$17 & ": " & Inputs!F$83 -> Government share metrics: full-cycle | T88: ------------------- | U88: ------------------- | V88: ------------------- | W88: ------------------- | X88: ------------------- | Y88: ------------------- | AA88: --------------
R89: =Translate!$E$512 & ": " & Inputs!F$83 & ", " & Inputs!F$87 -> AETR: full-cycle, undiscounted | S89: % | T89: =IFERROR(I12, NA()) -> 0.4067769313 | U89: 0.4067769313 | V89: 0.401422352 | W89: 0.4235039546 | X89: 0.408308605 | Y89: 0.4254235109 | AA89: =INDEX(U89:Y89, , MATCH(AA$67, U$68:Y$68, 0)) - INDEX(U89:Y89, , MATCH(AA$68, U$68:Y$68, 0)) -> 0.00535457928
R90: =Translate!$E$512 & ": " & Inputs!F$83 & ", " & Inputs!F$59 -> AETR: full-cycle, NPV8 | S90: ="% " & Inputs!$F$59 -> % NPV8 | T90: =IFERROR( IF( T68 = 0, NA(), K12), 0) -> 0.4697906665 | U90: 0.4697906665 | V90: 0.4752622243 | W90: 0.472827473 | X90: 0.4792471408 | Y90: 0.5097970172 | AA90: =INDEX(U90:Y90, , MATCH(AA$67, U$68:Y$68, 0)) - INDEX(U90:Y90, , MATCH(AA$68, U$68:Y$68, 0)) -> -0.005471557793
R91: =Translate!$E$510 & ": " & Inputs!F$83 & ", " & Inputs!F$87 -> Government share of project benefits: full-cycle, undiscounted | S91: % | T91: =I13 -> 0.3163353178 | U91: 0.3163353178 | V91: 0.3121712603 | W91: 0.3293433028 | X91: 0.3175264436 | Y91: 0.3308360705 | AA91: =INDEX(U91:Y91, , MATCH(AA$67, U$68:Y$68, 0)) - INDEX(U91:Y91, , MATCH(AA$68, U$68:Y$68, 0)) -> 0.004164057517
R92: =Translate!$E$510 & ": " & Inputs!F$83 & ", " & Inputs!F$59 -> Government share of project benefits: full-cycle, NPV8 | S92: ="% " & Inputs!$F$59 -> % NPV8 | T92: =K13 -> 0.2878299183 | U92: 0.2878299183 | V92: 0.2911822157 | W92: 0.2896904997 | X92: 0.2936236823 | Y92: 0.3123408877 | AA92: =INDEX(U92:Y92, , MATCH(AA$67, U$68:Y$68, 0)) - INDEX(U92:Y92, , MATCH(AA$68, U$68:Y$68, 0)) -> -0.003352297406
R93: =Translate!$E$444 & ": " & Translate!$E$514 -> Check: Government revenues data table | T93: =SUM(T69:T76) + T78 - I11 -> 0 | U93: 0 | V93: 0 | W93: 0 | X93: 0 | Y93: 0 | AA93: =INDEX(U93:Y93, , MATCH(AA$67, U$68:Y$68, 0)) - INDEX(U93:Y93, , MATCH(AA$68, U$68:Y$68, 0)) -> 0
A95: =Translate!$E$449 -> Government revenues profiles under selected regimes | E95: =Translate!E$584 -> Return to | F95: =$A$1 -> 
B97: =Translate!$E$497 -> Chart details | R97: =Translate!$E$515 -> Live results
B98: =A95 -> Government revenues profiles under selected regimes | C98: =Translate!$E$498 -> Chart title | R98: =ProjectCashflows!E$48 -> Model calendar years | S98: =ProjectCashflows!G$48 -> Years | T98: =ProjectCashflows!K$48 -> 2021 | U98: =ProjectCashflows!L$48 -> 2022 | V98: =ProjectCashflows!M$48 -> 2023 | W98: =ProjectCashflows!N$48 -> 2024 | X98: =ProjectCashflows!O$48 -> 2025 | Y98: =ProjectCashflows!P$48 -> 2026 | Z98: =ProjectCashflows!Q$48 -> 2027 | AA98: =ProjectCashflows!R$48 -> 2028 | AB98: =ProjectCashflows!S$48 -> 2029 | AC98: =ProjectCashflows!T$48 -> 2030 | AD98: =ProjectCashflows!U$48 -> 2031 | AE98: =ProjectCashflows!V$48 -> 2032 | AF98: =ProjectCashflows!W$48 -> 2033 | AG98: =ProjectCashflows!X$48 -> 2034 | AH98: =ProjectCashflows!Y$48 -> 2035 | AI98: =ProjectCashflows!Z$48 -> 2036 | AJ98: =ProjectCashflows!AA$48 -> 2037 | AK98: =ProjectCashflows!AB$48 -> 2038 | AL98: =ProjectCashflows!AC$48 -> 2039 | AM98: =ProjectCashflows!AD$48 -> 2040 | AN98: =ProjectCashflows!AE$48 -> 2041 | AO98: =ProjectCashflows!AF$48 -> 2042 | AP98: =ProjectCashflows!AG$48 -> 2043 | AQ98: =ProjectCashflows!AH$48 -> 2044 | AR98: =ProjectCashflows!AI$48 -> 2045 | AS98: =ProjectCashflows!AJ$48 -> 2046 | AT98: =ProjectCashflows!AK$48 -> 2047 | AU98: =ProjectCashflows!AL$48 -> 2048 | AV98: =ProjectCashflows!AM$48 -> 2049 | AW98: =ProjectCashflows!AN$48 -> 2050 | AX98: =ProjectCashflows!AO$48 -> 2051 | AY98: =ProjectCashflows!AP$48 -> 2052 | AZ98: =ProjectCashflows!AQ$48 -> 2053 | BA98: =ProjectCashflows!AR$48 -> 2054 | BB98: =ProjectCashflows!AS$48 -> 2055 | BC98: =ProjectCashflows!AT$48 -> 2056 | BD98: =ProjectCashflows!AU$48 -> 2057 | BE98: =ProjectCashflows!AV$48 -> 2058 | BF98: =ProjectCashflows!AW$48 -> 2059 | BG98: =ProjectCashflows!AX$48 -> 2060
B99: =S99 -> US$ mn 2021 | C99: =Translate!$E$499 & " 1" -> Vertical axis 1 | R99: =FiscalModel!E$759 -> Government revenues including participation | S99: =FiscalModel!G$759 -> US$ mn 2021 | T99: =FiscalModel!K$759 -> 0 | U99: =FiscalModel!L$759 -> 0 | V99: =FiscalModel!M$759 -> 0 | W99: =FiscalModel!N$759 -> 0 | X99: =FiscalModel!O$759 -> 0.7375 | Y99: =FiscalModel!P$759 -> 8.865625 | Z99: =FiscalModel!Q$759 -> 18.59565233 | AA99: =FiscalModel!R$759 -> 18.7120366 | AB99: =FiscalModel!S$759 -> 25.90185001 | AC99: =FiscalModel!T$759 -> 46.29910935 | AD99: =FiscalModel!U$759 -> 52.08532783 | AE99: =FiscalModel!V$759 -> 58.55002379 | AF99: =FiscalModel!W$759 -> 58.55002379 | AG99: =FiscalModel!X$759 -> 57.5889948 | AH99: =FiscalModel!Y$759 -> 57.60783851 | AI99: =FiscalModel!Z$759 -> 57.62631273 | AJ99: =FiscalModel!AA$759 -> 47.42967471 | AK99: =FiscalModel!AB$759 -> 38.43588156 | AL99: =FiscalModel!AC$759 -> 28.28939754 | AM99: =FiscalModel!AD$759 -> 20.59164279 | AN99: =FiscalModel!AE$759 -> 15.92561328 | AO99: =FiscalModel!AF$759 -> 0 | AP99: =FiscalModel!AG$759 -> 0 | AQ99: =FiscalModel!AH$759 -> 0 | AR99: =FiscalModel!AI$759 -> 0 | AS99: =FiscalModel!AJ$759 -> 0 | AT99: =FiscalModel!AK$759 -> 0 | AU99: =FiscalModel!AL$759 -> 0 | AV99: =FiscalModel!AM$759 -> 0 | AW99: =FiscalModel!AN$759 -> 0 | AX99: =FiscalModel!AO$759 -> 0 | AY99: =FiscalModel!AP$759 -> 0 | AZ99: =FiscalModel!AQ$759 -> 0 | BA99: =FiscalModel!AR$759 -> 0 | BB99: =FiscalModel!AS$759 -> 0 | BC99: =FiscalModel!AT$759 -> 0 | BD99: =FiscalModel!AU$759 -> 0 | BE99: =FiscalModel!AV$759 -> 0 | BF99: =FiscalModel!AW$759 -> 0 | BG99: =FiscalModel!AX$759 -> 0
C100: =Translate!$E$499 & " 2" -> Vertical axis 2
B101: =S98 -> Years | C101: =Translate!$E$500 -> Horizontal axis | R101: =Translate!$E$516 -> Select regimes to compare
B102: =Translate!E504 & ": " & C$7 -> Project: Gold(2MMoz) | C102: =Translate!$E$501 -> Text box | R102: =$C$6 -> Royalty + CIT | S102: =IFERROR( IF( $R102 = 0, NA(), S99), "") -> US$ mn 2021 | T102: 0 | U102: 0 | V102: 0 | W102: 0 | X102: 0.7375 | Y102: 8.865625 | Z102: 18.59565233 | AA102: 18.7120366 | AB102: 25.90185001 | AC102: 46.29910935 | AD102: 52.08532783 | AE102: 58.55002379 | AF102: 58.55002379 | AG102: 57.5889948 | AH102: 57.60783851 | AI102: 57.62631273 | AJ102: 47.42967471 | AK102: 38.43588156 | AL102: 28.28939754 | AM102: 20.59164279 | AN102: 15.92561328 | AO102: 0 | AP102: 0 | AQ102: 0 | AR102: 0 | AS102: 0 | AT102: 0 | AU102: 0 | AV102: 0 | AW102: 0 | AX102: 0 | AY102: 0 | AZ102: 0 | BA102: 0 | BB102: 0 | BC102: 0 | BD102: 0 | BE102: 0 | BF102: 0 | BG102: 0
R103: =TRANSPOSE( U68:Y68) -> Royalty + CIT | S103: US$ mn 2021 | T103: 0 | U103: 0 | V103: 0 | W103: 0 | X103: 0.7375 | Y103: 8.865625 | Z103: 18.59565233 | AA103: 18.7120366 | AB103: 25.90185001 | AC103: 46.29910935 | AD103: 52.08532783 | AE103: 58.55002379 | AF103: 58.55002379 | AG103: 57.5889948 | AH103: 57.60783851 | AI103: 57.62631273 | AJ103: 47.42967471 | AK103: 38.43588156 | AL103: 28.28939754 | AM103: 20.59164279 | AN103: 15.92561328 | AO103: 0 | AP103: 0 | AQ103: 0 | AR103: 0 | AS103: 0 | AT103: 0 | AU103: 0 | AV103: 0 | AW103: 0 | AX103: 0 | AY103: 0 | AZ103: 0 | BA103: 0 | BB103: 0 | BC103: 0 | BD103: 0 | BE103: 0 | BF103: 0 | BG103: 0
R104: High royalty / low CIT | S104: US$ mn 2021 | T104: 0 | U104: 0 | V104: 0 | W104: 0 | X104: 1.3275 | Y104: 12.848125 | Z104: 26.56065233 | AA104: 26.6770366 | AB104: 26.79113882 | AC104: 44.38257288 | AD104: 49.01799852 | AE104: 55.20237413 | AF104: 55.20237413 | AG104: 54.43791926 | AH104: 54.45290857 | AI104: 54.46760397 | AJ104: 44.91751123 | AK104: 36.45513599 | AL104: 27.0633973 | AM104: 19.14595914 | AN104: 14.78900948 | AO104: 0 | AP104: 0 | AQ104: 0 | AR104: 0 | AS104: 0 | AT104: 0 | AU104: 0 | AV104: 0 | AW104: 0 | AX104: 0 | AY104: 0 | AZ104: 0 | BA104: 0 | BB104: 0 | BC104: 0 | BD104: 0 | BE104: 0 | BF104: 0 | BG104: 0
R105: RRT | S105: US$ mn 2021 | T105: 0 | U105: 0 | V105: 0 | W105: 0 | X105: 0.295 | Y105: 5.87875 | Z105: 12.62190233 | AA105: 12.7382866 | AB105: 19.75614891 | AC105: 36.60710571 | AD105: 58.81815396 | AE105: 64.6959292 | AF105: 64.6959292 | AG105: 63.53218316 | AH105: 63.55500171 | AI105: 63.57737284 | AJ105: 52.25350844 | AK105: 43.691214 | AL105: 31.58366946 | AM105: 24.15923679 | AN105: 18.49055536 | AO105: 0 | AP105: 0 | AQ105: 0 | AR105: 0 | AS105: 0 | AT105: 0 | AU105: 0 | AV105: 0 | AW105: 0 | AX105: 0 | AY105: 0 | AZ105: 0 | BA105: 0 | BB105: 0 | BC105: 0 | BD105: 0 | BE105: 0 | BF105: 0 | BG105: 0
R106: Royalty + CIT + SP | S106: US$ mn 2021 | T106: 0 | U106: 0 | V106: 0 | W106: 0 | X106: 0.7375 | Y106: 11.8665625 | Z106: 23.47906597 | AA106: 24.10922859 | AB106: 29.26841543 | AC106: 42.90042242 | AD106: 47.12242348 | AE106: 58.52233672 | AF106: 58.52233672 | AG106: 57.56130774 | AH106: 57.58015144 | AI106: 57.59862566 | AJ106: 47.40198764 | AK106: 38.98419449 | AL106: 29.04097081 | AM106: 16.97160287 | AN106: 12.42900948 | AO106: 0 | AP106: 0 | AQ106: 0 | AR106: 0 | AS106: 0 | AT106: 0 | AU106: 0 | AV106: 0 | AW106: 0 | AX106: 0 | AY106: 0 | AZ106: 0 | BA106: 0 | BB106: 0 | BC106: 0 | BD106: 0 | BE106: 0 | BF106: 0 | BG106: 0
R107: Royalty + CIT, no debt | S107: US$ mn 2021 | T107: 0 | U107: 0 | V107: 0 | W107: 0 | X107: 0.7375 | Y107: 5.53125 | Z107: 24.53125 | AA107: 34.87144825 | AB107: 40.25031969 | AC107: 53.89384284 | AD107: 58.55002379 | AE107: 58.55002379 | AF107: 58.55002379 | AG107: 57.5889948 | AH107: 57.60783851 | AI107: 57.62631273 | AJ107: 39.88451379 | AK107: 31.5978994 | AL107: 23.5484629 | AM107: 20.59164279 | AN107: 15.92561328 | AO107: 0 | AP107: 0 | AQ107: 0 | AR107: 0 | AS107: 0 | AT107: 0 | AU107: 0 | AV107: 0 | AW107: 0 | AX107: 0 | AY107: 0 | AZ107: 0 | BA107: 0 | BB107: 0 | BC107: 0 | BD107: 0 | BE107: 0 | BF107: 0 | BG107: 0
R109: =Translate!$E$517 -> Difference between two regimes | T109: =T103 - T104 -> 0 | U109: 0 | V109: 0 | W109: 0 | X109: -0.59 | Y109: -3.9825 | Z109: -7.965 | AA109: -7.965 | AB109: -0.8892888069 | AC109: 1.916536463 | AD109: 3.067329312 | AE109: 3.347649654 | AF109: 3.347649654 | AG109: 3.151075543 | AH109: 3.154929937 | AI109: 3.158708755 | AJ109: 2.512163479 | AK109: 1.980745561 | AL109: 1.226000237 | AM109: 1.445683655 | AN109: 1.136603793 | AO109: 0 | AP109: 0 | AQ109: 0 | AR109: 0 | AS109: 0 | AT109: 0 | AU109: 0 | AV109: 0 | AW109: 0 | AX109: 0 | AY109: 0 | AZ109: 0 | BA109: 0 | BB109: 0 | BC109: 0 | BD109: 0 | BE109: 0 | BF109: 0 | BG109: 0
R110: =Translate!$E$518 -> Cumulative difference | T110: =S110 + T109 -> 0 | U110: =T110 + U109 -> 0 | V110: 0 | W110: 0 | X110: -0.59 | Y110: -4.5725 | Z110: -12.5375 | AA110: -20.5025 | AB110: -21.39178881 | AC110: -19.47525234 | AD110: -16.40792303 | AE110: -13.06027338 | AF110: -9.712623723 | AG110: -6.56154818 | AH110: -3.406618243 | AI110: -0.2479094874 | AJ110: 2.264253992 | AK110: 4.244999552 | AL110: 5.470999789 | AM110: 6.916683444 | AN110: 8.053287237 | AO110: 8.053287237 | AP110: 8.053287237 | AQ110: 8.053287237 | AR110: 8.053287237 | AS110: 8.053287237 | AT110: 8.053287237 | AU110: 8.053287237 | AV110: 8.053287237 | AW110: 8.053287237 | AX110: 8.053287237 | AY110: 8.053287237 | AZ110: 8.053287237 | BA110: 8.053287237 | BB110: 8.053287237 | BC110: 8.053287237 | BD110: 8.053287237 | BE110: 8.053287237 | BF110: 8.053287237 | BG110: 8.053287237
A121: =Translate!$E$450 -> Progressivity analysis across a range of mineral prices | E121: =Translate!E$584 -> Return to | F121: =$A$1 -> 
B123: =Translate!$E$497 -> Chart details | R123: =Translate!$E$17 -> Government share metrics
B124: =Translate!$E$450 -> Progressivity analysis across a range of mineral prices | C124: =Translate!$E$498 -> Chart title | R124: =R89 -> AETR: full-cycle, undiscounted | S124: % | T124: 0.4067769313
B125: =R129 -> AETR: full-cycle, undiscounted | C125: =Translate!$E$499 & " 1" -> Vertical axis 1 | R125: AETR: full-cycle, NPV8 | S125: % NPV8 | T125: 0.4697906665
C126: =Translate!$E$499 & " 2" -> Vertical axis 2 | R126: Government share of project benefits: full-cycle, undiscounted | S126: % | T126: 0.3163353178
B127: =R151 & " / " & S133 & " price: " & S135 -> IRR: Project % real / Gold price: US$ / ounce const | C127: =Translate!$E$500 -> Horizontal axis | R127: Government share of project benefits: full-cycle, NPV8 | S127: % NPV8 | T127: 0.2878299183
B128: =Translate!E504 & ": " & C$7 -> Project: Gold(2MMoz) | C128: =Translate!$E$501 -> Text box | R128: =Translate!$E$519 -> Select metric
R129: AETR: full-cycle, undiscounted | S129: =INDEX( S124:S127, MATCH(R129, R124:R127, 0), ) -> % | T129: =INDEX( T124:T127, MATCH(R129, R124:R127, 0), ) -> 0.4067769313
R130: =Translate!E$444 & ": " & Translate!$E$519 -> Check: Select metric | S130: =IFERROR(MIN( 0, MATCH(R129,$R$124:$R$127,0) ), 1 ) -> 0 | T130: =Translate!E$444 -> Check
R132: =Translate!$E$520 -> Create range of mineral prices
R133: =ProjectCashflows!E$9 -> Mineral | S133: =ProjectCashflows!F$9 -> Gold | T133: =ProjectCashflows!G$9 -> Label
R134: =ProjectCashflows!E$10 -> Mineral units | S134: =ProjectCashflows!F$10 -> ounce | T134: =ProjectCashflows!G$10 -> Units
R135: =Translate!$E$521 -> Price label | S135: =ProjectCashflows!$G$81 -> US$ / ounce const
R137: =Translate!$E$522 -> Starting price multiplier | S137: 0.75 | T137: %
R138: =Translate!$E$523 -> Increment | S138: 0.05 | T138: %
R140: =Translate!$E$524 -> Data table to perform sensitivity analysis | T140: =Translate!E$748 -> Range of price multipliers
R141: =Translate!$E$525 -> Selected regimes (from above) | S141: =T129 -> 0.4067769313 | T141: =$S$137 -> 0.75 | U141: =T141 + $S$138 -> 0.8 | V141: 0.85 | W141: 0.9 | X141: 0.95 | Y141: 1 | Z141: 1.05 | AA141: 1.1 | AB141: 1.15 | AC141: 1.2 | AD141: 1.25 | AE141: 1.3 | AF141: 1.35 | AG141: 1.4 | AH141: 1.45 | AI141: 1.5 | AJ141: 1.55 | AK141: 1.6 | AL141: 1.65 | AM141: 1.7
S142: =TRANSPOSE(U68:Y68) -> Royalty + CIT | T142: 0.4324862199 | U142: 0.4236744599 | V142: 0.4174540771 | W142: 0.4129556669 | X142: 0.4094728169 | Y142: 0.4067769313 | Z142: 0.4046070948 | AA142: 0.402855598 | AB142: 0.4013730105 | AC142: 0.4001018186 | AD142: 0.3990298268 | AE142: 0.3980976177 | AF142: 0.4015795848 | AG142: 0.4005626899 | AH142: 0.3996515666 | AI142: 0.3988314344 | AJ142: 0.3980893109 | AK142: 0.3974145715 | AL142: 0.3967984372 | AM142: 0.3962335904
S143: High royalty / low CIT | T143: 0.4606932978 | U143: 0.4406318108 | V143: 0.4265621044 | W143: 0.4160194826 | X143: 0.4079123613 | Y143: 0.401422352 | Z143: 0.3961728839 | AA143: 0.3918139215 | AB143: 0.3881582594 | AC143: 0.385023842 | AD143: 0.3823066052 | AE143: 0.379946587 | AF143: 0.3778687076 | AG143: 0.3760213622 | AH143: 0.3773107611 | AI143: 0.3756345069 | AJ143: 0.3741176935 | AK143: 0.3727386052 | AL143: 0.3714792988 | AM143: 0.3703248181
S144: RRT | T144: 0.3762396327 | U144: 0.3960690581 | V144: 0.4076886319 | W144: 0.4150913984 | X144: 0.4200891639 | Y144: 0.4235039546 | Z144: 0.426038345 | AA144: 0.4281422928 | AB144: 0.4294848297 | AC144: 0.4306039631 | AD144: 0.4315676505 | AE144: 0.4324110775 | AF144: 0.4353225341 | AG144: 0.4356800801 | AH144: 0.4359134597 | AI144: 0.4361235324 | AJ144: 0.4363136236 | AK144: 0.4364864546 | AL144: 0.4366442743 | AM144: 0.436788957
S145: Royalty + CIT + SP | T145: 0.4343189273 | U145: 0.4254972499 | V145: 0.4192459768 | W145: 0.4146629292 | X145: 0.4111074564 | Y145: 0.408308605 | Z145: 0.4060380492 | AA145: 0.4041844525 | AB145: 0.4026154408 | AC145: 0.4012701474 | AD145: 0.4001231995 | AE145: 0.3991232429 | AF145: 0.4027190181 | AG145: 0.4015950902 | AH145: 0.4005893047 | AI145: 0.3996839639 | AJ145: 0.3988647366 | AK145: 0.3981198944 | AL145: 0.397439746 | AM145: 0.3968162138
S146: Royalty + CIT, no debt | T146: 0.4680052745 | U146: 0.4536838792 | V146: 0.4434814631 | W146: 0.4358919713 | X146: 0.4300561337 | Y146: 0.4254235109 | Z146: 0.4216016899 | AA146: 0.4184467191 | AB146: 0.4157892505 | AC146: 0.4135049308 | AD146: 0.4115122754 | AE146: 0.4097682874 | AF146: 0.4082353642 | AG146: 0.4069084462 | AH146: 0.405721008 | AI146: 0.4046521554 | AJ146: 0.4036825559 | AK146: 0.4027969688 | AL146: 0.4019883001 | AM146: 0.4012469456
R149: =Translate!$E$526 -> Data table to generate pre-tax IRR | T149: =T141 -> 0.75 | U149: 0.8 | V149: 0.85 | W149: 0.9 | X149: 0.95 | Y149: 1 | Z149: 1.05 | AA149: 1.1 | AB149: 1.15 | AC149: 1.2 | AD149: 1.25 | AE149: 1.3 | AF149: 1.35 | AG149: 1.4 | AH149: 1.45 | AI149: 1.5 | AJ149: 1.55 | AK149: 1.6 | AL149: 1.65 | AM149: 1.7
R150: =ProjectCashflows!E$78 -> Gold (into model) (into model) | S150: =ProjectCashflows!F$78 -> 1500 | T150: 1125 | U150: 1200 | V150: 1275 | W150: 1350 | X150: 1425 | Y150: 1500 | Z150: 1575 | AA150: 1650 | AB150: 1725 | AC150: 1800 | AD150: 1875 | AE150: 1950 | AF150: 2025 | AG150: 2100 | AH150: 2175 | AI150: 2250 | AJ150: 2325 | AK150: 2400 | AL150: 2475 | AM150: 2550
R151: =R81 & " " & S81 -> IRR: Project % real | S151: =T81 -> 0.3235772206 | T151: 0.1886675094 | U151: 0.2173752596 | V151: 0.245041104 | W151: 0.2718698846 | X151: 0.2980111893 | Y151: 0.3235772206 | Z151: 0.3486540131 | AA151: 0.3733087736 | AB151: 0.397594851 | AC151: 0.4215551965 | AD151: 0.4452248326 | AE151: 0.468632648 | AF151: 0.4918027276 | AG151: 0.5147553513 | AH151: 0.5375077543 | AI151: 0.5600747134 | AJ151: 0.5824690024 | AK151: 0.6047017506 | AL151: 0.6267827265 | AM151: 0.648720564
A153: =Translate!$E$451 -> Breakeven mineral price and marginal effective tax rate | E153: =Translate!E$584 -> Return to | F153: =$A$1 -> 
R155: =Translate!$E$527 -> Investor hurdle Rate (real terms) | S155: 0.1
R156: =ProjectCashflows!E$9 -> Mineral | S156: =ProjectCashflows!F$9 -> Gold | T156: =ProjectCashflows!G$9 -> Label
B157: =Translate!$E$497 -> Chart details | R157: =ProjectCashflows!E$10 -> Mineral units | S157: =ProjectCashflows!F$10 -> ounce | T157: =ProjectCashflows!G$10 -> Units
B158: =A153 -> Breakeven mineral price and marginal effective tax rate | C158: =Translate!$E$498 -> Chart title | R158: =Translate!$E$521 -> Price label | S158: =ProjectCashflows!$G$81 -> US$ / ounce const
B159: =R163 & " " & S163 -> Breakeven price: Gold US$ / ounce const | C159: =Translate!$E$499 & " 1" -> Vertical axis 1 | U159: =Translate!E$525 -> Selected regimes (from above)
B160: =R169 -> Marginal Effective Tax Rate (METR) | C160: =Translate!$E$499 & " 2" -> Vertical axis 2 | R160: =Translate!$E$528 -> Regime count | S160: =SUM(U160:Y160) -> 5 | U160: =ISTEXT(U161) * 1 -> 1 | V160: =ISTEXT(V161) * 1 -> 1 | W160: =ISTEXT(W161) * 1 -> 1 | X160: =ISTEXT(X161) * 1 -> 1 | Y160: =ISTEXT(Y161) * 1 -> 1
B161: =Translate!E$581 -> Fiscal regimes | C161: =Translate!$E$500 -> Horizontal axis | T161: =Translate!E$515 -> Live results | U161: =(U68:Y68) -> Royalty + CIT | V161: High royalty / low CIT | W161: RRT | X161: Royalty + CIT + SP | Y161: Royalty + CIT, no debt
B162: =Translate!E504 & ": " & C$7 -> Project: Gold(2MMoz) | C162: =Translate!$E$501 -> Text box | R162: =Translate!$E$124 -> Regime name | T162: =C6 -> Royalty + CIT | U162: Royalty + CIT | V162: High royalty / low CIT | W162: RRT
B163: =Translate!E$513 & ": " & C$6 -> Fiscal regime: Royalty + CIT | C163: =Translate!$E$501 & " 2" -> Text box 2 | R163: =Translate!E$749 & ": " & S156 -> Breakeven price: Gold | S163: =S158 -> US$ / ounce const | T163: =MineralPrice -> 1500 | U163: 1051.826005 | V163: 1093.69129 | W163: 1004.410744
R164: =Translate!E$13 & ": " & Translate!E$504 -> IRR: Project | S164: =S81 -> % real | T164: =T81 -> 0.3235772206 | U164: 0.1561885489 | V164: 0.1734347855 | W164: 0.1359436173
B165: =Translate!$E$502 -> Named ranges used in macro | R165: =Translate!E$13 & ": " & Translate!E$506 -> IRR: Mining company + lender | S165: =S82 -> % real | T165: =T82 -> 0.2432474505 | U165: 0.1000005445 | V165: 0.09999999841 | W165: 0.1000001348
B166: RegimeSelected | R166: =Translate!$E$529 -> Difference from hurdle rate (used by macro) | T166: =(S155 - T165) * 10^3 -> -143.2474505 | U166: -0.0005445304581 | V166: 1.586763082e-06 | W166: -0.0001348134085
B167: MineralPrice | R167: =R89 -> AETR: full-cycle, undiscounted | S167: =S89 -> % | T167: =T89 -> 0.4067769313 | U167: 0.5290800113 | V167: 0.5694502587 | W167: 0.4116163819
B168: BreakevenRegimeCount | R168: =R90 -> AETR: full-cycle, NPV8 | S168: =S90 -> % NPV8 | T168: =T90 -> 0.4697906665 | U168: 0.8464690068 | V168: 0.8698921156 | W168: 0.7633876449
B169: BreakevenResultsTable | R169: =Translate!$E$530 -> Marginal Effective Tax Rate (METR) | S169: ="% " & Inputs!F$85 -> % real | T169: =(T164 - T165) / T164 -> 0.2482553312 | U169: 0.3597447109 | V169: 0.4234144082 | W169: 0.2643999269
B170: Breakeven1
B171: BreakevenMacroDifference
B172: BreakevenResults
A176: =Translate!$E$452 & ": " & Inputs!F83 & ", " & Inputs!F$85 -> Net present value table: full-cycle, real | E176: =Translate!E$584 -> Return to | F176: =$A$1 -> 
B178: =Translate!$E$497 -> Chart details | T178: =Translate!E$515 -> Live results | U178: =Translate!E$750 -> Choose alternative discount rates
B179: =A176 -> Net present value table: full-cycle, real | C179: =Translate!$E$498 -> Chart title | T179: =C25 -> 0.08 | U179: 0 | V179: 0.05 | W179: 0.07 | X179: 0.1
B180: =Inputs!F$53 -> US$ mn 2021 | C180: =Translate!$E$499 & " 1" -> Vertical axis 1 | R180: =Analysis!E191 -> Total: Project cashflow before decommissioning fund | S180: =Analysis!G191 -> US$ mn 2021 NPV8 | T180: =Analysis!F191 -> 505.1398131 | U180: 1504 | V180: 758.5945008 | W180: 578.6037795 | X180: 384.1366697
B181: =S190 -> % real | C181: =Translate!$E$499 & " 2" -> Vertical axis 2 | R181: =Analysis!E192 -> Total: Net decommissioning cashflows | S181: =Analysis!G192 -> US$ mn 2021 NPV8 | T181: =Analysis!F192 -> -1.892477547 | U181: -0.4 | V181: -2.044954139 | W181: -1.977989907 | X181: -1.674658331
B182: =Translate!E$583 -> Discount rates | C182: =Translate!$E$500 -> Horizontal axis | R182: =Analysis!E193 -> Total: Government revenues excluding participation | S182: =Analysis!G193 -> US$ mn 2021 NPV8 | T182: =Analysis!F193 -> 237.3099695 | U182: 611.7925046 | V182: 332.6749172 | W182: 265.0156603 | X182: 191.4800906
B183: =Translate!E504 & ": " & C$7 -> Project: Gold(2MMoz) | C183: =Translate!$E$501 -> Text box | R183: =Analysis!E194 -> Total: State participation cashflows including share of loan | S183: =Analysis!G194 -> US$ mn 2021 NPV8 | T183: =Analysis!F194 -> 0 | U183: 0 | V183: 0 | W183: 0 | X183: 0
B184: =Translate!E$513 & ": " & C$6 -> Fiscal regime: Royalty + CIT | C184: =Translate!$E$501 & " 2" -> Text box 2 | R184: =Analysis!E195 -> Total: Government revenues including participation | S184: =Analysis!G195 -> US$ mn 2021 NPV8 | T184: =Analysis!F195 -> 237.3099695 | U184: 611.7925046 | V184: 332.6749172 | W184: 265.0156603 | X184: 191.4800906
R185: =Analysis!E196 -> Total: Net cashflow after fiscal regime: Parent company (excluding loan) | S185: =Analysis!G196 -> US$ mn 2021 NPV8 | T185: =Analysis!F196 -> 282.6938776 | U185: 831.0130476 | V185: 420.0635796 | W185: 322.3681464 | X185: 217.6039749
R186: =Analysis!E197 -> Total: Project loan cashflows net of state participation share, met by parent company | S186: =Analysis!G197 -> US$ mn 2021 NPV8 | T186: =Analysis!F197 -> -16.75651152 | U186: 60.79444783 | V186: 3.811049941 | W186: -10.75801709 | X186: -26.62205407
R187: =Analysis!E198 -> Total: Investors (Parent company + lender) | S187: =Analysis!G198 -> US$ mn 2021 NPV8 | T187: =Analysis!F198 -> 265.9373661 | U187: 891.8074954 | V187: 423.8746295 | W187: 311.6101293 | X187: 190.9819208
R188: =Analysis!E199 -> Total: Project benefits | S188: =Analysis!G199 -> US$ mn 2021 NPV8 | T188: =Analysis!F199 -> 824.4798555 | U188: 1934 | V188: 1114.40872 | W188: 909.521276 | X188: 681.9032778
R189: -------------- | S189: -------------- | T189: -------------- | U189: -------------- | V189: -------------- | W189: -------------- | X189: --------------
R190: =Translate!$E$436 -> Average Effective Tax Rate (incl. participation) | S190: ="% " & Inputs!F$85 -> % real | T190: =T184 / T180 -> 0.4697906665 | U190: =U184 / U180 -> 0.4067769313 | V190: =V184 / V180 -> 0.4385411663 | W190: =W184 / W180 -> 0.458026148 | X190: =X184 / X180 -> 0.4984686589
R191: =Translate!$E$435 -> Average Effective Tax Rate (excl. participation) | S191: ="% " & Inputs!F$85 -> % real | T191: =T182 / T180 -> 0.4697906665 | U191: =U182 / U180 -> 0.4067769313 | V191: =V182 / V180 -> 0.4385411663 | W191: =W182 / W180 -> 0.458026148 | X191: =X182 / X180 -> 0.4984686589
R192: =Translate!$E$510 -> Government share of project benefits | S192: ="% " & Inputs!F$85 -> % real | T192: =T184 / T188 -> 0.2878299183 | U192: =U184 / U188 -> 0.3163353178 | V192: =V184 / V188 -> 0.298521459 | W192: =W184 / W188 -> 0.2913792864 | X192: =X184 / X188 -> 0.28080242
S194: =Translate!E$444 -> Check | T194: =IF( ABS(T180 + T181 - SUM(T184:T186)) > CHK_TOL, 1, 0) -> 0 | U194: =IF( ABS(U180 + U181 - SUM(U184:U186)) > CHK_TOL, 1, 0) -> 0 | V194: =IF( ABS(V180 + V181 - SUM(V184:V186)) > CHK_TOL, 1, 0) -> 0 | W194: =IF( ABS(W180 + W181 - SUM(W184:W186)) > CHK_TOL, 1, 0) -> 0 | X194: =IF( ABS(X180 + X181 - SUM(X184:X186)) > CHK_TOL, 1, 0) -> 0
R197: =Translate!$E$444 & ": " & ": " & A176 -> Check: : Net present value table: full-cycle, real | U197: =IF( SUM(T194:X194)<CHK_TOL, 0, 1) -> 0 | V197: =Translate!E$444 -> Check

Sheet Inputs
A1: =RIGHT( CELL("filename",$A$1), LEN( CELL("filename",$A$1)) - SEARCH("]", CELL("filename",$A$1))) ->  | K1: =ProjectCashflows!K$48 -> 2021 | L1: =ProjectCashflows!L$48 -> 2022 | M1: =ProjectCashflows!M$48 -> 2023 | N1: =ProjectCashflows!N$48 -> 2024 | O1: =ProjectCashflows!O$48 -> 2025 | P1: =ProjectCashflows!P$48 -> 2026 | Q1: =ProjectCashflows!Q$48 -> 2027 | R1: =ProjectCashflows!R$48 -> 2028 | S1: =ProjectCashflows!S$48 -> 2029 | T1: =ProjectCashflows!T$48 -> 2030 | U1: =ProjectCashflows!U$48 -> 2031 | V1: =ProjectCashflows!V$48 -> 2032 | W1: =ProjectCashflows!W$48 -> 2033 | X1: =ProjectCashflows!X$48 -> 2034 | Y1: =ProjectCashflows!Y$48 -> 2035 | Z1: =ProjectCashflows!Z$48 -> 2036 | AA1: =ProjectCashflows!AA$48 -> 2037 | AB1: =ProjectCashflows!AB$48 -> 2038 | AC1: =ProjectCashflows!AC$48 -> 2039 | AD1: =ProjectCashflows!AD$48 -> 2040 | AE1: =ProjectCashflows!AE$48 -> 2041 | AF1: =ProjectCashflows!AF$48 -> 2042 | AG1: =ProjectCashflows!AG$48 -> 2043 | AH1: =ProjectCashflows!AH$48 -> 2044 | AI1: =ProjectCashflows!AI$48 -> 2045 | AJ1: =ProjectCashflows!AJ$48 -> 2046 | AK1: =ProjectCashflows!AK$48 -> 2047 | AL1: =ProjectCashflows!AL$48 -> 2048 | AM1: =ProjectCashflows!AM$48 -> 2049 | AN1: =ProjectCashflows!AN$48 -> 2050 | AO1: =ProjectCashflows!AO$48 -> 2051 | AP1: =ProjectCashflows!AP$48 -> 2052 | AQ1: =ProjectCashflows!AQ$48 -> 2053 | AR1: =ProjectCashflows!AR$48 -> 2054 | AS1: =ProjectCashflows!AS$48 -> 2055 | AT1: =ProjectCashflows!AT$48 -> 2056 | AU1: =ProjectCashflows!AU$48 -> 2057 | AV1: =ProjectCashflows!AV$48 -> 2058 | AW1: =ProjectCashflows!AW$48 -> 2059 | AX1: =ProjectCashflows!AX$48 -> 2060
E2: =Translate!$E$391 -> Row description | F2: =Translate!E$554 -> Constant | G2: =Translate!E$445 -> Units | H2: =Translate!$E$280 -> Comments | I2: =Translate!E$19 -> Total
F3: =ReadMe!$D$7 -> 0 | G3: =ReadMe!$E$7 -> Checks | K3: =Track!$F$1 -> 0 | L3: =Track!$G$1 -> Track changes
A5: =Translate!$E$368 -> Model timeline
E7: =Translate!$E$533 -> Model first calendar year | F7: 2021 | G7: =Translate!E$361 -> Calendar year
A9: =Translate!$E$570 -> Project selection and sensitivities
B11: =Translate!$E$576 -> Selecting project
E12: =Dashboard!B$7 -> Selected project | F12: =Dashboard!C$7 -> Gold(2MMoz) | G12: =Dashboard!D$7 -> Option
B14: =Translate!$E$577 -> Project data location
E15: =Translate!$E$402 -> First row of project data | F15: 12 | G15: =Translate!E$587 -> row
B17: =Translate!$E$578 -> List of projects
E18: =Translate!$E$504 & " 1" -> Project 1 | F18: ='Gold(2MMoz)'!A1 ->  | G18: =Translate!E$588 -> Name
E19: =Translate!$E$504 & " 2" -> Project 2 | F19: ='IronOre(250MMt)'!A1 ->  | G19: =Translate!E$588 -> Name
E20: =Translate!$E$504 & " 3" -> Project 3 | F20: ='Coal(250MMt)'!A1 ->  | G20: =Translate!E$588 -> Name
E21: =Translate!$E$504 & " 4" -> Project 4 | G21: =Translate!E$588 -> Name
E22: =Translate!$E$504 & " 5" -> Project 5 | G22: =Translate!E$588 -> Name
E23: =Translate!$E$504 & " 6" -> Project 6 | G23: =Translate!E$588 -> Name
E24: =Translate!$E$504 & " 7" -> Project 7 | G24: =Translate!E$588 -> Name
E25: =Translate!$E$504 & " 8" -> Project 8 | G25: =Translate!E$588 -> Name
E26: =Translate!$E$504 & " 9" -> Project 9 | G26: =Translate!E$588 -> Name
E27: =Translate!$E$504 & " 10" -> Project 10 | G27: =Translate!E$588 -> Name
B29: =Translate!$E$377 -> Mineral Price
E30: =Dashboard!B$17 -> Gold (into model) | F30: =Dashboard!C$17 -> 1500 | G30: =Dashboard!D$17 -> US$ 2021 / ounce
B32: =Translate!$E$579 -> Sensitivity parameters
E33: =Dashboard!B$19 -> Price sensitivity | F33: =Dashboard!C$19 -> 1 | G33: =Dashboard!D$19 -> factor
E34: =Dashboard!B$20 -> Production sensitivity | F34: =Dashboard!C$20 -> 1 | G34: =Dashboard!D$20 -> factor
E35: =Dashboard!B$21 -> Exploration cost sensitivity | F35: =Dashboard!C$21 -> 1 | G35: =Dashboard!D$21 -> factor
E36: =Dashboard!B$22 -> Capex sensitivity (Development; Replacement; Decommissioning) | F36: =Dashboard!C$22 -> 1 | G36: =Dashboard!D$22 -> factor
E37: =Dashboard!B$23 -> Operating cost sensitivity | F37: =Dashboard!C$23 -> 1 | G37: =Dashboard!D$23 -> factor
B39: =Translate!$E$334 -> Economic limit test
E40: =Translate!$E$534 -> ELT applies | F40: yes | G40: =Translate!$E$351 -> Option
E41: =Translate!E$444 & ": " & Translate!E534 -> Check: ELT applies | F41: =IFERROR(MIN( 0, MATCH(F40,$F$81:$F$82,0) ), 1 ) -> 0 | G41: =Translate!E$444 -> Check
A43: =Translate!$E$571 -> Economic assumptions
E45: =Translate!$E$535 -> Inflation rate | F45: 0.02 | G45: %
E46: =Translate!$E$537 & ": " & F85 -> LIBOR: real | F46: 0 | G46: ="% " & Inputs!F$85 -> % real
E47: =Translate!$E$537 & ": " & F86 -> LIBOR: nominal | F47: =( 1 + F45 ) * ( 1 + F46 ) - 1 -> 0.02 | G47: %
A49: =Translate!$E$572 -> Evaluation parameters
E51: =E$7 -> Model first calendar year | F51: =F$7 -> 2021 | G51: Calendar year
E52: =Translate!E$427 -> Label for real terms cashflows | F52: =Translate!E$9 & " " & F51 -> US$ 2021 | G52: =Translate!E$585 -> Label
E53: =Translate!E$427 & ": " & Translate!E$343 -> Label for real terms cashflows: Million | F53: =Translate!E$10 & " " & F51 -> US$ mn 2021 | G53: =Translate!E$585 -> Label
E55: =Dashboard!B$25 -> Discount rate | F55: =Dashboard!C$25 -> 0.08 | G55: =Dashboard!D$25 -> % real
E57: =E$77 -> one hundred | F57: =F$77 -> 100 | G57: =G$77 -> Constant
E58: =Translate!$E$538 -> NPV label | F58: =Translate!E$10 & " " & Translate!$E$8 & TEXT(F55 * F57, "#.0") & " " & F$85 -> US$ mn NPV8.0 real | G58: =Translate!E$585 -> Label
E59: =Translate!$E$539 -> Short NPV label | F59: =Translate!$E$8 & F55 * F57 -> NPV8 | G59: =Translate!E$585 -> Label
A61: =Translate!$E$373 -> GHG emissions from coal combustion
E63: =Translate!$E$540 -> Heat content per coal consumed | F63: 20.92 | G63: =Translate!E$751 & " " & Translate!E$344 & " / " & Translate!E$598 -> Btu mn / MT
E64: =Translate!$E$541 -> Average carbon coefficient of coal combusted (EPA) | F64: 26.08 | G64: =Translate!E$753 & " / " & Translate!E$751 & " " & Translate!E$344 -> kilograms of Carbon / Btu mn
E65: =Translate!$E$542 -> Ratio of molecular weight of carbon dioxide to carbon | F65: =44/12 -> 3.666666667 | G65: =Translate!E$754 & " / " & Translate!E$753 -> kilograms of CO2 / kilograms of Carbon
A67: =Translate!$E$573 -> Model name and version
E69: Simplified Mining FARI model | F69: =Translate!E$588 -> Name
E70: February 2022 | F70: =Translate!E$613 -> Date
E71: =E69 & ": " & E70 -> Simplified Mining FARI model: February 2022 | F71: =Translate!E$585 -> Label
A73: =Translate!$E$574 -> Technical parameters
E74: =Translate!$E$543 -> Model check tolerance level | F74: 1e-06 | G74: =Translate!E$594 -> Tolerance
E75: =Translate!$E$544 -> Production days per year | F75: 365 | G75: =Translate!E$595 -> Days
E76: =Translate!$E$545 -> one thousand | F76: =10^3 -> 1000 | G76: =Translate!E$554 -> Constant
E77: =Translate!$E$546 -> one hundred | F77: 100 | G77: =Translate!E$554 -> Constant
A79: =Translate!$E$575 -> Global labels
E81: =Translate!E$585 & ": " & F81 -> Label: yes | F81: =Translate!E$589 -> yes | G81: =Translate!E$585 -> Label
E82: =Translate!E$585 & ": " & F82 -> Label: no | F82: =Translate!E$590 -> no | G82: =Translate!E$585 -> Label
E83: =Translate!E$585 & ": " & F83 -> Label: full-cycle | F83: =Translate!E$3 -> full-cycle | G83: =Translate!E$585 -> Label
E84: =Translate!E$585 & ": " & F84 -> Label: FID forward | F84: =Translate!E$4 -> FID forward | G84: =Translate!E$585 -> Label
E85: =Translate!E$585 & ": " & F85 -> Label: real | F85: =Translate!E$6 -> real | G85: =Translate!E$585 -> Label
E86: =Translate!E$585 & ": " & F86 -> Label: nominal | F86: =Translate!E$5 -> nominal | G86: =Translate!E$585 -> Label
E87: =Translate!E$585 & ": " & F87 -> Label: undiscounted | F87: =Translate!E$7 -> undiscounted | G87: =Translate!E$585 -> Label
E89: =Dashboard!B$5 -> Language | F89: =Dashboard!C$5 -> English | G89: =Dashboard!D$5 -> Option
E90: =Translate!$E$547 -> English | F90: English | G90: =Translate!E$585 -> Label
E91: =Translate!$E$548 -> French | F91: French | G91: =Translate!E$585 -> Label
E92: =Translate!$E$549 -> Spanish | F92: Spanish | G92: =Translate!E$585 -> Label
E93: =Translate!E$550 -> Other1 | F93: Other1 | G93: =Translate!E$585 -> Label
E94: =Translate!E$551 -> Other2 | F94: Other2 | G94: =Translate!E$585 -> Label
E95: =Translate!$E$552 -> Language selected | F95: =MATCH(F89, F90:F94) -> 1 | G95: =Translate!E$593 -> option selected
A97: =$A$1 & ": " & Translate!$E$609 -> 
F99: =Translate!E$565 -> do not delete row
E100: =E$41 -> Check: ELT applies | F100: =F41 -> 0 | G100: =Translate!E$444 -> Check
F101: =Translate!E$565 -> do not delete row
E102: =Translate!$E$639 & ": " & $A$1 ->  | F102: =SUM(F99:F101) -> 0 | G102: =Dashboard!L$60 -> Check

Sheet FiscalModel
A1: =RIGHT( CELL("filename",$A$1), LEN( CELL("filename",$A$1)) - SEARCH("]", CELL("filename",$A$1))) ->  | K1: =ProjectCashflows!K$48 -> 2021 | L1: =ProjectCashflows!L$48 -> 2022 | M1: =ProjectCashflows!M$48 -> 2023 | N1: =ProjectCashflows!N$48 -> 2024 | O1: =ProjectCashflows!O$48 -> 2025 | P1: =ProjectCashflows!P$48 -> 2026 | Q1: =ProjectCashflows!Q$48 -> 2027 | R1: =ProjectCashflows!R$48 -> 2028 | S1: =ProjectCashflows!S$48 -> 2029 | T1: =ProjectCashflows!T$48 -> 2030 | U1: =ProjectCashflows!U$48 -> 2031 | V1: =ProjectCashflows!V$48 -> 2032 | W1: =ProjectCashflows!W$48 -> 2033 | X1: =ProjectCashflows!X$48 -> 2034 | Y1: =ProjectCashflows!Y$48 -> 2035 | Z1: =ProjectCashflows!Z$48 -> 2036 | AA1: =ProjectCashflows!AA$48 -> 2037 | AB1: =ProjectCashflows!AB$48 -> 2038 | AC1: =ProjectCashflows!AC$48 -> 2039 | AD1: =ProjectCashflows!AD$48 -> 2040 | AE1: =ProjectCashflows!AE$48 -> 2041 | AF1: =ProjectCashflows!AF$48 -> 2042 | AG1: =ProjectCashflows!AG$48 -> 2043 | AH1: =ProjectCashflows!AH$48 -> 2044 | AI1: =ProjectCashflows!AI$48 -> 2045 | AJ1: =ProjectCashflows!AJ$48 -> 2046 | AK1: =ProjectCashflows!AK$48 -> 2047 | AL1: =ProjectCashflows!AL$48 -> 2048 | AM1: =ProjectCashflows!AM$48 -> 2049 | AN1: =ProjectCashflows!AN$48 -> 2050 | AO1: =ProjectCashflows!AO$48 -> 2051 | AP1: =ProjectCashflows!AP$48 -> 2052 | AQ1: =ProjectCashflows!AQ$48 -> 2053 | AR1: =ProjectCashflows!AR$48 -> 2054 | AS1: =ProjectCashflows!AS$48 -> 2055 | AT1: =ProjectCashflows!AT$48 -> 2056 | AU1: =ProjectCashflows!AU$48 -> 2057 | AV1: =ProjectCashflows!AV$48 -> 2058 | AW1: =ProjectCashflows!AW$48 -> 2059 | AX1: =ProjectCashflows!AX$48 -> 2060
E2: =Translate!$E$391 -> Row description | F2: =Translate!E$554 -> Constant | G2: =Translate!E$445 -> Units | H2: =Translate!$E$280 -> Comments | I2: =Translate!E$19 -> Total
F3: =ReadMe!$D$7 -> 0 | G3: =ReadMe!$E$7 -> Checks | K3: =Track!$F$1 -> 0 | L3: =Track!$G$1 -> Track changes
A4: =Translate!$E$20 -> Fiscal regime parameters
B6: =Translate!$E$591 -> Translation of options
E7: =Translate!$E$444 & ": " & Translate!$E$591 -> Check: Translation of options | F7: =MIN( 1, SUM(I16:I66)) -> 0 | G7: =Translate!E444 -> Check
B9: =Translate!$E$41 -> Fiscal regime selection | K9: =Translate!E$621 -> alternative sets of fiscal paramemters
E10: =Translate!$E$123 -> Regime number | G10: =Translate!E612 -> number | K10: =J10 + 1 -> 1 | L10: 2 | M10: 3 | N10: 4 | O10: 5 | P10: 6 | Q10: 7 | R10: 8 | S10: 9 | T10: 10 | U10: 11 | V10: 12 | W10: 13 | X10: 14 | Y10: 15 | Z10: 16 | AA10: 17 | AB10: 18 | AC10: 19 | AD10: 20 | AE10: 21 | AF10: 22 | AG10: 23 | AH10: 24 | AI10: 25 | AJ10: 26 | AK10: 27 | AL10: 28 | AM10: 29 | AN10: 30 | AO10: 31 | AP10: 32 | AQ10: 33 | AR10: 34 | AS10: 35 | AT10: 36 | AU10: 37 | AV10: 38 | AW10: 39 | AX10: 40
E11: =Translate!$E$124 -> Regime name | G11: =Translate!$E$124 -> Regime name | K11: Royalty + CIT | L11: High royalty / low CIT | M11: RRT | N11: Royalty + CIT + SP | O11: Royalty + CIT, no debt
E12: =Dashboard!B$6 -> Fiscal regime selected | F12: =Dashboard!C$6 -> Royalty + CIT | G12: =Dashboard!D$6 -> Option
E13: =Translate!$E$125 -> Selected regime number | F13: =MATCH( $F12, K11:AX11, 0) -> 1 | G13: =Translate!$E$123 -> Regime number
A14: =Translate!$E$21 -> Top of fiscal regime parameters
B15: =Translate!$E$24 -> Bonus
E16: =Translate!$E$126 -> Signature bonus (first period of activity) | F16: =INDEX(K16:AX16,$F$13) -> 0 | G16: =Translate!E$10 -> US$ mn | H16: =Translate!$E$281 -> incurred in period of first project activity | K16: 0 | L16: 0 | M16: 0 | N16: 0 | O16: 0
E17: =Translate!$E$127 -> Bonuses tax deductible | F17: =INDEX(K17:AX17,$F$13) -> 0 | G17: =Translate!$E$351 -> Option | H17: =Translate!$E$282 -> depreciated for CIT if deductible, expensed for RRT if deductible; 0 = non-deductible | I17: =MAX(0,IFERROR(MIN( 0, IF(K17:AX17<>"",MATCH(K17:AX17,Inputs!$F$81:$F$82,0),0) ),1)) -> 0
B18: =Translate!$E$25 -> Royalty
E19: =Translate!$E$128 -> Royalty rate: flat | F19: =INDEX(K19:AX19,$F$13) -> 0.05 | G19: % | H19: =Translate!$E$283 -> ad-valorem royalty | K19: 0.05 | L19: 0.09 | M19: 0.02 | N19: 0.05 | O19: 0.05
E20: =Translate!$E$129 -> Additional royalty rate above price threshold | F20: =INDEX(K20:AX20,$F$13) -> 0 | G20: % | H20: =Translate!$E$284 -> applies in addition to any flat royalty
E21: =Translate!$E$130 -> Threshold for price royalty (0 = no price royalty) | F21: =INDEX(K21:AX21,$F$13) -> 0 | G21: =Dashboard!D$17 -> US$ 2021 / ounce
E22: =Translate!$E$131 -> Price threshold inflation indexed | F22: =INDEX(K22:AX22,$F$13) -> 0 | G22: =Translate!$E$351 -> Option | H22: =Translate!$E$285 -> yes or no | I22: =MAX(0,IFERROR(MIN( 0, IF(K22:AX22<>"",MATCH(K22:AX22,Inputs!$F$81:$F$82,0),0) ),1)) -> 0
E23: =Translate!$E$132 -> Royalty base (gross or net revenues) | F23: =INDEX(K23:AX23,$F$13) -> net | G23: =Translate!$E$351 -> Option | H23: =Translate!$E$286 -> net = revenues minus downstream costs | I23: =MAX(0,IFERROR(MIN( 0, IF(K23:AX23<>"",MATCH(K23:AX23,$F$145:$F$146,0),0) ),1)) -> 0 | K23: net | L23: net | M23: net | N23: net | O23: net
E24: =Translate!$E$133 -> Royalty is CIT and RRT deductible | F24: =INDEX(K24:AX24,$F$13) -> yes | G24: =Translate!$E$351 -> Option | I24: =MAX(0,IFERROR(MIN( 0, IF(K24:AX24<>"",MATCH(K24:AX24,Inputs!$F$81:$F$82,0),0) ),1)) -> 0 | K24: yes | L24: yes | M24: yes | N24: yes | O24: yes
B25: =Translate!$E$26 -> Carbon tax
E26: =Translate!$E$134 -> Tax per ton of CO2 eq emitted in start year | F26: =INDEX(K26:AX26,$F$13) -> 20 | G26: =Translate!E$730 -> US$ / t CO2 eq | K26: 20 | L26: 20 | M26: 20 | N26: 20 | O26: 20
E27: =Translate!$E$135 -> Start year of carbon tax (0=from beginning) | F27: =INDEX(K27:AX27,$F$13) -> 0 | G27: =Translate!E$361 -> Calendar year | K27: 0 | L27: 0 | M27: 0 | N27: 0 | O27: 0
E28: =Translate!$E$136 -> Carbon tax in real or nominal terms | F28: =INDEX(K28:AX28,$F$13) -> nominal | G28: =Translate!$E$351 -> Option | H28: =Translate!$E$287 -> Real, nominal; assumed nominal if empty | I28: =MAX(0,IFERROR(MIN( 0, IF(K28:AX28<>"",MATCH(K28:AX28,$F$198:$F$199,0),0) ),1)) -> 0 | K28: nominal | L28: nominal | M28: nominal | N28: nominal | O28: nominal
E29: =Translate!$E$137 -> Method to change carbon tax over time | F29: =INDEX(K29:AX29,$F$13) -> Percentage | G29: =Translate!$E$351 -> Option | H29: =Translate!$E$288 -> Percentage, target year; assumed percentage if empty | I29: =MAX(0,IFERROR(MIN( 0, IF(K29:AX29<>"",MATCH(K29:AX29,$F$237:$F$238,0),0) ),1)) -> 0 | K29: Percentage | L29: Percentage | M29: Percentage | N29: Percentage | O29: Percentage
E30: =Translate!$E$138 -> Percentage - annual increase above inflation | F30: =INDEX(K30:AX30,$F$13) -> 0 | G30: % | H30: =Translate!$E$289 -> 0 if a constant tax level; percentage relative to carbon price in the first year
E31: =Translate!$E$139 -> Target year - tax per CO2 eq emitted in future year | F31: =INDEX(K31:AX31,$F$13) -> 0 | G31: =Translate!E$730 -> US$ / t CO2 eq
E32: =Translate!$E$140 -> Target year - year in which tax reaches target level | F32: =INDEX(K32:AX32,$F$13) -> 0 | G32: =Translate!E$361 -> Calendar year
E33: =Translate!$E$141 -> Carbon tax imposed on scope 3 emissions levied on investor | F33: =INDEX(K33:AX33,$F$13) -> yes | G33: =Translate!$E$351 -> Option | H33: =Translate!$E$290 -> no entry means not directly levied on investor | I33: =MAX(0,IFERROR(MIN( 0, IF(K33:AX33<>"",MATCH(K33:AX33,Inputs!$F$81:$F$82,0),0) ),1)) -> 0 | K33: yes | L33: yes | M33: yes | N33: yes | O33: yes
E34: =Translate!$E$142 -> Carbon tax is CIT and RRT deductible | F34: =INDEX(K34:AX34,$F$13) -> yes | G34: =Translate!$E$351 -> Option | H34: =Translate!$E$291 -> no entry means not deductible for CIT and RRT | I34: =MAX(0,IFERROR(MIN( 0, IF(K34:AX34<>"",MATCH(K34:AX34,Inputs!$F$81:$F$82,0),0) ),1)) -> 0 | K34: yes | L34: yes | M34: yes | N34: yes | O34: yes
B35: =Translate!$E$42 -> Decommissioning
E36: =Translate!$E$23 -> Decommissioning fund | F36: =INDEX(K36:AX36,$F$13) -> yes | G36: =Translate!E$359 -> Switch | H36: =Translate!$E$285 -> yes or no | I36: =MAX(0,IFERROR(MIN( 0, IF(K36:AX36<>"",MATCH(K36:AX36,Inputs!$F$81:$F$82,0),0) ),1)) -> 0 | K36: yes | L36: yes | M36: yes | N36: yes | O36: yes
E37: =Translate!$E$143 -> Commencement of decommissioning provision | F37: =INDEX(K37:AX37,$F$13) -> 0.6 | G37: =Translate!E$364 -> % depletion | H37: =Translate!$E$292 -> 0 = from start of production | K37: 0.6 | L37: 0.6 | M37: 0.6 | N37: 0.6 | O37: 0.6
B38: =Translate!E$30 -> Corporate income tax
E39: =Translate!$E$43 -> CIT rate | F39: =INDEX(K39:AX39,$F$13) -> 0.28 | G39: % | K39: 0.28 | L39: 0.2 | M39: 0.15 | N39: 0.2 | O39: 0.28
E40: =Translate!$E$144 -> Exploration costs depreciated or deducted immediately | F40: =INDEX(K40:AX40,$F$13) -> expensed | G40: =Translate!$E$351 -> Option | H40: =Translate!$E$293 -> must enter value | I40: =MAX(0,IFERROR(MIN( 0, IF(K40:AX40<>"",MATCH(K40:AX40,$F$357:$F$358,0),0) ),1)) -> 0 | K40: expensed | L40: expensed | M40: expensed | N40: expensed | O40: expensed
E41: =Translate!$E$145 -> Depreciation starts from | F41: =INDEX(K41:AX41,$F$13) -> Production | G41: =Translate!$E$351 -> Option | H41: =Translate!$E$293 -> must enter value | I41: =MAX(0,IFERROR(MIN( 0, IF(K41:AX41<>"",MATCH(K41:AX41,$F$390:$F$391,0),0) ),1)) -> 0 | K41: Production | L41: Production | M41: Production | N41: Production | O41: Production
E42: =Translate!$E$146 -> Development costs and replacement capital depreciation | F42: =INDEX(K42:AX42,$F$13) -> 5 | G42: =Translate!E$358 -> Years | K42: 5 | L42: 5 | M42: 5 | N42: 5 | O42: 5
B43: =Translate!$E$44 -> Resource rent tax | H43: =Translate!$E$294 -> cashflow RRT
E44: =Translate!$E$147 -> Uplift on negative cashflows | F44: =INDEX(K44:AX44,$F$13) -> 0 | G44: % | M44: 0.125
E45: =Translate!$E$148 -> CIT is deducted for RRT | F45: =INDEX(K45:AX45,$F$13) -> 0 | G45: =Translate!$E$351 -> Option | H45: =Translate!$E$295 -> no entry means not deducted; "No" means RRT is then deducted for CIT | I45: =MAX(0,IFERROR(MIN( 0, IF(K45:AX45<>"",MATCH(K45:AX45,Inputs!$F$81:$F$82,0),0) ),1)) -> 0 | M45: yes
E46: =Translate!$E$149 -> RRT tax rate | F46: =INDEX(K46:AX46,$F$13) -> 0 | G46: % | M46: 0.25
B47: =Translate!$E$46 -> Withholding tax on dividends and interest
E48: =Translate!$E$150 -> Dividend withholding tax | F48: =INDEX(K48:AX48,$F$13) -> 0.1 | G48: % | H48: =Translate!$E$296 -> paid once cumulative equity cashflow positive | K48: 0.1 | L48: 0.1 | M48: 0.1 | N48: 0.1 | O48: 0.1
E49: =Translate!$E$151 -> Interest withholding tax | F49: =INDEX(K49:AX49,$F$13) -> 0.1 | G49: % | H49: =Translate!$E$297 -> paid when interest is paid | K49: 0.1 | L49: 0.1 | M49: 0.1 | N49: 0.1 | O49: 0.1
B50: =Translate!$E$47 -> State participation: government equity in mining company
E51: =Translate!$E$152 -> State participation | F51: =INDEX(K51:AX51,$F$13) -> 0 | G51: % | H51: =Translate!$E$298 -> % share in mining company | N51: 0.1
E52: =Translate!$E$153 -> State participation meets share of equity contributions and mining company loan | F52: 0 | G52: =Translate!$E$351 -> Option | H52: =Translate!$E$299 -> no entry means state does not pay equity contributions | I52: =MAX(0,IFERROR(MIN( 0, IF(K52:AX52<>"",MATCH(K52:AX52,Inputs!$F$81:$F$82,0),0) ),1)) -> 0 | N52: no
E53: =Translate!$E$154 -> Carried interest: State participation equity and share of loan met by parent company | F53: 0 | G53: % | N53: 1
E54: =Translate!$E$155 -> Carried interest: Financing by parent company till production year | F54: 0 | G54: =Translate!E$360 -> Production year | H54: =Translate!$E$301 -> financing till end of specified production year. 0 means end of year before production starts | N54: 3
E55: =Translate!$E$157 -> Carried interest: Proportion state participation cashflows used to repay equity carry | F55: =INDEX(K55:AX55,$F$13) -> 0 | G55: % | N55: 1
E56: =Translate!$E$156 -> Carried interest: Interest rate margin above LIBOR | F56: 0 | G56: % | N56: 0.05
B57: =Translate!$E$48 -> Mining company financing assumptions
E58: =Translate!$E$158 -> Proportion development costs borrowed | F58: =INDEX(K58:AX58,$F$13) -> 0.7 | G58: % | K58: 0.7 | L58: 0.7 | M58: 0.7 | N58: 0.7
E59: =Translate!$E$159 -> Repayment period (yrs after financing period) (max) | F59: =INDEX(K59:AX59,$F$13) -> 5 | G59: =Translate!E$358 -> Years | K59: 5 | L59: 5 | M59: 5 | N59: 5
E60: =Translate!$E$160 -> Loan real interest rate (margin over LIBOR) | F60: =INDEX(K60:AX60,$F$13) -> 0.05 | G60: % | K60: 0.05 | L60: 0.05 | M60: 0.05 | N60: 0.05
B61: =Translate!$E$50 -> VAT
E62: =Translate!$E$161 -> VAT Rate | F62: =INDEX(K62:AX62,$F$13) -> 0 | G62: %
E63: =Translate!$E$162 -> % Exploration & capex subject to VAT | F63: =INDEX(K63:AX63,$F$13) -> 0 | G63: %
E64: =Translate!$E$163 -> % opex subject to VAT | F64: =INDEX(K64:AX64,$F$13) -> 0 | G64: %
E65: =Translate!$E$164 -> VAT refund delay | F65: =INDEX(K65:AX65,$F$13) -> 0 | G65: =Translate!E$362 -> Months
E66: =Translate!$E$165 -> VAT applicable from | F66: =INDEX(K66:AX66,$F$13) -> 0 | G66: =Translate!E$363 -> selected | I66: =MAX(0,IFERROR(MIN( 0, IF(K66:AX66<>"",MATCH(K66:AX66,$F$542:$F$544,0),0) ),1)) -> 0
A68: =Translate!$E$22 -> Bottom of fiscal regime parameters
A70: =Translate!$E$23 -> Decommissioning fund
B72: =Translate!$E$51 -> Determine start of contributions
E73: =ProjectCashflows!E$143 -> Gold sales, after ELT | F73: =ProjectCashflows!F$143 -> 0 | G73: =ProjectCashflows!G$143 -> 000 ounce | H73: =ProjectCashflows!H$143 -> 0 | I73: =ProjectCashflows!I$143 -> 2000 | J73: =ProjectCashflows!J$143 -> 0 | K73: =ProjectCashflows!K$143 -> 0 | L73: =ProjectCashflows!L$143 -> 0 | M73: =ProjectCashflows!M$143 -> 0 | N73: =ProjectCashflows!N$143 -> 0 | O73: =ProjectCashflows!O$143 -> 10 | P73: =ProjectCashflows!P$143 -> 75 | Q73: =ProjectCashflows!Q$143 -> 150 | R73: =ProjectCashflows!R$143 -> 150 | S73: =ProjectCashflows!S$143 -> 150 | T73: =ProjectCashflows!T$143 -> 150 | U73: =ProjectCashflows!U$143 -> 150 | V73: =ProjectCashflows!V$143 -> 150 | W73: =ProjectCashflows!W$143 -> 150 | X73: =ProjectCashflows!X$143 -> 150 | Y73: =ProjectCashflows!Y$143 -> 150 | Z73: =ProjectCashflows!Z$143 -> 150 | AA73: =ProjectCashflows!AA$143 -> 125 | AB73: =ProjectCashflows!AB$143 -> 100 | AC73: =ProjectCashflows!AC$143 -> 75 | AD73: =ProjectCashflows!AD$143 -> 65 | AE73: =ProjectCashflows!AE$143 -> 50 | AF73: =ProjectCashflows!AF$143 -> 0 | AG73: =ProjectCashflows!AG$143 -> 0 | AH73: =ProjectCashflows!AH$143 -> 0 | AI73: =ProjectCashflows!AI$143 -> 0 | AJ73: =ProjectCashflows!AJ$143 -> 0 | AK73: =ProjectCashflows!AK$143 -> 0 | AL73: =ProjectCashflows!AL$143 -> 0 | AM73: =ProjectCashflows!AM$143 -> 0 | AN73: =ProjectCashflows!AN$143 -> 0 | AO73: =ProjectCashflows!AO$143 -> 0 | AP73: =ProjectCashflows!AP$143 -> 0 | AQ73: =ProjectCashflows!AQ$143 -> 0 | AR73: =ProjectCashflows!AR$143 -> 0 | AS73: =ProjectCashflows!AS$143 -> 0 | AT73: =ProjectCashflows!AT$143 -> 0 | AU73: =ProjectCashflows!AU$143 -> 0 | AV73: =ProjectCashflows!AV$143 -> 0 | AW73: =ProjectCashflows!AW$143 -> 0 | AX73: =ProjectCashflows!AX$143 -> 0
E74: =E73 & ", " & Translate!$E$19 -> Gold sales, after ELT, Total | F74: =SUM(K73:AX73) -> 2000 | G74: =G73 -> 000 ounce
E75: =Translate!$E$166 -> Proportion reserves produced | G75: % | K75: =SUM($J73:K73) / $F74 -> 0 | L75: =SUM($J73:L73) / $F74 -> 0 | M75: =SUM($J73:M73) / $F74 -> 0 | N75: =SUM($J73:N73) / $F74 -> 0 | O75: =SUM($J73:O73) / $F74 -> 0.005 | P75: =SUM($J73:P73) / $F74 -> 0.0425 | Q75: =SUM($J73:Q73) / $F74 -> 0.1175 | R75: =SUM($J73:R73) / $F74 -> 0.1925 | S75: =SUM($J73:S73) / $F74 -> 0.2675 | T75: =SUM($J73:T73) / $F74 -> 0.3425 | U75: =SUM($J73:U73) / $F74 -> 0.4175 | V75: =SUM($J73:V73) / $F74 -> 0.4925 | W75: =SUM($J73:W73) / $F74 -> 0.5675 | X75: =SUM($J73:X73) / $F74 -> 0.6425 | Y75: =SUM($J73:Y73) / $F74 -> 0.7175 | Z75: =SUM($J73:Z73) / $F74 -> 0.7925 | AA75: =SUM($J73:AA73) / $F74 -> 0.855 | AB75: =SUM($J73:AB73) / $F74 -> 0.905 | AC75: =SUM($J73:AC73) / $F74 -> 0.9425 | AD75: =SUM($J73:AD73) / $F74 -> 0.975 | AE75: =SUM($J73:AE73) / $F74 -> 1 | AF75: =SUM($J73:AF73) / $F74 -> 1 | AG75: =SUM($J73:AG73) / $F74 -> 1 | AH75: =SUM($J73:AH73) / $F74 -> 1 | AI75: =SUM($J73:AI73) / $F74 -> 1 | AJ75: =SUM($J73:AJ73) / $F74 -> 1 | AK75: =SUM($J73:AK73) / $F74 -> 1 | AL75: =SUM($J73:AL73) / $F74 -> 1 | AM75: =SUM($J73:AM73) / $F74 -> 1 | AN75: =SUM($J73:AN73) / $F74 -> 1 | AO75: =SUM($J73:AO73) / $F74 -> 1 | AP75: =SUM($J73:AP73) / $F74 -> 1 | AQ75: =SUM($J73:AQ73) / $F74 -> 1 | AR75: =SUM($J73:AR73) / $F74 -> 1 | AS75: =SUM($J73:AS73) / $F74 -> 1 | AT75: =SUM($J73:AT73) / $F74 -> 1 | AU75: =SUM($J73:AU73) / $F74 -> 1 | AV75: =SUM($J73:AV73) / $F74 -> 1 | AW75: =SUM($J73:AW73) / $F74 -> 1 | AX75: =SUM($J73:AX73) / $F74 -> 1
E77: =ProjectCashflows!E$242 -> Decommissioning costs, after ELT | F77: =ProjectCashflows!F$242 -> 0 | G77: =ProjectCashflows!G$242 -> US$ mn | H77: =ProjectCashflows!H$242 -> 0 | I77: =ProjectCashflows!I$242 -> 30.31332688 | J77: =ProjectCashflows!J$242 -> 0 | K77: =ProjectCashflows!K$242 -> 0 | L77: =ProjectCashflows!L$242 -> 0 | M77: =ProjectCashflows!M$242 -> 0 | N77: =ProjectCashflows!N$242 -> 0 | O77: =ProjectCashflows!O$242 -> 0 | P77: =ProjectCashflows!P$242 -> 0 | Q77: =ProjectCashflows!Q$242 -> 0 | R77: =ProjectCashflows!R$242 -> 0 | S77: =ProjectCashflows!S$242 -> 0 | T77: =ProjectCashflows!T$242 -> 0 | U77: =ProjectCashflows!U$242 -> 0 | V77: =ProjectCashflows!V$242 -> 0 | W77: =ProjectCashflows!W$242 -> 0 | X77: =ProjectCashflows!X$242 -> 0 | Y77: =ProjectCashflows!Y$242 -> 0 | Z77: =ProjectCashflows!Z$242 -> 0 | AA77: =ProjectCashflows!AA$242 -> 0 | AB77: =ProjectCashflows!AB$242 -> 0 | AC77: =ProjectCashflows!AC$242 -> 0 | AD77: =ProjectCashflows!AD$242 -> 0 | AE77: =ProjectCashflows!AE$242 -> 0 | AF77: =ProjectCashflows!AF$242 -> 30.31332688 | AG77: =ProjectCashflows!AG$242 -> 0 | AH77: =ProjectCashflows!AH$242 -> 0 | AI77: =ProjectCashflows!AI$242 -> 0 | AJ77: =ProjectCashflows!AJ$242 -> 0 | AK77: =ProjectCashflows!AK$242 -> 0 | AL77: =ProjectCashflows!AL$242 -> 0 | AM77: =ProjectCashflows!AM$242 -> 0 | AN77: =ProjectCashflows!AN$242 -> 0 | AO77: =ProjectCashflows!AO$242 -> 0 | AP77: =ProjectCashflows!AP$242 -> 0 | AQ77: =ProjectCashflows!AQ$242 -> 0 | AR77: =ProjectCashflows!AR$242 -> 0 | AS77: =ProjectCashflows!AS$242 -> 0 | AT77: =ProjectCashflows!AT$242 -> 0 | AU77: =ProjectCashflows!AU$242 -> 0 | AV77: =ProjectCashflows!AV$242 -> 0 | AW77: =ProjectCashflows!AW$242 -> 0 | AX77: =ProjectCashflows!AX$242 -> 0
E78: =E77 & ", " & Translate!$E$19 -> Decommissioning costs, after ELT, Total | F78: =SUM(K77:AX77) -> 30.31332688 | G78: =G77 -> US$ mn
E80: =FiscalModel!E$37 -> Commencement of decommissioning provision | F80: =FiscalModel!F$37 -> 0.6 | G80: =FiscalModel!G$37 -> % depletion
E81: =ProjectCashflows!E$192 -> Production years after ELT | F81: =ProjectCashflows!F$192 -> 0 | G81: =ProjectCashflows!G$192 -> Flag | H81: =ProjectCashflows!H$192 -> 0 | I81: =ProjectCashflows!I$192 -> 17 | J81: =ProjectCashflows!J$192 -> 0 | K81: =ProjectCashflows!K$192 -> 0 | L81: =ProjectCashflows!L$192 -> 0 | M81: =ProjectCashflows!M$192 -> 0 | N81: =ProjectCashflows!N$192 -> 0 | O81: =ProjectCashflows!O$192 -> 1 | P81: =ProjectCashflows!P$192 -> 1 | Q81: =ProjectCashflows!Q$192 -> 1 | R81: =ProjectCashflows!R$192 -> 1 | S81: =ProjectCashflows!S$192 -> 1 | T81: =ProjectCashflows!T$192 -> 1 | U81: =ProjectCashflows!U$192 -> 1 | V81: =ProjectCashflows!V$192 -> 1 | W81: =ProjectCashflows!W$192 -> 1 | X81: =ProjectCashflows!X$192 -> 1 | Y81: =ProjectCashflows!Y$192 -> 1 | Z81: =ProjectCashflows!Z$192 -> 1 | AA81: =ProjectCashflows!AA$192 -> 1 | AB81: =ProjectCashflows!AB$192 -> 1 | AC81: =ProjectCashflows!AC$192 -> 1 | AD81: =ProjectCashflows!AD$192 -> 1 | AE81: =ProjectCashflows!AE$192 -> 1 | AF81: =ProjectCashflows!AF$192 -> 0 | AG81: =ProjectCashflows!AG$192 -> 0 | AH81: =ProjectCashflows!AH$192 -> 0 | AI81: =ProjectCashflows!AI$192 -> 0 | AJ81: =ProjectCashflows!AJ$192 -> 0 | AK81: =ProjectCashflows!AK$192 -> 0 | AL81: =ProjectCashflows!AL$192 -> 0 | AM81: =ProjectCashflows!AM$192 -> 0 | AN81: =ProjectCashflows!AN$192 -> 0 | AO81: =ProjectCashflows!AO$192 -> 0 | AP81: =ProjectCashflows!AP$192 -> 0 | AQ81: =ProjectCashflows!AQ$192 -> 0 | AR81: =ProjectCashflows!AR$192 -> 0 | AS81: =ProjectCashflows!AS$192 -> 0 | AT81: =ProjectCashflows!AT$192 -> 0 | AU81: =ProjectCashflows!AU$192 -> 0 | AV81: =ProjectCashflows!AV$192 -> 0 | AW81: =ProjectCashflows!AW$192 -> 0 | AX81: =ProjectCashflows!AX$192 -> 0
E82: =Translate!$E$167 -> Decommissioning period | G82: =Translate!$E$586 -> Flag | I82: =SUM(K82:AX82) -> 8 | K82: =AND( K75 >= $F80, K81 = 1) * 1 * (SUM(L77:$AX77) > 0) -> 0 | L82: =AND( L75 >= $F80, L81 = 1) * 1 * (SUM(M77:$AX77) > 0) -> 0 | M82: =AND( M75 >= $F80, M81 = 1) * 1 * (SUM(N77:$AX77) > 0) -> 0 | N82: =AND( N75 >= $F80, N81 = 1) * 1 * (SUM(O77:$AX77) > 0) -> 0 | O82: =AND( O75 >= $F80, O81 = 1) * 1 * (SUM(P77:$AX77) > 0) -> 0 | P82: =AND( P75 >= $F80, P81 = 1) * 1 * (SUM(Q77:$AX77) > 0) -> 0 | Q82: =AND( Q75 >= $F80, Q81 = 1) * 1 * (SUM(R77:$AX77) > 0) -> 0 | R82: =AND( R75 >= $F80, R81 = 1) * 1 * (SUM(S77:$AX77) > 0) -> 0 | S82: =AND( S75 >= $F80, S81 = 1) * 1 * (SUM(T77:$AX77) > 0) -> 0 | T82: =AND( T75 >= $F80, T81 = 1) * 1 * (SUM(U77:$AX77) > 0) -> 0 | U82: =AND( U75 >= $F80, U81 = 1) * 1 * (SUM(V77:$AX77) > 0) -> 0 | V82: =AND( V75 >= $F80, V81 = 1) * 1 * (SUM(W77:$AX77) > 0) -> 0 | W82: =AND( W75 >= $F80, W81 = 1) * 1 * (SUM(X77:$AX77) > 0) -> 0 | X82: =AND( X75 >= $F80, X81 = 1) * 1 * (SUM(Y77:$AX77) > 0) -> 1 | Y82: =AND( Y75 >= $F80, Y81 = 1) * 1 * (SUM(Z77:$AX77) > 0) -> 1 | Z82: =AND( Z75 >= $F80, Z81 = 1) * 1 * (SUM(AA77:$AX77) > 0) -> 1 | AA82: =AND( AA75 >= $F80, AA81 = 1) * 1 * (SUM(AB77:$AX77) > 0) -> 1 | AB82: =AND( AB75 >= $F80, AB81 = 1) * 1 * (SUM(AC77:$AX77) > 0) -> 1 | AC82: =AND( AC75 >= $F80, AC81 = 1) * 1 * (SUM(AD77:$AX77) > 0) -> 1 | AD82: =AND( AD75 >= $F80, AD81 = 1) * 1 * (SUM(AE77:$AX77) > 0) -> 1 | AE82: =AND( AE75 >= $F80, AE81 = 1) * 1 * (SUM(AF77:$AX77) > 0) -> 1 | AF82: =AND( AF75 >= $F80, AF81 = 1) * 1 * (SUM(AG77:$AX77) > 0) -> 0 | AG82: =AND( AG75 >= $F80, AG81 = 1) * 1 * (SUM(AH77:$AX77) > 0) -> 0 | AH82: =AND( AH75 >= $F80, AH81 = 1) * 1 * (SUM(AI77:$AX77) > 0) -> 0 | AI82: =AND( AI75 >= $F80, AI81 = 1) * 1 * (SUM(AJ77:$AX77) > 0) -> 0 | AJ82: =AND( AJ75 >= $F80, AJ81 = 1) * 1 * (SUM(AK77:$AX77) > 0) -> 0 | AK82: =AND( AK75 >= $F80, AK81 = 1) * 1 * (SUM(AL77:$AX77) > 0) -> 0 | AL82: =AND( AL75 >= $F80, AL81 = 1) * 1 * (SUM(AM77:$AX77) > 0) -> 0 | AM82: =AND( AM75 >= $F80, AM81 = 1) * 1 * (SUM(AN77:$AX77) > 0) -> 0 | AN82: =AND( AN75 >= $F80, AN81 = 1) * 1 * (SUM(AO77:$AX77) > 0) -> 0 | AO82: =AND( AO75 >= $F80, AO81 = 1) * 1 * (SUM(AP77:$AX77) > 0) -> 0 | AP82: =AND( AP75 >= $F80, AP81 = 1) * 1 * (SUM(AQ77:$AX77) > 0) -> 0 | AQ82: =AND( AQ75 >= $F80, AQ81 = 1) * 1 * (SUM(AR77:$AX77) > 0) -> 0 | AR82: =AND( AR75 >= $F80, AR81 = 1) * 1 * (SUM(AS77:$AX77) > 0) -> 0 | AS82: =AND( AS75 >= $F80, AS81 = 1) * 1 * (SUM(AT77:$AX77) > 0) -> 0 | AT82: =AND( AT75 >= $F80, AT81 = 1) * 1 * (SUM(AU77:$AX77) > 0) -> 0 | AU82: =AND( AU75 >= $F80, AU81 = 1) * 1 * (SUM(AV77:$AX77) > 0) -> 0 | AV82: =AND( AV75 >= $F80, AV81 = 1) * 1 * (SUM(AW77:$AX77) > 0) -> 0 | AW82: =AND( AW75 >= $F80, AW81 = 1) * 1 * (SUM(AX77:$AX77) > 0) -> 0 | AX82: =AND( AX75 >= $F80, AX81 = 1) * 1 * (SUM($AX77:AY77) > 0) -> 0
E84: =E82 & ": CUM" -> Decommissioning period: CUM | G84: =Translate!E$358 -> Years | K84: =J84 + K82 -> 0 | L84: 0 | M84: 0 | N84: 0 | O84: 0 | P84: 0 | Q84: 0 | R84: 0 | S84: 0 | T84: 0 | U84: 0 | V84: 0 | W84: 0 | X84: 1 | Y84: 2 | Z84: 3 | AA84: 4 | AB84: 5 | AC84: 6 | AD84: 7 | AE84: 8 | AF84: 8 | AG84: 8 | AH84: 8 | AI84: 8 | AJ84: 8 | AK84: 8 | AL84: 8 | AM84: 8 | AN84: 8 | AO84: 8 | AP84: 8 | AQ84: 8 | AR84: 8 | AS84: 8 | AT84: 8 | AU84: 8 | AV84: 8 | AW84: 8 | AX84: 8
E85: =Translate!$E$168 -> Number of decommissioning periods | F85: =SUM(K82:AX82) -> 8 | G85: =Translate!E$358 -> Years
B87: =Translate!$E$52 -> Decommissioning provision required
E88: =Inputs!E$47 -> LIBOR: nominal | F88: =Inputs!F$47 -> 0.02 | G88: =Inputs!G$47 -> %
E89: =Translate!$E$169 -> Decommissioning provision required (annuity basis) | G89: =Translate!E$10 -> US$ mn | K89: =IF( K77 > 0, PMT($F88, K84, 0, K77, 0) * -1, 0) -> 0 | L89: 0 | M89: 0 | N89: 0 | O89: 0 | P89: 0 | Q89: 0 | R89: 0 | S89: 0 | T89: 0 | U89: 0 | V89: 0 | W89: 0 | X89: 0 | Y89: 0 | Z89: 0 | AA89: 0 | AB89: 0 | AC89: 0 | AD89: 0 | AE89: 0 | AF89: 3.531799626 | AG89: 0 | AH89: 0 | AI89: 0 | AJ89: 0 | AK89: 0 | AL89: 0 | AM89: 0 | AN89: 0 | AO89: 0 | AP89: 0 | AQ89: 0 | AR89: 0 | AS89: 0 | AT89: 0 | AU89: 0 | AV89: 0 | AW89: 0 | AX89: 0
E90: =FiscalModel!E$36 -> Decommissioning fund | F90: =FiscalModel!F$36 -> yes | G90: =FiscalModel!G$36 -> Switch
E91: =Inputs!E$81 -> Label: yes | F91: =Inputs!F$81 -> yes | G91: =Inputs!G$81 -> Label
E92: =Translate!$E$170 -> Decommissioning provision for future costs (end of period) | G92: =Translate!E$10 -> US$ mn | I92: =SUM(K92:AX92) -> 28.25439701 | K92: =SUM(K89:$AX89) * K82 * ($F90 = $F91) -> 0 | L92: =SUM(L89:$AX89) * L82 * ($F90 = $F91) -> 0 | M92: =SUM(M89:$AX89) * M82 * ($F90 = $F91) -> 0 | N92: =SUM(N89:$AX89) * N82 * ($F90 = $F91) -> 0 | O92: =SUM(O89:$AX89) * O82 * ($F90 = $F91) -> 0 | P92: =SUM(P89:$AX89) * P82 * ($F90 = $F91) -> 0 | Q92: =SUM(Q89:$AX89) * Q82 * ($F90 = $F91) -> 0 | R92: =SUM(R89:$AX89) * R82 * ($F90 = $F91) -> 0 | S92: =SUM(S89:$AX89) * S82 * ($F90 = $F91) -> 0 | T92: =SUM(T89:$AX89) * T82 * ($F90 = $F91) -> 0 | U92: =SUM(U89:$AX89) * U82 * ($F90 = $F91) -> 0 | V92: =SUM(V89:$AX89) * V82 * ($F90 = $F91) -> 0 | W92: =SUM(W89:$AX89) * W82 * ($F90 = $F91) -> 0 | X92: =SUM(X89:$AX89) * X82 * ($F90 = $F91) -> 3.531799626 | Y92: =SUM(Y89:$AX89) * Y82 * ($F90 = $F91) -> 3.531799626 | Z92: =SUM(Z89:$AX89) * Z82 * ($F90 = $F91) -> 3.531799626 | AA92: =SUM(AA89:$AX89) * AA82 * ($F90 = $F91) -> 3.531799626 | AB92: =SUM(AB89:$AX89) * AB82 * ($F90 = $F91) -> 3.531799626 | AC92: =SUM(AC89:$AX89) * AC82 * ($F90 = $F91) -> 3.531799626 | AD92: =SUM(AD89:$AX89) * AD82 * ($F90 = $F91) -> 3.531799626 | AE92: =SUM(AE89:$AX89) * AE82 * ($F90 = $F91) -> 3.531799626 | AF92: =SUM(AF89:$AX89) * AF82 * ($F90 = $F91) -> 0 | AG92: =SUM(AG89:$AX89) * AG82 * ($F90 = $F91) -> 0 | AH92: =SUM(AH89:$AX89) * AH82 * ($F90 = $F91) -> 0 | AI92: =SUM(AI89:$AX89) * AI82 * ($F90 = $F91) -> 0 | AJ92: =SUM(AJ89:$AX89) * AJ82 * ($F90 = $F91) -> 0 | AK92: =SUM(AK89:$AX89) * AK82 * ($F90 = $F91) -> 0 | AL92: =SUM(AL89:$AX89) * AL82 * ($F90 = $F91) -> 0 | AM92: =SUM(AM89:$AX89) * AM82 * ($F90 = $F91) -> 0 | AN92: =SUM(AN89:$AX89) * AN82 * ($F90 = $F91) -> 0 | AO92: =SUM(AO89:$AX89) * AO82 * ($F90 = $F91) -> 0 | AP92: =SUM(AP89:$AX89) * AP82 * ($F90 = $F91) -> 0 | AQ92: =SUM(AQ89:$AX89) * AQ82 * ($F90 = $F91) -> 0 | AR92: =SUM(AR89:$AX89) * AR82 * ($F90 = $F91) -> 0 | AS92: =SUM(AS89:$AX89) * AS82 * ($F90 = $F91) -> 0 | AT92: =SUM(AT89:$AX89) * AT82 * ($F90 = $F91) -> 0 | AU92: =SUM(AU89:$AX89) * AU82 * ($F90 = $F91) -> 0 | AV92: =SUM(AV89:$AX89) * AV82 * ($F90 = $F91) -> 0 | AW92: =SUM(AW89:$AX89) * AW82 * ($F90 = $F91) -> 0 | AX92: =SUM(AX89:$AX89) * AX82 * ($F90 = $F91) -> 0
B94: =Translate!$E$53 -> Decommissioning fund transactions
C95: =Translate!$E$102 -> Withdrawals
E96: =E$106 -> Decommissioning fund opening balance BEG | F96: =F$106 -> 0 | G96: US$ mn | H96: 0 | I96: 0 | J96: 0 | K96: 0 | L96: 0 | M96: 0 | N96: 0 | O96: 0 | P96: 0 | Q96: 0 | R96: 0 | S96: 0 | T96: 0 | U96: 0 | V96: 0 | W96: 0 | X96: 0 | Y96: 3.531799626 | Z96: 7.134235244 | AA96: 10.80871957 | AB96: 14.55669359 | AC96: 18.37962709 | AD96: 22.27901926 | AE96: 26.25639927 | AF96: 30.31332688 | AG96: 3.552713679e-15 | AH96: 3.552713679e-15 | AI96: 3.552713679e-15 | AJ96: 3.552713679e-15 | AK96: 3.552713679e-15 | AL96: 3.552713679e-15 | AM96: 3.552713679e-15 | AN96: 3.552713679e-15 | AO96: 3.552713679e-15 | AP96: 3.552713679e-15 | AQ96: 3.552713679e-15 | AR96: 3.552713679e-15 | AS96: 3.552713679e-15 | AT96: 3.552713679e-15 | AU96: 3.552713679e-15 | AV96: 3.552713679e-15 | AW96: 3.552713679e-15 | AX96: 3.552713679e-15
E97: =Translate!$E$171 -> Withdrawals to meet decommissioning costs (end of period) | G97: =G96 -> US$ mn | I97: =SUM(K97:AX97) -> 30.31332688 | K97: =MIN(K96, K77) -> 0 | L97: 0 | M97: 0 | N97: 0 | O97: 0 | P97: 0 | Q97: 0 | R97: 0 | S97: 0 | T97: 0 | U97: 0 | V97: 0 | W97: 0 | X97: 0 | Y97: 0 | Z97: 0 | AA97: 0 | AB97: 0 | AC97: 0 | AD97: 0 | AE97: 0 | AF97: 30.31332688 | AG97: 0 | AH97: 0 | AI97: 0 | AJ97: 0 | AK97: 0 | AL97: 0 | AM97: 0 | AN97: 0 | AO97: 0 | AP97: 0 | AQ97: 0 | AR97: 0 | AS97: 0 | AT97: 0 | AU97: 0 | AV97: 0 | AW97: 0 | AX97: 0
C99: =Translate!$E$103 -> Interest earned on fund
E100: =E$106 -> Decommissioning fund opening balance BEG | F100: =F$106 -> 0 | G100: US$ mn | H100: 0 | I100: 0 | J100: 0 | K100: 0 | L100: 0 | M100: 0 | N100: 0 | O100: 0 | P100: 0 | Q100: 0 | R100: 0 | S100: 0 | T100: 0 | U100: 0 | V100: 0 | W100: 0 | X100: 0 | Y100: 3.531799626 | Z100: 7.134235244 | AA100: 10.80871957 | AB100: 14.55669359 | AC100: 18.37962709 | AD100: 22.27901926 | AE100: 26.25639927 | AF100: 30.31332688 | AG100: 3.552713679e-15 | AH100: 3.552713679e-15 | AI100: 3.552713679e-15 | AJ100: 3.552713679e-15 | AK100: 3.552713679e-15 | AL100: 3.552713679e-15 | AM100: 3.552713679e-15 | AN100: 3.552713679e-15 | AO100: 3.552713679e-15 | AP100: 3.552713679e-15 | AQ100: 3.552713679e-15 | AR100: 3.552713679e-15 | AS100: 3.552713679e-15 | AT100: 3.552713679e-15 | AU100: 3.552713679e-15 | AV100: 3.552713679e-15 | AW100: 3.552713679e-15 | AX100: 3.552713679e-15
E101: =Inputs!E$47 -> LIBOR: nominal | F101: =Inputs!F$47 -> 0.02 | G101: =Inputs!G$47 -> %
E102: =E$82 -> Decommissioning period | F102: =F$82 -> 0 | G102: Flag | H102: 0 | I102: 8 | J102: 0 | K102: 0 | L102: 0 | M102: 0 | N102: 0 | O102: 0 | P102: 0 | Q102: 0 | R102: 0 | S102: 0 | T102: 0 | U102: 0 | V102: 0 | W102: 0 | X102: 1 | Y102: 1 | Z102: 1 | AA102: 1 | AB102: 1 | AC102: 1 | AD102: 1 | AE102: 1 | AF102: 0 | AG102: 0 | AH102: 0 | AI102: 0 | AJ102: 0 | AK102: 0 | AL102: 0 | AM102: 0 | AN102: 0 | AO102: 0 | AP102: 0 | AQ102: 0 | AR102: 0 | AS102: 0 | AT102: 0 | AU102: 0 | AV102: 0 | AW102: 0 | AX102: 0
E103: =Translate!$E$172 -> Interest | G103: =Translate!E$10 -> US$ mn | I103: =SUM(K103:AX103) -> 2.058929873 | K103: =K100 * $F101 * K102 -> 0 | L103: =L100 * $F101 * L102 -> 0 | M103: 0 | N103: 0 | O103: 0 | P103: 0 | Q103: 0 | R103: 0 | S103: 0 | T103: 0 | U103: 0 | V103: 0 | W103: 0 | X103: 0 | Y103: 0.07063599251 | Z103: 0.1426847049 | AA103: 0.2161743915 | AB103: 0.2911338718 | AC103: 0.3675925418 | AD103: 0.4455803851 | AE103: 0.5251279853 | AF103: 0 | AG103: 0 | AH103: 0 | AI103: 0 | AJ103: 0 | AK103: 0 | AL103: 0 | AM103: 0 | AN103: 0 | AO103: 0 | AP103: 0 | AQ103: 0 | AR103: 0 | AS103: 0 | AT103: 0 | AU103: 0 | AV103: 0 | AW103: 0 | AX103: 0
C105: =Translate!$E$23 -> Decommissioning fund
D106: =Translate!$E$605 -> add | E106: =Translate!$E$173 -> Decommissioning fund opening balance BEG | G106: =Translate!E$10 -> US$ mn | K106: =J110 -> 0 | L106: 0 | M106: 0 | N106: 0 | O106: 0 | P106: 0 | Q106: 0 | R106: 0 | S106: 0 | T106: 0 | U106: 0 | V106: 0 | W106: 0 | X106: 0 | Y106: 3.531799626 | Z106: 7.134235244 | AA106: 10.80871957 | AB106: 14.55669359 | AC106: 18.37962709 | AD106: 22.27901926 | AE106: 26.25639927 | AF106: 30.31332688 | AG106: 3.552713679e-15 | AH106: 3.552713679e-15 | AI106: 3.552713679e-15 | AJ106: 3.552713679e-15 | AK106: 3.552713679e-15 | AL106: 3.552713679e-15 | AM106: 3.552713679e-15 | AN106: 3.552713679e-15 | AO106: 3.552713679e-15 | AP106: 3.552713679e-15 | AQ106: 3.552713679e-15 | AR106: 3.552713679e-15 | AS106: 3.552713679e-15 | AT106: 3.552713679e-15 | AU106: 3.552713679e-15 | AV106: 3.552713679e-15 | AW106: 3.552713679e-15 | AX106: 3.552713679e-15
D107: =Translate!$E$605 -> add | E107: =E$103 -> Interest | F107: =F$103 -> 0 | G107: US$ mn | H107: 0 | I107: 2.058929873 | J107: 0 | K107: 0 | L107: 0 | M107: 0 | N107: 0 | O107: 0 | P107: 0 | Q107: 0 | R107: 0 | S107: 0 | T107: 0 | U107: 0 | V107: 0 | W107: 0 | X107: 0 | Y107: 0.07063599251 | Z107: 0.1426847049 | AA107: 0.2161743915 | AB107: 0.2911338718 | AC107: 0.3675925418 | AD107: 0.4455803851 | AE107: 0.5251279853 | AF107: 0 | AG107: 0 | AH107: 0 | AI107: 0 | AJ107: 0 | AK107: 0 | AL107: 0 | AM107: 0 | AN107: 0 | AO107: 0 | AP107: 0 | AQ107: 0 | AR107: 0 | AS107: 0 | AT107: 0 | AU107: 0 | AV107: 0 | AW107: 0 | AX107: 0
D108: =Translate!$E$606 -> less | E108: =E$97 -> Withdrawals to meet decommissioning costs (end of period) | F108: =F$97 -> 0 | G108: US$ mn | H108: 0 | I108: 30.31332688 | J108: 0 | K108: 0 | L108: 0 | M108: 0 | N108: 0 | O108: 0 | P108: 0 | Q108: 0 | R108: 0 | S108: 0 | T108: 0 | U108: 0 | V108: 0 | W108: 0 | X108: 0 | Y108: 0 | Z108: 0 | AA108: 0 | AB108: 0 | AC108: 0 | AD108: 0 | AE108: 0 | AF108: 30.31332688 | AG108: 0 | AH108: 0 | AI108: 0 | AJ108: 0 | AK108: 0 | AL108: 0 | AM108: 0 | AN108: 0 | AO108: 0 | AP108: 0 | AQ108: 0 | AR108: 0 | AS108: 0 | AT108: 0 | AU108: 0 | AV108: 0 | AW108: 0 | AX108: 0
D109: =Translate!$E$605 -> add | E109: =E$92 -> Decommissioning provision for future costs (end of period) | F109: 0 | G109: US$ mn | H109: 0 | I109: 28.25439701 | J109: 0 | K109: 0 | L109: 0 | M109: 0 | N109: 0 | O109: 0 | P109: 0 | Q109: 0 | R109: 0 | S109: 0 | T109: 0 | U109: 0 | V109: 0 | W109: 0 | X109: 3.531799626 | Y109: 3.531799626 | Z109: 3.531799626 | AA109: 3.531799626 | AB109: 3.531799626 | AC109: 3.531799626 | AD109: 3.531799626 | AE109: 3.531799626 | AF109: 0 | AG109: 0 | AH109: 0 | AI109: 0 | AJ109: 0 | AK109: 0 | AL109: 0 | AM109: 0 | AN109: 0 | AO109: 0 | AP109: 0 | AQ109: 0 | AR109: 0 | AS109: 0 | AT109: 0 | AU109: 0 | AV109: 0 | AW109: 0 | AX109: 0
E110: =Translate!$E$174 -> Decommissioning fund closing balance: END | G110: =Translate!E$10 -> US$ mn | K110: =K106 + K107 - K108 + K109 -> 0 | L110: =L106 + L107 - L108 + L109 -> 0 | M110: 0 | N110: 0 | O110: 0 | P110: 0 | Q110: 0 | R110: 0 | S110: 0 | T110: 0 | U110: 0 | V110: 0 | W110: 0 | X110: 3.531799626 | Y110: 7.134235244 | Z110: 10.80871957 | AA110: 14.55669359 | AB110: 18.37962709 | AC110: 22.27901926 | AD110: 26.25639927 | AE110: 30.31332688 | AF110: 3.552713679e-15 | AG110: 3.552713679e-15 | AH110: 3.552713679e-15 | AI110: 3.552713679e-15 | AJ110: 3.552713679e-15 | AK110: 3.552713679e-15 | AL110: 3.552713679e-15 | AM110: 3.552713679e-15 | AN110: 3.552713679e-15 | AO110: 3.552713679e-15 | AP110: 3.552713679e-15 | AQ110: 3.552713679e-15 | AR110: 3.552713679e-15 | AS110: 3.552713679e-15 | AT110: 3.552713679e-15 | AU110: 3.552713679e-15 | AV110: 3.552713679e-15 | AW110: 3.552713679e-15 | AX110: 3.552713679e-15
E112: =E108 & ": " & Translate!$E$19 -> Withdrawals to meet decommissioning costs (end of period): Total | F112: =SUM(K108:AX108) -> 30.31332688 | G112: =G108 -> US$ mn
E113: =E107 & ": " & Translate!$E$19 -> Interest: Total | F113: =SUM(K107:AX107) -> 2.058929873 | G113: =G107 -> US$ mn
E114: =E109 & ": " & Translate!$E$19 -> Decommissioning provision for future costs (end of period): Total | F114: =SUM(K109:AX109) -> 28.25439701 | G114: =G109 -> US$ mn
E115: =Translate!$E$444 & ": " & Translate!$E$175 -> Check: decommissioning cashflows | F115: =IF( ABS( F112 - F113 - F114) > CHK_TOL, 1, 0) -> 0 | G115: =Translate!E$444 -> Check
B117: =Translate!$E$54 -> Net decommissioning cashflows
D118: =Translate!$E$605 -> add | E118: =ProjectCashflows!E$242 -> Decommissioning costs, after ELT | F118: =ProjectCashflows!F$242 -> 0 | G118: =ProjectCashflows!G$242 -> US$ mn | H118: =ProjectCashflows!H$242 -> 0 | I118: =ProjectCashflows!I$242 -> 30.31332688 | J118: =ProjectCashflows!J$242 -> 0 | K118: =ProjectCashflows!K$242 -> 0 | L118: =ProjectCashflows!L$242 -> 0 | M118: =ProjectCashflows!M$242 -> 0 | N118: =ProjectCashflows!N$242 -> 0 | O118: =ProjectCashflows!O$242 -> 0 | P118: =ProjectCashflows!P$242 -> 0 | Q118: =ProjectCashflows!Q$242 -> 0 | R118: =ProjectCashflows!R$242 -> 0 | S118: =ProjectCashflows!S$242 -> 0 | T118: =ProjectCashflows!T$242 -> 0 | U118: =ProjectCashflows!U$242 -> 0 | V118: =ProjectCashflows!V$242 -> 0 | W118: =ProjectCashflows!W$242 -> 0 | X118: =ProjectCashflows!X$242 -> 0 | Y118: =ProjectCashflows!Y$242 -> 0 | Z118: =ProjectCashflows!Z$242 -> 0 | AA118: =ProjectCashflows!AA$242 -> 0 | AB118: =ProjectCashflows!AB$242 -> 0 | AC118: =ProjectCashflows!AC$242 -> 0 | AD118: =ProjectCashflows!AD$242 -> 0 | AE118: =ProjectCashflows!AE$242 -> 0 | AF118: =ProjectCashflows!AF$242 -> 30.31332688 | AG118: =ProjectCashflows!AG$242 -> 0 | AH118: =ProjectCashflows!AH$242 -> 0 | AI118: =ProjectCashflows!AI$242 -> 0 | AJ118: =ProjectCashflows!AJ$242 -> 0 | AK118: =ProjectCashflows!AK$242 -> 0 | AL118: =ProjectCashflows!AL$242 -> 0 | AM118: =ProjectCashflows!AM$242 -> 0 | AN118: =ProjectCashflows!AN$242 -> 0 | AO118: =ProjectCashflows!AO$242 -> 0 | AP118: =ProjectCashflows!AP$242 -> 0 | AQ118: =ProjectCashflows!AQ$242 -> 0 | AR118: =ProjectCashflows!AR$242 -> 0 | AS118: =ProjectCashflows!AS$242 -> 0 | AT118: =ProjectCashflows!AT$242 -> 0 | AU118: =ProjectCashflows!AU$242 -> 0 | AV118: =ProjectCashflows!AV$242 -> 0 | AW118: =ProjectCashflows!AW$242 -> 0 | AX118: =ProjectCashflows!AX$242 -> 0
D119: =Translate!$E$606 -> less | E119: =E$108 -> Withdrawals to meet decommissioning costs (end of period) | F119: =F$108 -> 0 | G119: US$ mn | H119: 0 | I119: 30.31332688 | J119: 0 | K119: 0 | L119: 0 | M119: 0 | N119: 0 | O119: 0 | P119: 0 | Q119: 0 | R119: 0 | S119: 0 | T119: 0 | U119: 0 | V119: 0 | W119: 0 | X119: 0 | Y119: 0 | Z119: 0 | AA119: 0 | AB119: 0 | AC119: 0 | AD119: 0 | AE119: 0 | AF119: 30.31332688 | AG119: 0 | AH119: 0 | AI119: 0 | AJ119: 0 | AK119: 0 | AL119: 0 | AM119: 0 | AN119: 0 | AO119: 0 | AP119: 0 | AQ119: 0 | AR119: 0 | AS119: 0 | AT119: 0 | AU119: 0 | AV119: 0 | AW119: 0 | AX119: 0
D120: =Translate!$E$605 -> add | E120: =E$109 -> Decommissioning provision for future costs (end of period) | F120: =F$109 -> 0 | G120: US$ mn | H120: 0 | I120: 28.25439701 | J120: 0 | K120: 0 | L120: 0 | M120: 0 | N120: 0 | O120: 0 | P120: 0 | Q120: 0 | R120: 0 | S120: 0 | T120: 0 | U120: 0 | V120: 0 | W120: 0 | X120: 3.531799626 | Y120: 3.531799626 | Z120: 3.531799626 | AA120: 3.531799626 | AB120: 3.531799626 | AC120: 3.531799626 | AD120: 3.531799626 | AE120: 3.531799626 | AF120: 0 | AG120: 0 | AH120: 0 | AI120: 0 | AJ120: 0 | AK120: 0 | AL120: 0 | AM120: 0 | AN120: 0 | AO120: 0 | AP120: 0 | AQ120: 0 | AR120: 0 | AS120: 0 | AT120: 0 | AU120: 0 | AV120: 0 | AW120: 0 | AX120: 0
E121: =Translate!$E$176 -> Net decommissioning cashflows including fund | G121: =Translate!E$10 -> US$ mn | I121: =SUM(K121:AX121) -> 28.25439701 | K121: =K118 + K120 - K119 -> 0 | L121: =L118 + L120 - L119 -> 0 | M121: 0 | N121: 0 | O121: 0 | P121: 0 | Q121: 0 | R121: 0 | S121: 0 | T121: 0 | U121: 0 | V121: 0 | W121: 0 | X121: 3.531799626 | Y121: 3.531799626 | Z121: 3.531799626 | AA121: 3.531799626 | AB121: 3.531799626 | AC121: 3.531799626 | AD121: 3.531799626 | AE121: 3.531799626 | AF121: 0 | AG121: 0 | AH121: 0 | AI121: 0 | AJ121: 0 | AK121: 0 | AL121: 0 | AM121: 0 | AN121: 0 | AO121: 0 | AP121: 0 | AQ121: 0 | AR121: 0 | AS121: 0 | AT121: 0 | AU121: 0 | AV121: 0 | AW121: 0 | AX121: 0
D123: =Translate!$E$605 -> add | E123: =E$108 -> Withdrawals to meet decommissioning costs (end of period) | F123: =F$108 -> 0 | G123: US$ mn | H123: 0 | I123: 30.31332688 | J123: 0 | K123: 0 | L123: 0 | M123: 0 | N123: 0 | O123: 0 | P123: 0 | Q123: 0 | R123: 0 | S123: 0 | T123: 0 | U123: 0 | V123: 0 | W123: 0 | X123: 0 | Y123: 0 | Z123: 0 | AA123: 0 | AB123: 0 | AC123: 0 | AD123: 0 | AE123: 0 | AF123: 30.31332688 | AG123: 0 | AH123: 0 | AI123: 0 | AJ123: 0 | AK123: 0 | AL123: 0 | AM123: 0 | AN123: 0 | AO123: 0 | AP123: 0 | AQ123: 0 | AR123: 0 | AS123: 0 | AT123: 0 | AU123: 0 | AV123: 0 | AW123: 0 | AX123: 0
D124: =Translate!$E$606 -> less | E124: =E$109 -> Decommissioning provision for future costs (end of period) | F124: =F$109 -> 0 | G124: US$ mn | H124: 0 | I124: 28.25439701 | J124: 0 | K124: 0 | L124: 0 | M124: 0 | N124: 0 | O124: 0 | P124: 0 | Q124: 0 | R124: 0 | S124: 0 | T124: 0 | U124: 0 | V124: 0 | W124: 0 | X124: 3.531799626 | Y124: 3.531799626 | Z124: 3.531799626 | AA124: 3.531799626 | AB124: 3.531799626 | AC124: 3.531799626 | AD124: 3.531799626 | AE124: 3.531799626 | AF124: 0 | AG124: 0 | AH124: 0 | AI124: 0 | AJ124: 0 | AK124: 0 | AL124: 0 | AM124: 0 | AN124: 0 | AO124: 0 | AP124: 0 | AQ124: 0 | AR124: 0 | AS124: 0 | AT124: 0 | AU124: 0 | AV124: 0 | AW124: 0 | AX124: 0
E125: =Translate!$E$54 -> Net decommissioning cashflows | G125: =Translate!E$10 -> US$ mn | I125: =SUM(K125:AX125) -> 2.058929873 | K125: =K123 - K124 -> 0 | L125: =L123 - L124 -> 0 | M125: 0 | N125: 0 | O125: 0 | P125: 0 | Q125: 0 | R125: 0 | S125: 0 | T125: 0 | U125: 0 | V125: 0 | W125: 0 | X125: -3.531799626 | Y125: -3.531799626 | Z125: -3.531799626 | AA125: -3.531799626 | AB125: -3.531799626 | AC125: -3.531799626 | AD125: -3.531799626 | AE125: -3.531799626 | AF125: 30.31332688 | AG125: 0 | AH125: 0 | AI125: 0 | AJ125: 0 | AK125: 0 | AL125: 0 | AM125: 0 | AN125: 0 | AO125: 0 | AP125: 0 | AQ125: 0 | AR125: 0 | AS125: 0 | AT125: 0 | AU125: 0 | AV125: 0 | AW125: 0 | AX125: 0
E127: =E125 -> Net decommissioning cashflows | F127: =F125 -> 0 | G127: US$ mn | H127: 0 | I127: 2.058929873 | J127: 0 | K127: 0 | L127: 0 | M127: 0 | N127: 0 | O127: 0 | P127: 0 | Q127: 0 | R127: 0 | S127: 0 | T127: 0 | U127: 0 | V127: 0 | W127: 0 | X127: -3.531799626 | Y127: -3.531799626 | Z127: -3.531799626 | AA127: -3.531799626 | AB127: -3.531799626 | AC127: -3.531799626 | AD127: -3.531799626 | AE127: -3.531799626 | AF127: 30.31332688 | AG127: 0 | AH127: 0 | AI127: 0 | AJ127: 0 | AK127: 0 | AL127: 0 | AM127: 0 | AN127: 0 | AO127: 0 | AP127: 0 | AQ127: 0 | AR127: 0 | AS127: 0 | AT127: 0 | AU127: 0 | AV127: 0 | AW127: 0 | AX127: 0
E128: =ProjectCashflows!E$245 -> Project cashflow before decommissioning fund | F128: =ProjectCashflows!F$245 -> 0 | G128: =ProjectCashflows!G$245 -> US$ mn | H128: =ProjectCashflows!H$245 -> 0 | I128: =ProjectCashflows!I$245 -> 1980.85375 | J128: =ProjectCashflows!J$245 -> 0 | K128: =ProjectCashflows!K$245 -> -10 | L128: =ProjectCashflows!L$245 -> -10.2 | M128: =ProjectCashflows!M$245 -> -10.404 | N128: =ProjectCashflows!N$245 -> -53.0604 | O128: =ProjectCashflows!O$245 -> -259.5131104 | P128: =ProjectCashflows!P$245 -> -34.364515 | Q128: =ProjectCashflows!Q$245 -> 164.1381726 | R128: =ProjectCashflows!R$245 -> 167.4209361 | S128: =ProjectCashflows!S$245 -> 170.7693548 | T128: =ProjectCashflows!T$245 -> 174.1847419 | U128: =ProjectCashflows!U$245 -> 177.6684367 | V128: =ProjectCashflows!V$245 -> 181.2218054 | W128: =ProjectCashflows!W$245 -> 184.8462416 | X128: =ProjectCashflows!X$245 -> 188.5431664 | Y128: =ProjectCashflows!Y$245 -> 192.3140297 | Z128: =ProjectCashflows!Z$245 -> 196.1603103 | AA128: =ProjectCashflows!AA$245 -> 164.9058828 | AB128: =ProjectCashflows!AB$245 -> 143.5247455 | AC128: =ProjectCashflows!AC$245 -> 109.7964303 | AD128: =ProjectCashflows!AD$245 -> 97.06004437 | AE128: =ProjectCashflows!AE$245 -> 76.15480404 | AF128: =ProjectCashflows!AF$245 -> -30.31332688 | AG128: =ProjectCashflows!AG$245 -> 0 | AH128: =ProjectCashflows!AH$245 -> 0 | AI128: =ProjectCashflows!AI$245 -> 0 | AJ128: =ProjectCashflows!AJ$245 -> 0 | AK128: =ProjectCashflows!AK$245 -> 0 | AL128: =ProjectCashflows!AL$245 -> 0 | AM128: =ProjectCashflows!AM$245 -> 0 | AN128: =ProjectCashflows!AN$245 -> 0 | AO128: =ProjectCashflows!AO$245 -> 0 | AP128: =ProjectCashflows!AP$245 -> 0 | AQ128: =ProjectCashflows!AQ$245 -> 0 | AR128: =ProjectCashflows!AR$245 -> 0 | AS128: =ProjectCashflows!AS$245 -> 0 | AT128: =ProjectCashflows!AT$245 -> 0 | AU128: =ProjectCashflows!AU$245 -> 0 | AV128: =ProjectCashflows!AV$245 -> 0 | AW128: =ProjectCashflows!AW$245 -> 0 | AX128: =ProjectCashflows!AX$245 -> 0
E129: =Translate!$E$177 -> Project cashflows before fiscal regime after decommissioning | G129: =Translate!E$10 -> US$ mn | I129: =SUM(K129:AX129) -> 1982.91268 | K129: =K127 + K128 -> -10 | L129: =L127 + L128 -> -10.2 | M129: -10.404 | N129: -53.0604 | O129: -259.5131104 | P129: -34.364515 | Q129: 164.1381726 | R129: 167.4209361 | S129: 170.7693548 | T129: 174.1847419 | U129: 177.6684367 | V129: 181.2218054 | W129: 184.8462416 | X129: 185.0113668 | Y129: 188.7822301 | Z129: 192.6285107 | AA129: 161.3740832 | AB129: 139.9929458 | AC129: 106.2646307 | AD129: 93.52824474 | AE129: 72.62300442 | AF129: 0 | AG129: 0 | AH129: 0 | AI129: 0 | AJ129: 0 | AK129: 0 | AL129: 0 | AM129: 0 | AN129: 0 | AO129: 0 | AP129: 0 | AQ129: 0 | AR129: 0 | AS129: 0 | AT129: 0 | AU129: 0 | AV129: 0 | AW129: 0 | AX129: 0
A131: =Translate!$E$24 -> Bonus
B133: =Translate!$E$55 -> Signature bonus
E134: =FiscalModel!E$16 -> Signature bonus (first period of activity) | F134: =FiscalModel!F$16 -> 0 | G134: =FiscalModel!G$16 -> US$ mn
E135: =ProjectCashflows!E$185 -> Cumulative project activity | F135: =ProjectCashflows!F$185 -> 0 | G135: =ProjectCashflows!G$185 -> Years | H135: =ProjectCashflows!H$185 -> 0 | I135: =ProjectCashflows!I$185 -> 0 | J135: =ProjectCashflows!J$185 -> 0 | K135: =ProjectCashflows!K$185 -> 1 | L135: =ProjectCashflows!L$185 -> 2 | M135: =ProjectCashflows!M$185 -> 3 | N135: =ProjectCashflows!N$185 -> 4 | O135: =ProjectCashflows!O$185 -> 5 | P135: =ProjectCashflows!P$185 -> 6 | Q135: =ProjectCashflows!Q$185 -> 7 | R135: =ProjectCashflows!R$185 -> 8 | S135: =ProjectCashflows!S$185 -> 9 | T135: =ProjectCashflows!T$185 -> 10 | U135: =ProjectCashflows!U$185 -> 11 | V135: =ProjectCashflows!V$185 -> 12 | W135: =ProjectCashflows!W$185 -> 13 | X135: =ProjectCashflows!X$185 -> 14 | Y135: =ProjectCashflows!Y$185 -> 15 | Z135: =ProjectCashflows!Z$185 -> 16 | AA135: =ProjectCashflows!AA$185 -> 17 | AB135: =ProjectCashflows!AB$185 -> 18 | AC135: =ProjectCashflows!AC$185 -> 19 | AD135: =ProjectCashflows!AD$185 -> 20 | AE135: =ProjectCashflows!AE$185 -> 21 | AF135: =ProjectCashflows!AF$185 -> 22 | AG135: =ProjectCashflows!AG$185 -> 0 | AH135: =ProjectCashflows!AH$185 -> 0 | AI135: =ProjectCashflows!AI$185 -> 0 | AJ135: =ProjectCashflows!AJ$185 -> 0 | AK135: =ProjectCashflows!AK$185 -> 0 | AL135: =ProjectCashflows!AL$185 -> 0 | AM135: =ProjectCashflows!AM$185 -> 0 | AN135: =ProjectCashflows!AN$185 -> 0 | AO135: =ProjectCashflows!AO$185 -> 0 | AP135: =ProjectCashflows!AP$185 -> 0 | AQ135: =ProjectCashflows!AQ$185 -> 0 | AR135: =ProjectCashflows!AR$185 -> 0 | AS135: =ProjectCashflows!AS$185 -> 0 | AT135: =ProjectCashflows!AT$185 -> 0 | AU135: =ProjectCashflows!AU$185 -> 0 | AV135: =ProjectCashflows!AV$185 -> 0 | AW135: =ProjectCashflows!AW$185 -> 0 | AX135: =ProjectCashflows!AX$185 -> 0
E136: =Translate!$E$55 -> Signature bonus | G136: =Translate!E$10 -> US$ mn | I136: =SUM(K136:AX136) -> 0 | K136: =$F134 * ( K135 = 1) -> 0 | L136: 0 | M136: 0 | N136: 0 | O136: 0 | P136: 0 | Q136: 0 | R136: 0 | S136: 0 | T136: 0 | U136: 0 | V136: 0 | W136: 0 | X136: 0 | Y136: 0 | Z136: 0 | AA136: 0 | AB136: 0 | AC136: 0 | AD136: 0 | AE136: 0 | AF136: 0 | AG136: 0 | AH136: 0 | AI136: 0 | AJ136: 0 | AK136: 0 | AL136: 0 | AM136: 0 | AN136: 0 | AO136: 0 | AP136: 0 | AQ136: 0 | AR136: 0 | AS136: 0 | AT136: 0 | AU136: 0 | AV136: 0 | AW136: 0 | AX136: 0
A138: =Translate!$E$25 -> Royalty
B140: =Translate!$E$56 -> Base for royalty
E141: =ProjectCashflows!E$234 -> Sales revenues: gross, after ELT | F141: =ProjectCashflows!F$234 -> 0 | G141: =ProjectCashflows!G$234 -> US$ mn | H141: =ProjectCashflows!H$234 -> 0 | I141: =ProjectCashflows!I$234 -> 3796.553918 | J141: =ProjectCashflows!J$234 -> 0 | K141: =ProjectCashflows!K$234 -> 0 | L141: =ProjectCashflows!L$234 -> 0 | M141: =ProjectCashflows!M$234 -> 0 | N141: =ProjectCashflows!N$234 -> 0 | O141: =ProjectCashflows!O$234 -> 16.2364824 | P141: =ProjectCashflows!P$234 -> 124.2090904 | Q141: =ProjectCashflows!Q$234 -> 253.3865443 | R141: =ProjectCashflows!R$234 -> 258.4542752 | S141: =ProjectCashflows!S$234 -> 263.6233607 | T141: =ProjectCashflows!T$234 -> 268.8958279 | U141: =ProjectCashflows!U$234 -> 274.2737445 | V141: =ProjectCashflows!V$234 -> 279.7592194 | W141: =ProjectCashflows!W$234 -> 285.3544038 | X141: =ProjectCashflows!X$234 -> 291.0614919 | Y141: =ProjectCashflows!Y$234 -> 296.8827217 | Z141: =ProjectCashflows!Z$234 -> 302.8203761 | AA141: =ProjectCashflows!AA$234 -> 257.3973197 | AB141: =ProjectCashflows!AB$234 -> 210.0362129 | AC141: =ProjectCashflows!AC$234 -> 160.6777029 | AD141: =ProjectCashflows!AD$234 -> 142.0390893 | AE141: =ProjectCashflows!AE$234 -> 111.4460547 | AF141: =ProjectCashflows!AF$234 -> 0 | AG141: =ProjectCashflows!AG$234 -> 0 | AH141: =ProjectCashflows!AH$234 -> 0 | AI141: =ProjectCashflows!AI$234 -> 0 | AJ141: =ProjectCashflows!AJ$234 -> 0 | AK141: =ProjectCashflows!AK$234 -> 0 | AL141: =ProjectCashflows!AL$234 -> 0 | AM141: =ProjectCashflows!AM$234 -> 0 | AN141: =ProjectCashflows!AN$234 -> 0 | AO141: =ProjectCashflows!AO$234 -> 0 | AP141: =ProjectCashflows!AP$234 -> 0 | AQ141: =ProjectCashflows!AQ$234 -> 0 | AR141: =ProjectCashflows!AR$234 -> 0 | AS141: =ProjectCashflows!AS$234 -> 0 | AT141: =ProjectCashflows!AT$234 -> 0 | AU141: =ProjectCashflows!AU$234 -> 0 | AV141: =ProjectCashflows!AV$234 -> 0 | AW141: =ProjectCashflows!AW$234 -> 0 | AX141: =ProjectCashflows!AX$234 -> 0
E142: =ProjectCashflows!E$236 -> Sales revenues: net, after ELT | F142: =ProjectCashflows!F$236 -> 0 | G142: =ProjectCashflows!G$236 -> US$ mn | H142: =ProjectCashflows!H$236 -> 0 | I142: =ProjectCashflows!I$236 -> 3733.278019 | J142: =ProjectCashflows!J$236 -> 0 | K142: =ProjectCashflows!K$236 -> 0 | L142: =ProjectCashflows!L$236 -> 0 | M142: =ProjectCashflows!M$236 -> 0 | N142: =ProjectCashflows!N$236 -> 0 | O142: =ProjectCashflows!O$236 -> 15.96587436 | P142: =ProjectCashflows!P$236 -> 122.1389389 | Q142: =ProjectCashflows!Q$236 -> 249.1634353 | R142: =ProjectCashflows!R$236 -> 254.146704 | S142: =ProjectCashflows!S$236 -> 259.229638 | T142: =ProjectCashflows!T$236 -> 264.4142308 | U142: =ProjectCashflows!U$236 -> 269.7025154 | V142: =ProjectCashflows!V$236 -> 275.0965657 | W142: =ProjectCashflows!W$236 -> 280.598497 | X142: =ProjectCashflows!X$236 -> 286.210467 | Y142: =ProjectCashflows!Y$236 -> 291.9346763 | Z142: =ProjectCashflows!Z$236 -> 297.7733699 | AA142: =ProjectCashflows!AA$236 -> 253.1073644 | AB142: =ProjectCashflows!AB$236 -> 206.5356093 | AC142: =ProjectCashflows!AC$236 -> 157.9997411 | AD142: =ProjectCashflows!AD$236 -> 139.6717712 | AE142: =ProjectCashflows!AE$236 -> 109.5886205 | AF142: =ProjectCashflows!AF$236 -> 0 | AG142: =ProjectCashflows!AG$236 -> 0 | AH142: =ProjectCashflows!AH$236 -> 0 | AI142: =ProjectCashflows!AI$236 -> 0 | AJ142: =ProjectCashflows!AJ$236 -> 0 | AK142: =ProjectCashflows!AK$236 -> 0 | AL142: =ProjectCashflows!AL$236 -> 0 | AM142: =ProjectCashflows!AM$236 -> 0 | AN142: =ProjectCashflows!AN$236 -> 0 | AO142: =ProjectCashflows!AO$236 -> 0 | AP142: =ProjectCashflows!AP$236 -> 0 | AQ142: =ProjectCashflows!AQ$236 -> 0 | AR142: =ProjectCashflows!AR$236 -> 0 | AS142: =ProjectCashflows!AS$236 -> 0 | AT142: =ProjectCashflows!AT$236 -> 0 | AU142: =ProjectCashflows!AU$236 -> 0 | AV142: =ProjectCashflows!AV$236 -> 0 | AW142: =ProjectCashflows!AW$236 -> 0 | AX142: =ProjectCashflows!AX$236 -> 0
E144: =FiscalModel!E$23 -> Royalty base (gross or net revenues) | F144: =FiscalModel!F$23 -> net | G144: =FiscalModel!G$23 -> Option
F145: =Translate!E$555 -> gross | G145: =Translate!$E$351 -> Option
F146: =Translate!E$556 -> net | G146: =Translate!$E$351 -> Option
E148: =Translate!$E$471 & ": " & F144 & " " & Translate!$E$472 -> Royalty base: net revenue | G148: =Translate!E$10 -> US$ mn | I148: =SUM(K148:AX148) -> 3733.278019 | K148: =IF($F144 = $F145, K141, K142) -> 0 | L148: 0 | M148: 0 | N148: 0 | O148: 15.96587436 | P148: 122.1389389 | Q148: 249.1634353 | R148: 254.146704 | S148: 259.229638 | T148: 264.4142308 | U148: 269.7025154 | V148: 275.0965657 | W148: 280.598497 | X148: 286.210467 | Y148: 291.9346763 | Z148: 297.7733699 | AA148: 253.1073644 | AB148: 206.5356093 | AC148: 157.9997411 | AD148: 139.6717712 | AE148: 109.5886205 | AF148: 0 | AG148: 0 | AH148: 0 | AI148: 0 | AJ148: 0 | AK148: 0 | AL148: 0 | AM148: 0 | AN148: 0 | AO148: 0 | AP148: 0 | AQ148: 0 | AR148: 0 | AS148: 0 | AT148: 0 | AU148: 0 | AV148: 0 | AW148: 0 | AX148: 0
B150: =Translate!$E$57 -> Flat royalty
E151: =FiscalModel!E$19 -> Royalty rate: flat | F151: =FiscalModel!F$19 -> 0.05 | G151: =FiscalModel!G$19 -> %
E152: =ProjectCashflows!E$192 -> Production years after ELT | F152: =ProjectCashflows!F$192 -> 0 | G152: =ProjectCashflows!G$192 -> Flag | H152: =ProjectCashflows!H$192 -> 0 | I152: =ProjectCashflows!I$192 -> 17 | J152: =ProjectCashflows!J$192 -> 0 | K152: =ProjectCashflows!K$192 -> 0 | L152: =ProjectCashflows!L$192 -> 0 | M152: =ProjectCashflows!M$192 -> 0 | N152: =ProjectCashflows!N$192 -> 0 | O152: =ProjectCashflows!O$192 -> 1 | P152: =ProjectCashflows!P$192 -> 1 | Q152: =ProjectCashflows!Q$192 -> 1 | R152: =ProjectCashflows!R$192 -> 1 | S152: =ProjectCashflows!S$192 -> 1 | T152: =ProjectCashflows!T$192 -> 1 | U152: =ProjectCashflows!U$192 -> 1 | V152: =ProjectCashflows!V$192 -> 1 | W152: =ProjectCashflows!W$192 -> 1 | X152: =ProjectCashflows!X$192 -> 1 | Y152: =ProjectCashflows!Y$192 -> 1 | Z152: =ProjectCashflows!Z$192 -> 1 | AA152: =ProjectCashflows!AA$192 -> 1 | AB152: =ProjectCashflows!AB$192 -> 1 | AC152: =ProjectCashflows!AC$192 -> 1 | AD152: =ProjectCashflows!AD$192 -> 1 | AE152: =ProjectCashflows!AE$192 -> 1 | AF152: =ProjectCashflows!AF$192 -> 0 | AG152: =ProjectCashflows!AG$192 -> 0 | AH152: =ProjectCashflows!AH$192 -> 0 | AI152: =ProjectCashflows!AI$192 -> 0 | AJ152: =ProjectCashflows!AJ$192 -> 0 | AK152: =ProjectCashflows!AK$192 -> 0 | AL152: =ProjectCashflows!AL$192 -> 0 | AM152: =ProjectCashflows!AM$192 -> 0 | AN152: =ProjectCashflows!AN$192 -> 0 | AO152: =ProjectCashflows!AO$192 -> 0 | AP152: =ProjectCashflows!AP$192 -> 0 | AQ152: =ProjectCashflows!AQ$192 -> 0 | AR152: =ProjectCashflows!AR$192 -> 0 | AS152: =ProjectCashflows!AS$192 -> 0 | AT152: =ProjectCashflows!AT$192 -> 0 | AU152: =ProjectCashflows!AU$192 -> 0 | AV152: =ProjectCashflows!AV$192 -> 0 | AW152: =ProjectCashflows!AW$192 -> 0 | AX152: =ProjectCashflows!AX$192 -> 0
E153: =Translate!$E$178 -> Flat royalty rate | G153: % | K153: =$F151 * K152 -> 0 | L153: 0 | M153: 0 | N153: 0 | O153: 0.05 | P153: 0.05 | Q153: 0.05 | R153: 0.05 | S153: 0.05 | T153: 0.05 | U153: 0.05 | V153: 0.05 | W153: 0.05 | X153: 0.05 | Y153: 0.05 | Z153: 0.05 | AA153: 0.05 | AB153: 0.05 | AC153: 0.05 | AD153: 0.05 | AE153: 0.05 | AF153: 0 | AG153: 0 | AH153: 0 | AI153: 0 | AJ153: 0 | AK153: 0 | AL153: 0 | AM153: 0 | AN153: 0 | AO153: 0 | AP153: 0 | AQ153: 0 | AR153: 0 | AS153: 0 | AT153: 0 | AU153: 0 | AV153: 0 | AW153: 0 | AX153: 0
B155: =Translate!$E$58 -> Price-based royalty
E156: =FiscalModel!E$21 -> Threshold for price royalty (0 = no price royalty) | F156: =FiscalModel!F$21 -> 0 | G156: =FiscalModel!G$21 -> US$ 2021 / ounce
E157: =E$22 -> Price threshold inflation indexed | F157: =F$22 -> 0 | G157: =G$22 -> Option
E158: =Inputs!E$81 -> Label: yes | F158: =Inputs!F$81 -> yes | G158: =Inputs!G$81 -> Label
E159: =ProjectCashflows!E$213 -> Inflation index | F159: =ProjectCashflows!F$213 -> 0 | G159: =ProjectCashflows!G$213 -> Index | H159: =ProjectCashflows!H$213 -> base year is first project year | I159: =ProjectCashflows!I$213 -> 0 | J159: =ProjectCashflows!J$213 -> 0 | K159: =ProjectCashflows!K$213 -> 1 | L159: =ProjectCashflows!L$213 -> 1.02 | M159: =ProjectCashflows!M$213 -> 1.0404 | N159: =ProjectCashflows!N$213 -> 1.061208 | O159: =ProjectCashflows!O$213 -> 1.08243216 | P159: =ProjectCashflows!P$213 -> 1.104080803 | Q159: =ProjectCashflows!Q$213 -> 1.126162419 | R159: =ProjectCashflows!R$213 -> 1.148685668 | S159: =ProjectCashflows!S$213 -> 1.171659381 | T159: =ProjectCashflows!T$213 -> 1.195092569 | U159: =ProjectCashflows!U$213 -> 1.21899442 | V159: =ProjectCashflows!V$213 -> 1.243374308 | W159: =ProjectCashflows!W$213 -> 1.268241795 | X159: =ProjectCashflows!X$213 -> 1.29360663 | Y159: =ProjectCashflows!Y$213 -> 1.319478763 | Z159: =ProjectCashflows!Z$213 -> 1.345868338 | AA159: =ProjectCashflows!AA$213 -> 1.372785705 | AB159: =ProjectCashflows!AB$213 -> 1.400241419 | AC159: =ProjectCashflows!AC$213 -> 1.428246248 | AD159: =ProjectCashflows!AD$213 -> 1.456811173 | AE159: =ProjectCashflows!AE$213 -> 1.485947396 | AF159: =ProjectCashflows!AF$213 -> 1.515666344 | AG159: =ProjectCashflows!AG$213 -> 1 | AH159: =ProjectCashflows!AH$213 -> 1 | AI159: =ProjectCashflows!AI$213 -> 1 | AJ159: =ProjectCashflows!AJ$213 -> 1 | AK159: =ProjectCashflows!AK$213 -> 1 | AL159: =ProjectCashflows!AL$213 -> 1 | AM159: =ProjectCashflows!AM$213 -> 1 | AN159: =ProjectCashflows!AN$213 -> 1 | AO159: =ProjectCashflows!AO$213 -> 1 | AP159: =ProjectCashflows!AP$213 -> 1 | AQ159: =ProjectCashflows!AQ$213 -> 1 | AR159: =ProjectCashflows!AR$213 -> 1 | AS159: =ProjectCashflows!AS$213 -> 1 | AT159: =ProjectCashflows!AT$213 -> 1 | AU159: =ProjectCashflows!AU$213 -> 1 | AV159: =ProjectCashflows!AV$213 -> 1 | AW159: =ProjectCashflows!AW$213 -> 1 | AX159: =ProjectCashflows!AX$213 -> 1
E160: =E156 & IF( $F157 = $F158, ": " & Translate!$E$469, ": " & Translate!$E$470) -> Threshold for price royalty (0 = no price royalty): not inflation indexed | G160: =G156 -> US$ 2021 / ounce | K160: =IF( $F157 = $F158, $F156 * K159, $F156) -> 0 | L160: 0 | M160: 0 | N160: 0 | O160: 0 | P160: 0 | Q160: 0 | R160: 0 | S160: 0 | T160: 0 | U160: 0 | V160: 0 | W160: 0 | X160: 0 | Y160: 0 | Z160: 0 | AA160: 0 | AB160: 0 | AC160: 0 | AD160: 0 | AE160: 0 | AF160: 0 | AG160: 0 | AH160: 0 | AI160: 0 | AJ160: 0 | AK160: 0 | AL160: 0 | AM160: 0 | AN160: 0 | AO160: 0 | AP160: 0 | AQ160: 0 | AR160: 0 | AS160: 0 | AT160: 0 | AU160: 0 | AV160: 0 | AW160: 0 | AX160: 0
E162: =ProjectCashflows!E$232 -> Gold price realized from sales, after ELT | F162: =ProjectCashflows!F$232 -> 0 | G162: =ProjectCashflows!G$232 -> US$ / ounce | H162: =ProjectCashflows!H$232 -> 0 | I162: =ProjectCashflows!I$232 -> 0 | J162: =ProjectCashflows!J$232 -> 0 | K162: =ProjectCashflows!K$232 -> 1500 | L162: =ProjectCashflows!L$232 -> 1530 | M162: =ProjectCashflows!M$232 -> 1560.6 | N162: =ProjectCashflows!N$232 -> 1591.812 | O162: =ProjectCashflows!O$232 -> 1623.64824 | P162: =ProjectCashflows!P$232 -> 1656.121205 | Q162: =ProjectCashflows!Q$232 -> 1689.243629 | R162: =ProjectCashflows!R$232 -> 1723.028501 | S162: =ProjectCashflows!S$232 -> 1757.489072 | T162: =ProjectCashflows!T$232 -> 1792.638853 | U162: =ProjectCashflows!U$232 -> 1828.49163 | V162: =ProjectCashflows!V$232 -> 1865.061463 | W162: =ProjectCashflows!W$232 -> 1902.362692 | X162: =ProjectCashflows!X$232 -> 1940.409946 | Y162: =ProjectCashflows!Y$232 -> 1979.218145 | Z162: =ProjectCashflows!Z$232 -> 2018.802507 | AA162: =ProjectCashflows!AA$232 -> 2059.178558 | AB162: =ProjectCashflows!AB$232 -> 2100.362129 | AC162: =ProjectCashflows!AC$232 -> 2142.369371 | AD162: =ProjectCashflows!AD$232 -> 2185.216759 | AE162: =ProjectCashflows!AE$232 -> 2228.921094 | AF162: =ProjectCashflows!AF$232 -> 0 | AG162: =ProjectCashflows!AG$232 -> 0 | AH162: =ProjectCashflows!AH$232 -> 0 | AI162: =ProjectCashflows!AI$232 -> 0 | AJ162: =ProjectCashflows!AJ$232 -> 0 | AK162: =ProjectCashflows!AK$232 -> 0 | AL162: =ProjectCashflows!AL$232 -> 0 | AM162: =ProjectCashflows!AM$232 -> 0 | AN162: =ProjectCashflows!AN$232 -> 0 | AO162: =ProjectCashflows!AO$232 -> 0 | AP162: =ProjectCashflows!AP$232 -> 0 | AQ162: =ProjectCashflows!AQ$232 -> 0 | AR162: =ProjectCashflows!AR$232 -> 0 | AS162: =ProjectCashflows!AS$232 -> 0 | AT162: =ProjectCashflows!AT$232 -> 0 | AU162: =ProjectCashflows!AU$232 -> 0 | AV162: =ProjectCashflows!AV$232 -> 0 | AW162: =ProjectCashflows!AW$232 -> 0 | AX162: =ProjectCashflows!AX$232 -> 0
E163: =E162 & " " & Translate!$E$460 -> Gold price realized from sales, after ELT above threshold | G163: =G162 -> US$ / ounce | K163: =IF( K162 > K160, K162 - K160, 0) -> 1500 | L163: 1530 | M163: 1560.6 | N163: 1591.812 | O163: 1623.64824 | P163: 1656.121205 | Q163: 1689.243629 | R163: 1723.028501 | S163: 1757.489072 | T163: 1792.638853 | U163: 1828.49163 | V163: 1865.061463 | W163: 1902.362692 | X163: 1940.409946 | Y163: 1979.218145 | Z163: 2018.802507 | AA163: 2059.178558 | AB163: 2100.362129 | AC163: 2142.369371 | AD163: 2185.216759 | AE163: 2228.921094 | AF163: 0 | AG163: 0 | AH163: 0 | AI163: 0 | AJ163: 0 | AK163: 0 | AL163: 0 | AM163: 0 | AN163: 0 | AO163: 0 | AP163: 0 | AQ163: 0 | AR163: 0 | AS163: 0 | AT163: 0 | AU163: 0 | AV163: 0 | AW163: 0 | AX163: 0
E164: =Translate!$E$179 -> Proportion of price above threshold | G164: % | K164: =IF( $F156 = 0, 0, IFERROR(K163 / K160, 0)) -> 0 | L164: 0 | M164: 0 | N164: 0 | O164: 0 | P164: 0 | Q164: 0 | R164: 0 | S164: 0 | T164: 0 | U164: 0 | V164: 0 | W164: 0 | X164: 0 | Y164: 0 | Z164: 0 | AA164: 0 | AB164: 0 | AC164: 0 | AD164: 0 | AE164: 0 | AF164: 0 | AG164: 0 | AH164: 0 | AI164: 0 | AJ164: 0 | AK164: 0 | AL164: 0 | AM164: 0 | AN164: 0 | AO164: 0 | AP164: 0 | AQ164: 0 | AR164: 0 | AS164: 0 | AT164: 0 | AU164: 0 | AV164: 0 | AW164: 0 | AX164: 0
E166: =FiscalModel!E$20 -> Additional royalty rate above price threshold | F166: =FiscalModel!F$20 -> 0 | G166: =FiscalModel!G$20 -> %
E167: =Translate!$E$180 -> Price royalty rate | G167: % | H167: =Translate!$E$302 -> percentage of aggregate price | K167: =K164 * $F166 -> 0 | L167: 0 | M167: 0 | N167: 0 | O167: 0 | P167: 0 | Q167: 0 | R167: 0 | S167: 0 | T167: 0 | U167: 0 | V167: 0 | W167: 0 | X167: 0 | Y167: 0 | Z167: 0 | AA167: 0 | AB167: 0 | AC167: 0 | AD167: 0 | AE167: 0 | AF167: 0 | AG167: 0 | AH167: 0 | AI167: 0 | AJ167: 0 | AK167: 0 | AL167: 0 | AM167: 0 | AN167: 0 | AO167: 0 | AP167: 0 | AQ167: 0 | AR167: 0 | AS167: 0 | AT167: 0 | AU167: 0 | AV167: 0 | AW167: 0 | AX167: 0
B169: =Translate!$E$59 -> Aggregate royalty rate
E170: =E$153 -> Flat royalty rate | F170: 0 | G170: % | H170: 0 | I170: 0 | J170: 0 | K170: 0 | L170: 0 | M170: 0 | N170: 0 | O170: 0.05 | P170: 0.05 | Q170: 0.05 | R170: 0.05 | S170: 0.05 | T170: 0.05 | U170: 0.05 | V170: 0.05 | W170: 0.05 | X170: 0.05 | Y170: 0.05 | Z170: 0.05 | AA170: 0.05 | AB170: 0.05 | AC170: 0.05 | AD170: 0.05 | AE170: 0.05 | AF170: 0 | AG170: 0 | AH170: 0 | AI170: 0 | AJ170: 0 | AK170: 0 | AL170: 0 | AM170: 0 | AN170: 0 | AO170: 0 | AP170: 0 | AQ170: 0 | AR170: 0 | AS170: 0 | AT170: 0 | AU170: 0 | AV170: 0 | AW170: 0 | AX170: 0
E171: =E$167 -> Price royalty rate | F171: 0 | G171: % | H171: percentage of aggregate price | I171: 0 | J171: 0 | K171: 0 | L171: 0 | M171: 0 | N171: 0 | O171: 0 | P171: 0 | Q171: 0 | R171: 0 | S171: 0 | T171: 0 | U171: 0 | V171: 0 | W171: 0 | X171: 0 | Y171: 0 | Z171: 0 | AA171: 0 | AB171: 0 | AC171: 0 | AD171: 0 | AE171: 0 | AF171: 0 | AG171: 0 | AH171: 0 | AI171: 0 | AJ171: 0 | AK171: 0 | AL171: 0 | AM171: 0 | AN171: 0 | AO171: 0 | AP171: 0 | AQ171: 0 | AR171: 0 | AS171: 0 | AT171: 0 | AU171: 0 | AV171: 0 | AW171: 0 | AX171: 0
E172: =Translate!$E$181 -> Royalty rate | G172: % | K172: =SUM(K170:K171) -> 0 | L172: 0 | M172: 0 | N172: 0 | O172: 0.05 | P172: 0.05 | Q172: 0.05 | R172: 0.05 | S172: 0.05 | T172: 0.05 | U172: 0.05 | V172: 0.05 | W172: 0.05 | X172: 0.05 | Y172: 0.05 | Z172: 0.05 | AA172: 0.05 | AB172: 0.05 | AC172: 0.05 | AD172: 0.05 | AE172: 0.05 | AF172: 0 | AG172: 0 | AH172: 0 | AI172: 0 | AJ172: 0 | AK172: 0 | AL172: 0 | AM172: 0 | AN172: 0 | AO172: 0 | AP172: 0 | AQ172: 0 | AR172: 0 | AS172: 0 | AT172: 0 | AU172: 0 | AV172: 0 | AW172: 0 | AX172: 0
E174: =Translate!$E$25 -> Royalty | G174: =Translate!E$10 -> US$ mn | I174: =SUM(K174:AX174) -> 186.663901 | K174: =K148 * K172 -> 0 | L174: 0 | M174: 0 | N174: 0 | O174: 0.798293718 | P174: 6.106946943 | Q174: 12.45817176 | R174: 12.7073352 | S174: 12.9614819 | T174: 13.22071154 | U174: 13.48512577 | V174: 13.75482829 | W174: 14.02992485 | X174: 14.31052335 | Y174: 14.59673382 | Z174: 14.88866849 | AA174: 12.65536822 | AB174: 10.32678047 | AC174: 7.899987057 | AD174: 6.983588558 | AE174: 5.479431023 | AF174: 0 | AG174: 0 | AH174: 0 | AI174: 0 | AJ174: 0 | AK174: 0 | AL174: 0 | AM174: 0 | AN174: 0 | AO174: 0 | AP174: 0 | AQ174: 0 | AR174: 0 | AS174: 0 | AT174: 0 | AU174: 0 | AV174: 0 | AW174: 0 | AX174: 0
B176: =Translate!$E$60 -> Net revenues after royalty
E177: =ProjectCashflows!E$236 -> Sales revenues: net, after ELT | F177: =ProjectCashflows!F$236 -> 0 | G177: =ProjectCashflows!G$236 -> US$ mn | H177: =ProjectCashflows!H$236 -> 0 | I177: =ProjectCashflows!I$236 -> 3733.278019 | J177: =ProjectCashflows!J$236 -> 0 | K177: =ProjectCashflows!K$236 -> 0 | L177: =ProjectCashflows!L$236 -> 0 | M177: =ProjectCashflows!M$236 -> 0 | N177: =ProjectCashflows!N$236 -> 0 | O177: =ProjectCashflows!O$236 -> 15.96587436 | P177: =ProjectCashflows!P$236 -> 122.1389389 | Q177: =ProjectCashflows!Q$236 -> 249.1634353 | R177: =ProjectCashflows!R$236 -> 254.146704 | S177: =ProjectCashflows!S$236 -> 259.229638 | T177: =ProjectCashflows!T$236 -> 264.4142308 | U177: =ProjectCashflows!U$236 -> 269.7025154 | V177: =ProjectCashflows!V$236 -> 275.0965657 | W177: =ProjectCashflows!W$236 -> 280.598497 | X177: =ProjectCashflows!X$236 -> 286.210467 | Y177: =ProjectCashflows!Y$236 -> 291.9346763 | Z177: =ProjectCashflows!Z$236 -> 297.7733699 | AA177: =ProjectCashflows!AA$236 -> 253.1073644 | AB177: =ProjectCashflows!AB$236 -> 206.5356093 | AC177: =ProjectCashflows!AC$236 -> 157.9997411 | AD177: =ProjectCashflows!AD$236 -> 139.6717712 | AE177: =ProjectCashflows!AE$236 -> 109.5886205 | AF177: =ProjectCashflows!AF$236 -> 0 | AG177: =ProjectCashflows!AG$236 -> 0 | AH177: =ProjectCashflows!AH$236 -> 0 | AI177: =ProjectCashflows!AI$236 -> 0 | AJ177: =ProjectCashflows!AJ$236 -> 0 | AK177: =ProjectCashflows!AK$236 -> 0 | AL177: =ProjectCashflows!AL$236 -> 0 | AM177: =ProjectCashflows!AM$236 -> 0 | AN177: =ProjectCashflows!AN$236 -> 0 | AO177: =ProjectCashflows!AO$236 -> 0 | AP177: =ProjectCashflows!AP$236 -> 0 | AQ177: =ProjectCashflows!AQ$236 -> 0 | AR177: =ProjectCashflows!AR$236 -> 0 | AS177: =ProjectCashflows!AS$236 -> 0 | AT177: =ProjectCashflows!AT$236 -> 0 | AU177: =ProjectCashflows!AU$236 -> 0 | AV177: =ProjectCashflows!AV$236 -> 0 | AW177: =ProjectCashflows!AW$236 -> 0 | AX177: =ProjectCashflows!AX$236 -> 0
E178: =E$174 -> Royalty | F178: 0 | G178: US$ mn | H178: 0 | I178: 186.663901 | J178: 0 | K178: 0 | L178: 0 | M178: 0 | N178: 0 | O178: 0.798293718 | P178: 6.106946943 | Q178: 12.45817176 | R178: 12.7073352 | S178: 12.9614819 | T178: 13.22071154 | U178: 13.48512577 | V178: 13.75482829 | W178: 14.02992485 | X178: 14.31052335 | Y178: 14.59673382 | Z178: 14.88866849 | AA178: 12.65536822 | AB178: 10.32678047 | AC178: 7.899987057 | AD178: 6.983588558 | AE178: 5.479431023 | AF178: 0 | AG178: 0 | AH178: 0 | AI178: 0 | AJ178: 0 | AK178: 0 | AL178: 0 | AM178: 0 | AN178: 0 | AO178: 0 | AP178: 0 | AQ178: 0 | AR178: 0 | AS178: 0 | AT178: 0 | AU178: 0 | AV178: 0 | AW178: 0 | AX178: 0
E179: =E142 & " " & Translate!$E$458 -> Sales revenues: net, after ELT revenues after royalty | G179: =G141 -> US$ mn | I179: =SUM(K179:AX179) -> 3546.614118 | K179: =K177 - K178 -> 0 | L179: 0 | M179: 0 | N179: 0 | O179: 15.16758064 | P179: 116.0319919 | Q179: 236.7052635 | R179: 241.4393688 | S179: 246.2681561 | T179: 251.1935193 | U179: 256.2173897 | V179: 261.3417374 | W179: 266.5685722 | X179: 271.8999436 | Y179: 277.3379425 | Z179: 282.8847014 | AA179: 240.4519962 | AB179: 196.2088289 | AC179: 150.0997541 | AD179: 132.6881826 | AE179: 104.1091894 | AF179: 0 | AG179: 0 | AH179: 0 | AI179: 0 | AJ179: 0 | AK179: 0 | AL179: 0 | AM179: 0 | AN179: 0 | AO179: 0 | AP179: 0 | AQ179: 0 | AR179: 0 | AS179: 0 | AT179: 0 | AU179: 0 | AV179: 0 | AW179: 0 | AX179: 0
A181: =Translate!$E$26 -> Carbon tax
B183: =Translate!$E$61 -> Determination of tax base
E184: =E$33 -> Carbon tax imposed on scope 3 emissions levied on investor | F184: =F$33 -> yes | G184: =G$33 -> Option
E185: =Inputs!E$81 -> Label: yes | F185: =Inputs!F$81 -> yes | G185: =Inputs!G$81 -> Label
E186: =ProjectCashflows!E$282 -> Scope 3: GHG emissions from coal combusted | F186: =ProjectCashflows!F$282 -> 0 | G186: =ProjectCashflows!G$282 -> Mn t CO2 eq | H186: =ProjectCashflows!H$282 -> 0 | I186: =ProjectCashflows!I$282 -> 0 | J186: =ProjectCashflows!J$282 -> 0 | K186: =ProjectCashflows!K$282 -> 0 | L186: =ProjectCashflows!L$282 -> 0 | M186: =ProjectCashflows!M$282 -> 0 | N186: =ProjectCashflows!N$282 -> 0 | O186: =ProjectCashflows!O$282 -> 0 | P186: =ProjectCashflows!P$282 -> 0 | Q186: =ProjectCashflows!Q$282 -> 0 | R186: =ProjectCashflows!R$282 -> 0 | S186: =ProjectCashflows!S$282 -> 0 | T186: =ProjectCashflows!T$282 -> 0 | U186: =ProjectCashflows!U$282 -> 0 | V186: =ProjectCashflows!V$282 -> 0 | W186: =ProjectCashflows!W$282 -> 0 | X186: =ProjectCashflows!X$282 -> 0 | Y186: =ProjectCashflows!Y$282 -> 0 | Z186: =ProjectCashflows!Z$282 -> 0 | AA186: =ProjectCashflows!AA$282 -> 0 | AB186: =ProjectCashflows!AB$282 -> 0 | AC186: =ProjectCashflows!AC$282 -> 0 | AD186: =ProjectCashflows!AD$282 -> 0 | AE186: =ProjectCashflows!AE$282 -> 0 | AF186: =ProjectCashflows!AF$282 -> 0 | AG186: =ProjectCashflows!AG$282 -> 0 | AH186: =ProjectCashflows!AH$282 -> 0 | AI186: =ProjectCashflows!AI$282 -> 0 | AJ186: =ProjectCashflows!AJ$282 -> 0 | AK186: =ProjectCashflows!AK$282 -> 0 | AL186: =ProjectCashflows!AL$282 -> 0 | AM186: =ProjectCashflows!AM$282 -> 0 | AN186: =ProjectCashflows!AN$282 -> 0 | AO186: =ProjectCashflows!AO$282 -> 0 | AP186: =ProjectCashflows!AP$282 -> 0 | AQ186: =ProjectCashflows!AQ$282 -> 0 | AR186: =ProjectCashflows!AR$282 -> 0 | AS186: =ProjectCashflows!AS$282 -> 0 | AT186: =ProjectCashflows!AT$282 -> 0 | AU186: =ProjectCashflows!AU$282 -> 0 | AV186: =ProjectCashflows!AV$282 -> 0 | AW186: =ProjectCashflows!AW$282 -> 0 | AX186: =ProjectCashflows!AX$282 -> 0
E187: =Translate!$E$182 -> Total GHG emissions applicable for carbon tax | G187: =Translate!E$729 -> Mn t CO2 eq | I187: =SUM(K187:AX187) -> 0 | K187: =K186 * ($F184 = $F185) -> 0 | L187: =L186 * ($F184 = $F185) -> 0 | M187: 0 | N187: 0 | O187: 0 | P187: 0 | Q187: 0 | R187: 0 | S187: 0 | T187: 0 | U187: 0 | V187: 0 | W187: 0 | X187: 0 | Y187: 0 | Z187: 0 | AA187: 0 | AB187: 0 | AC187: 0 | AD187: 0 | AE187: 0 | AF187: 0 | AG187: 0 | AH187: 0 | AI187: 0 | AJ187: 0 | AK187: 0 | AL187: 0 | AM187: 0 | AN187: 0 | AO187: 0 | AP187: 0 | AQ187: 0 | AR187: 0 | AS187: 0 | AT187: 0 | AU187: 0 | AV187: 0 | AW187: 0 | AX187: 0
B189: =Translate!$E$62 -> Tax applicable
E190: =ProjectCashflows!E$48 -> Model calendar years | F190: =ProjectCashflows!F$48 -> 0 | G190: =ProjectCashflows!G$48 -> Years | H190: =ProjectCashflows!H$48 -> 0 | I190: =ProjectCashflows!I$48 -> 0 | J190: =ProjectCashflows!J$48 -> 0 | K190: =ProjectCashflows!K$48 -> 2021 | L190: =ProjectCashflows!L$48 -> 2022 | M190: =ProjectCashflows!M$48 -> 2023 | N190: =ProjectCashflows!N$48 -> 2024 | O190: =ProjectCashflows!O$48 -> 2025 | P190: =ProjectCashflows!P$48 -> 2026 | Q190: =ProjectCashflows!Q$48 -> 2027 | R190: =ProjectCashflows!R$48 -> 2028 | S190: =ProjectCashflows!S$48 -> 2029 | T190: =ProjectCashflows!T$48 -> 2030 | U190: =ProjectCashflows!U$48 -> 2031 | V190: =ProjectCashflows!V$48 -> 2032 | W190: =ProjectCashflows!W$48 -> 2033 | X190: =ProjectCashflows!X$48 -> 2034 | Y190: =ProjectCashflows!Y$48 -> 2035 | Z190: =ProjectCashflows!Z$48 -> 2036 | AA190: =ProjectCashflows!AA$48 -> 2037 | AB190: =ProjectCashflows!AB$48 -> 2038 | AC190: =ProjectCashflows!AC$48 -> 2039 | AD190: =ProjectCashflows!AD$48 -> 2040 | AE190: =ProjectCashflows!AE$48 -> 2041 | AF190: =ProjectCashflows!AF$48 -> 2042 | AG190: =ProjectCashflows!AG$48 -> 2043 | AH190: =ProjectCashflows!AH$48 -> 2044 | AI190: =ProjectCashflows!AI$48 -> 2045 | AJ190: =ProjectCashflows!AJ$48 -> 2046 | AK190: =ProjectCashflows!AK$48 -> 2047 | AL190: =ProjectCashflows!AL$48 -> 2048 | AM190: =ProjectCashflows!AM$48 -> 2049 | AN190: =ProjectCashflows!AN$48 -> 2050 | AO190: =ProjectCashflows!AO$48 -> 2051 | AP190: =ProjectCashflows!AP$48 -> 2052 | AQ190: =ProjectCashflows!AQ$48 -> 2053 | AR190: =ProjectCashflows!AR$48 -> 2054 | AS190: =ProjectCashflows!AS$48 -> 2055 | AT190: =ProjectCashflows!AT$48 -> 2056 | AU190: =ProjectCashflows!AU$48 -> 2057 | AV190: =ProjectCashflows!AV$48 -> 2058 | AW190: =ProjectCashflows!AW$48 -> 2059 | AX190: =ProjectCashflows!AX$48 -> 2060
E191: =E$27 -> Start year of carbon tax (0=from beginning) | F191: =F$27 -> 0 | G191: =G$27 -> Calendar year
E192: =E191 & " " & Translate!$E$461 -> Start year of carbon tax (0=from beginning) adjusted | F192: =IF( F191 = 0, K190, F191) -> 2021 | G192: =G191 -> Calendar year
E193: =Translate!$E$183 -> Carbon tax rate applicable | G193: =Translate!$E$586 -> Flag | I193: =SUM(K193:BH193) -> 40 | K193: =(K190 >= $F192) * 1 -> 1 | L193: =(L190 >= $F192) * 1 -> 1 | M193: 1 | N193: 1 | O193: 1 | P193: 1 | Q193: 1 | R193: 1 | S193: 1 | T193: 1 | U193: 1 | V193: 1 | W193: 1 | X193: 1 | Y193: 1 | Z193: 1 | AA193: 1 | AB193: 1 | AC193: 1 | AD193: 1 | AE193: 1 | AF193: 1 | AG193: 1 | AH193: 1 | AI193: 1 | AJ193: 1 | AK193: 1 | AL193: 1 | AM193: 1 | AN193: 1 | AO193: 1 | AP193: 1 | AQ193: 1 | AR193: 1 | AS193: 1 | AT193: 1 | AU193: 1 | AV193: 1 | AW193: 1 | AX193: 1
E194: =Translate!$E$184 -> Year of carbon tax | G194: =Translate!$E$586 -> Flag | K194: =K190 - $F192 + 1 -> 1 | L194: =L190 - $F192 + 1 -> 2 | M194: 3 | N194: 4 | O194: 5 | P194: 6 | Q194: 7 | R194: 8 | S194: 9 | T194: 10 | U194: 11 | V194: 12 | W194: 13 | X194: 14 | Y194: 15 | Z194: 16 | AA194: 17 | AB194: 18 | AC194: 19 | AD194: 20 | AE194: 21 | AF194: 22 | AG194: 23 | AH194: 24 | AI194: 25 | AJ194: 26 | AK194: 27 | AL194: 28 | AM194: 29 | AN194: 30 | AO194: 31 | AP194: 32 | AQ194: 33 | AR194: 34 | AS194: 35 | AT194: 36 | AU194: 37 | AV194: 38 | AW194: 39 | AX194: 40
B196: =Translate!$E$63 -> Tax inflation index
E197: =E$28 -> Carbon tax in real or nominal terms | F197: =F$28 -> nominal | G197: =G$28 -> Option | H197: Real, nominal; assumed nominal if empty
E198: =Translate!$E$185 & " " & Translate!$E$351 & " 1" -> Carbon tax - inflation Option 1 | F198: =Inputs!F$86 -> nominal | G198: =Translate!$E$351 -> Option
E199: =Translate!$E$185 & " " & Translate!$E$351 & " 2" -> Carbon tax - inflation Option 2 | F199: =Inputs!F$85 -> real | G199: =Translate!$E$351 -> Option
E201: =ProjectCashflows!E$48 -> Model calendar years | F201: =ProjectCashflows!F$48 -> 0 | G201: =ProjectCashflows!G$48 -> Years | H201: =ProjectCashflows!H$48 -> 0 | I201: =ProjectCashflows!I$48 -> 0 | J201: =ProjectCashflows!J$48 -> 0 | K201: =ProjectCashflows!K$48 -> 2021 | L201: =ProjectCashflows!L$48 -> 2022 | M201: =ProjectCashflows!M$48 -> 2023 | N201: =ProjectCashflows!N$48 -> 2024 | O201: =ProjectCashflows!O$48 -> 2025 | P201: =ProjectCashflows!P$48 -> 2026 | Q201: =ProjectCashflows!Q$48 -> 2027 | R201: =ProjectCashflows!R$48 -> 2028 | S201: =ProjectCashflows!S$48 -> 2029 | T201: =ProjectCashflows!T$48 -> 2030 | U201: =ProjectCashflows!U$48 -> 2031 | V201: =ProjectCashflows!V$48 -> 2032 | W201: =ProjectCashflows!W$48 -> 2033 | X201: =ProjectCashflows!X$48 -> 2034 | Y201: =ProjectCashflows!Y$48 -> 2035 | Z201: =ProjectCashflows!Z$48 -> 2036 | AA201: =ProjectCashflows!AA$48 -> 2037 | AB201: =ProjectCashflows!AB$48 -> 2038 | AC201: =ProjectCashflows!AC$48 -> 2039 | AD201: =ProjectCashflows!AD$48 -> 2040 | AE201: =ProjectCashflows!AE$48 -> 2041 | AF201: =ProjectCashflows!AF$48 -> 2042 | AG201: =ProjectCashflows!AG$48 -> 2043 | AH201: =ProjectCashflows!AH$48 -> 2044 | AI201: =ProjectCashflows!AI$48 -> 2045 | AJ201: =ProjectCashflows!AJ$48 -> 2046 | AK201: =ProjectCashflows!AK$48 -> 2047 | AL201: =ProjectCashflows!AL$48 -> 2048 | AM201: =ProjectCashflows!AM$48 -> 2049 | AN201: =ProjectCashflows!AN$48 -> 2050 | AO201: =ProjectCashflows!AO$48 -> 2051 | AP201: =ProjectCashflows!AP$48 -> 2052 | AQ201: =ProjectCashflows!AQ$48 -> 2053 | AR201: =ProjectCashflows!AR$48 -> 2054 | AS201: =ProjectCashflows!AS$48 -> 2055 | AT201: =ProjectCashflows!AT$48 -> 2056 | AU201: =ProjectCashflows!AU$48 -> 2057 | AV201: =ProjectCashflows!AV$48 -> 2058 | AW201: =ProjectCashflows!AW$48 -> 2059 | AX201: =ProjectCashflows!AX$48 -> 2060
E202: =ProjectCashflows!E$213 -> Inflation index | F202: =ProjectCashflows!F$213 -> 0 | G202: =ProjectCashflows!G$213 -> Index | H202: =ProjectCashflows!H$213 -> base year is first project year | I202: =ProjectCashflows!I$213 -> 0 | J202: =ProjectCashflows!J$213 -> 0 | K202: =ProjectCashflows!K$213 -> 1 | L202: =ProjectCashflows!L$213 -> 1.02 | M202: =ProjectCashflows!M$213 -> 1.0404 | N202: =ProjectCashflows!N$213 -> 1.061208 | O202: =ProjectCashflows!O$213 -> 1.08243216 | P202: =ProjectCashflows!P$213 -> 1.104080803 | Q202: =ProjectCashflows!Q$213 -> 1.126162419 | R202: =ProjectCashflows!R$213 -> 1.148685668 | S202: =ProjectCashflows!S$213 -> 1.171659381 | T202: =ProjectCashflows!T$213 -> 1.195092569 | U202: =ProjectCashflows!U$213 -> 1.21899442 | V202: =ProjectCashflows!V$213 -> 1.243374308 | W202: =ProjectCashflows!W$213 -> 1.268241795 | X202: =ProjectCashflows!X$213 -> 1.29360663 | Y202: =ProjectCashflows!Y$213 -> 1.319478763 | Z202: =ProjectCashflows!Z$213 -> 1.345868338 | AA202: =ProjectCashflows!AA$213 -> 1.372785705 | AB202: =ProjectCashflows!AB$213 -> 1.400241419 | AC202: =ProjectCashflows!AC$213 -> 1.428246248 | AD202: =ProjectCashflows!AD$213 -> 1.456811173 | AE202: =ProjectCashflows!AE$213 -> 1.485947396 | AF202: =ProjectCashflows!AF$213 -> 1.515666344 | AG202: =ProjectCashflows!AG$213 -> 1 | AH202: =ProjectCashflows!AH$213 -> 1 | AI202: =ProjectCashflows!AI$213 -> 1 | AJ202: =ProjectCashflows!AJ$213 -> 1 | AK202: =ProjectCashflows!AK$213 -> 1 | AL202: =ProjectCashflows!AL$213 -> 1 | AM202: =ProjectCashflows!AM$213 -> 1 | AN202: =ProjectCashflows!AN$213 -> 1 | AO202: =ProjectCashflows!AO$213 -> 1 | AP202: =ProjectCashflows!AP$213 -> 1 | AQ202: =ProjectCashflows!AQ$213 -> 1 | AR202: =ProjectCashflows!AR$213 -> 1 | AS202: =ProjectCashflows!AS$213 -> 1 | AT202: =ProjectCashflows!AT$213 -> 1 | AU202: =ProjectCashflows!AU$213 -> 1 | AV202: =ProjectCashflows!AV$213 -> 1 | AW202: =ProjectCashflows!AW$213 -> 1 | AX202: =ProjectCashflows!AX$213 -> 1
E204: =Inputs!E$45 -> Inflation rate | F204: =Inputs!F$45 -> 0.02 | G204: =Inputs!G$45 -> % | H204: =Translate!$E$303 -> assume this is the inflation rate if the carbon tax start year is before the model start year
E205: =Translate!$E$186 -> Inflation since carbon tax start year | F205: =MIN( 1, 1 / (1 + F204) ^ (K201 - F192)) -> 1 | G205: =Translate!$E$608 -> Index
E206: =E202 & " " & Translate!$E$462 -> Inflation index in first tax year | F206: =INDEX( K202:AX202, MATCH( $F192, K201:AX201, 0)) -> 1 | G206: =Translate!$E$608 -> Index
E208: =Translate!$E$187 -> Carbon tax inflation index | G208: =Translate!$E$608 -> Index | K208: =K202 / IF( $F192 < $K201, $F205, $F206) -> 1 | L208: =L202 / IF( $F192 < $K201, $F205, $F206) -> 1.02 | M208: 1.0404 | N208: 1.061208 | O208: 1.08243216 | P208: 1.104080803 | Q208: 1.126162419 | R208: 1.148685668 | S208: 1.171659381 | T208: 1.195092569 | U208: 1.21899442 | V208: 1.243374308 | W208: 1.268241795 | X208: 1.29360663 | Y208: 1.319478763 | Z208: 1.345868338 | AA208: 1.372785705 | AB208: 1.400241419 | AC208: 1.428246248 | AD208: 1.456811173 | AE208: 1.485947396 | AF208: 1.515666344 | AG208: 1 | AH208: 1 | AI208: 1 | AJ208: 1 | AK208: 1 | AL208: 1 | AM208: 1 | AN208: 1 | AO208: 1 | AP208: 1 | AQ208: 1 | AR208: 1 | AS208: 1 | AT208: 1 | AU208: 1 | AV208: 1 | AW208: 1 | AX208: 1
E209: =E208 & " " & Translate!$E$465 -> Carbon tax inflation index applicable | G209: =G208 -> Index | K209: =IF( $F197 = $F199, K208, 1) -> 1 | L209: 1 | M209: 1 | N209: 1 | O209: 1 | P209: 1 | Q209: 1 | R209: 1 | S209: 1 | T209: 1 | U209: 1 | V209: 1 | W209: 1 | X209: 1 | Y209: 1 | Z209: 1 | AA209: 1 | AB209: 1 | AC209: 1 | AD209: 1 | AE209: 1 | AF209: 1 | AG209: 1 | AH209: 1 | AI209: 1 | AJ209: 1 | AK209: 1 | AL209: 1 | AM209: 1 | AN209: 1 | AO209: 1 | AP209: 1 | AQ209: 1 | AR209: 1 | AS209: 1 | AT209: 1 | AU209: 1 | AV209: 1 | AW209: 1 | AX209: 1
B211: =Translate!$E$64 -> Tax rate - percentage
E212: =E194 -> Year of carbon tax | F212: =F194 -> 0 | G212: Flag | H212: 0 | I212: 0 | J212: 0 | K212: 1 | L212: 2 | M212: 3 | N212: 4 | O212: 5 | P212: 6 | Q212: 7 | R212: 8 | S212: 9 | T212: 10 | U212: 11 | V212: 12 | W212: 13 | X212: 14 | Y212: 15 | Z212: 16 | AA212: 17 | AB212: 18 | AC212: 19 | AD212: 20 | AE212: 21 | AF212: 22 | AG212: 23 | AH212: 24 | AI212: 25 | AJ212: 26 | AK212: 27 | AL212: 28 | AM212: 29 | AN212: 30 | AO212: 31 | AP212: 32 | AQ212: 33 | AR212: 34 | AS212: 35 | AT212: 36 | AU212: 37 | AV212: 38 | AW212: 39 | AX212: 40
E213: =E$26 -> Tax per ton of CO2 eq emitted in start year | F213: =F$26 -> 20 | G213: =G$26 -> US$ / t CO2 eq
E214: =E$30 -> Percentage - annual increase above inflation | F214: =F$30 -> 0 | G214: =G$30 -> %
E215: =Translate!$E$188 -> Carbon tax - percentage method; before inflation adjustment | G215: =Translate!E$730 -> US$ / t CO2 eq | K215: =$F213 * (1 + $F214) ^ (K212 - 1) * (K212 > 0) -> 20 | L215: 20 | M215: 20 | N215: 20 | O215: 20 | P215: 20 | Q215: 20 | R215: 20 | S215: 20 | T215: 20 | U215: 20 | V215: 20 | W215: 20 | X215: 20 | Y215: 20 | Z215: 20 | AA215: 20 | AB215: 20 | AC215: 20 | AD215: 20 | AE215: 20 | AF215: 20 | AG215: 20 | AH215: 20 | AI215: 20 | AJ215: 20 | AK215: 20 | AL215: 20 | AM215: 20 | AN215: 20 | AO215: 20 | AP215: 20 | AQ215: 20 | AR215: 20 | AS215: 20 | AT215: 20 | AU215: 20 | AV215: 20 | AW215: 20 | AX215: 20
B217: =Translate!$E$65 -> Tax rate - target year
E218: =E192 -> Start year of carbon tax (0=from beginning) adjusted | F218: =F192 -> 2021 | G218: =G192 -> Calendar year
E219: =E$32 -> Target year - year in which tax reaches target level | F219: =F$32 -> 0 | G219: =G$32 -> Calendar year
E220: =E219 & " " & Translate!$E$461 -> Target year - year in which tax reaches target level adjusted | F220: =IF( F219 = 0, K190, F219) -> 2021 | G220: =G219 -> Calendar year
E221: =Translate!$E$189 -> Years of carbon tax until it reaches target level | F221: =F220 - F218 -> 0 | G221: =Translate!E$358 -> Years
E223: =E$26 -> Tax per ton of CO2 eq emitted in start year | F223: =F$26 -> 20 | G223: =G$26 -> US$ / t CO2 eq
E224: =E$31 -> Target year - tax per CO2 eq emitted in future year | F224: =F$31 -> 0 | G224: =G$31 -> US$ / t CO2 eq
E225: =Translate!$E$190 -> Change in carbon tax between start and future year | F225: =F224 - F223 -> -20 | G225: =G224 -> US$ / t CO2 eq
E227: =E225 -> Change in carbon tax between start and future year | F227: =F225 -> -20 | G227: =G225 -> US$ / t CO2 eq
E228: =E221 -> Years of carbon tax until it reaches target level | F228: =F221 -> 0 | G228: =G221 -> Years
E229: =Translate!$E$191 -> Annual increase in carbon tax | F229: =IF( F228 = 0, 0, F227 / F228) -> 0 | G229: =G227 -> US$ / t CO2 eq
E231: =Translate!$E$183 -> Carbon tax rate applicable | F231: =F193 -> 0 | G231: Flag | H231: 0 | I231: 40 | J231: 0 | K231: 1 | L231: 1 | M231: 1 | N231: 1 | O231: 1 | P231: 1 | Q231: 1 | R231: 1 | S231: 1 | T231: 1 | U231: 1 | V231: 1 | W231: 1 | X231: 1 | Y231: 1 | Z231: 1 | AA231: 1 | AB231: 1 | AC231: 1 | AD231: 1 | AE231: 1 | AF231: 1 | AG231: 1 | AH231: 1 | AI231: 1 | AJ231: 1 | AK231: 1 | AL231: 1 | AM231: 1 | AN231: 1 | AO231: 1 | AP231: 1 | AQ231: 1 | AR231: 1 | AS231: 1 | AT231: 1 | AU231: 1 | AV231: 1 | AW231: 1 | AX231: 1
E232: Year of carbon tax | F232: 0 | G232: Flag | H232: 0 | I232: 0 | J232: 0 | K232: 1 | L232: 2 | M232: 3 | N232: 4 | O232: 5 | P232: 6 | Q232: 7 | R232: 8 | S232: 9 | T232: 10 | U232: 11 | V232: 12 | W232: 13 | X232: 14 | Y232: 15 | Z232: 16 | AA232: 17 | AB232: 18 | AC232: 19 | AD232: 20 | AE232: 21 | AF232: 22 | AG232: 23 | AH232: 24 | AI232: 25 | AJ232: 26 | AK232: 27 | AL232: 28 | AM232: 29 | AN232: 30 | AO232: 31 | AP232: 32 | AQ232: 33 | AR232: 34 | AS232: 35 | AT232: 36 | AU232: 37 | AV232: 38 | AW232: 39 | AX232: 40
E233: =Translate!$E$192 -> Carbon tax - target level/year; before inflation adjustment | G233: =Translate!E$730 -> US$ / t CO2 eq | K233: =IF( K232 > $F221, $F224, $F223 + (K232 - 1) * $F229) * K231 -> 0 | L233: =IF( L232 > $F221, $F224, $F223 + (L232 - 1) * $F229) * L231 -> 0 | M233: 0 | N233: 0 | O233: 0 | P233: 0 | Q233: 0 | R233: 0 | S233: 0 | T233: =IF( T232 > $F221, $F224, $F223 + (T232 - 1) * $F229) * T231 -> 0 | U233: 0 | V233: 0 | W233: 0 | X233: 0 | Y233: 0 | Z233: 0 | AA233: 0 | AB233: 0 | AC233: 0 | AD233: 0 | AE233: 0 | AF233: 0 | AG233: 0 | AH233: 0 | AI233: 0 | AJ233: 0 | AK233: 0 | AL233: 0 | AM233: 0 | AN233: 0 | AO233: 0 | AP233: 0 | AQ233: 0 | AR233: 0 | AS233: 0 | AT233: 0 | AU233: 0 | AV233: 0 | AW233: 0 | AX233: 0
B235: =Translate!$E$66 -> Tax rate - select
E236: =E$29 -> Method to change carbon tax over time | F236: =F$29 -> Percentage | G236: =G$29 -> Option | H236: =H$29 -> Percentage, target year; assumed percentage if empty
E237: =Translate!$E$26 & " " & Translate!$E$351 & " 1" -> Carbon tax Option 1 | F237: =Translate!E$557 -> Percentage | G237: =Translate!$E$351 -> Option
E238: =Translate!$E$26 & " " & Translate!$E$351 & " 2" -> Carbon tax Option 2 | F238: =Translate!E$558 -> TargetYear | G238: =Translate!$E$351 -> Option
E240: =E215 -> Carbon tax - percentage method; before inflation adjustment | F240: 0 | G240: US$ / t CO2 eq | H240: 0 | I240: 0 | J240: 0 | K240: 20 | L240: 20 | M240: 20 | N240: 20 | O240: 20 | P240: 20 | Q240: 20 | R240: 20 | S240: 20 | T240: 20 | U240: 20 | V240: 20 | W240: 20 | X240: 20 | Y240: 20 | Z240: 20 | AA240: 20 | AB240: 20 | AC240: 20 | AD240: 20 | AE240: 20 | AF240: 20 | AG240: 20 | AH240: 20 | AI240: 20 | AJ240: 20 | AK240: 20 | AL240: 20 | AM240: 20 | AN240: 20 | AO240: 20 | AP240: 20 | AQ240: 20 | AR240: 20 | AS240: 20 | AT240: 20 | AU240: 20 | AV240: 20 | AW240: 20 | AX240: 20
E241: =E233 -> Carbon tax - target level/year; before inflation adjustment | F241: 0 | G241: US$ / t CO2 eq | H241: 0 | I241: 0 | J241: 0 | K241: 0 | L241: 0 | M241: 0 | N241: 0 | O241: 0 | P241: 0 | Q241: 0 | R241: 0 | S241: 0 | T241: 0 | U241: 0 | V241: 0 | W241: 0 | X241: 0 | Y241: 0 | Z241: 0 | AA241: 0 | AB241: 0 | AC241: 0 | AD241: 0 | AE241: 0 | AF241: 0 | AG241: 0 | AH241: 0 | AI241: 0 | AJ241: 0 | AK241: 0 | AL241: 0 | AM241: 0 | AN241: 0 | AO241: 0 | AP241: 0 | AQ241: 0 | AR241: 0 | AS241: 0 | AT241: 0 | AU241: 0 | AV241: 0 | AW241: 0 | AX241: 0
E243: =IF( $F236 = $F238, E241, E240) -> Carbon tax - percentage method; before inflation adjustment | G243: =Translate!E$730 -> US$ / t CO2 eq | K243: =IF( $F236 = $F238, K241, K240) -> 20 | L243: 20 | M243: 20 | N243: 20 | O243: 20 | P243: 20 | Q243: 20 | R243: 20 | S243: 20 | T243: 20 | U243: 20 | V243: 20 | W243: 20 | X243: 20 | Y243: 20 | Z243: 20 | AA243: 20 | AB243: 20 | AC243: 20 | AD243: 20 | AE243: 20 | AF243: 20 | AG243: 20 | AH243: 20 | AI243: 20 | AJ243: 20 | AK243: 20 | AL243: 20 | AM243: 20 | AN243: 20 | AO243: 20 | AP243: 20 | AQ243: 20 | AR243: 20 | AS243: 20 | AT243: 20 | AU243: 20 | AV243: 20 | AW243: 20 | AX243: 20
E244: =E209 -> Carbon tax inflation index applicable | F244: 0 | G244: Index | H244: 0 | I244: 0 | J244: 0 | K244: 1 | L244: 1 | M244: 1 | N244: 1 | O244: 1 | P244: 1 | Q244: 1 | R244: 1 | S244: 1 | T244: 1 | U244: 1 | V244: 1 | W244: 1 | X244: 1 | Y244: 1 | Z244: 1 | AA244: 1 | AB244: 1 | AC244: 1 | AD244: 1 | AE244: 1 | AF244: 1 | AG244: 1 | AH244: 1 | AI244: 1 | AJ244: 1 | AK244: 1 | AL244: 1 | AM244: 1 | AN244: 1 | AO244: 1 | AP244: 1 | AQ244: 1 | AR244: 1 | AS244: 1 | AT244: 1 | AU244: 1 | AV244: 1 | AW244: 1 | AX244: 1
... 435 more rows

Sheet ProjectCashflows
A1: =RIGHT( CELL("filename",$A$1), LEN( CELL("filename",$A$1)) - SEARCH("]", CELL("filename",$A$1))) ->  | K1: =ProjectCashflows!K$48 -> 2021 | L1: =ProjectCashflows!L$48 -> 2022 | M1: =ProjectCashflows!M$48 -> 2023 | N1: =ProjectCashflows!N$48 -> 2024 | O1: =ProjectCashflows!O$48 -> 2025 | P1: =ProjectCashflows!P$48 -> 2026 | Q1: =ProjectCashflows!Q$48 -> 2027 | R1: =ProjectCashflows!R$48 -> 2028 | S1: =ProjectCashflows!S$48 -> 2029 | T1: =ProjectCashflows!T$48 -> 2030 | U1: =ProjectCashflows!U$48 -> 2031 | V1: =ProjectCashflows!V$48 -> 2032 | W1: =ProjectCashflows!W$48 -> 2033 | X1: =ProjectCashflows!X$48 -> 2034 | Y1: =ProjectCashflows!Y$48 -> 2035 | Z1: =ProjectCashflows!Z$48 -> 2036 | AA1: =ProjectCashflows!AA$48 -> 2037 | AB1: =ProjectCashflows!AB$48 -> 2038 | AC1: =ProjectCashflows!AC$48 -> 2039 | AD1: =ProjectCashflows!AD$48 -> 2040 | AE1: =ProjectCashflows!AE$48 -> 2041 | AF1: =ProjectCashflows!AF$48 -> 2042 | AG1: =ProjectCashflows!AG$48 -> 2043 | AH1: =ProjectCashflows!AH$48 -> 2044 | AI1: =ProjectCashflows!AI$48 -> 2045 | AJ1: =ProjectCashflows!AJ$48 -> 2046 | AK1: =ProjectCashflows!AK$48 -> 2047 | AL1: =ProjectCashflows!AL$48 -> 2048 | AM1: =ProjectCashflows!AM$48 -> 2049 | AN1: =ProjectCashflows!AN$48 -> 2050 | AO1: =ProjectCashflows!AO$48 -> 2051 | AP1: =ProjectCashflows!AP$48 -> 2052 | AQ1: =ProjectCashflows!AQ$48 -> 2053 | AR1: =ProjectCashflows!AR$48 -> 2054 | AS1: =ProjectCashflows!AS$48 -> 2055 | AT1: =ProjectCashflows!AT$48 -> 2056 | AU1: =ProjectCashflows!AU$48 -> 2057 | AV1: =ProjectCashflows!AV$48 -> 2058 | AW1: =ProjectCashflows!AW$48 -> 2059 | AX1: =ProjectCashflows!AX$48 -> 2060
E2: =Translate!$E$391 -> Row description | F2: =Translate!E$554 -> Constant | G2: =Translate!E$445 -> Units | H2: =Translate!$E$280 -> Comments | I2: =Translate!E$19 -> Total
F3: =ReadMe!$D$7 -> 0 | G3: =ReadMe!$E$7 -> Checks | K3: =Track!$F$1 -> 0 | L3: =Track!$G$1 -> Track changes
A4: =Translate!$E$367 -> Data for selected project
E6: =Inputs!E$12 -> Selected project | F6: =Inputs!F$12 -> Gold(2MMoz) | G6: =Inputs!G$12 -> Option
B8: =Translate!$E$374 -> Raw project data
E9: =Translate!$E$392 -> Mineral | F9: =INDIRECT( ADDRESS( ROW(), COLUMN(),,, ProjectCashflows!$F$6)) -> Gold | G9: =Translate!E$585 -> Label | K9: =Translate!E$352 -> Do not change start-row of this block, unless all project examples changed accordingly
E10: =Translate!$E$393 -> Mineral units | F10: =INDIRECT( ADDRESS( ROW(), COLUMN(),,, ProjectCashflows!$F$6)) -> ounce | G10: =Translate!E$445 -> Units
E12: =F$9 & " " & Translate!$E$437 -> Gold sales | G12: ="000 " & F10 -> 000 ounce | I12: =SUM(K12:AX12) -> 2000 | K12: =INDIRECT( ADDRESS( ROW(), COLUMN(),,, ProjectCashflows!$F$6)) -> 0 | L12: =INDIRECT( ADDRESS( ROW(), COLUMN(),,, ProjectCashflows!$F$6)) -> 0 | M12: =INDIRECT( ADDRESS( ROW(), COLUMN(),,, ProjectCashflows!$F$6)) -> 0 | N12: =INDIRECT( ADDRESS( ROW(), COLUMN(),,, ProjectCashflows!$F$6)) -> 0 | O12: =INDIRECT( ADDRESS( ROW(), COLUMN(),,, ProjectCashflows!$F$6)) -> 10 | P12: =INDIRECT( ADDRESS( ROW(), COLUMN(),,, ProjectCashflows!$F$6)) -> 75 | Q12: =INDIRECT( ADDRESS( ROW(), COLUMN(),,, ProjectCashflows!$F$6)) -> 150 | R12: =INDIRECT( ADDRESS( ROW(), COLUMN(),,, ProjectCashflows!$F$6)) -> 150 | S12: =INDIRECT( ADDRESS( ROW(), COLUMN(),,, ProjectCashflows!$F$6)) -> 150 | T12: =INDIRECT( ADDRESS( ROW(), COLUMN(),,, ProjectCashflows!$F$6)) -> 150 | U12: =INDIRECT( ADDRESS( ROW(), COLUMN(),,, ProjectCashflows!$F$6)) -> 150 | V12: =INDIRECT( ADDRESS( ROW(), COLUMN(),,, ProjectCashflows!$F$6)) -> 150 | W12: =INDIRECT( ADDRESS( ROW(), COLUMN(),,, ProjectCashflows!$F$6)) -> 150 | X12: =INDIRECT( ADDRESS( ROW(), COLUMN(),,, ProjectCashflows!$F$6)) -> 150 | Y12: =INDIRECT( ADDRESS( ROW(), COLUMN(),,, ProjectCashflows!$F$6)) -> 150 | Z12: =INDIRECT( ADDRESS( ROW(), COLUMN(),,, ProjectCashflows!$F$6)) -> 150 | AA12: =INDIRECT( ADDRESS( ROW(), COLUMN(),,, ProjectCashflows!$F$6)) -> 125 | AB12: =INDIRECT( ADDRESS( ROW(), COLUMN(),,, ProjectCashflows!$F$6)) -> 100 | AC12: =INDIRECT( ADDRESS( ROW(), COLUMN(),,, ProjectCashflows!$F$6)) -> 75 | AD12: =INDIRECT( ADDRESS( ROW(), COLUMN(),,, ProjectCashflows!$F$6)) -> 65 | AE12: =INDIRECT( ADDRESS( ROW(), COLUMN(),,, ProjectCashflows!$F$6)) -> 50 | AF12: =INDIRECT( ADDRESS( ROW(), COLUMN(),,, ProjectCashflows!$F$6)) -> 0 | AG12: =INDIRECT( ADDRESS( ROW(), COLUMN(),,, ProjectCashflows!$F$6)) -> 0 | AH12: =INDIRECT( ADDRESS( ROW(), COLUMN(),,, ProjectCashflows!$F$6)) -> 0 | AI12: =INDIRECT( ADDRESS( ROW(), COLUMN(),,, ProjectCashflows!$F$6)) -> 0 | AJ12: =INDIRECT( ADDRESS( ROW(), COLUMN(),,, ProjectCashflows!$F$6)) -> 0 | AK12: =INDIRECT( ADDRESS( ROW(), COLUMN(),,, ProjectCashflows!$F$6)) -> 0 | AL12: =INDIRECT( ADDRESS( ROW(), COLUMN(),,, ProjectCashflows!$F$6)) -> 0 | AM12: =INDIRECT( ADDRESS( ROW(), COLUMN(),,, ProjectCashflows!$F$6)) -> 0 | AN12: =INDIRECT( ADDRESS( ROW(), COLUMN(),,, ProjectCashflows!$F$6)) -> 0 | AO12: =INDIRECT( ADDRESS( ROW(), COLUMN(),,, ProjectCashflows!$F$6)) -> 0 | AP12: =INDIRECT( ADDRESS( ROW(), COLUMN(),,, ProjectCashflows!$F$6)) -> 0 | AQ12: =INDIRECT( ADDRESS( ROW(), COLUMN(),,, ProjectCashflows!$F$6)) -> 0 | AR12: =INDIRECT( ADDRESS( ROW(), COLUMN(),,, ProjectCashflows!$F$6)) -> 0 | AS12: =INDIRECT( ADDRESS( ROW(), COLUMN(),,, ProjectCashflows!$F$6)) -> 0 | AT12: =INDIRECT( ADDRESS( ROW(), COLUMN(),,, ProjectCashflows!$F$6)) -> 0 | AU12: =INDIRECT( ADDRESS( ROW(), COLUMN(),,, ProjectCashflows!$F$6)) -> 0 | AV12: =INDIRECT( ADDRESS( ROW(), COLUMN(),,, ProjectCashflows!$F$6)) -> 0 | AW12: =INDIRECT( ADDRESS( ROW(), COLUMN(),,, ProjectCashflows!$F$6)) -> 0 | AX12: =INDIRECT( ADDRESS( ROW(), COLUMN(),,, ProjectCashflows!$F$6)) -> 0
E14: =Translate!$E$394 -> Transport costs post-fiscal point | G14: =Inputs!F$53 -> US$ mn 2021 | I14: =SUM(K14:AX14) -> 50 | K14: =INDIRECT( ADDRESS( ROW(), COLUMN(),,, ProjectCashflows!$F$6)) -> 0 | L14: =INDIRECT( ADDRESS( ROW(), COLUMN(),,, ProjectCashflows!$F$6)) -> 0 | M14: =INDIRECT( ADDRESS( ROW(), COLUMN(),,, ProjectCashflows!$F$6)) -> 0 | N14: =INDIRECT( ADDRESS( ROW(), COLUMN(),,, ProjectCashflows!$F$6)) -> 0 | O14: =INDIRECT( ADDRESS( ROW(), COLUMN(),,, ProjectCashflows!$F$6)) -> 0.25 | P14: =INDIRECT( ADDRESS( ROW(), COLUMN(),,, ProjectCashflows!$F$6)) -> 1.875 | Q14: =INDIRECT( ADDRESS( ROW(), COLUMN(),,, ProjectCashflows!$F$6)) -> 3.75 | R14: =INDIRECT( ADDRESS( ROW(), COLUMN(),,, ProjectCashflows!$F$6)) -> 3.75 | S14: =INDIRECT( ADDRESS( ROW(), COLUMN(),,, ProjectCashflows!$F$6)) -> 3.75 | T14: =INDIRECT( ADDRESS( ROW(), COLUMN(),,, ProjectCashflows!$F$6)) -> 3.75 | U14: =INDIRECT( ADDRESS( ROW(), COLUMN(),,, ProjectCashflows!$F$6)) -> 3.75 | V14: =INDIRECT( ADDRESS( ROW(), COLUMN(),,, ProjectCashflows!$F$6)) -> 3.75 | W14: =INDIRECT( ADDRESS( ROW(), COLUMN(),,, ProjectCashflows!$F$6)) -> 3.75 | X14: =INDIRECT( ADDRESS( ROW(), COLUMN(),,, ProjectCashflows!$F$6)) -> 3.75 | Y14: =INDIRECT( ADDRESS( ROW(), COLUMN(),,, ProjectCashflows!$F$6)) -> 3.75 | Z14: =INDIRECT( ADDRESS( ROW(), COLUMN(),,, ProjectCashflows!$F$6)) -> 3.75 | AA14: =INDIRECT( ADDRESS( ROW(), COLUMN(),,, ProjectCashflows!$F$6)) -> 3.125 | AB14: =INDIRECT( ADDRESS( ROW(), COLUMN(),,, ProjectCashflows!$F$6)) -> 2.5 | AC14: =INDIRECT( ADDRESS( ROW(), COLUMN(),,, ProjectCashflows!$F$6)) -> 1.875 | AD14: =INDIRECT( ADDRESS( ROW(), COLUMN(),,, ProjectCashflows!$F$6)) -> 1.625 | AE14: =INDIRECT( ADDRESS( ROW(), COLUMN(),,, ProjectCashflows!$F$6)) -> 1.25 | AF14: =INDIRECT( ADDRESS( ROW(), COLUMN(),,, ProjectCashflows!$F$6)) -> 0 | AG14: =INDIRECT( ADDRESS( ROW(), COLUMN(),,, ProjectCashflows!$F$6)) -> 0 | AH14: =INDIRECT( ADDRESS( ROW(), COLUMN(),,, ProjectCashflows!$F$6)) -> 0 | AI14: =INDIRECT( ADDRESS( ROW(), COLUMN(),,, ProjectCashflows!$F$6)) -> 0 | AJ14: =INDIRECT( ADDRESS( ROW(), COLUMN(),,, ProjectCashflows!$F$6)) -> 0 | AK14: =INDIRECT( ADDRESS( ROW(), COLUMN(),,, ProjectCashflows!$F$6)) -> 0 | AL14: =INDIRECT( ADDRESS( ROW(), COLUMN(),,, ProjectCashflows!$F$6)) -> 0 | AM14: =INDIRECT( ADDRESS( ROW(), COLUMN(),,, ProjectCashflows!$F$6)) -> 0 | AN14: =INDIRECT( ADDRESS( ROW(), COLUMN(),,, ProjectCashflows!$F$6)) -> 0 | AO14: =INDIRECT( ADDRESS( ROW(), COLUMN(),,, ProjectCashflows!$F$6)) -> 0 | AP14: =INDIRECT( ADDRESS( ROW(), COLUMN(),,, ProjectCashflows!$F$6)) -> 0 | AQ14: =INDIRECT( ADDRESS( ROW(), COLUMN(),,, ProjectCashflows!$F$6)) -> 0 | AR14: =INDIRECT( ADDRESS( ROW(), COLUMN(),,, ProjectCashflows!$F$6)) -> 0 | AS14: =INDIRECT( ADDRESS( ROW(), COLUMN(),,, ProjectCashflows!$F$6)) -> 0 | AT14: =INDIRECT( ADDRESS( ROW(), COLUMN(),,, ProjectCashflows!$F$6)) -> 0 | AU14: =INDIRECT( ADDRESS( ROW(), COLUMN(),,, ProjectCashflows!$F$6)) -> 0 | AV14: =INDIRECT( ADDRESS( ROW(), COLUMN(),,, ProjectCashflows!$F$6)) -> 0 | AW14: =INDIRECT( ADDRESS( ROW(), COLUMN(),,, ProjectCashflows!$F$6)) -> 0 | AX14: =INDIRECT( ADDRESS( ROW(), COLUMN(),,, ProjectCashflows!$F$6)) -> 0
E15: =Translate!$E$395 -> Exploration costs | G15: =Inputs!F$53 -> US$ mn 2021 | I15: 30 | K15: =INDIRECT( ADDRESS( ROW(), COLUMN(),,, ProjectCashflows!$F$6)) -> 10 | L15: =INDIRECT( ADDRESS( ROW(), COLUMN(),,, ProjectCashflows!$F$6)) -> 10 | M15: =INDIRECT( ADDRESS( ROW(), COLUMN(),,, ProjectCashflows!$F$6)) -> 10 | N15: =INDIRECT( ADDRESS( ROW(), COLUMN(),,, ProjectCashflows!$F$6)) -> 0 | O15: =INDIRECT( ADDRESS( ROW(), COLUMN(),,, ProjectCashflows!$F$6)) -> 0 | P15: =INDIRECT( ADDRESS( ROW(), COLUMN(),,, ProjectCashflows!$F$6)) -> 0 | Q15: =INDIRECT( ADDRESS( ROW(), COLUMN(),,, ProjectCashflows!$F$6)) -> 0 | R15: =INDIRECT( ADDRESS( ROW(), COLUMN(),,, ProjectCashflows!$F$6)) -> 0 | S15: =INDIRECT( ADDRESS( ROW(), COLUMN(),,, ProjectCashflows!$F$6)) -> 0 | T15: =INDIRECT( ADDRESS( ROW(), COLUMN(),,, ProjectCashflows!$F$6)) -> 0 | U15: =INDIRECT( ADDRESS( ROW(), COLUMN(),,, ProjectCashflows!$F$6)) -> 0 | V15: =INDIRECT( ADDRESS( ROW(), COLUMN(),,, ProjectCashflows!$F$6)) -> 0 | W15: =INDIRECT( ADDRESS( ROW(), COLUMN(),,, ProjectCashflows!$F$6)) -> 0 | X15: =INDIRECT( ADDRESS( ROW(), COLUMN(),,, ProjectCashflows!$F$6)) -> 0 | Y15: =INDIRECT( ADDRESS( ROW(), COLUMN(),,, ProjectCashflows!$F$6)) -> 0 | Z15: =INDIRECT( ADDRESS( ROW(), COLUMN(),,, ProjectCashflows!$F$6)) -> 0 | AA15: =INDIRECT( ADDRESS( ROW(), COLUMN(),,, ProjectCashflows!$F$6)) -> 0 | AB15: =INDIRECT( ADDRESS( ROW(), COLUMN(),,, ProjectCashflows!$F$6)) -> 0 | AC15: =INDIRECT( ADDRESS( ROW(), COLUMN(),,, ProjectCashflows!$F$6)) -> 0 | AD15: =INDIRECT( ADDRESS( ROW(), COLUMN(),,, ProjectCashflows!$F$6)) -> 0 | AE15: =INDIRECT( ADDRESS( ROW(), COLUMN(),,, ProjectCashflows!$F$6)) -> 0 | AF15: =INDIRECT( ADDRESS( ROW(), COLUMN(),,, ProjectCashflows!$F$6)) -> 0 | AG15: =INDIRECT( ADDRESS( ROW(), COLUMN(),,, ProjectCashflows!$F$6)) -> 0 | AH15: =INDIRECT( ADDRESS( ROW(), COLUMN(),,, ProjectCashflows!$F$6)) -> 0 | AI15: =INDIRECT( ADDRESS( ROW(), COLUMN(),,, ProjectCashflows!$F$6)) -> 0 | AJ15: =INDIRECT( ADDRESS( ROW(), COLUMN(),,, ProjectCashflows!$F$6)) -> 0 | AK15: =INDIRECT( ADDRESS( ROW(), COLUMN(),,, ProjectCashflows!$F$6)) -> 0 | AL15: =INDIRECT( ADDRESS( ROW(), COLUMN(),,, ProjectCashflows!$F$6)) -> 0 | AM15: =INDIRECT( ADDRESS( ROW(), COLUMN(),,, ProjectCashflows!$F$6)) -> 0 | AN15: =INDIRECT( ADDRESS( ROW(), COLUMN(),,, ProjectCashflows!$F$6)) -> 0 | AO15: =INDIRECT( ADDRESS( ROW(), COLUMN(),,, ProjectCashflows!$F$6)) -> 0 | AP15: =INDIRECT( ADDRESS( ROW(), COLUMN(),,, ProjectCashflows!$F$6)) -> 0 | AQ15: =INDIRECT( ADDRESS( ROW(), COLUMN(),,, ProjectCashflows!$F$6)) -> 0 | AR15: =INDIRECT( ADDRESS( ROW(), COLUMN(),,, ProjectCashflows!$F$6)) -> 0 | AS15: =INDIRECT( ADDRESS( ROW(), COLUMN(),,, ProjectCashflows!$F$6)) -> 0 | AT15: =INDIRECT( ADDRESS( ROW(), COLUMN(),,, ProjectCashflows!$F$6)) -> 0 | AU15: =INDIRECT( ADDRESS( ROW(), COLUMN(),,, ProjectCashflows!$F$6)) -> 0 | AV15: =INDIRECT( ADDRESS( ROW(), COLUMN(),,, ProjectCashflows!$F$6)) -> 0 | AW15: =INDIRECT( ADDRESS( ROW(), COLUMN(),,, ProjectCashflows!$F$6)) -> 0 | AX15: =INDIRECT( ADDRESS( ROW(), COLUMN(),,, ProjectCashflows!$F$6)) -> 0
E16: =Translate!$E$396 -> Development costs | G16: =Inputs!F$53 -> US$ mn 2021 | I16: 400 | K16: =INDIRECT( ADDRESS( ROW(), COLUMN(),,, ProjectCashflows!$F$6)) -> 0 | L16: =INDIRECT( ADDRESS( ROW(), COLUMN(),,, ProjectCashflows!$F$6)) -> 0 | M16: =INDIRECT( ADDRESS( ROW(), COLUMN(),,, ProjectCashflows!$F$6)) -> 0 | N16: =INDIRECT( ADDRESS( ROW(), COLUMN(),,, ProjectCashflows!$F$6)) -> 50 | O16: =INDIRECT( ADDRESS( ROW(), COLUMN(),,, ProjectCashflows!$F$6)) -> 250 | P16: =INDIRECT( ADDRESS( ROW(), COLUMN(),,, ProjectCashflows!$F$6)) -> 100 | Q16: =INDIRECT( ADDRESS( ROW(), COLUMN(),,, ProjectCashflows!$F$6)) -> 0 | R16: =INDIRECT( ADDRESS( ROW(), COLUMN(),,, ProjectCashflows!$F$6)) -> 0 | S16: =INDIRECT( ADDRESS( ROW(), COLUMN(),,, ProjectCashflows!$F$6)) -> 0 | T16: =INDIRECT( ADDRESS( ROW(), COLUMN(),,, ProjectCashflows!$F$6)) -> 0 | U16: =INDIRECT( ADDRESS( ROW(), COLUMN(),,, ProjectCashflows!$F$6)) -> 0 | V16: =INDIRECT( ADDRESS( ROW(), COLUMN(),,, ProjectCashflows!$F$6)) -> 0 | W16: =INDIRECT( ADDRESS( ROW(), COLUMN(),,, ProjectCashflows!$F$6)) -> 0 | X16: =INDIRECT( ADDRESS( ROW(), COLUMN(),,, ProjectCashflows!$F$6)) -> 0 | Y16: =INDIRECT( ADDRESS( ROW(), COLUMN(),,, ProjectCashflows!$F$6)) -> 0 | Z16: =INDIRECT( ADDRESS( ROW(), COLUMN(),,, ProjectCashflows!$F$6)) -> 0 | AA16: =INDIRECT( ADDRESS( ROW(), COLUMN(),,, ProjectCashflows!$F$6)) -> 0 | AB16: =INDIRECT( ADDRESS( ROW(), COLUMN(),,, ProjectCashflows!$F$6)) -> 0 | AC16: =INDIRECT( ADDRESS( ROW(), COLUMN(),,, ProjectCashflows!$F$6)) -> 0 | AD16: =INDIRECT( ADDRESS( ROW(), COLUMN(),,, ProjectCashflows!$F$6)) -> 0 | AE16: =INDIRECT( ADDRESS( ROW(), COLUMN(),,, ProjectCashflows!$F$6)) -> 0 | AF16: =INDIRECT( ADDRESS( ROW(), COLUMN(),,, ProjectCashflows!$F$6)) -> 0 | AG16: =INDIRECT( ADDRESS( ROW(), COLUMN(),,, ProjectCashflows!$F$6)) -> 0 | AH16: =INDIRECT( ADDRESS( ROW(), COLUMN(),,, ProjectCashflows!$F$6)) -> 0 | AI16: =INDIRECT( ADDRESS( ROW(), COLUMN(),,, ProjectCashflows!$F$6)) -> 0 | AJ16: =INDIRECT( ADDRESS( ROW(), COLUMN(),,, ProjectCashflows!$F$6)) -> 0 | AK16: =INDIRECT( ADDRESS( ROW(), COLUMN(),,, ProjectCashflows!$F$6)) -> 0 | AL16: =INDIRECT( ADDRESS( ROW(), COLUMN(),,, ProjectCashflows!$F$6)) -> 0 | AM16: =INDIRECT( ADDRESS( ROW(), COLUMN(),,, ProjectCashflows!$F$6)) -> 0 | AN16: =INDIRECT( ADDRESS( ROW(), COLUMN(),,, ProjectCashflows!$F$6)) -> 0 | AO16: =INDIRECT( ADDRESS( ROW(), COLUMN(),,, ProjectCashflows!$F$6)) -> 0 | AP16: =INDIRECT( ADDRESS( ROW(), COLUMN(),,, ProjectCashflows!$F$6)) -> 0 | AQ16: =INDIRECT( ADDRESS( ROW(), COLUMN(),,, ProjectCashflows!$F$6)) -> 0 | AR16: =INDIRECT( ADDRESS( ROW(), COLUMN(),,, ProjectCashflows!$F$6)) -> 0 | AS16: =INDIRECT( ADDRESS( ROW(), COLUMN(),,, ProjectCashflows!$F$6)) -> 0 | AT16: =INDIRECT( ADDRESS( ROW(), COLUMN(),,, ProjectCashflows!$F$6)) -> 0 | AU16: =INDIRECT( ADDRESS( ROW(), COLUMN(),,, ProjectCashflows!$F$6)) -> 0 | AV16: =INDIRECT( ADDRESS( ROW(), COLUMN(),,, ProjectCashflows!$F$6)) -> 0 | AW16: =INDIRECT( ADDRESS( ROW(), COLUMN(),,, ProjectCashflows!$F$6)) -> 0 | AX16: =INDIRECT( ADDRESS( ROW(), COLUMN(),,, ProjectCashflows!$F$6)) -> 0
E17: =Translate!$E$397 -> Replacement capital costs | G17: =Inputs!F$53 -> US$ mn 2021 | I17: 96 | K17: =INDIRECT( ADDRESS( ROW(), COLUMN(),,, ProjectCashflows!$F$6)) -> 0 | L17: =INDIRECT( ADDRESS( ROW(), COLUMN(),,, ProjectCashflows!$F$6)) -> 0 | M17: =INDIRECT( ADDRESS( ROW(), COLUMN(),,, ProjectCashflows!$F$6)) -> 0 | N17: =INDIRECT( ADDRESS( ROW(), COLUMN(),,, ProjectCashflows!$F$6)) -> 0 | O17: =INDIRECT( ADDRESS( ROW(), COLUMN(),,, ProjectCashflows!$F$6)) -> 0 | P17: =INDIRECT( ADDRESS( ROW(), COLUMN(),,, ProjectCashflows!$F$6)) -> 8 | Q17: =INDIRECT( ADDRESS( ROW(), COLUMN(),,, ProjectCashflows!$F$6)) -> 8 | R17: =INDIRECT( ADDRESS( ROW(), COLUMN(),,, ProjectCashflows!$F$6)) -> 8 | S17: =INDIRECT( ADDRESS( ROW(), COLUMN(),,, ProjectCashflows!$F$6)) -> 8 | T17: =INDIRECT( ADDRESS( ROW(), COLUMN(),,, ProjectCashflows!$F$6)) -> 8 | U17: =INDIRECT( ADDRESS( ROW(), COLUMN(),,, ProjectCashflows!$F$6)) -> 8 | V17: =INDIRECT( ADDRESS( ROW(), COLUMN(),,, ProjectCashflows!$F$6)) -> 8 | W17: =INDIRECT( ADDRESS( ROW(), COLUMN(),,, ProjectCashflows!$F$6)) -> 8 | X17: =INDIRECT( ADDRESS( ROW(), COLUMN(),,, ProjectCashflows!$F$6)) -> 8 | Y17: =INDIRECT( ADDRESS( ROW(), COLUMN(),,, ProjectCashflows!$F$6)) -> 8 | Z17: =INDIRECT( ADDRESS( ROW(), COLUMN(),,, ProjectCashflows!$F$6)) -> 8 | AA17: =INDIRECT( ADDRESS( ROW(), COLUMN(),,, ProjectCashflows!$F$6)) -> 8 | AB17: =INDIRECT( ADDRESS( ROW(), COLUMN(),,, ProjectCashflows!$F$6)) -> 0 | AC17: =INDIRECT( ADDRESS( ROW(), COLUMN(),,, ProjectCashflows!$F$6)) -> 0 | AD17: =INDIRECT( ADDRESS( ROW(), COLUMN(),,, ProjectCashflows!$F$6)) -> 0 | AE17: =INDIRECT( ADDRESS( ROW(), COLUMN(),,, ProjectCashflows!$F$6)) -> 0 | AF17: =INDIRECT( ADDRESS( ROW(), COLUMN(),,, ProjectCashflows!$F$6)) -> 0 | AG17: =INDIRECT( ADDRESS( ROW(), COLUMN(),,, ProjectCashflows!$F$6)) -> 0 | AH17: =INDIRECT( ADDRESS( ROW(), COLUMN(),,, ProjectCashflows!$F$6)) -> 0 | AI17: =INDIRECT( ADDRESS( ROW(), COLUMN(),,, ProjectCashflows!$F$6)) -> 0 | AJ17: =INDIRECT( ADDRESS( ROW(), COLUMN(),,, ProjectCashflows!$F$6)) -> 0 | AK17: =INDIRECT( ADDRESS( ROW(), COLUMN(),,, ProjectCashflows!$F$6)) -> 0 | AL17: =INDIRECT( ADDRESS( ROW(), COLUMN(),,, ProjectCashflows!$F$6)) -> 0 | AM17: =INDIRECT( ADDRESS( ROW(), COLUMN(),,, ProjectCashflows!$F$6)) -> 0 | AN17: =INDIRECT( ADDRESS( ROW(), COLUMN(),,, ProjectCashflows!$F$6)) -> 0 | AO17: =INDIRECT( ADDRESS( ROW(), COLUMN(),,, ProjectCashflows!$F$6)) -> 0 | AP17: =INDIRECT( ADDRESS( ROW(), COLUMN(),,, ProjectCashflows!$F$6)) -> 0 | AQ17: =INDIRECT( ADDRESS( ROW(), COLUMN(),,, ProjectCashflows!$F$6)) -> 0 | AR17: =INDIRECT( ADDRESS( ROW(), COLUMN(),,, ProjectCashflows!$F$6)) -> 0 | AS17: =INDIRECT( ADDRESS( ROW(), COLUMN(),,, ProjectCashflows!$F$6)) -> 0 | AT17: =INDIRECT( ADDRESS( ROW(), COLUMN(),,, ProjectCashflows!$F$6)) -> 0 | AU17: =INDIRECT( ADDRESS( ROW(), COLUMN(),,, ProjectCashflows!$F$6)) -> 0 | AV17: =INDIRECT( ADDRESS( ROW(), COLUMN(),,, ProjectCashflows!$F$6)) -> 0 | AW17: =INDIRECT( ADDRESS( ROW(), COLUMN(),,, ProjectCashflows!$F$6)) -> 0 | AX17: =INDIRECT( ADDRESS( ROW(), COLUMN(),,, ProjectCashflows!$F$6)) -> 0
E18: =Translate!$E$398 -> Operating costs | G18: =Inputs!F$53 -> US$ mn 2021 | I18: 900 | K18: =INDIRECT( ADDRESS( ROW(), COLUMN(),,, ProjectCashflows!$F$6)) -> 0 | L18: =INDIRECT( ADDRESS( ROW(), COLUMN(),,, ProjectCashflows!$F$6)) -> 0 | M18: =INDIRECT( ADDRESS( ROW(), COLUMN(),,, ProjectCashflows!$F$6)) -> 0 | N18: =INDIRECT( ADDRESS( ROW(), COLUMN(),,, ProjectCashflows!$F$6)) -> 0 | O18: =INDIRECT( ADDRESS( ROW(), COLUMN(),,, ProjectCashflows!$F$6)) -> 4.5 | P18: =INDIRECT( ADDRESS( ROW(), COLUMN(),,, ProjectCashflows!$F$6)) -> 33.75 | Q18: =INDIRECT( ADDRESS( ROW(), COLUMN(),,, ProjectCashflows!$F$6)) -> 67.5 | R18: =INDIRECT( ADDRESS( ROW(), COLUMN(),,, ProjectCashflows!$F$6)) -> 67.5 | S18: =INDIRECT( ADDRESS( ROW(), COLUMN(),,, ProjectCashflows!$F$6)) -> 67.5 | T18: =INDIRECT( ADDRESS( ROW(), COLUMN(),,, ProjectCashflows!$F$6)) -> 67.5 | U18: =INDIRECT( ADDRESS( ROW(), COLUMN(),,, ProjectCashflows!$F$6)) -> 67.5 | V18: =INDIRECT( ADDRESS( ROW(), COLUMN(),,, ProjectCashflows!$F$6)) -> 67.5 | W18: =INDIRECT( ADDRESS( ROW(), COLUMN(),,, ProjectCashflows!$F$6)) -> 67.5 | X18: =INDIRECT( ADDRESS( ROW(), COLUMN(),,, ProjectCashflows!$F$6)) -> 67.5 | Y18: =INDIRECT( ADDRESS( ROW(), COLUMN(),,, ProjectCashflows!$F$6)) -> 67.5 | Z18: =INDIRECT( ADDRESS( ROW(), COLUMN(),,, ProjectCashflows!$F$6)) -> 67.5 | AA18: =INDIRECT( ADDRESS( ROW(), COLUMN(),,, ProjectCashflows!$F$6)) -> 56.25 | AB18: =INDIRECT( ADDRESS( ROW(), COLUMN(),,, ProjectCashflows!$F$6)) -> 45 | AC18: =INDIRECT( ADDRESS( ROW(), COLUMN(),,, ProjectCashflows!$F$6)) -> 33.75 | AD18: =INDIRECT( ADDRESS( ROW(), COLUMN(),,, ProjectCashflows!$F$6)) -> 29.25 | AE18: =INDIRECT( ADDRESS( ROW(), COLUMN(),,, ProjectCashflows!$F$6)) -> 22.5 | AF18: =INDIRECT( ADDRESS( ROW(), COLUMN(),,, ProjectCashflows!$F$6)) -> 0 | AG18: =INDIRECT( ADDRESS( ROW(), COLUMN(),,, ProjectCashflows!$F$6)) -> 0 | AH18: =INDIRECT( ADDRESS( ROW(), COLUMN(),,, ProjectCashflows!$F$6)) -> 0 | AI18: =INDIRECT( ADDRESS( ROW(), COLUMN(),,, ProjectCashflows!$F$6)) -> 0 | AJ18: =INDIRECT( ADDRESS( ROW(), COLUMN(),,, ProjectCashflows!$F$6)) -> 0 | AK18: =INDIRECT( ADDRESS( ROW(), COLUMN(),,, ProjectCashflows!$F$6)) -> 0 | AL18: =INDIRECT( ADDRESS( ROW(), COLUMN(),,, ProjectCashflows!$F$6)) -> 0 | AM18: =INDIRECT( ADDRESS( ROW(), COLUMN(),,, ProjectCashflows!$F$6)) -> 0 | AN18: =INDIRECT( ADDRESS( ROW(), COLUMN(),,, ProjectCashflows!$F$6)) -> 0 | AO18: =INDIRECT( ADDRESS( ROW(), COLUMN(),,, ProjectCashflows!$F$6)) -> 0 | AP18: =INDIRECT( ADDRESS( ROW(), COLUMN(),,, ProjectCashflows!$F$6)) -> 0 | AQ18: =INDIRECT( ADDRESS( ROW(), COLUMN(),,, ProjectCashflows!$F$6)) -> 0 | AR18: =INDIRECT( ADDRESS( ROW(), COLUMN(),,, ProjectCashflows!$F$6)) -> 0 | AS18: =INDIRECT( ADDRESS( ROW(), COLUMN(),,, ProjectCashflows!$F$6)) -> 0 | AT18: =INDIRECT( ADDRESS( ROW(), COLUMN(),,, ProjectCashflows!$F$6)) -> 0 | AU18: =INDIRECT( ADDRESS( ROW(), COLUMN(),,, ProjectCashflows!$F$6)) -> 0 | AV18: =INDIRECT( ADDRESS( ROW(), COLUMN(),,, ProjectCashflows!$F$6)) -> 0 | AW18: =INDIRECT( ADDRESS( ROW(), COLUMN(),,, ProjectCashflows!$F$6)) -> 0 | AX18: =INDIRECT( ADDRESS( ROW(), COLUMN(),,, ProjectCashflows!$F$6)) -> 0
E19: =Translate!$E$399 -> Decommissioning costs | G19: =Inputs!F$53 -> US$ mn 2021 | I19: 20 | K19: =INDIRECT( ADDRESS( ROW(), COLUMN(),,, ProjectCashflows!$F$6)) -> 0 | L19: =INDIRECT( ADDRESS( ROW(), COLUMN(),,, ProjectCashflows!$F$6)) -> 0 | M19: =INDIRECT( ADDRESS( ROW(), COLUMN(),,, ProjectCashflows!$F$6)) -> 0 | N19: =INDIRECT( ADDRESS( ROW(), COLUMN(),,, ProjectCashflows!$F$6)) -> 0 | O19: =INDIRECT( ADDRESS( ROW(), COLUMN(),,, ProjectCashflows!$F$6)) -> 0 | P19: =INDIRECT( ADDRESS( ROW(), COLUMN(),,, ProjectCashflows!$F$6)) -> 0 | Q19: =INDIRECT( ADDRESS( ROW(), COLUMN(),,, ProjectCashflows!$F$6)) -> 0 | R19: =INDIRECT( ADDRESS( ROW(), COLUMN(),,, ProjectCashflows!$F$6)) -> 0 | S19: =INDIRECT( ADDRESS( ROW(), COLUMN(),,, ProjectCashflows!$F$6)) -> 0 | T19: =INDIRECT( ADDRESS( ROW(), COLUMN(),,, ProjectCashflows!$F$6)) -> 0 | U19: =INDIRECT( ADDRESS( ROW(), COLUMN(),,, ProjectCashflows!$F$6)) -> 0 | V19: =INDIRECT( ADDRESS( ROW(), COLUMN(),,, ProjectCashflows!$F$6)) -> 0 | W19: =INDIRECT( ADDRESS( ROW(), COLUMN(),,, ProjectCashflows!$F$6)) -> 0 | X19: =INDIRECT( ADDRESS( ROW(), COLUMN(),,, ProjectCashflows!$F$6)) -> 0 | Y19: =INDIRECT( ADDRESS( ROW(), COLUMN(),,, ProjectCashflows!$F$6)) -> 0 | Z19: =INDIRECT( ADDRESS( ROW(), COLUMN(),,, ProjectCashflows!$F$6)) -> 0 | AA19: =INDIRECT( ADDRESS( ROW(), COLUMN(),,, ProjectCashflows!$F$6)) -> 0 | AB19: =INDIRECT( ADDRESS( ROW(), COLUMN(),,, ProjectCashflows!$F$6)) -> 0 | AC19: =INDIRECT( ADDRESS( ROW(), COLUMN(),,, ProjectCashflows!$F$6)) -> 0 | AD19: =INDIRECT( ADDRESS( ROW(), COLUMN(),,, ProjectCashflows!$F$6)) -> 0 | AE19: =INDIRECT( ADDRESS( ROW(), COLUMN(),,, ProjectCashflows!$F$6)) -> 0 | AF19: =INDIRECT( ADDRESS( ROW(), COLUMN(),,, ProjectCashflows!$F$6)) -> 20 | AG19: =INDIRECT( ADDRESS( ROW(), COLUMN(),,, ProjectCashflows!$F$6)) -> 0 | AH19: =INDIRECT( ADDRESS( ROW(), COLUMN(),,, ProjectCashflows!$F$6)) -> 0 | AI19: =INDIRECT( ADDRESS( ROW(), COLUMN(),,, ProjectCashflows!$F$6)) -> 0 | AJ19: =INDIRECT( ADDRESS( ROW(), COLUMN(),,, ProjectCashflows!$F$6)) -> 0 | AK19: =INDIRECT( ADDRESS( ROW(), COLUMN(),,, ProjectCashflows!$F$6)) -> 0 | AL19: =INDIRECT( ADDRESS( ROW(), COLUMN(),,, ProjectCashflows!$F$6)) -> 0 | AM19: =INDIRECT( ADDRESS( ROW(), COLUMN(),,, ProjectCashflows!$F$6)) -> 0 | AN19: =INDIRECT( ADDRESS( ROW(), COLUMN(),,, ProjectCashflows!$F$6)) -> 0 | AO19: =INDIRECT( ADDRESS( ROW(), COLUMN(),,, ProjectCashflows!$F$6)) -> 0 | AP19: =INDIRECT( ADDRESS( ROW(), COLUMN(),,, ProjectCashflows!$F$6)) -> 0 | AQ19: =INDIRECT( ADDRESS( ROW(), COLUMN(),,, ProjectCashflows!$F$6)) -> 0 | AR19: =INDIRECT( ADDRESS( ROW(), COLUMN(),,, ProjectCashflows!$F$6)) -> 0 | AS19: =INDIRECT( ADDRESS( ROW(), COLUMN(),,, ProjectCashflows!$F$6)) -> 0 | AT19: =INDIRECT( ADDRESS( ROW(), COLUMN(),,, ProjectCashflows!$F$6)) -> 0 | AU19: =INDIRECT( ADDRESS( ROW(), COLUMN(),,, ProjectCashflows!$F$6)) -> 0 | AV19: =INDIRECT( ADDRESS( ROW(), COLUMN(),,, ProjectCashflows!$F$6)) -> 0 | AW19: =INDIRECT( ADDRESS( ROW(), COLUMN(),,, ProjectCashflows!$F$6)) -> 0 | AX19: =INDIRECT( ADDRESS( ROW(), COLUMN(),,, ProjectCashflows!$F$6)) -> 0
E20: =Translate!$E$400 -> Total costs | G20: =Inputs!F$53 -> US$ mn 2021 | I20: =SUM(K20:AX20) -> 1496 | K20: =SUM(K14:K19) -> 10 | L20: 10 | M20: 10 | N20: 50 | O20: 254.75 | P20: 143.625 | Q20: 79.25 | R20: 79.25 | S20: 79.25 | T20: 79.25 | U20: 79.25 | V20: 79.25 | W20: 79.25 | X20: 79.25 | Y20: 79.25 | Z20: 79.25 | AA20: 67.375 | AB20: 47.5 | AC20: 35.625 | AD20: 30.875 | AE20: 23.75 | AF20: 20 | AG20: 0 | AH20: 0 | AI20: 0 | AJ20: 0 | AK20: 0 | AL20: 0 | AM20: 0 | AN20: 0 | AO20: 0 | AP20: 0 | AQ20: 0 | AR20: 0 | AS20: 0 | AT20: 0 | AU20: 0 | AV20: 0 | AW20: 0 | AX20: 0
E22: =E$12 -> Gold sales | G22: =G12 -> 000 ounce | I22: =SUM(K22:AX22) -> 2000 | K22: =K12 -> 0 | L22: 0 | M22: 0 | N22: 0 | O22: 10 | P22: 75 | Q22: 150 | R22: 150 | S22: 150 | T22: 150 | U22: 150 | V22: 150 | W22: 150 | X22: 150 | Y22: 150 | Z22: 150 | AA22: 125 | AB22: 100 | AC22: 75 | AD22: 65 | AE22: 50 | AF22: 0 | AG22: 0 | AH22: 0 | AI22: 0 | AJ22: 0 | AK22: 0 | AL22: 0 | AM22: 0 | AN22: 0 | AO22: 0 | AP22: 0 | AQ22: 0 | AR22: 0 | AS22: 0 | AT22: 0 | AU22: 0 | AV22: 0 | AW22: 0 | AX22: 0
E23: =E22 & ": " & Translate!$E$19 -> Gold sales: Total | F23: =SUM(K12:AX12) -> 2000 | G23: =G22 -> 000 ounce
B25: =Translate!E$602 -> Unit costs
E26: =Translate!$E$401 -> Total sales | F26: =SUM(K12:AX12) -> 2000 | G26: =G12 -> 000 ounce
E27: =Inputs!E$76 -> one thousand | F27: =Inputs!F$76 -> 1000 | G27: =Inputs!G$76 -> Constant
E29: =E14 -> Transport costs post-fiscal point | F29: =SUM(K14:AX14) / F$26 * F$27 -> 25 | G29: =Inputs!F$52 & " / " & F$10 -> US$ 2021 / ounce
E30: Exploration costs | F30: 15 | G30: =Inputs!F$52 & " / " & F$10 -> US$ 2021 / ounce
E31: Development costs | F31: 200 | G31: =Inputs!F$52 & " / " & F$10 -> US$ 2021 / ounce
E32: Replacement capital costs | F32: 48 | G32: =Inputs!F$52 & " / " & F$10 -> US$ 2021 / ounce
E33: Operating costs | F33: 450 | G33: =Inputs!F$52 & " / " & F$10 -> US$ 2021 / ounce
E34: Decommissioning costs | F34: 10 | G34: =Inputs!F$52 & " / " & F$10 -> US$ 2021 / ounce
E35: =E23 -> Gold sales: Total | F35: =SUM(F29:F34) -> 748 | G35: =Inputs!F$52 & " / " & F$10 -> US$ 2021 / ounce
B37: =Translate!$E$444 & ": " & Translate!$E$603 -> Check: Check project data in correct row
E38: =Inputs!E$15 -> First row of project data | F38: =Inputs!F$15 -> 12 | G38: =Inputs!G$15 -> row
E39: =Translate!$E$402 -> First row of project data | F39: =ROW(F12) -> 12 | G39: =Translate!E$587 -> row
E40: =Translate!$E$444 & ": " & Translate!$E$402 -> Check: First row of project data | F40: =IF( ABS(F38 - F39) <> 0, 1, 0) -> 0 | G40: =Translate!E$444 -> Check
A43: =Translate!$E$368 -> Model timeline
E45: =Translate!$E$403 -> Model years | G45: =Translate!E$622 -> Columns | K45: =J45 + 1 -> 1 | L45: 2 | M45: 3 | N45: 4 | O45: 5 | P45: 6 | Q45: 7 | R45: 8 | S45: 9 | T45: 10 | U45: 11 | V45: 12 | W45: 13 | X45: 14 | Y45: 15 | Z45: 16 | AA45: 17 | AB45: 18 | AC45: 19 | AD45: 20 | AE45: 21 | AF45: 22 | AG45: 23 | AH45: 24 | AI45: 25 | AJ45: 26 | AK45: 27 | AL45: 28 | AM45: 29 | AN45: 30 | AO45: 31 | AP45: 32 | AQ45: 33 | AR45: 34 | AS45: 35 | AT45: 36 | AU45: 37 | AV45: 38 | AW45: 39 | AX45: 40
E47: =Inputs!E$7 -> Model first calendar year | F47: =Inputs!F$7 -> 2021 | G47: =Inputs!G$7 -> Calendar year
E48: =Translate!$E$404 -> Model calendar years | G48: =Translate!E$358 -> Years | K48: =IF(K45 = 1, $F47, J48 + 1) -> 2021 | L48: 2022 | M48: 2023 | N48: 2024 | O48: 2025 | P48: 2026 | Q48: 2027 | R48: 2028 | S48: 2029 | T48: 2030 | U48: 2031 | V48: 2032 | W48: 2033 | X48: 2034 | Y48: 2035 | Z48: 2036 | AA48: 2037 | AB48: 2038 | AC48: 2039 | AD48: 2040 | AE48: 2041 | AF48: 2042 | AG48: 2043 | AH48: 2044 | AI48: 2045 | AJ48: 2046 | AK48: 2047 | AL48: 2048 | AM48: 2049 | AN48: 2050 | AO48: 2051 | AP48: 2052 | AQ48: 2053 | AR48: 2054 | AS48: 2055 | AT48: 2056 | AU48: 2057 | AV48: 2058 | AW48: 2059 | AX48: 2060
A51: =Translate!$E$369 -> Project data with sensitivity factors applied
B53: =Translate!$E$375 -> Sensitivity factors
E54: =Inputs!E$34 -> Production sensitivity | F54: =Inputs!F$34 -> 1 | G54: =Inputs!G$34 -> factor
E55: =Inputs!E$35 -> Exploration cost sensitivity | F55: =Inputs!F$35 -> 1 | G55: =Inputs!G$35 -> factor
E56: =Inputs!E$36 -> Capex sensitivity (Development; Replacement; Decommissioning) | F56: =Inputs!F$36 -> 1 | G56: =Inputs!G$36 -> factor
E57: =Inputs!E$37 -> Operating cost sensitivity | F57: =Inputs!F$37 -> 1 | G57: =Inputs!G$37 -> factor
B59: =Translate!$E$376 -> Project data with sensitivies applied
E60: =E12 -> Gold sales | G60: =G12 -> 000 ounce | I60: =SUM(K60:AX60) -> 2000 | K60: =K12 * $F54 -> 0 | L60: 0 | M60: 0 | N60: 0 | O60: 10 | P60: 75 | Q60: 150 | R60: 150 | S60: 150 | T60: 150 | U60: 150 | V60: 150 | W60: 150 | X60: 150 | Y60: 150 | Z60: 150 | AA60: 125 | AB60: 100 | AC60: 75 | AD60: 65 | AE60: 50 | AF60: 0 | AG60: 0 | AH60: 0 | AI60: 0 | AJ60: 0 | AK60: 0 | AL60: 0 | AM60: 0 | AN60: 0 | AO60: 0 | AP60: 0 | AQ60: 0 | AR60: 0 | AS60: 0 | AT60: 0 | AU60: 0 | AV60: 0 | AW60: 0 | AX60: 0
E61: =E$48 -> Model calendar years | F61: =F$48 -> 0 | G61: Years | H61: 0 | I61: 0 | J61: 0 | K61: 2021 | L61: 2022 | M61: 2023 | N61: 2024 | O61: 2025 | P61: 2026 | Q61: 2027 | R61: 2028 | S61: 2029 | T61: 2030 | U61: 2031 | V61: 2032 | W61: 2033 | X61: 2034 | Y61: 2035 | Z61: 2036 | AA61: 2037 | AB61: 2038 | AC61: 2039 | AD61: 2040 | AE61: 2041 | AF61: 2042 | AG61: 2043 | AH61: 2044 | AI61: 2045 | AJ61: 2046 | AK61: 2047 | AL61: 2048 | AM61: 2049 | AN61: 2050 | AO61: 2051 | AP61: 2052 | AQ61: 2053 | AR61: 2054 | AS61: 2055 | AT61: 2056 | AU61: 2057 | AV61: 2058 | AW61: 2059 | AX61: 2060
E62: =Translate!$E$405 -> Peak production year | F62: =MAX(K60:AX60) -> 150 | G62: =G60 -> 000 ounce
E63: =Translate!$E$405 -> Peak production year | F63: =INDEX(K61:AX61,,MATCH(F62,K60:AX60,0)) -> 2027 | G63: =Translate!E$365 -> Year
E65: =E14 -> Transport costs post-fiscal point | G65: =G14 -> US$ mn 2021 | I65: 50 | K65: =K14 * $F54 -> 0 | L65: 0 | M65: 0 | N65: 0 | O65: 0.25 | P65: 1.875 | Q65: 3.75 | R65: 3.75 | S65: 3.75 | T65: 3.75 | U65: 3.75 | V65: 3.75 | W65: 3.75 | X65: 3.75 | Y65: 3.75 | Z65: 3.75 | AA65: 3.125 | AB65: 2.5 | AC65: 1.875 | AD65: 1.625 | AE65: 1.25 | AF65: 0 | AG65: 0 | AH65: 0 | AI65: 0 | AJ65: 0 | AK65: 0 | AL65: 0 | AM65: 0 | AN65: 0 | AO65: 0 | AP65: 0 | AQ65: 0 | AR65: 0 | AS65: 0 | AT65: 0 | AU65: 0 | AV65: 0 | AW65: 0 | AX65: 0
E66: Exploration costs | G66: US$ mn 2021 | I66: 30 | K66: =K15 * $F55 -> 10 | L66: 10 | M66: 10 | N66: 0 | O66: 0 | P66: 0 | Q66: 0 | R66: 0 | S66: 0 | T66: 0 | U66: 0 | V66: 0 | W66: 0 | X66: 0 | Y66: 0 | Z66: 0 | AA66: 0 | AB66: 0 | AC66: 0 | AD66: 0 | AE66: 0 | AF66: 0 | AG66: 0 | AH66: 0 | AI66: 0 | AJ66: 0 | AK66: 0 | AL66: 0 | AM66: 0 | AN66: 0 | AO66: 0 | AP66: 0 | AQ66: 0 | AR66: 0 | AS66: 0 | AT66: 0 | AU66: 0 | AV66: 0 | AW66: 0 | AX66: 0
E67: Development costs | G67: US$ mn 2021 | I67: 400 | K67: =K16 * $F56 -> 0 | L67: 0 | M67: 0 | N67: 50 | O67: 250 | P67: 100 | Q67: 0 | R67: 0 | S67: 0 | T67: 0 | U67: 0 | V67: 0 | W67: 0 | X67: 0 | Y67: 0 | Z67: 0 | AA67: 0 | AB67: 0 | AC67: 0 | AD67: 0 | AE67: 0 | AF67: 0 | AG67: 0 | AH67: 0 | AI67: 0 | AJ67: 0 | AK67: 0 | AL67: 0 | AM67: 0 | AN67: 0 | AO67: 0 | AP67: 0 | AQ67: 0 | AR67: 0 | AS67: 0 | AT67: 0 | AU67: 0 | AV67: 0 | AW67: 0 | AX67: 0
E68: Replacement capital costs | G68: US$ mn 2021 | I68: 96 | K68: =K17 * $F56 -> 0 | L68: 0 | M68: 0 | N68: 0 | O68: 0 | P68: 8 | Q68: 8 | R68: 8 | S68: 8 | T68: 8 | U68: 8 | V68: 8 | W68: 8 | X68: 8 | Y68: 8 | Z68: 8 | AA68: 8 | AB68: 0 | AC68: 0 | AD68: 0 | AE68: 0 | AF68: 0 | AG68: 0 | AH68: 0 | AI68: 0 | AJ68: 0 | AK68: 0 | AL68: 0 | AM68: 0 | AN68: 0 | AO68: 0 | AP68: 0 | AQ68: 0 | AR68: 0 | AS68: 0 | AT68: 0 | AU68: 0 | AV68: 0 | AW68: 0 | AX68: 0
E69: Operating costs | G69: US$ mn 2021 | I69: 900 | K69: =K18 * $F57 -> 0 | L69: 0 | M69: 0 | N69: 0 | O69: 4.5 | P69: 33.75 | Q69: 67.5 | R69: 67.5 | S69: 67.5 | T69: 67.5 | U69: 67.5 | V69: 67.5 | W69: 67.5 | X69: 67.5 | Y69: 67.5 | Z69: 67.5 | AA69: 56.25 | AB69: 45 | AC69: 33.75 | AD69: 29.25 | AE69: 22.5 | AF69: 0 | AG69: 0 | AH69: 0 | AI69: 0 | AJ69: 0 | AK69: 0 | AL69: 0 | AM69: 0 | AN69: 0 | AO69: 0 | AP69: 0 | AQ69: 0 | AR69: 0 | AS69: 0 | AT69: 0 | AU69: 0 | AV69: 0 | AW69: 0 | AX69: 0
E70: Decommissioning costs | G70: US$ mn 2021 | I70: 20 | K70: =K19 * $F56 -> 0 | L70: 0 | M70: 0 | N70: 0 | O70: 0 | P70: 0 | Q70: 0 | R70: 0 | S70: 0 | T70: 0 | U70: 0 | V70: 0 | W70: 0 | X70: 0 | Y70: 0 | Z70: 0 | AA70: 0 | AB70: 0 | AC70: 0 | AD70: 0 | AE70: 0 | AF70: 20 | AG70: 0 | AH70: 0 | AI70: 0 | AJ70: 0 | AK70: 0 | AL70: 0 | AM70: 0 | AN70: 0 | AO70: 0 | AP70: 0 | AQ70: 0 | AR70: 0 | AS70: 0 | AT70: 0 | AU70: 0 | AV70: 0 | AW70: 0 | AX70: 0
A73: =Translate!$E15 & ": " & Inputs!F$85 -> Project cashflows: real
B75: =Translate!$E$377 -> Mineral Price
E76: =Inputs!E$30 -> Gold (into model) | F76: =Inputs!F$30 -> 1500 | G76: =Inputs!G$30 -> US$ 2021 / ounce
E77: =Inputs!E$33 -> Price sensitivity | F77: =Inputs!F$33 -> 1 | G77: =Inputs!G$33 -> factor
E78: =E76 & " " & Translate!$E$442 -> Gold (into model) (into model) | F78: =F76 * F77 -> 1500 | G78: =Inputs!G$30 -> US$ 2021 / ounce
E79: =E$9 -> Mineral | F79: =F$9 -> Gold | G79: =G$9 -> Label
E80: =E$10 -> Mineral units | F80: =F$10 -> ounce | G80: =G$10 -> Units
E81: =$F79 & " " & Translate!$E$439 -> Gold price realized from sales | G81: =Translate!E$9 & " / " & $F80 & " " & Translate!E$624 -> US$ / ounce const | I81: =SUM(K81:AX81) -> 60000 | K81: =$F78 -> 1500 | L81: 1500 | M81: 1500 | N81: 1500 | O81: 1500 | P81: 1500 | Q81: 1500 | R81: 1500 | S81: 1500 | T81: 1500 | U81: 1500 | V81: 1500 | W81: 1500 | X81: 1500 | Y81: 1500 | Z81: 1500 | AA81: 1500 | AB81: 1500 | AC81: 1500 | AD81: 1500 | AE81: 1500 | AF81: 1500 | AG81: 1500 | AH81: 1500 | AI81: 1500 | AJ81: 1500 | AK81: 1500 | AL81: 1500 | AM81: 1500 | AN81: 1500 | AO81: 1500 | AP81: 1500 | AQ81: 1500 | AR81: 1500 | AS81: 1500 | AT81: 1500 | AU81: 1500 | AV81: 1500 | AW81: 1500 | AX81: 1500
B83: =Translate!$E$378 -> Revenues
E84: =E$60 -> Gold sales | F84: 0 | G84: 000 ounce | H84: 0 | I84: 2000 | J84: 0 | K84: 0 | L84: 0 | M84: 0 | N84: 0 | O84: 10 | P84: 75 | Q84: 150 | R84: 150 | S84: 150 | T84: 150 | U84: 150 | V84: 150 | W84: 150 | X84: 150 | Y84: 150 | Z84: 150 | AA84: 125 | AB84: 100 | AC84: 75 | AD84: 65 | AE84: 50 | AF84: 0 | AG84: 0 | AH84: 0 | AI84: 0 | AJ84: 0 | AK84: 0 | AL84: 0 | AM84: 0 | AN84: 0 | AO84: 0 | AP84: 0 | AQ84: 0 | AR84: 0 | AS84: 0 | AT84: 0 | AU84: 0 | AV84: 0 | AW84: 0 | AX84: 0
E85: =E$81 -> Gold price realized from sales | F85: 0 | G85: US$ / ounce const | H85: 0 | I85: 60000 | J85: 0 | K85: 1500 | L85: 1500 | M85: 1500 | N85: 1500 | O85: 1500 | P85: 1500 | Q85: 1500 | R85: 1500 | S85: 1500 | T85: 1500 | U85: 1500 | V85: 1500 | W85: 1500 | X85: 1500 | Y85: 1500 | Z85: 1500 | AA85: 1500 | AB85: 1500 | AC85: 1500 | AD85: 1500 | AE85: 1500 | AF85: 1500 | AG85: 1500 | AH85: 1500 | AI85: 1500 | AJ85: 1500 | AK85: 1500 | AL85: 1500 | AM85: 1500 | AN85: 1500 | AO85: 1500 | AP85: 1500 | AQ85: 1500 | AR85: 1500 | AS85: 1500 | AT85: 1500 | AU85: 1500 | AV85: 1500 | AW85: 1500 | AX85: 1500
E86: =Inputs!E$76 -> one thousand | F86: =Inputs!F$76 -> 1000 | G86: =Inputs!G$76 -> Constant
D87: =Translate!$E$605 -> add | E87: =Translate!$E$441 & ": " & Translate!E$555 -> Sales revenues: gross | G87: =Inputs!F$53 -> US$ mn 2021 | I87: =SUM(K87:AX87) -> 3000 | K87: =K84 * K85 / $F86 -> 0 | L87: 0 | M87: 0 | N87: 0 | O87: 15 | P87: 112.5 | Q87: 225 | R87: 225 | S87: 225 | T87: 225 | U87: 225 | V87: 225 | W87: 225 | X87: 225 | Y87: 225 | Z87: 225 | AA87: 187.5 | AB87: 150 | AC87: 112.5 | AD87: 97.5 | AE87: 75 | AF87: 0 | AG87: 0 | AH87: 0 | AI87: 0 | AJ87: 0 | AK87: 0 | AL87: 0 | AM87: 0 | AN87: 0 | AO87: 0 | AP87: 0 | AQ87: 0 | AR87: 0 | AS87: 0 | AT87: 0 | AU87: 0 | AV87: 0 | AW87: 0 | AX87: 0
D88: =Translate!$E$606 -> less | E88: =E$65 -> Transport costs post-fiscal point | F88: 0 | G88: US$ mn 2021 | H88: 0 | I88: 50 | J88: 0 | K88: 0 | L88: 0 | M88: 0 | N88: 0 | O88: 0.25 | P88: 1.875 | Q88: 3.75 | R88: 3.75 | S88: 3.75 | T88: 3.75 | U88: 3.75 | V88: 3.75 | W88: 3.75 | X88: 3.75 | Y88: 3.75 | Z88: 3.75 | AA88: 3.125 | AB88: 2.5 | AC88: 1.875 | AD88: 1.625 | AE88: 1.25 | AF88: 0 | AG88: 0 | AH88: 0 | AI88: 0 | AJ88: 0 | AK88: 0 | AL88: 0 | AM88: 0 | AN88: 0 | AO88: 0 | AP88: 0 | AQ88: 0 | AR88: 0 | AS88: 0 | AT88: 0 | AU88: 0 | AV88: 0 | AW88: 0 | AX88: 0
E89: =Translate!$E$441 & ": " & Translate!E$556 -> Sales revenues: net | G89: =G$65 -> US$ mn 2021 | I89: =SUM(K89:AX89) -> 2950 | K89: =K87 - K88 -> 0 | L89: 0 | M89: 0 | N89: 0 | O89: 14.75 | P89: 110.625 | Q89: 221.25 | R89: 221.25 | S89: 221.25 | T89: 221.25 | U89: 221.25 | V89: 221.25 | W89: 221.25 | X89: 221.25 | Y89: 221.25 | Z89: 221.25 | AA89: 184.375 | AB89: 147.5 | AC89: 110.625 | AD89: 95.875 | AE89: 73.75 | AF89: 0 | AG89: 0 | AH89: 0 | AI89: 0 | AJ89: 0 | AK89: 0 | AL89: 0 | AM89: 0 | AN89: 0 | AO89: 0 | AP89: 0 | AQ89: 0 | AR89: 0 | AS89: 0 | AT89: 0 | AU89: 0 | AV89: 0 | AW89: 0 | AX89: 0
B91: =Translate!$E$379 -> Project costs
E92: =E$66 -> Exploration costs | F92: 0 | G92: US$ mn 2021 | H92: 0 | I92: 30 | J92: 0 | K92: 10 | L92: 10 | M92: 10 | N92: 0 | O92: 0 | P92: 0 | Q92: 0 | R92: 0 | S92: 0 | T92: 0 | U92: 0 | V92: 0 | W92: 0 | X92: 0 | Y92: 0 | Z92: 0 | AA92: 0 | AB92: 0 | AC92: 0 | AD92: 0 | AE92: 0 | AF92: 0 | AG92: 0 | AH92: 0 | AI92: 0 | AJ92: 0 | AK92: 0 | AL92: 0 | AM92: 0 | AN92: 0 | AO92: 0 | AP92: 0 | AQ92: 0 | AR92: 0 | AS92: 0 | AT92: 0 | AU92: 0 | AV92: 0 | AW92: 0 | AX92: 0
E93: =E$67 -> Development costs | F93: 0 | G93: US$ mn 2021 | H93: 0 | I93: 400 | J93: 0 | K93: 0 | L93: 0 | M93: 0 | N93: 50 | O93: 250 | P93: 100 | Q93: 0 | R93: 0 | S93: 0 | T93: 0 | U93: 0 | V93: 0 | W93: 0 | X93: 0 | Y93: 0 | Z93: 0 | AA93: 0 | AB93: 0 | AC93: 0 | AD93: 0 | AE93: 0 | AF93: 0 | AG93: 0 | AH93: 0 | AI93: 0 | AJ93: 0 | AK93: 0 | AL93: 0 | AM93: 0 | AN93: 0 | AO93: 0 | AP93: 0 | AQ93: 0 | AR93: 0 | AS93: 0 | AT93: 0 | AU93: 0 | AV93: 0 | AW93: 0 | AX93: 0
E94: =E$68 -> Replacement capital costs | F94: 0 | G94: US$ mn 2021 | H94: 0 | I94: 96 | J94: 0 | K94: 0 | L94: 0 | M94: 0 | N94: 0 | O94: 0 | P94: 8 | Q94: 8 | R94: 8 | S94: 8 | T94: 8 | U94: 8 | V94: 8 | W94: 8 | X94: 8 | Y94: 8 | Z94: 8 | AA94: 8 | AB94: 0 | AC94: 0 | AD94: 0 | AE94: 0 | AF94: 0 | AG94: 0 | AH94: 0 | AI94: 0 | AJ94: 0 | AK94: 0 | AL94: 0 | AM94: 0 | AN94: 0 | AO94: 0 | AP94: 0 | AQ94: 0 | AR94: 0 | AS94: 0 | AT94: 0 | AU94: 0 | AV94: 0 | AW94: 0 | AX94: 0
E95: =E$69 -> Operating costs | F95: 0 | G95: US$ mn 2021 | H95: 0 | I95: 900 | J95: 0 | K95: 0 | L95: 0 | M95: 0 | N95: 0 | O95: 4.5 | P95: 33.75 | Q95: 67.5 | R95: 67.5 | S95: 67.5 | T95: 67.5 | U95: 67.5 | V95: 67.5 | W95: 67.5 | X95: 67.5 | Y95: 67.5 | Z95: 67.5 | AA95: 56.25 | AB95: 45 | AC95: 33.75 | AD95: 29.25 | AE95: 22.5 | AF95: 0 | AG95: 0 | AH95: 0 | AI95: 0 | AJ95: 0 | AK95: 0 | AL95: 0 | AM95: 0 | AN95: 0 | AO95: 0 | AP95: 0 | AQ95: 0 | AR95: 0 | AS95: 0 | AT95: 0 | AU95: 0 | AV95: 0 | AW95: 0 | AX95: 0
E96: =E$70 -> Decommissioning costs | F96: 0 | G96: US$ mn 2021 | H96: 0 | I96: 20 | J96: 0 | K96: 0 | L96: 0 | M96: 0 | N96: 0 | O96: 0 | P96: 0 | Q96: 0 | R96: 0 | S96: 0 | T96: 0 | U96: 0 | V96: 0 | W96: 0 | X96: 0 | Y96: 0 | Z96: 0 | AA96: 0 | AB96: 0 | AC96: 0 | AD96: 0 | AE96: 0 | AF96: 20 | AG96: 0 | AH96: 0 | AI96: 0 | AJ96: 0 | AK96: 0 | AL96: 0 | AM96: 0 | AN96: 0 | AO96: 0 | AP96: 0 | AQ96: 0 | AR96: 0 | AS96: 0 | AT96: 0 | AU96: 0 | AV96: 0 | AW96: 0 | AX96: 0
E97: =Translate!$E$379 -> Project costs | G97: =Inputs!F$53 -> US$ mn 2021 | I97: =SUM(K97:AX97) -> 1446 | K97: =SUM(K92:K96) -> 10 | L97: 10 | M97: 10 | N97: 50 | O97: 254.5 | P97: 141.75 | Q97: 75.5 | R97: 75.5 | S97: 75.5 | T97: 75.5 | U97: 75.5 | V97: 75.5 | W97: 75.5 | X97: 75.5 | Y97: 75.5 | Z97: 75.5 | AA97: 64.25 | AB97: 45 | AC97: 33.75 | AD97: 29.25 | AE97: 22.5 | AF97: 20 | AG97: 0 | AH97: 0 | AI97: 0 | AJ97: 0 | AK97: 0 | AL97: 0 | AM97: 0 | AN97: 0 | AO97: 0 | AP97: 0 | AQ97: 0 | AR97: 0 | AS97: 0 | AT97: 0 | AU97: 0 | AV97: 0 | AW97: 0 | AX97: 0
E99: =Translate!$E$406 -> Project cashflow before decommissioning fund and ELT | G99: =Inputs!F$53 -> US$ mn 2021 | I99: =SUM(K99:AX99) -> 1504 | K99: =K89-K97 -> -10 | L99: =L89-L97 -> -10 | M99: -10 | N99: -50 | O99: -239.75 | P99: -31.125 | Q99: 145.75 | R99: 145.75 | S99: 145.75 | T99: 145.75 | U99: 145.75 | V99: 145.75 | W99: 145.75 | X99: 145.75 | Y99: 145.75 | Z99: 145.75 | AA99: 120.125 | AB99: 102.5 | AC99: 76.875 | AD99: 66.625 | AE99: 51.25 | AF99: -20 | AG99: 0 | AH99: 0 | AI99: 0 | AJ99: 0 | AK99: 0 | AL99: 0 | AM99: 0 | AN99: 0 | AO99: 0 | AP99: 0 | AQ99: 0 | AR99: 0 | AS99: 0 | AT99: 0 | AU99: 0 | AV99: 0 | AW99: 0 | AX99: 0
A101: =Translate!$E$370 -> Economic limit test (ELT)
B103: =Translate!$E$380 -> Peak production year: assumed Economic Limit will not be triggered before this period
E104: =E$63 -> Peak production year | F104: =F$63 -> 2027 | G104: =G$63 -> Year
B106: =Translate!$E$381 -> Maximum cumulative cashflows used to determine when Econ Limit reached
E107: =E$99 -> Project cashflow before decommissioning fund and ELT | F107: =F$99 -> 0 | G107: US$ mn 2021 | H107: 0 | I107: 1504 | J107: 0 | K107: -10 | L107: -10 | M107: -10 | N107: -50 | O107: -239.75 | P107: -31.125 | Q107: 145.75 | R107: 145.75 | S107: 145.75 | T107: 145.75 | U107: 145.75 | V107: 145.75 | W107: 145.75 | X107: 145.75 | Y107: 145.75 | Z107: 145.75 | AA107: 120.125 | AB107: 102.5 | AC107: 76.875 | AD107: 66.625 | AE107: 51.25 | AF107: -20 | AG107: 0 | AH107: 0 | AI107: 0 | AJ107: 0 | AK107: 0 | AL107: 0 | AM107: 0 | AN107: 0 | AO107: 0 | AP107: 0 | AQ107: 0 | AR107: 0 | AS107: 0 | AT107: 0 | AU107: 0 | AV107: 0 | AW107: 0 | AX107: 0
E108: =E$70 -> Decommissioning costs | F108: =F$96 -> 0 | G108: US$ mn 2021 | H108: 0 | I108: 20 | J108: 0 | K108: 0 | L108: 0 | M108: 0 | N108: 0 | O108: 0 | P108: 0 | Q108: 0 | R108: 0 | S108: 0 | T108: 0 | U108: 0 | V108: 0 | W108: 0 | X108: 0 | Y108: 0 | Z108: 0 | AA108: 0 | AB108: 0 | AC108: 0 | AD108: 0 | AE108: 0 | AF108: 20 | AG108: 0 | AH108: 0 | AI108: 0 | AJ108: 0 | AK108: 0 | AL108: 0 | AM108: 0 | AN108: 0 | AO108: 0 | AP108: 0 | AQ108: 0 | AR108: 0 | AS108: 0 | AT108: 0 | AU108: 0 | AV108: 0 | AW108: 0 | AX108: 0
E109: =E107 & " " & Translate!$E$443 -> Project cashflow before decommissioning fund and ELT (before decommissioning) | G109: =G108 -> US$ mn 2021 | I109: =SUM(K109:BH109) -> 1524 | K109: =K107 + K108 -> -10 | L109: =L107 + L108 -> -10 | M109: -10 | N109: -50 | O109: -239.75 | P109: -31.125 | Q109: 145.75 | R109: 145.75 | S109: 145.75 | T109: 145.75 | U109: 145.75 | V109: 145.75 | W109: 145.75 | X109: 145.75 | Y109: 145.75 | Z109: 145.75 | AA109: 120.125 | AB109: 102.5 | AC109: 76.875 | AD109: 66.625 | AE109: 51.25 | AF109: 0 | AG109: 0 | AH109: 0 | AI109: 0 | AJ109: 0 | AK109: 0 | AL109: 0 | AM109: 0 | AN109: 0 | AO109: 0 | AP109: 0 | AQ109: 0 | AR109: 0 | AS109: 0 | AT109: 0 | AU109: 0 | AV109: 0 | AW109: 0 | AX109: 0
E110: =E109 & ": " & Translate!E$755 -> Project cashflow before decommissioning fund and ELT (before decommissioning): cumulative | G110: =G109 -> US$ mn 2021 | K110: =J110 + K109 -> -10 | L110: -20 | M110: -30 | N110: -80 | O110: -319.75 | P110: -350.875 | Q110: -205.125 | R110: -59.375 | S110: 86.375 | T110: 232.125 | U110: 377.875 | V110: 523.625 | W110: 669.375 | X110: 815.125 | Y110: 960.875 | Z110: 1106.625 | AA110: 1226.75 | AB110: 1329.25 | AC110: 1406.125 | AD110: 1472.75 | AE110: 1524 | AF110: 1524 | AG110: 1524 | AH110: 1524 | AI110: 1524 | AJ110: 1524 | AK110: 1524 | AL110: 1524 | AM110: 1524 | AN110: 1524 | AO110: 1524 | AP110: 1524 | AQ110: 1524 | AR110: 1524 | AS110: 1524 | AT110: 1524 | AU110: 1524 | AV110: 1524 | AW110: 1524 | AX110: 1524
E111: =Translate!$E$407 -> Peak cumulative cashflows | F111: =MAX(K110:AX110) -> 1524 | G111: =G108 -> US$ mn 2021
E112: =E$48 -> Model calendar years | F112: =F$48 -> 0 | G112: Years | H112: 0 | I112: 0 | J112: 0 | K112: 2021 | L112: 2022 | M112: 2023 | N112: 2024 | O112: 2025 | P112: 2026 | Q112: 2027 | R112: 2028 | S112: 2029 | T112: 2030 | U112: 2031 | V112: 2032 | W112: 2033 | X112: 2034 | Y112: 2035 | Z112: 2036 | AA112: 2037 | AB112: 2038 | AC112: 2039 | AD112: 2040 | AE112: 2041 | AF112: 2042 | AG112: 2043 | AH112: 2044 | AI112: 2045 | AJ112: 2046 | AK112: 2047 | AL112: 2048 | AM112: 2049 | AN112: 2050 | AO112: 2051 | AP112: 2052 | AQ112: 2053 | AR112: 2054 | AS112: 2055 | AT112: 2056 | AU112: 2057 | AV112: 2058 | AW112: 2059 | AX112: 2060
E113: =Translate!$E$408 -> Economic limit reached | G113: =Translate!E$586 -> Flag | K113: =($F111 = K110) * 1 -> 0 | L113: 0 | M113: 0 | N113: 0 | O113: 0 | P113: 0 | Q113: 0 | R113: 0 | S113: 0 | T113: 0 | U113: 0 | V113: 0 | W113: 0 | X113: 0 | Y113: 0 | Z113: 0 | AA113: 0 | AB113: 0 | AC113: 0 | AD113: 0 | AE113: 1 | AF113: 1 | AG113: 1 | AH113: 1 | AI113: 1 | AJ113: 1 | AK113: 1 | AL113: 1 | AM113: 1 | AN113: 1 | AO113: 1 | AP113: 1 | AQ113: 1 | AR113: 1 | AS113: 1 | AT113: 1 | AU113: 1 | AV113: 1 | AW113: 1 | AX113: 1
E115: =Translate!$E$409 -> Economic limit year based on cashflows | F115: =INDEX(K112:AX112, MATCH(1, K113:AX113, 0)) -> 2041 | G115: =Translate!E$365 -> Year
E116: =Translate!$E$410 -> Project economic limit | F116: =MAX(F115, F104) -> 2041 | G116: =Translate!E$365 -> Year
E118: =Inputs!E$40 -> ELT applies | F118: =Inputs!F$40 -> yes | G118: =Inputs!G$40 -> Option
E119: =Inputs!E$81 -> Label: yes | F119: =Inputs!F$81 -> yes | G119: =Inputs!G$81 -> Label
E120: =Translate!$E$410 -> Project economic limit | G120: =Translate!E$586 -> Flag | I120: =SUM(K120:BH120) -> 21 | K120: =IF( $F118 = $F119, (K112 <= $F116) * 1, 1) -> 1 | L120: =IF( $F118 = $F119, (L112 <= $F116) * 1, 1) -> 1 | M120: 1 | N120: 1 | O120: 1 | P120: 1 | Q120: 1 | R120: 1 | S120: 1 | T120: 1 | U120: 1 | V120: 1 | W120: 1 | X120: 1 | Y120: 1 | Z120: 1 | AA120: 1 | AB120: 1 | AC120: 1 | AD120: 1 | AE120: 1 | AF120: 0 | AG120: 0 | AH120: 0 | AI120: 0 | AJ120: 0 | AK120: 0 | AL120: 0 | AM120: 0 | AN120: 0 | AO120: 0 | AP120: 0 | AQ120: 0 | AR120: 0 | AS120: 0 | AT120: 0 | AU120: 0 | AV120: 0 | AW120: 0 | AX120: 0
B122: =Translate!$E$382 -> Reschedule decommissioning costs
E123: =E$48 -> Model calendar years | F123: =F$48 -> 0 | G123: Years | H123: 0 | I123: 0 | J123: 0 | K123: 2021 | L123: 2022 | M123: 2023 | N123: 2024 | O123: 2025 | P123: 2026 | Q123: 2027 | R123: 2028 | S123: 2029 | T123: 2030 | U123: 2031 | V123: 2032 | W123: 2033 | X123: 2034 | Y123: 2035 | Z123: 2036 | AA123: 2037 | AB123: 2038 | AC123: 2039 | AD123: 2040 | AE123: 2041 | AF123: 2042 | AG123: 2043 | AH123: 2044 | AI123: 2045 | AJ123: 2046 | AK123: 2047 | AL123: 2048 | AM123: 2049 | AN123: 2050 | AO123: 2051 | AP123: 2052 | AQ123: 2053 | AR123: 2054 | AS123: 2055 | AT123: 2056 | AU123: 2057 | AV123: 2058 | AW123: 2059 | AX123: 2060
E124: =E$70 -> Decommissioning costs | F124: =F$96 -> 0 | G124: US$ mn 2021 | H124: 0 | I124: 20 | J124: 0 | K124: 0 | L124: 0 | M124: 0 | N124: 0 | O124: 0 | P124: 0 | Q124: 0 | R124: 0 | S124: 0 | T124: 0 | U124: 0 | V124: 0 | W124: 0 | X124: 0 | Y124: 0 | Z124: 0 | AA124: 0 | AB124: 0 | AC124: 0 | AD124: 0 | AE124: 0 | AF124: 20 | AG124: 0 | AH124: 0 | AI124: 0 | AJ124: 0 | AK124: 0 | AL124: 0 | AM124: 0 | AN124: 0 | AO124: 0 | AP124: 0 | AQ124: 0 | AR124: 0 | AS124: 0 | AT124: 0 | AU124: 0 | AV124: 0 | AW124: 0 | AX124: 0
E125: =E124 & " " & Translate!$E$440 -> Decommissioning costs incurred before ELT reached | G125: =G$96 -> US$ mn 2021 | I125: =SUM(K125:AX125) -> 0 | K125: =K124 * K120 -> 0 | L125: =L124 * L120 -> 0 | M125: 0 | N125: 0 | O125: 0 | P125: 0 | Q125: 0 | R125: 0 | S125: 0 | T125: 0 | U125: 0 | V125: 0 | W125: 0 | X125: 0 | Y125: 0 | Z125: 0 | AA125: 0 | AB125: 0 | AC125: 0 | AD125: 0 | AE125: 0 | AF125: 0 | AG125: 0 | AH125: 0 | AI125: 0 | AJ125: 0 | AK125: 0 | AL125: 0 | AM125: 0 | AN125: 0 | AO125: 0 | AP125: 0 | AQ125: 0 | AR125: 0 | AS125: 0 | AT125: 0 | AU125: 0 | AV125: 0 | AW125: 0 | AX125: 0
E126: =Translate!$E$411 -> Decommissioning costs incurred after ELT year | G126: =G$96 -> US$ mn 2021 | I126: =SUM(K126:AX126) -> 20 | K126: =K124 * ( K120 = 0) -> 0 | L126: =L124 * ( L120 = 0) -> 0 | M126: 0 | N126: 0 | O126: 0 | P126: 0 | Q126: 0 | R126: 0 | S126: 0 | T126: 0 | U126: 0 | V126: 0 | W126: 0 | X126: 0 | Y126: 0 | Z126: 0 | AA126: 0 | AB126: 0 | AC126: 0 | AD126: 0 | AE126: 0 | AF126: 20 | AG126: 0 | AH126: 0 | AI126: 0 | AJ126: 0 | AK126: 0 | AL126: 0 | AM126: 0 | AN126: 0 | AO126: 0 | AP126: 0 | AQ126: 0 | AR126: 0 | AS126: 0 | AT126: 0 | AU126: 0 | AV126: 0 | AW126: 0 | AX126: 0
E128: =E$48 -> Model calendar years | F128: =F$48 -> 0 | G128: Years | H128: 0 | I128: 0 | J128: 0 | K128: 2021 | L128: 2022 | M128: 2023 | N128: 2024 | O128: 2025 | P128: 2026 | Q128: 2027 | R128: 2028 | S128: 2029 | T128: 2030 | U128: 2031 | V128: 2032 | W128: 2033 | X128: 2034 | Y128: 2035 | Z128: 2036 | AA128: 2037 | AB128: 2038 | AC128: 2039 | AD128: 2040 | AE128: 2041 | AF128: 2042 | AG128: 2043 | AH128: 2044 | AI128: 2045 | AJ128: 2046 | AK128: 2047 | AL128: 2048 | AM128: 2049 | AN128: 2050 | AO128: 2051 | AP128: 2052 | AQ128: 2053 | AR128: 2054 | AS128: 2055 | AT128: 2056 | AU128: 2057 | AV128: 2058 | AW128: 2059 | AX128: 2060
E129: =Translate!$E$412 -> Post-production decommissioning original start year | F129: =SUM(K129:AX129) -> 2042 | G129: =Translate!E$365 -> Year | K129: =AND(J126 = 0, K126 > 0 ) * K128 * (SUM($J129:J129) = 0 ) -> 0 | L129: =AND(K126 = 0, L126 > 0 ) * L128 * (SUM($J129:K129) = 0 ) -> 0 | M129: =AND(L126 = 0, M126 > 0 ) * M128 * (SUM($J129:L129) = 0 ) -> 0 | N129: =AND(M126 = 0, N126 > 0 ) * N128 * (SUM($J129:M129) = 0 ) -> 0 | O129: =AND(N126 = 0, O126 > 0 ) * O128 * (SUM($J129:N129) = 0 ) -> 0 | P129: =AND(O126 = 0, P126 > 0 ) * P128 * (SUM($J129:O129) = 0 ) -> 0 | Q129: =AND(P126 = 0, Q126 > 0 ) * Q128 * (SUM($J129:P129) = 0 ) -> 0 | R129: =AND(Q126 = 0, R126 > 0 ) * R128 * (SUM($J129:Q129) = 0 ) -> 0 | S129: =AND(R126 = 0, S126 > 0 ) * S128 * (SUM($J129:R129) = 0 ) -> 0 | T129: =AND(S126 = 0, T126 > 0 ) * T128 * (SUM($J129:S129) = 0 ) -> 0 | U129: =AND(T126 = 0, U126 > 0 ) * U128 * (SUM($J129:T129) = 0 ) -> 0 | V129: =AND(U126 = 0, V126 > 0 ) * V128 * (SUM($J129:U129) = 0 ) -> 0 | W129: =AND(V126 = 0, W126 > 0 ) * W128 * (SUM($J129:V129) = 0 ) -> 0 | X129: =AND(W126 = 0, X126 > 0 ) * X128 * (SUM($J129:W129) = 0 ) -> 0 | Y129: =AND(X126 = 0, Y126 > 0 ) * Y128 * (SUM($J129:X129) = 0 ) -> 0 | Z129: =AND(Y126 = 0, Z126 > 0 ) * Z128 * (SUM($J129:Y129) = 0 ) -> 0 | AA129: =AND(Z126 = 0, AA126 > 0 ) * AA128 * (SUM($J129:Z129) = 0 ) -> 0 | AB129: =AND(AA126 = 0, AB126 > 0 ) * AB128 * (SUM($J129:AA129) = 0 ) -> 0 | AC129: =AND(AB126 = 0, AC126 > 0 ) * AC128 * (SUM($J129:AB129) = 0 ) -> 0 | AD129: =AND(AC126 = 0, AD126 > 0 ) * AD128 * (SUM($J129:AC129) = 0 ) -> 0 | AE129: =AND(AD126 = 0, AE126 > 0 ) * AE128 * (SUM($J129:AD129) = 0 ) -> 0 | AF129: =AND(AE126 = 0, AF126 > 0 ) * AF128 * (SUM($J129:AE129) = 0 ) -> 2042 | AG129: =AND(AF126 = 0, AG126 > 0 ) * AG128 * (SUM($J129:AF129) = 0 ) -> 0 | AH129: =AND(AG126 = 0, AH126 > 0 ) * AH128 * (SUM($J129:AG129) = 0 ) -> 0 | AI129: =AND(AH126 = 0, AI126 > 0 ) * AI128 * (SUM($J129:AH129) = 0 ) -> 0 | AJ129: =AND(AI126 = 0, AJ126 > 0 ) * AJ128 * (SUM($J129:AI129) = 0 ) -> 0 | AK129: =AND(AJ126 = 0, AK126 > 0 ) * AK128 * (SUM($J129:AJ129) = 0 ) -> 0 | AL129: =AND(AK126 = 0, AL126 > 0 ) * AL128 * (SUM($J129:AK129) = 0 ) -> 0 | AM129: =AND(AL126 = 0, AM126 > 0 ) * AM128 * (SUM($J129:AL129) = 0 ) -> 0 | AN129: =AND(AM126 = 0, AN126 > 0 ) * AN128 * (SUM($J129:AM129) = 0 ) -> 0 | AO129: =AND(AN126 = 0, AO126 > 0 ) * AO128 * (SUM($J129:AN129) = 0 ) -> 0 | AP129: =AND(AO126 = 0, AP126 > 0 ) * AP128 * (SUM($J129:AO129) = 0 ) -> 0 | AQ129: =AND(AP126 = 0, AQ126 > 0 ) * AQ128 * (SUM($J129:AP129) = 0 ) -> 0 | AR129: =AND(AQ126 = 0, AR126 > 0 ) * AR128 * (SUM($J129:AQ129) = 0 ) -> 0 | AS129: =AND(AR126 = 0, AS126 > 0 ) * AS128 * (SUM($J129:AR129) = 0 ) -> 0 | AT129: =AND(AS126 = 0, AT126 > 0 ) * AT128 * (SUM($J129:AS129) = 0 ) -> 0 | AU129: =AND(AT126 = 0, AU126 > 0 ) * AU128 * (SUM($J129:AT129) = 0 ) -> 0 | AV129: =AND(AU126 = 0, AV126 > 0 ) * AV128 * (SUM($J129:AU129) = 0 ) -> 0 | AW129: =AND(AV126 = 0, AW126 > 0 ) * AW128 * (SUM($J129:AV129) = 0 ) -> 0 | AX129: =AND(AW126 = 0, AX126 > 0 ) * AX128 * (SUM($J129:AW129) = 0 ) -> 0
E131: =E$129 -> Post-production decommissioning original start year | F131: =F$129 -> 2042 | G131: =G$129 -> Year
E132: =Translate!$E$413 -> Post-production decommissioning start with ELT | F132: =F116 + 1 -> 2042 | G132: =Translate!E$365 -> Year
E133: =Translate!$E$414 -> EL reached before project end | F133: =IF(F118 <> F119, 0, F131 - F132) -> 0 | G133: =Translate!$E$358 -> Years | H133: =Translate!E$623 -> Zero if ELT off
E134: =E125 -> Decommissioning costs incurred before ELT reached | F134: =F125 -> 0 | G134: US$ mn 2021 | H134: 0 | I134: 0 | J134: 0 | K134: 0 | L134: 0 | M134: 0 | N134: 0 | O134: 0 | P134: 0 | Q134: 0 | R134: 0 | S134: 0 | T134: 0 | U134: 0 | V134: 0 | W134: 0 | X134: 0 | Y134: 0 | Z134: 0 | AA134: 0 | AB134: 0 | AC134: 0 | AD134: 0 | AE134: 0 | AF134: 0 | AG134: 0 | AH134: 0 | AI134: 0 | AJ134: 0 | AK134: 0 | AL134: 0 | AM134: 0 | AN134: 0 | AO134: 0 | AP134: 0 | AQ134: 0 | AR134: 0 | AS134: 0 | AT134: 0 | AU134: 0 | AV134: 0 | AW134: 0 | AX134: 0
E135: =Translate!$E$415 -> Post-production decomm. costs with ELT | G135: =G$96 -> US$ mn 2021 | I135: =SUM(K135:AX135) -> 20 | K135: =SUMIFS( $K126:$AX126, $K123:$AX123, K123 + $F133) -> 0 | L135: =SUMIFS( $K126:$AX126, $K123:$AX123, L123 + $F133) -> 0 | M135: 0 | N135: 0 | O135: 0 | P135: 0 | Q135: 0 | R135: 0 | S135: 0 | T135: 0 | U135: 0 | V135: 0 | W135: 0 | X135: 0 | Y135: 0 | Z135: 0 | AA135: 0 | AB135: 0 | AC135: 0 | AD135: 0 | AE135: 0 | AF135: 20 | AG135: 0 | AH135: 0 | AI135: 0 | AJ135: 0 | AK135: 0 | AL135: 0 | AM135: 0 | AN135: 0 | AO135: 0 | AP135: 0 | AQ135: 0 | AR135: 0 | AS135: 0 | AT135: 0 | AU135: 0 | AV135: 0 | AW135: 0 | AX135: 0
E136: =E124 & " " & Translate!$E$438 -> Decommissioning costs after ELT | G136: =G$96 -> US$ mn 2021 | I136: =SUM(K136:AX136) -> 20 | K136: =SUM(K134:K135) -> 0 | L136: =SUM(L134:L135) -> 0 | M136: 0 | N136: 0 | O136: 0 | P136: 0 | Q136: 0 | R136: 0 | S136: 0 | T136: 0 | U136: 0 | V136: 0 | W136: 0 | X136: 0 | Y136: 0 | Z136: 0 | AA136: 0 | AB136: 0 | AC136: 0 | AD136: 0 | AE136: 0 | AF136: 20 | AG136: 0 | AH136: 0 | AI136: 0 | AJ136: 0 | AK136: 0 | AL136: 0 | AM136: 0 | AN136: 0 | AO136: 0 | AP136: 0 | AQ136: 0 | AR136: 0 | AS136: 0 | AT136: 0 | AU136: 0 | AV136: 0 | AW136: 0 | AX136: 0
A138: =Translate!E$15 & ": " & Inputs!F$85 & ", " & Translate!E$438 -> Project cashflows: real, after ELT
E140: =E$120 -> Project economic limit | F140: =F$120 -> 0 | G140: Flag | H140: 0 | I140: 21 | J140: 0 | K140: 1 | L140: 1 | M140: 1 | N140: 1 | O140: 1 | P140: 1 | Q140: 1 | R140: 1 | S140: 1 | T140: 1 | U140: 1 | V140: 1 | W140: 1 | X140: 1 | Y140: 1 | Z140: 1 | AA140: 1 | AB140: 1 | AC140: 1 | AD140: 1 | AE140: 1 | AF140: 0 | AG140: 0 | AH140: 0 | AI140: 0 | AJ140: 0 | AK140: 0 | AL140: 0 | AM140: 0 | AN140: 0 | AO140: 0 | AP140: 0 | AQ140: 0 | AR140: 0 | AS140: 0 | AT140: 0 | AU140: 0 | AV140: 0 | AW140: 0 | AX140: 0
E142: =E$12 & ", " & Translate!E$383 -> Gold sales, before ELT | G142: =G$12 -> 000 ounce | H142: 0 | I142: 2000 | J142: 0 | K142: 0 | L142: 0 | M142: 0 | N142: 0 | O142: 10 | P142: 75 | Q142: 150 | R142: 150 | S142: 150 | T142: 150 | U142: 150 | V142: 150 | W142: 150 | X142: 150 | Y142: 150 | Z142: 150 | AA142: 125 | AB142: 100 | AC142: 75 | AD142: 65 | AE142: 50 | AF142: 0 | AG142: 0 | AH142: 0 | AI142: 0 | AJ142: 0 | AK142: 0 | AL142: 0 | AM142: 0 | AN142: 0 | AO142: 0 | AP142: 0 | AQ142: 0 | AR142: 0 | AS142: 0 | AT142: 0 | AU142: 0 | AV142: 0 | AW142: 0 | AX142: 0
E143: =E12 & ", " & Translate!$E$438 -> Gold sales, after ELT | G143: 000 ounce | H143: 0 | I143: =SUM(K143:AX143) -> 2000 | K143: =K142 * K140 -> 0 | L143: 0 | M143: 0 | N143: 0 | O143: 10 | P143: 75 | Q143: 150 | R143: 150 | S143: 150 | T143: 150 | U143: 150 | V143: 150 | W143: 150 | X143: 150 | Y143: 150 | Z143: 150 | AA143: 125 | AB143: 100 | AC143: 75 | AD143: 65 | AE143: 50 | AF143: 0 | AG143: 0 | AH143: 0 | AI143: 0 | AJ143: 0 | AK143: 0 | AL143: 0 | AM143: 0 | AN143: 0 | AO143: 0 | AP143: 0 | AQ143: 0 | AR143: 0 | AS143: 0 | AT143: 0 | AU143: 0 | AV143: 0 | AW143: 0 | AX143: 0
E144: =E143 & ", " & Translate!$E$19 -> Gold sales, after ELT, Total | F144: =SUM(K143:AX143) -> 2000 | G144: =G143 -> 000 ounce
B146: =Translate!E$15 & ": " & Inputs!F$85 & ", " & Translate!E$383 -> Project cashflows: real, before ELT
E147: =E$81 -> Gold price realized from sales | F147: 0 | G147: US$ / ounce const | H147: 0 | I147: 60000 | J147: 0 | K147: 1500 | L147: 1500 | M147: 1500 | N147: 1500 | O147: 1500 | P147: 1500 | Q147: 1500 | R147: 1500 | S147: 1500 | T147: 1500 | U147: 1500 | V147: 1500 | W147: 1500 | X147: 1500 | Y147: 1500 | Z147: 1500 | AA147: 1500 | AB147: 1500 | AC147: 1500 | AD147: 1500 | AE147: 1500 | AF147: 1500 | AG147: 1500 | AH147: 1500 | AI147: 1500 | AJ147: 1500 | AK147: 1500 | AL147: 1500 | AM147: 1500 | AN147: 1500 | AO147: 1500 | AP147: 1500 | AQ147: 1500 | AR147: 1500 | AS147: 1500 | AT147: 1500 | AU147: 1500 | AV147: 1500 | AW147: 1500 | AX147: 1500
E149: =E$87 -> Sales revenues: gross | F149: 0 | G149: US$ mn 2021 | H149: 0 | I149: 3000 | J149: 0 | K149: 0 | L149: 0 | M149: 0 | N149: 0 | O149: 15 | P149: 112.5 | Q149: 225 | R149: 225 | S149: 225 | T149: 225 | U149: 225 | V149: 225 | W149: 225 | X149: 225 | Y149: 225 | Z149: 225 | AA149: 187.5 | AB149: 150 | AC149: 112.5 | AD149: 97.5 | AE149: 75 | AF149: 0 | AG149: 0 | AH149: 0 | AI149: 0 | AJ149: 0 | AK149: 0 | AL149: 0 | AM149: 0 | AN149: 0 | AO149: 0 | AP149: 0 | AQ149: 0 | AR149: 0 | AS149: 0 | AT149: 0 | AU149: 0 | AV149: 0 | AW149: 0 | AX149: 0
E150: =E$65 -> Transport costs post-fiscal point | F150: 0 | G150: US$ mn 2021 | H150: 0 | I150: 50 | J150: 0 | K150: 0 | L150: 0 | M150: 0 | N150: 0 | O150: 0.25 | P150: 1.875 | Q150: 3.75 | R150: 3.75 | S150: 3.75 | T150: 3.75 | U150: 3.75 | V150: 3.75 | W150: 3.75 | X150: 3.75 | Y150: 3.75 | Z150: 3.75 | AA150: 3.125 | AB150: 2.5 | AC150: 1.875 | AD150: 1.625 | AE150: 1.25 | AF150: 0 | AG150: 0 | AH150: 0 | AI150: 0 | AJ150: 0 | AK150: 0 | AL150: 0 | AM150: 0 | AN150: 0 | AO150: 0 | AP150: 0 | AQ150: 0 | AR150: 0 | AS150: 0 | AT150: 0 | AU150: 0 | AV150: 0 | AW150: 0 | AX150: 0
E151: =E$89 -> Sales revenues: net | F151: 0 | G151: US$ mn 2021 | H151: 0 | I151: 2950 | J151: 0 | K151: 0 | L151: 0 | M151: 0 | N151: 0 | O151: 14.75 | P151: 110.625 | Q151: 221.25 | R151: 221.25 | S151: 221.25 | T151: 221.25 | U151: 221.25 | V151: 221.25 | W151: 221.25 | X151: 221.25 | Y151: 221.25 | Z151: 221.25 | AA151: 184.375 | AB151: 147.5 | AC151: 110.625 | AD151: 95.875 | AE151: 73.75 | AF151: 0 | AG151: 0 | AH151: 0 | AI151: 0 | AJ151: 0 | AK151: 0 | AL151: 0 | AM151: 0 | AN151: 0 | AO151: 0 | AP151: 0 | AQ151: 0 | AR151: 0 | AS151: 0 | AT151: 0 | AU151: 0 | AV151: 0 | AW151: 0 | AX151: 0
E153: =E$66 -> Exploration costs | F153: 0 | G153: US$ mn 2021 | H153: 0 | I153: 30 | J153: 0 | K153: 10 | L153: 10 | M153: 10 | N153: 0 | O153: 0 | P153: 0 | Q153: 0 | R153: 0 | S153: 0 | T153: 0 | U153: 0 | V153: 0 | W153: 0 | X153: 0 | Y153: 0 | Z153: 0 | AA153: 0 | AB153: 0 | AC153: 0 | AD153: 0 | AE153: 0 | AF153: 0 | AG153: 0 | AH153: 0 | AI153: 0 | AJ153: 0 | AK153: 0 | AL153: 0 | AM153: 0 | AN153: 0 | AO153: 0 | AP153: 0 | AQ153: 0 | AR153: 0 | AS153: 0 | AT153: 0 | AU153: 0 | AV153: 0 | AW153: 0 | AX153: 0
E154: =E$67 -> Development costs | F154: =F$93 -> 0 | G154: US$ mn 2021 | H154: 0 | I154: 400 | J154: 0 | K154: 0 | L154: 0 | M154: 0 | N154: 50 | O154: 250 | P154: 100 | Q154: 0 | R154: 0 | S154: 0 | T154: 0 | U154: 0 | V154: 0 | W154: 0 | X154: 0 | Y154: 0 | Z154: 0 | AA154: 0 | AB154: 0 | AC154: 0 | AD154: 0 | AE154: 0 | AF154: 0 | AG154: 0 | AH154: 0 | AI154: 0 | AJ154: 0 | AK154: 0 | AL154: 0 | AM154: 0 | AN154: 0 | AO154: 0 | AP154: 0 | AQ154: 0 | AR154: 0 | AS154: 0 | AT154: 0 | AU154: 0 | AV154: 0 | AW154: 0 | AX154: 0
E155: =E$68 -> Replacement capital costs | F155: =F$94 -> 0 | G155: US$ mn 2021 | H155: 0 | I155: 96 | J155: 0 | K155: 0 | L155: 0 | M155: 0 | N155: 0 | O155: 0 | P155: 8 | Q155: 8 | R155: 8 | S155: 8 | T155: 8 | U155: 8 | V155: 8 | W155: 8 | X155: 8 | Y155: 8 | Z155: 8 | AA155: 8 | AB155: 0 | AC155: 0 | AD155: 0 | AE155: 0 | AF155: 0 | AG155: 0 | AH155: 0 | AI155: 0 | AJ155: 0 | AK155: 0 | AL155: 0 | AM155: 0 | AN155: 0 | AO155: 0 | AP155: 0 | AQ155: 0 | AR155: 0 | AS155: 0 | AT155: 0 | AU155: 0 | AV155: 0 | AW155: 0 | AX155: 0
E156: =E$69 -> Operating costs | F156: =F$95 -> 0 | G156: US$ mn 2021 | H156: 0 | I156: 900 | J156: 0 | K156: 0 | L156: 0 | M156: 0 | N156: 0 | O156: 4.5 | P156: 33.75 | Q156: 67.5 | R156: 67.5 | S156: 67.5 | T156: 67.5 | U156: 67.5 | V156: 67.5 | W156: 67.5 | X156: 67.5 | Y156: 67.5 | Z156: 67.5 | AA156: 56.25 | AB156: 45 | AC156: 33.75 | AD156: 29.25 | AE156: 22.5 | AF156: 0 | AG156: 0 | AH156: 0 | AI156: 0 | AJ156: 0 | AK156: 0 | AL156: 0 | AM156: 0 | AN156: 0 | AO156: 0 | AP156: 0 | AQ156: 0 | AR156: 0 | AS156: 0 | AT156: 0 | AU156: 0 | AV156: 0 | AW156: 0 | AX156: 0
E157: =E$70 -> Decommissioning costs | F157: =F$96 -> 0 | G157: US$ mn 2021 | H157: 0 | I157: 20 | J157: 0 | K157: 0 | L157: 0 | M157: 0 | N157: 0 | O157: 0 | P157: 0 | Q157: 0 | R157: 0 | S157: 0 | T157: 0 | U157: 0 | V157: 0 | W157: 0 | X157: 0 | Y157: 0 | Z157: 0 | AA157: 0 | AB157: 0 | AC157: 0 | AD157: 0 | AE157: 0 | AF157: 20 | AG157: 0 | AH157: 0 | AI157: 0 | AJ157: 0 | AK157: 0 | AL157: 0 | AM157: 0 | AN157: 0 | AO157: 0 | AP157: 0 | AQ157: 0 | AR157: 0 | AS157: 0 | AT157: 0 | AU157: 0 | AV157: 0 | AW157: 0 | AX157: 0
E158: =Translate!$E$379 -> Project costs | G158: =Inputs!F$53 -> US$ mn 2021 | I158: =SUM(K158:AX158) -> 1446 | K158: =SUM(K153:K157) -> 10 | L158: 10 | M158: 10 | N158: 50 | O158: 254.5 | P158: 141.75 | Q158: 75.5 | R158: 75.5 | S158: 75.5 | T158: 75.5 | U158: 75.5 | V158: 75.5 | W158: 75.5 | X158: 75.5 | Y158: 75.5 | Z158: 75.5 | AA158: 64.25 | AB158: 45 | AC158: 33.75 | AD158: 29.25 | AE158: 22.5 | AF158: 20 | AG158: 0 | AH158: 0 | AI158: 0 | AJ158: 0 | AK158: 0 | AL158: 0 | AM158: 0 | AN158: 0 | AO158: 0 | AP158: 0 | AQ158: 0 | AR158: 0 | AS158: 0 | AT158: 0 | AU158: 0 | AV158: 0 | AW158: 0 | AX158: 0
B160: =Translate!E$15 & ": " & Inputs!F$85 & ", " & Translate!E$438 -> Project cashflows: real, after ELT
E161: =E$120 & ", " & Translate!$E$438 -> Project economic limit, after ELT | F161: =F$120 -> 0 | G161: Flag | H161: 0 | I161: 21 | J161: 0 | K161: 1 | L161: 1 | M161: 1 | N161: 1 | O161: 1 | P161: 1 | Q161: 1 | R161: 1 | S161: 1 | T161: 1 | U161: 1 | V161: 1 | W161: 1 | X161: 1 | Y161: 1 | Z161: 1 | AA161: 1 | AB161: 1 | AC161: 1 | AD161: 1 | AE161: 1 | AF161: 0 | AG161: 0 | AH161: 0 | AI161: 0 | AJ161: 0 | AK161: 0 | AL161: 0 | AM161: 0 | AN161: 0 | AO161: 0 | AP161: 0 | AQ161: 0 | AR161: 0 | AS161: 0 | AT161: 0 | AU161: 0 | AV161: 0 | AW161: 0 | AX161: 0
E163: =E147 & ", " & Translate!$E$438 -> Gold price realized from sales, after ELT | G163: =G147 -> US$ / ounce const | H163: =H$81 -> 0 | I163: =SUM(K163:AX163) -> 31500 | K163: =K147 * K$161 -> 1500 | L163: =L147 * L$161 -> 1500 | M163: 1500 | N163: 1500 | O163: 1500 | P163: 1500 | Q163: 1500 | R163: 1500 | S163: 1500 | T163: 1500 | U163: 1500 | V163: 1500 | W163: 1500 | X163: 1500 | Y163: 1500 | Z163: 1500 | AA163: 1500 | AB163: 1500 | AC163: 1500 | AD163: 1500 | AE163: 1500 | AF163: 0 | AG163: 0 | AH163: 0 | AI163: 0 | AJ163: 0 | AK163: 0 | AL163: 0 | AM163: 0 | AN163: 0 | AO163: 0 | AP163: 0 | AQ163: 0 | AR163: 0 | AS163: 0 | AT163: 0 | AU163: 0 | AV163: 0 | AW163: 0 | AX163: 0
E165: =E149 & ", " & Translate!$E$438 -> Sales revenues: gross, after ELT | G165: =G149 -> US$ mn 2021 | H165: =H$87 -> 0 | I165: =SUM(K165:AX165) -> 3000 | K165: =K149 * K$161 -> 0 | L165: =L149 * L$161 -> 0 | M165: 0 | N165: 0 | O165: 15 | P165: 112.5 | Q165: 225 | R165: 225 | S165: 225 | T165: 225 | U165: 225 | V165: 225 | W165: 225 | X165: 225 | Y165: 225 | Z165: 225 | AA165: 187.5 | AB165: 150 | AC165: 112.5 | AD165: 97.5 | AE165: 75 | AF165: 0 | AG165: 0 | AH165: 0 | AI165: 0 | AJ165: 0 | AK165: 0 | AL165: 0 | AM165: 0 | AN165: 0 | AO165: 0 | AP165: 0 | AQ165: 0 | AR165: 0 | AS165: 0 | AT165: 0 | AU165: 0 | AV165: 0 | AW165: 0 | AX165: 0
E166: =E150 & ", " & Translate!$E$438 -> Transport costs post-fiscal point, after ELT | G166: =G150 -> US$ mn 2021 | H166: =H$65 -> 0 | I166: =SUM(K166:AX166) -> 50 | K166: =K150 * K$161 -> 0 | L166: 0 | M166: 0 | N166: 0 | O166: 0.25 | P166: 1.875 | Q166: 3.75 | R166: 3.75 | S166: 3.75 | T166: 3.75 | U166: 3.75 | V166: 3.75 | W166: 3.75 | X166: 3.75 | Y166: 3.75 | Z166: 3.75 | AA166: 3.125 | AB166: 2.5 | AC166: 1.875 | AD166: 1.625 | AE166: 1.25 | AF166: 0 | AG166: 0 | AH166: 0 | AI166: 0 | AJ166: 0 | AK166: 0 | AL166: 0 | AM166: 0 | AN166: 0 | AO166: 0 | AP166: 0 | AQ166: 0 | AR166: 0 | AS166: 0 | AT166: 0 | AU166: 0 | AV166: 0 | AW166: 0 | AX166: 0
E167: =E151 & ", " & Translate!$E$438 -> Sales revenues: net, after ELT | G167: =G151 -> US$ mn 2021 | H167: =H$89 -> 0 | I167: 2950 | K167: =K165 - K166 -> 0 | L167: =L165 - L166 -> 0 | M167: 0 | N167: 0 | O167: 14.75 | P167: 110.625 | Q167: 221.25 | R167: 221.25 | S167: 221.25 | T167: 221.25 | U167: 221.25 | V167: 221.25 | W167: 221.25 | X167: 221.25 | Y167: 221.25 | Z167: 221.25 | AA167: 184.375 | AB167: 147.5 | AC167: 110.625 | AD167: 95.875 | AE167: 73.75 | AF167: 0 | AG167: 0 | AH167: 0 | AI167: 0 | AJ167: 0 | AK167: 0 | AL167: 0 | AM167: 0 | AN167: 0 | AO167: 0 | AP167: 0 | AQ167: 0 | AR167: 0 | AS167: 0 | AT167: 0 | AU167: 0 | AV167: 0 | AW167: 0 | AX167: 0
E169: =E153 & ", " & Translate!$E$438 -> Exploration costs, after ELT | G169: US$ mn 2021 | H169: =H$66 -> 0 | I169: 30 | K169: =K153 * K$161 -> 10 | L169: =L153 * L$161 -> 10 | M169: 10 | N169: 0 | O169: 0 | P169: 0 | Q169: 0 | R169: 0 | S169: 0 | T169: 0 | U169: 0 | V169: 0 | W169: 0 | X169: 0 | Y169: 0 | Z169: 0 | AA169: 0 | AB169: 0 | AC169: 0 | AD169: 0 | AE169: 0 | AF169: 0 | AG169: 0 | AH169: 0 | AI169: 0 | AJ169: 0 | AK169: 0 | AL169: 0 | AM169: 0 | AN169: 0 | AO169: 0 | AP169: 0 | AQ169: 0 | AR169: 0 | AS169: 0 | AT169: 0 | AU169: 0 | AV169: 0 | AW169: 0 | AX169: 0
E170: =E154 & ", " & Translate!$E$438 -> Development costs, after ELT | G170: US$ mn 2021 | H170: =H$93 -> 0 | I170: 400 | K170: =K154 * K$161 -> 0 | L170: 0 | M170: 0 | N170: 50 | O170: 250 | P170: 100 | Q170: 0 | R170: 0 | S170: 0 | T170: 0 | U170: 0 | V170: 0 | W170: 0 | X170: 0 | Y170: 0 | Z170: 0 | AA170: 0 | AB170: 0 | AC170: 0 | AD170: 0 | AE170: 0 | AF170: 0 | AG170: 0 | AH170: 0 | AI170: 0 | AJ170: 0 | AK170: 0 | AL170: 0 | AM170: 0 | AN170: 0 | AO170: 0 | AP170: 0 | AQ170: 0 | AR170: 0 | AS170: 0 | AT170: 0 | AU170: 0 | AV170: 0 | AW170: 0 | AX170: 0
E171: =E155 & ", " & Translate!$E$438 -> Replacement capital costs, after ELT | G171: US$ mn 2021 | H171: =H$94 -> 0 | I171: 96 | K171: =K155 * K$161 -> 0 | L171: 0 | M171: 0 | N171: 0 | O171: 0 | P171: 8 | Q171: 8 | R171: 8 | S171: 8 | T171: 8 | U171: 8 | V171: 8 | W171: 8 | X171: 8 | Y171: 8 | Z171: 8 | AA171: 8 | AB171: 0 | AC171: 0 | AD171: 0 | AE171: 0 | AF171: 0 | AG171: 0 | AH171: 0 | AI171: 0 | AJ171: 0 | AK171: 0 | AL171: 0 | AM171: 0 | AN171: 0 | AO171: 0 | AP171: 0 | AQ171: 0 | AR171: 0 | AS171: 0 | AT171: 0 | AU171: 0 | AV171: 0 | AW171: 0 | AX171: 0
E172: =E156 & ", " & Translate!$E$438 -> Operating costs, after ELT | G172: US$ mn 2021 | H172: =H$95 -> 0 | I172: 900 | K172: =K156 * K$161 -> 0 | L172: 0 | M172: 0 | N172: 0 | O172: 4.5 | P172: 33.75 | Q172: 67.5 | R172: 67.5 | S172: 67.5 | T172: 67.5 | U172: 67.5 | V172: 67.5 | W172: 67.5 | X172: 67.5 | Y172: 67.5 | Z172: 67.5 | AA172: 56.25 | AB172: 45 | AC172: 33.75 | AD172: 29.25 | AE172: 22.5 | AF172: 0 | AG172: 0 | AH172: 0 | AI172: 0 | AJ172: 0 | AK172: 0 | AL172: 0 | AM172: 0 | AN172: 0 | AO172: 0 | AP172: 0 | AQ172: 0 | AR172: 0 | AS172: 0 | AT172: 0 | AU172: 0 | AV172: 0 | AW172: 0 | AX172: 0
E173: =E157 & ", " & Translate!$E$438 -> Decommissioning costs, after ELT | F173: =F$136 -> 0 | G173: US$ mn 2021 | H173: 0 | I173: 20 | J173: 0 | K173: 0 | L173: 0 | M173: 0 | N173: 0 | O173: 0 | P173: 0 | Q173: 0 | R173: 0 | S173: 0 | T173: 0 | U173: 0 | V173: 0 | W173: 0 | X173: 0 | Y173: 0 | Z173: 0 | AA173: 0 | AB173: 0 | AC173: 0 | AD173: 0 | AE173: 0 | AF173: 20 | AG173: 0 | AH173: 0 | AI173: 0 | AJ173: 0 | AK173: 0 | AL173: 0 | AM173: 0 | AN173: 0 | AO173: 0 | AP173: 0 | AQ173: 0 | AR173: 0 | AS173: 0 | AT173: 0 | AU173: 0 | AV173: 0 | AW173: 0 | AX173: 0
E174: =E158 & ", " & Translate!$E$438 -> Project costs, after ELT | G174: US$ mn 2021 | I174: 1446 | K174: =SUM(K169:K173) -> 10 | L174: =SUM(L169:L173) -> 10 | M174: 10 | N174: 50 | O174: 254.5 | P174: 141.75 | Q174: 75.5 | R174: 75.5 | S174: 75.5 | T174: 75.5 | U174: 75.5 | V174: 75.5 | W174: 75.5 | X174: 75.5 | Y174: 75.5 | Z174: 75.5 | AA174: 64.25 | AB174: 45 | AC174: 33.75 | AD174: 29.25 | AE174: 22.5 | AF174: 20 | AG174: 0 | AH174: 0 | AI174: 0 | AJ174: 0 | AK174: 0 | AL174: 0 | AM174: 0 | AN174: 0 | AO174: 0 | AP174: 0 | AQ174: 0 | AR174: 0 | AS174: 0 | AT174: 0 | AU174: 0 | AV174: 0 | AW174: 0 | AX174: 0
D176: =Translate!$E$605 -> add | E176: =E$167 -> Sales revenues: net, after ELT | F176: =F$167 -> 0 | G176: US$ mn 2021 | H176: 0 | I176: 2950 | J176: 0 | K176: 0 | L176: 0 | M176: 0 | N176: 0 | O176: 14.75 | P176: 110.625 | Q176: 221.25 | R176: 221.25 | S176: 221.25 | T176: 221.25 | U176: 221.25 | V176: 221.25 | W176: 221.25 | X176: 221.25 | Y176: 221.25 | Z176: 221.25 | AA176: 184.375 | AB176: 147.5 | AC176: 110.625 | AD176: 95.875 | AE176: 73.75 | AF176: 0 | AG176: 0 | AH176: 0 | AI176: 0 | AJ176: 0 | AK176: 0 | AL176: 0 | AM176: 0 | AN176: 0 | AO176: 0 | AP176: 0 | AQ176: 0 | AR176: 0 | AS176: 0 | AT176: 0 | AU176: 0 | AV176: 0 | AW176: 0 | AX176: 0
D177: =Translate!$E$606 -> less | E177: =E$174 -> Project costs, after ELT | F177: =F$174 -> 0 | G177: =Inputs!F$53 -> US$ mn 2021 | H177: 0 | I177: 1446 | J177: 0 | K177: 10 | L177: 10 | M177: 10 | N177: 50 | O177: 254.5 | P177: 141.75 | Q177: 75.5 | R177: 75.5 | S177: 75.5 | T177: 75.5 | U177: 75.5 | V177: 75.5 | W177: 75.5 | X177: 75.5 | Y177: 75.5 | Z177: 75.5 | AA177: 64.25 | AB177: 45 | AC177: 33.75 | AD177: 29.25 | AE177: 22.5 | AF177: 20 | AG177: 0 | AH177: 0 | AI177: 0 | AJ177: 0 | AK177: 0 | AL177: 0 | AM177: 0 | AN177: 0 | AO177: 0 | AP177: 0 | AQ177: 0 | AR177: 0 | AS177: 0 | AT177: 0 | AU177: 0 | AV177: 0 | AW177: 0 | AX177: 0
E178: =Translate!E$15 & ": " & Inputs!F$85 & ", " & Translate!E$438 -> Project cashflows: real, after ELT | G178: =Inputs!F$53 -> US$ mn 2021 | I178: =SUM(K178:AX178) -> 1504 | K178: =K176 - K177 -> -10 | L178: -10 | M178: -10 | N178: -50 | O178: -239.75 | P178: -31.125 | Q178: 145.75 | R178: 145.75 | S178: 145.75 | T178: 145.75 | U178: 145.75 | V178: 145.75 | W178: 145.75 | X178: 145.75 | Y178: 145.75 | Z178: 145.75 | AA178: 120.125 | AB178: 102.5 | AC178: 76.875 | AD178: 66.625 | AE178: 51.25 | AF178: -20 | AG178: 0 | AH178: 0 | AI178: 0 | AJ178: 0 | AK178: 0 | AL178: 0 | AM178: 0 | AN178: 0 | AO178: 0 | AP178: 0 | AQ178: 0 | AR178: 0 | AS178: 0 | AT178: 0 | AU178: 0 | AV178: 0 | AW178: 0 | AX178: 0
A180: =Translate!$E$371 -> Flags
B182: =Translate!$E$384 -> Project period
E183: =E$48 -> Model calendar years | F183: 0 | G183: Years | H183: 0 | I183: 0 | J183: 0 | K183: 2021 | L183: 2022 | M183: 2023 | N183: 2024 | O183: 2025 | P183: 2026 | Q183: 2027 | R183: 2028 | S183: 2029 | T183: 2030 | U183: 2031 | V183: 2032 | W183: 2033 | X183: 2034 | Y183: 2035 | Z183: 2036 | AA183: 2037 | AB183: 2038 | AC183: 2039 | AD183: 2040 | AE183: 2041 | AF183: 2042 | AG183: 2043 | AH183: 2044 | AI183: 2045 | AJ183: 2046 | AK183: 2047 | AL183: 2048 | AM183: 2049 | AN183: 2050 | AO183: 2051 | AP183: 2052 | AQ183: 2053 | AR183: 2054 | AS183: 2055 | AT183: 2056 | AU183: 2057 | AV183: 2058 | AW183: 2059 | AX183: 2060
E184: =Translate!$E$416 -> Project activity | G184: =Translate!E$586 -> Flag | I184: =SUM(K184:AX184) -> 22 | K184: =AND( SUM($K165:K174) > 0, SUM(K165:$AX174) > 0 ) * 1 -> 1 | L184: =AND( SUM($K165:L174) > 0, SUM(L165:$AX174) > 0 ) * 1 -> 1 | M184: =AND( SUM($K165:M174) > 0, SUM(M165:$AX174) > 0 ) * 1 -> 1 | N184: =AND( SUM($K165:N174) > 0, SUM(N165:$AX174) > 0 ) * 1 -> 1 | O184: =AND( SUM($K165:O174) > 0, SUM(O165:$AX174) > 0 ) * 1 -> 1 | P184: =AND( SUM($K165:P174) > 0, SUM(P165:$AX174) > 0 ) * 1 -> 1 | Q184: =AND( SUM($K165:Q174) > 0, SUM(Q165:$AX174) > 0 ) * 1 -> 1 | R184: =AND( SUM($K165:R174) > 0, SUM(R165:$AX174) > 0 ) * 1 -> 1 | S184: =AND( SUM($K165:S174) > 0, SUM(S165:$AX174) > 0 ) * 1 -> 1 | T184: =AND( SUM($K165:T174) > 0, SUM(T165:$AX174) > 0 ) * 1 -> 1 | U184: =AND( SUM($K165:U174) > 0, SUM(U165:$AX174) > 0 ) * 1 -> 1 | V184: =AND( SUM($K165:V174) > 0, SUM(V165:$AX174) > 0 ) * 1 -> 1 | W184: =AND( SUM($K165:W174) > 0, SUM(W165:$AX174) > 0 ) * 1 -> 1 | X184: =AND( SUM($K165:X174) > 0, SUM(X165:$AX174) > 0 ) * 1 -> 1 | Y184: =AND( SUM($K165:Y174) > 0, SUM(Y165:$AX174) > 0 ) * 1 -> 1 | Z184: =AND( SUM($K165:Z174) > 0, SUM(Z165:$AX174) > 0 ) * 1 -> 1 | AA184: =AND( SUM($K165:AA174) > 0, SUM(AA165:$AX174) > 0 ) * 1 -> 1 | AB184: =AND( SUM($K165:AB174) > 0, SUM(AB165:$AX174) > 0 ) * 1 -> 1 | AC184: =AND( SUM($K165:AC174) > 0, SUM(AC165:$AX174) > 0 ) * 1 -> 1 | AD184: =AND( SUM($K165:AD174) > 0, SUM(AD165:$AX174) > 0 ) * 1 -> 1 | AE184: =AND( SUM($K165:AE174) > 0, SUM(AE165:$AX174) > 0 ) * 1 -> 1 | AF184: =AND( SUM($K165:AF174) > 0, SUM(AF165:$AX174) > 0 ) * 1 -> 1 | AG184: =AND( SUM($K165:AG174) > 0, SUM(AG165:$AX174) > 0 ) * 1 -> 0 | AH184: =AND( SUM($K165:AH174) > 0, SUM(AH165:$AX174) > 0 ) * 1 -> 0 | AI184: =AND( SUM($K165:AI174) > 0, SUM(AI165:$AX174) > 0 ) * 1 -> 0 | AJ184: =AND( SUM($K165:AJ174) > 0, SUM(AJ165:$AX174) > 0 ) * 1 -> 0 | AK184: =AND( SUM($K165:AK174) > 0, SUM(AK165:$AX174) > 0 ) * 1 -> 0 | AL184: =AND( SUM($K165:AL174) > 0, SUM(AL165:$AX174) > 0 ) * 1 -> 0 | AM184: =AND( SUM($K165:AM174) > 0, SUM(AM165:$AX174) > 0 ) * 1 -> 0 | AN184: =AND( SUM($K165:AN174) > 0, SUM(AN165:$AX174) > 0 ) * 1 -> 0 | AO184: =AND( SUM($K165:AO174) > 0, SUM(AO165:$AX174) > 0 ) * 1 -> 0 | AP184: =AND( SUM($K165:AP174) > 0, SUM(AP165:$AX174) > 0 ) * 1 -> 0 | AQ184: =AND( SUM($K165:AQ174) > 0, SUM(AQ165:$AX174) > 0 ) * 1 -> 0 | AR184: =AND( SUM($K165:AR174) > 0, SUM(AR165:$AX174) > 0 ) * 1 -> 0 | AS184: =AND( SUM($K165:AS174) > 0, SUM(AS165:$AX174) > 0 ) * 1 -> 0 | AT184: =AND( SUM($K165:AT174) > 0, SUM(AT165:$AX174) > 0 ) * 1 -> 0 | AU184: =AND( SUM($K165:AU174) > 0, SUM(AU165:$AX174) > 0 ) * 1 -> 0 | AV184: =AND( SUM($K165:AV174) > 0, SUM(AV165:$AX174) > 0 ) * 1 -> 0 | AW184: =AND( SUM($K165:AW174) > 0, SUM(AW165:$AX174) > 0 ) * 1 -> 0 | AX184: =AND( SUM($K165:AX174) > 0, SUM(AX165:$AX174) > 0 ) * 1 -> 0
E185: =Translate!$E$417 -> Cumulative project activity | G185: =Translate!$E$358 -> Years | K185: =( J185 + K184 ) * K184 -> 1 | L185: 2 | M185: 3 | N185: 4 | O185: 5 | P185: 6 | Q185: 7 | R185: 8 | S185: 9 | T185: 10 | U185: 11 | V185: 12 | W185: 13 | X185: 14 | Y185: 15 | Z185: 16 | AA185: 17 | AB185: 18 | AC185: 19 | AD185: 20 | AE185: 21 | AF185: 22 | AG185: 0 | AH185: 0 | AI185: 0 | AJ185: 0 | AK185: 0 | AL185: 0 | AM185: 0 | AN185: 0 | AO185: 0 | AP185: 0 | AQ185: 0 | AR185: 0 | AS185: 0 | AT185: 0 | AU185: 0 | AV185: 0 | AW185: 0 | AX185: 0
E186: =Translate!$E$418 -> First project activity year | F186: =INDEX(K183:AX183, , MATCH(1, K185:AX185, 0)) -> 2021 | G186: =Translate!E$365 -> Year
E188: =Translate!$E$419 -> Project activity (excl. decommissioning) | G188: =Translate!E$586 -> Flag | I188: =SUM(K188:AX188) -> 21 | K188: =AND( SUM($K165:K172) > 0, SUM(K165:$AX172) > 0 ) * 1 -> 1 | L188: =AND( SUM($K165:L172) > 0, SUM(L165:$AX172) > 0 ) * 1 -> 1 | M188: =AND( SUM($K165:M172) > 0, SUM(M165:$AX172) > 0 ) * 1 -> 1 | N188: =AND( SUM($K165:N172) > 0, SUM(N165:$AX172) > 0 ) * 1 -> 1 | O188: =AND( SUM($K165:O172) > 0, SUM(O165:$AX172) > 0 ) * 1 -> 1 | P188: =AND( SUM($K165:P172) > 0, SUM(P165:$AX172) > 0 ) * 1 -> 1 | Q188: =AND( SUM($K165:Q172) > 0, SUM(Q165:$AX172) > 0 ) * 1 -> 1 | R188: =AND( SUM($K165:R172) > 0, SUM(R165:$AX172) > 0 ) * 1 -> 1 | S188: =AND( SUM($K165:S172) > 0, SUM(S165:$AX172) > 0 ) * 1 -> 1 | T188: =AND( SUM($K165:T172) > 0, SUM(T165:$AX172) > 0 ) * 1 -> 1 | U188: =AND( SUM($K165:U172) > 0, SUM(U165:$AX172) > 0 ) * 1 -> 1 | V188: =AND( SUM($K165:V172) > 0, SUM(V165:$AX172) > 0 ) * 1 -> 1 | W188: =AND( SUM($K165:W172) > 0, SUM(W165:$AX172) > 0 ) * 1 -> 1 | X188: =AND( SUM($K165:X172) > 0, SUM(X165:$AX172) > 0 ) * 1 -> 1 | Y188: =AND( SUM($K165:Y172) > 0, SUM(Y165:$AX172) > 0 ) * 1 -> 1 | Z188: =AND( SUM($K165:Z172) > 0, SUM(Z165:$AX172) > 0 ) * 1 -> 1 | AA188: =AND( SUM($K165:AA172) > 0, SUM(AA165:$AX172) > 0 ) * 1 -> 1 | AB188: =AND( SUM($K165:AB172) > 0, SUM(AB165:$AX172) > 0 ) * 1 -> 1 | AC188: =AND( SUM($K165:AC172) > 0, SUM(AC165:$AX172) > 0 ) * 1 -> 1 | AD188: =AND( SUM($K165:AD172) > 0, SUM(AD165:$AX172) > 0 ) * 1 -> 1 | AE188: =AND( SUM($K165:AE172) > 0, SUM(AE165:$AX172) > 0 ) * 1 -> 1 | AF188: =AND( SUM($K165:AF172) > 0, SUM(AF165:$AX172) > 0 ) * 1 -> 0 | AG188: =AND( SUM($K165:AG172) > 0, SUM(AG165:$AX172) > 0 ) * 1 -> 0 | AH188: =AND( SUM($K165:AH172) > 0, SUM(AH165:$AX172) > 0 ) * 1 -> 0 | AI188: =AND( SUM($K165:AI172) > 0, SUM(AI165:$AX172) > 0 ) * 1 -> 0 | AJ188: =AND( SUM($K165:AJ172) > 0, SUM(AJ165:$AX172) > 0 ) * 1 -> 0 | AK188: =AND( SUM($K165:AK172) > 0, SUM(AK165:$AX172) > 0 ) * 1 -> 0 | AL188: =AND( SUM($K165:AL172) > 0, SUM(AL165:$AX172) > 0 ) * 1 -> 0 | AM188: =AND( SUM($K165:AM172) > 0, SUM(AM165:$AX172) > 0 ) * 1 -> 0 | AN188: =AND( SUM($K165:AN172) > 0, SUM(AN165:$AX172) > 0 ) * 1 -> 0 | AO188: =AND( SUM($K165:AO172) > 0, SUM(AO165:$AX172) > 0 ) * 1 -> 0 | AP188: =AND( SUM($K165:AP172) > 0, SUM(AP165:$AX172) > 0 ) * 1 -> 0 | AQ188: =AND( SUM($K165:AQ172) > 0, SUM(AQ165:$AX172) > 0 ) * 1 -> 0 | AR188: =AND( SUM($K165:AR172) > 0, SUM(AR165:$AX172) > 0 ) * 1 -> 0 | AS188: =AND( SUM($K165:AS172) > 0, SUM(AS165:$AX172) > 0 ) * 1 -> 0 | AT188: =AND( SUM($K165:AT172) > 0, SUM(AT165:$AX172) > 0 ) * 1 -> 0 | AU188: =AND( SUM($K165:AU172) > 0, SUM(AU165:$AX172) > 0 ) * 1 -> 0 | AV188: =AND( SUM($K165:AV172) > 0, SUM(AV165:$AX172) > 0 ) * 1 -> 0 | AW188: =AND( SUM($K165:AW172) > 0, SUM(AW165:$AX172) > 0 ) * 1 -> 0 | AX188: =AND( SUM($K165:AX172) > 0, SUM(AX165:$AX172) > 0 ) * 1 -> 0
E189: =E188 & ": " & Translate!E$755 -> Project activity (excl. decommissioning): cumulative | G189: =Translate!E$586 -> Flag | K189: =(J189 + K188) * K188 -> 1 | L189: 2 | M189: 3 | N189: 4 | O189: 5 | P189: 6 | Q189: 7 | R189: 8 | S189: 9 | T189: 10 | U189: 11 | V189: 12 | W189: 13 | X189: 14 | Y189: 15 | Z189: 16 | AA189: 17 | AB189: 18 | AC189: 19 | AD189: =(AC189 + AD188) * AD188 -> 20 | AE189: =(AD189 + AE188) * AE188 -> 21 | AF189: 0 | AG189: 0 | AH189: 0 | AI189: 0 | AJ189: 0 | AK189: 0 | AL189: 0 | AM189: 0 | AN189: 0 | AO189: 0 | AP189: 0 | AQ189: 0 | AR189: 0 | AS189: 0 | AT189: 0 | AU189: 0 | AV189: 0 | AW189: 0 | AX189: 0
B191: =Translate!$E$385 -> Production period
E192: =Translate!$E$420 -> Production years after ELT | G192: =Translate!E$586 -> Flag | I192: =SUM(K192:AX192) -> 17 | K192: =AND( SUM($K165:K165) > 0, SUM(K165:$AX165) > 0 ) * 1 -> 0 | L192: =AND( SUM($K165:L165) > 0, SUM(L165:$AX165) > 0 ) * 1 -> 0 | M192: =AND( SUM($K165:M165) > 0, SUM(M165:$AX165) > 0 ) * 1 -> 0 | N192: =AND( SUM($K165:N165) > 0, SUM(N165:$AX165) > 0 ) * 1 -> 0 | O192: =AND( SUM($K165:O165) > 0, SUM(O165:$AX165) > 0 ) * 1 -> 1 | P192: =AND( SUM($K165:P165) > 0, SUM(P165:$AX165) > 0 ) * 1 -> 1 | Q192: =AND( SUM($K165:Q165) > 0, SUM(Q165:$AX165) > 0 ) * 1 -> 1 | R192: =AND( SUM($K165:R165) > 0, SUM(R165:$AX165) > 0 ) * 1 -> 1 | S192: =AND( SUM($K165:S165) > 0, SUM(S165:$AX165) > 0 ) * 1 -> 1 | T192: =AND( SUM($K165:T165) > 0, SUM(T165:$AX165) > 0 ) * 1 -> 1 | U192: =AND( SUM($K165:U165) > 0, SUM(U165:$AX165) > 0 ) * 1 -> 1 | V192: =AND( SUM($K165:V165) > 0, SUM(V165:$AX165) > 0 ) * 1 -> 1 | W192: =AND( SUM($K165:W165) > 0, SUM(W165:$AX165) > 0 ) * 1 -> 1 | X192: =AND( SUM($K165:X165) > 0, SUM(X165:$AX165) > 0 ) * 1 -> 1 | Y192: =AND( SUM($K165:Y165) > 0, SUM(Y165:$AX165) > 0 ) * 1 -> 1 | Z192: =AND( SUM($K165:Z165) > 0, SUM(Z165:$AX165) > 0 ) * 1 -> 1 | AA192: =AND( SUM($K165:AA165) > 0, SUM(AA165:$AX165) > 0 ) * 1 -> 1 | AB192: =AND( SUM($K165:AB165) > 0, SUM(AB165:$AX165) > 0 ) * 1 -> 1 | AC192: =AND( SUM($K165:AC165) > 0, SUM(AC165:$AX165) > 0 ) * 1 -> 1 | AD192: =AND( SUM($K165:AD165) > 0, SUM(AD165:$AX165) > 0 ) * 1 -> 1 | AE192: =AND( SUM($K165:AE165) > 0, SUM(AE165:$AX165) > 0 ) * 1 -> 1 | AF192: =AND( SUM($K165:AF165) > 0, SUM(AF165:$AX165) > 0 ) * 1 -> 0 | AG192: =AND( SUM($K165:AG165) > 0, SUM(AG165:$AX165) > 0 ) * 1 -> 0 | AH192: =AND( SUM($K165:AH165) > 0, SUM(AH165:$AX165) > 0 ) * 1 -> 0 | AI192: =AND( SUM($K165:AI165) > 0, SUM(AI165:$AX165) > 0 ) * 1 -> 0 | AJ192: =AND( SUM($K165:AJ165) > 0, SUM(AJ165:$AX165) > 0 ) * 1 -> 0 | AK192: =AND( SUM($K165:AK165) > 0, SUM(AK165:$AX165) > 0 ) * 1 -> 0 | AL192: =AND( SUM($K165:AL165) > 0, SUM(AL165:$AX165) > 0 ) * 1 -> 0 | AM192: =AND( SUM($K165:AM165) > 0, SUM(AM165:$AX165) > 0 ) * 1 -> 0 | AN192: =AND( SUM($K165:AN165) > 0, SUM(AN165:$AX165) > 0 ) * 1 -> 0 | AO192: =AND( SUM($K165:AO165) > 0, SUM(AO165:$AX165) > 0 ) * 1 -> 0 | AP192: =AND( SUM($K165:AP165) > 0, SUM(AP165:$AX165) > 0 ) * 1 -> 0 | AQ192: =AND( SUM($K165:AQ165) > 0, SUM(AQ165:$AX165) > 0 ) * 1 -> 0 | AR192: =AND( SUM($K165:AR165) > 0, SUM(AR165:$AX165) > 0 ) * 1 -> 0 | AS192: =AND( SUM($K165:AS165) > 0, SUM(AS165:$AX165) > 0 ) * 1 -> 0 | AT192: =AND( SUM($K165:AT165) > 0, SUM(AT165:$AX165) > 0 ) * 1 -> 0 | AU192: =AND( SUM($K165:AU165) > 0, SUM(AU165:$AX165) > 0 ) * 1 -> 0 | AV192: =AND( SUM($K165:AV165) > 0, SUM(AV165:$AX165) > 0 ) * 1 -> 0 | AW192: =AND( SUM($K165:AW165) > 0, SUM(AW165:$AX165) > 0 ) * 1 -> 0 | AX192: =AND( SUM($K165:AX165) > 0, SUM(AX165:$AX165) > 0 ) * 1 -> 0
E193: =Translate!$E$421 -> Cumulative production years | G193: =Translate!$E$358 -> Years | K193: =( J193 + K192 ) * K192 -> 0 | L193: 0 | M193: 0 | N193: 0 | O193: 1 | P193: 2 | Q193: 3 | R193: 4 | S193: 5 | T193: 6 | U193: 7 | V193: 8 | W193: 9 | X193: 10 | Y193: 11 | Z193: 12 | AA193: 13 | AB193: 14 | AC193: 15 | AD193: 16 | AE193: 17 | AF193: 0 | AG193: 0 | AH193: 0 | AI193: 0 | AJ193: 0 | AK193: 0 | AL193: 0 | AM193: 0 | AN193: 0 | AO193: 0 | AP193: 0 | AQ193: 0 | AR193: 0 | AS193: 0 | AT193: 0 | AU193: 0 | AV193: 0 | AW193: 0 | AX193: 0
E194: =Translate!$E$422 -> Remaining production years | G194: =Translate!$E$358 -> Years | K194: =SUM( K192:$AX192) * K192 -> 0 | L194: =SUM( L192:$AX192) * L192 -> 0 | M194: =SUM( M192:$AX192) * M192 -> 0 | N194: =SUM( N192:$AX192) * N192 -> 0 | O194: =SUM( O192:$AX192) * O192 -> 17 | P194: =SUM( P192:$AX192) * P192 -> 16 | Q194: =SUM( Q192:$AX192) * Q192 -> 15 | R194: =SUM( R192:$AX192) * R192 -> 14 | S194: =SUM( S192:$AX192) * S192 -> 13 | T194: =SUM( T192:$AX192) * T192 -> 12 | U194: =SUM( U192:$AX192) * U192 -> 11 | V194: =SUM( V192:$AX192) * V192 -> 10 | W194: =SUM( W192:$AX192) * W192 -> 9 | X194: =SUM( X192:$AX192) * X192 -> 8 | Y194: =SUM( Y192:$AX192) * Y192 -> 7 | Z194: =SUM( Z192:$AX192) * Z192 -> 6 | AA194: =SUM( AA192:$AX192) * AA192 -> 5 | AB194: =SUM( AB192:$AX192) * AB192 -> 4 | AC194: =SUM( AC192:$AX192) * AC192 -> 3 | AD194: =SUM( AD192:$AX192) * AD192 -> 2 | AE194: =SUM( AE192:$AX192) * AE192 -> 1 | AF194: =SUM( AF192:$AX192) * AF192 -> 0 | AG194: =SUM( AG192:$AX192) * AG192 -> 0 | AH194: =SUM( AH192:$AX192) * AH192 -> 0 | AI194: =SUM( AI192:$AX192) * AI192 -> 0 | AJ194: =SUM( AJ192:$AX192) * AJ192 -> 0 | AK194: =SUM( AK192:$AX192) * AK192 -> 0 | AL194: =SUM( AL192:$AX192) * AL192 -> 0 | AM194: =SUM( AM192:$AX192) * AM192 -> 0 | AN194: =SUM( AN192:$AX192) * AN192 -> 0 | AO194: =SUM( AO192:$AX192) * AO192 -> 0 | AP194: =SUM( AP192:$AX192) * AP192 -> 0 | AQ194: =SUM( AQ192:$AX192) * AQ192 -> 0 | AR194: =SUM( AR192:$AX192) * AR192 -> 0 | AS194: =SUM( AS192:$AX192) * AS192 -> 0 | AT194: =SUM( AT192:$AX192) * AT192 -> 0 | AU194: =SUM( AU192:$AX192) * AU192 -> 0 | AV194: =SUM( AV192:$AX192) * AV192 -> 0 | AW194: =SUM( AW192:$AX192) * AW192 -> 0 | AX194: =SUM( AX192:$AX192) * AX192 -> 0
E195: =E192 -> Production years after ELT | F195: =SUM(K192:AX192) -> 17 | G195: =Translate!$E$358 -> Years
B198: =Translate!$E$386 -> Development period (used for depreciation calculations)
E199: =E$48 -> Model calendar years | F199: 0 | G199: Years | H199: 0 | I199: 0 | J199: 0 | K199: 2021 | L199: 2022 | M199: 2023 | N199: 2024 | O199: 2025 | P199: 2026 | Q199: 2027 | R199: 2028 | S199: 2029 | T199: 2030 | U199: 2031 | V199: 2032 | W199: 2033 | X199: 2034 | Y199: 2035 | Z199: 2036 | AA199: 2037 | AB199: 2038 | AC199: 2039 | AD199: 2040 | AE199: 2041 | AF199: 2042 | AG199: 2043 | AH199: 2044 | AI199: 2045 | AJ199: 2046 | AK199: 2047 | AL199: 2048 | AM199: 2049 | AN199: 2050 | AO199: 2051 | AP199: 2052 | AQ199: 2053 | AR199: 2054 | AS199: 2055 | AT199: 2056 | AU199: 2057 | AV199: 2058 | AW199: 2059 | AX199: 2060
E200: =E$67 -> Development costs | F200: 0 | G200: US$ mn 2021 | H200: 0 | I200: 400 | J200: 0 | K200: 0 | L200: 0 | M200: 0 | N200: 50 | O200: 250 | P200: 100 | Q200: 0 | R200: 0 | S200: 0 | T200: 0 | U200: 0 | V200: 0 | W200: 0 | X200: 0 | Y200: 0 | Z200: 0 | AA200: 0 | AB200: 0 | AC200: 0 | AD200: 0 | AE200: 0 | AF200: 0 | AG200: 0 | AH200: 0 | AI200: 0 | AJ200: 0 | AK200: 0 | AL200: 0 | AM200: 0 | AN200: 0 | AO200: 0 | AP200: 0 | AQ200: 0 | AR200: 0 | AS200: 0 | AT200: 0 | AU200: 0 | AV200: 0 | AW200: 0 | AX200: 0
E201: =Translate!$E$336 -> Final investment decision (start of development) | G201: =Translate!E$586 -> Flag | K201: =AND( J200 = 0, K200 > 0, (SUM($J201:J201) = 0)) * K199 -> 0 | L201: =AND( K200 = 0, L200 > 0, (SUM($J201:K201) = 0)) * L199 -> 0 | M201: =AND( L200 = 0, M200 > 0, (SUM($J201:L201) = 0)) * M199 -> 0 | N201: =AND( M200 = 0, N200 > 0, (SUM($J201:M201) = 0)) * N199 -> 2024 | O201: =AND( N200 = 0, O200 > 0, (SUM($J201:N201) = 0)) * O199 -> 0 | P201: =AND( O200 = 0, P200 > 0, (SUM($J201:O201) = 0)) * P199 -> 0 | Q201: =AND( P200 = 0, Q200 > 0, (SUM($J201:P201) = 0)) * Q199 -> 0 | R201: =AND( Q200 = 0, R200 > 0, (SUM($J201:Q201) = 0)) * R199 -> 0 | S201: =AND( R200 = 0, S200 > 0, (SUM($J201:R201) = 0)) * S199 -> 0 | T201: =AND( S200 = 0, T200 > 0, (SUM($J201:S201) = 0)) * T199 -> 0 | U201: =AND( T200 = 0, U200 > 0, (SUM($J201:T201) = 0)) * U199 -> 0 | V201: =AND( U200 = 0, V200 > 0, (SUM($J201:U201) = 0)) * V199 -> 0 | W201: =AND( V200 = 0, W200 > 0, (SUM($J201:V201) = 0)) * W199 -> 0 | X201: =AND( W200 = 0, X200 > 0, (SUM($J201:W201) = 0)) * X199 -> 0 | Y201: =AND( X200 = 0, Y200 > 0, (SUM($J201:X201) = 0)) * Y199 -> 0 | Z201: =AND( Y200 = 0, Z200 > 0, (SUM($J201:Y201) = 0)) * Z199 -> 0 | AA201: =AND( Z200 = 0, AA200 > 0, (SUM($J201:Z201) = 0)) * AA199 -> 0 | AB201: =AND( AA200 = 0, AB200 > 0, (SUM($J201:AA201) = 0)) * AB199 -> 0 | AC201: =AND( AB200 = 0, AC200 > 0, (SUM($J201:AB201) = 0)) * AC199 -> 0 | AD201: =AND( AC200 = 0, AD200 > 0, (SUM($J201:AC201) = 0)) * AD199 -> 0 | AE201: =AND( AD200 = 0, AE200 > 0, (SUM($J201:AD201) = 0)) * AE199 -> 0 | AF201: =AND( AE200 = 0, AF200 > 0, (SUM($J201:AE201) = 0)) * AF199 -> 0 | AG201: =AND( AF200 = 0, AG200 > 0, (SUM($J201:AF201) = 0)) * AG199 -> 0 | AH201: =AND( AG200 = 0, AH200 > 0, (SUM($J201:AG201) = 0)) * AH199 -> 0 | AI201: =AND( AH200 = 0, AI200 > 0, (SUM($J201:AH201) = 0)) * AI199 -> 0 | AJ201: =AND( AI200 = 0, AJ200 > 0, (SUM($J201:AI201) = 0)) * AJ199 -> 0 | AK201: =AND( AJ200 = 0, AK200 > 0, (SUM($J201:AJ201) = 0)) * AK199 -> 0 | AL201: =AND( AK200 = 0, AL200 > 0, (SUM($J201:AK201) = 0)) * AL199 -> 0 | AM201: =AND( AL200 = 0, AM200 > 0, (SUM($J201:AL201) = 0)) * AM199 -> 0 | AN201: =AND( AM200 = 0, AN200 > 0, (SUM($J201:AM201) = 0)) * AN199 -> 0 | AO201: =AND( AN200 = 0, AO200 > 0, (SUM($J201:AN201) = 0)) * AO199 -> 0 | AP201: =AND( AO200 = 0, AP200 > 0, (SUM($J201:AO201) = 0)) * AP199 -> 0 | AQ201: =AND( AP200 = 0, AQ200 > 0, (SUM($J201:AP201) = 0)) * AQ199 -> 0 | AR201: =AND( AQ200 = 0, AR200 > 0, (SUM($J201:AQ201) = 0)) * AR199 -> 0 | AS201: =AND( AR200 = 0, AS200 > 0, (SUM($J201:AR201) = 0)) * AS199 -> 0 | AT201: =AND( AS200 = 0, AT200 > 0, (SUM($J201:AS201) = 0)) * AT199 -> 0 | AU201: =AND( AT200 = 0, AU200 > 0, (SUM($J201:AT201) = 0)) * AU199 -> 0 | AV201: =AND( AU200 = 0, AV200 > 0, (SUM($J201:AU201) = 0)) * AV199 -> 0 | AW201: =AND( AV200 = 0, AW200 > 0, (SUM($J201:AV201) = 0)) * AW199 -> 0 | AX201: =AND( AW200 = 0, AX200 > 0, (SUM($J201:AW201) = 0)) * AX199 -> 0
E202: =Translate!$E563 -> FID | F202: =SUM(K201:AX201) -> 2024 | G202: =Translate!E$365 -> Year
E204: =E$184 -> Project activity | F204: 0 | G204: Flag | H204: 0 | I204: 22 | J204: 0 | K204: 1 | L204: 1 | M204: 1 | N204: 1 | O204: 1 | P204: 1 | Q204: 1 | R204: 1 | S204: 1 | T204: 1 | U204: 1 | V204: 1 | W204: 1 | X204: 1 | Y204: 1 | Z204: 1 | AA204: 1 | AB204: 1 | AC204: 1 | AD204: 1 | AE204: 1 | AF204: 1 | AG204: 0 | AH204: 0 | AI204: 0 | AJ204: 0 | AK204: 0 | AL204: 0 | AM204: 0 | AN204: 0 | AO204: 0 | AP204: 0 | AQ204: 0 | AR204: 0 | AS204: 0 | AT204: 0 | AU204: 0 | AV204: 0 | AW204: 0 | AX204: 0
E205: =Translate!$E$423 -> Cumulative years from start of development | G205: =Translate!$E$358 -> Years | K205: =IF( K199 >= $F202, J205 + 1, 0) * K204 -> 0 | L205: 0 | M205: 0 | N205: 1 | O205: 2 | P205: 3 | Q205: 4 | R205: 5 | S205: 6 | T205: 7 | U205: 8 | V205: 9 | W205: 10 | X205: 11 | Y205: 12 | Z205: 13 | AA205: 14 | AB205: 15 | AC205: 16 | AD205: 17 | AE205: 18 | AF205: 19 | AG205: 0 | AH205: 0 | AI205: 0 | AJ205: 0 | AK205: 0 | AL205: 0 | AM205: 0 | AN205: 0 | AO205: 0 | AP205: 0 | AQ205: 0 | AR205: 0 | AS205: 0 | AT205: 0 | AU205: 0 | AV205: 0 | AW205: 0 | AX205: 0
E206: =Translate!$E$424 -> FID forward flag | G206: =Translate!E$586 -> Flag | I206: =SUM(K206:AX206) -> 37 | K206: =(K199 >= $F202 ) * 1 -> 0 | L206: 0 | M206: 0 | N206: 1 | O206: 1 | P206: 1 | Q206: 1 | R206: 1 | S206: 1 | T206: 1 | U206: 1 | V206: 1 | W206: 1 | X206: 1 | Y206: 1 | Z206: 1 | AA206: 1 | AB206: 1 | AC206: 1 | AD206: 1 | AE206: 1 | AF206: 1 | AG206: 1 | AH206: 1 | AI206: 1 | AJ206: 1 | AK206: 1 | AL206: 1 | AM206: 1 | AN206: 1 | AO206: 1 | AP206: 1 | AQ206: 1 | AR206: 1 | AS206: 1 | AT206: 1 | AU206: 1 | AV206: 1 | AW206: 1 | AX206: 1
A208: =Translate!$E$372 -> Inflation Indices
B210: =Translate!$E$387 -> Index for escalating revenues and costs
E211: =Inputs!E$45 -> Inflation rate | F211: =Inputs!F$45 -> 0.02 | G211: =Inputs!G$45 -> %
E212: =E$185 -> Cumulative project activity | F212: 0 | G212: Years | H212: 0 | I212: 0 | J212: 0 | K212: 1 | L212: 2 | M212: 3 | N212: 4 | O212: 5 | P212: 6 | Q212: 7 | R212: 8 | S212: 9 | T212: 10 | U212: 11 | V212: 12 | W212: 13 | X212: 14 | Y212: 15 | Z212: 16 | AA212: 17 | AB212: 18 | AC212: 19 | AD212: 20 | AE212: 21 | AF212: 22 | AG212: 0 | AH212: 0 | AI212: 0 | AJ212: 0 | AK212: 0 | AL212: 0 | AM212: 0 | AN212: 0 | AO212: 0 | AP212: 0 | AQ212: 0 | AR212: 0 | AS212: 0 | AT212: 0 | AU212: 0 | AV212: 0 | AW212: 0 | AX212: 0
E213: =Translate!$E$425 -> Inflation index | G213: =Translate!$E$608 -> Index | H213: =Translate!E607 -> base year is first project year | K213: =IF( K212 <= 1, 1, J213 * ( 1 + $F211)) -> 1 | L213: 1.02 | M213: 1.0404 | N213: 1.061208 | O213: 1.08243216 | P213: 1.104080803 | Q213: 1.126162419 | R213: 1.148685668 | S213: 1.171659381 | T213: 1.195092569 | U213: 1.21899442 | V213: 1.243374308 | W213: 1.268241795 | X213: 1.29360663 | Y213: 1.319478763 | Z213: 1.345868338 | AA213: 1.372785705 | AB213: 1.400241419 | AC213: 1.428246248 | AD213: 1.456811173 | AE213: 1.485947396 | AF213: 1.515666344 | AG213: 1 | AH213: 1 | AI213: 1 | AJ213: 1 | AK213: 1 | AL213: 1 | AM213: 1 | AN213: 1 | AO213: 1 | AP213: 1 | AQ213: 1 | AR213: 1 | AS213: 1 | AT213: 1 | AU213: 1 | AV213: 1 | AW213: 1 | AX213: 1
B215: =Translate!$E$389 -> Discount factors (assumes discounting to middle of the year, assuming cashflows received on average in middle of the year)
E216: =Inputs!E$55 -> Discount rate | F216: =Inputs!F$55 -> 0.08 | G216: =Inputs!G$55 -> % real
E217: =Inputs!E$59 -> Short NPV label | F217: =Inputs!F$59 -> NPV8 | G217: =Inputs!G$59 -> Label
C219: =Translate!E$390 & ": " & Inputs!F$83 -> Discount factor: full-cycle
E220: =E$185 -> Cumulative project activity | F220: 0 | G220: Years | H220: 0 | I220: 0 | J220: 0 | K220: 1 | L220: 2 | M220: 3 | N220: 4 | O220: 5 | P220: 6 | Q220: 7 | R220: 8 | S220: 9 | T220: 10 | U220: 11 | V220: 12 | W220: 13 | X220: 14 | Y220: 15 | Z220: 16 | AA220: 17 | AB220: 18 | AC220: 19 | AD220: 20 | AE220: 21 | AF220: 22 | AG220: 0 | AH220: 0 | AI220: 0 | AJ220: 0 | AK220: 0 | AL220: 0 | AM220: 0 | AN220: 0 | AO220: 0 | AP220: 0 | AQ220: 0 | AR220: 0 | AS220: 0 | AT220: 0 | AU220: 0 | AV220: 0 | AW220: 0 | AX220: 0
E221: =C219 & ", " & F$217 -> Discount factor: full-cycle, NPV8 | G221: =Translate!E$356 -> factor | K221: =IF( K220 = 0, 0, 1 / ( 1 + $F216) ^ (K220 - 1) ) -> 1 | L221: 0.9259259259 | M221: 0.8573388203 | N221: 0.793832241 | O221: 0.7350298528 | P221: 0.680583197 | Q221: 0.6301696269 | R221: 0.5834903953 | S221: 0.5402688845 | T221: 0.5002489671 | U221: 0.4631934881 | V221: 0.4288828593 | W221: 0.3971137586 | X221: 0.3676979247 | Y221: 0.3404610414 | Z221: 0.315241705 | AA221: 0.2918904676 | AB221: 0.2702689514 | AC221: 0.2502490291 | AD221: 0.231712064 | AE221: 0.2145482074 | AF221: 0.1986557476 | AG221: 0 | AH221: 0 | AI221: 0 | AJ221: 0 | AK221: 0 | AL221: 0 | AM221: 0 | AN221: 0 | AO221: 0 | AP221: 0 | AQ221: 0 | AR221: 0 | AS221: 0 | AT221: 0 | AU221: 0 | AV221: 0 | AW221: 0 | AX221: 0
C223: =Translate!E$390 & ": " & Inputs!F$84 -> Discount factor: FID forward
E224: =E$205 -> Cumulative years from start of development | F224: 0 | G224: Years | H224: 0 | I224: 0 | J224: 0 | K224: 0 | L224: 0 | M224: 0 | N224: 1 | O224: 2 | P224: 3 | Q224: 4 | R224: 5 | S224: 6 | T224: 7 | U224: 8 | V224: 9 | W224: 10 | X224: 11 | Y224: 12 | Z224: 13 | AA224: 14 | AB224: 15 | AC224: 16 | AD224: 17 | AE224: 18 | AF224: 19 | AG224: 0 | AH224: 0 | AI224: 0 | AJ224: 0 | AK224: 0 | AL224: 0 | AM224: 0 | AN224: 0 | AO224: 0 | AP224: 0 | AQ224: 0 | AR224: 0 | AS224: 0 | AT224: 0 | AU224: 0 | AV224: 0 | AW224: 0 | AX224: 0
E225: =C223 & ", " & F217 -> Discount factor: FID forward, NPV8 | G225: =Translate!E$356 -> factor | K225: =IF( K224 = 0, 0, 1 / ( 1 + $F216) ^ (K224 - 1)) -> 0 | L225: 0 | M225: 0 | N225: 1 | O225: 0.9259259259 | P225: 0.8573388203 | Q225: 0.793832241 | R225: 0.7350298528 | S225: 0.680583197 | T225: 0.6301696269 | U225: 0.5834903953 | V225: 0.5402688845 | W225: 0.5002489671 | X225: 0.4631934881 | Y225: 0.4288828593 | Z225: 0.3971137586 | AA225: 0.3676979247 | AB225: 0.3404610414 | AC225: 0.315241705 | AD225: 0.2918904676 | AE225: 0.2702689514 | AF225: 0.2502490291 | AG225: 0 | AH225: 0 | AI225: 0 | AJ225: 0 | AK225: 0 | AL225: 0 | AM225: 0 | AN225: 0 | AO225: 0 | AP225: 0 | AQ225: 0 | AR225: 0 | AS225: 0 | AT225: 0 | AU225: 0 | AV225: 0 | AW225: 0 | AX225: 0
A227: =Translate!E$15 & ": " & Inputs!F$86 & ", " & Translate!E$438 -> Project cashflows: nominal, after ELT
B229: =Translate!E$15 & ": " & Inputs!F$86 & ", " & Translate!E$438 -> Project cashflows: nominal, after ELT
E230: =E$213 -> Inflation index | F230: 0 | G230: Index | H230: base year is first project year | I230: 0 | J230: 0 | K230: 1 | L230: 1.02 | M230: 1.0404 | N230: 1.061208 | O230: 1.08243216 | P230: 1.104080803 | Q230: 1.126162419 | R230: 1.148685668 | S230: 1.171659381 | T230: 1.195092569 | U230: 1.21899442 | V230: 1.243374308 | W230: 1.268241795 | X230: 1.29360663 | Y230: 1.319478763 | Z230: 1.345868338 | AA230: 1.372785705 | AB230: 1.400241419 | AC230: 1.428246248 | AD230: 1.456811173 | AE230: 1.485947396 | AF230: 1.515666344 | AG230: 1 | AH230: 1 | AI230: 1 | AJ230: 1 | AK230: 1 | AL230: 1 | AM230: 1 | AN230: 1 | AO230: 1 | AP230: 1 | AQ230: 1 | AR230: 1 | AS230: 1 | AT230: 1 | AU230: 1 | AV230: 1 | AW230: 1 | AX230: 1
E231: =E$10 -> Mineral units | F231: =F$10 -> ounce | G231: =G$10 -> Units
E232: =E163 -> Gold price realized from sales, after ELT | G232: =Translate!E$9 & " / " & F231 -> US$ / ounce | K232: =K163 * K230 -> 1500 | L232: 1530 | M232: 1560.6 | N232: 1591.812 | O232: 1623.64824 | P232: 1656.121205 | Q232: 1689.243629 | R232: 1723.028501 | S232: 1757.489072 | T232: 1792.638853 | U232: 1828.49163 | V232: 1865.061463 | W232: 1902.362692 | X232: 1940.409946 | Y232: 1979.218145 | Z232: 2018.802507 | AA232: 2059.178558 | AB232: 2100.362129 | AC232: 2142.369371 | AD232: 2185.216759 | AE232: 2228.921094 | AF232: 0 | AG232: 0 | AH232: 0 | AI232: 0 | AJ232: 0 | AK232: 0 | AL232: 0 | AM232: 0 | AN232: 0 | AO232: 0 | AP232: 0 | AQ232: 0 | AR232: 0 | AS232: 0 | AT232: 0 | AU232: 0 | AV232: 0 | AW232: 0 | AX232: 0
E234: =E165 -> Sales revenues: gross, after ELT | G234: =Translate!E$10 -> US$ mn | I234: =SUM(K234:AX234) -> 3796.553918 | K234: =K165 * K$230 -> 0 | L234: 0 | M234: 0 | N234: 0 | O234: 16.2364824 | P234: 124.2090904 | Q234: 253.3865443 | R234: 258.4542752 | S234: 263.6233607 | T234: 268.8958279 | U234: 274.2737445 | V234: 279.7592194 | W234: 285.3544038 | X234: 291.0614919 | Y234: 296.8827217 | Z234: 302.8203761 | AA234: 257.3973197 | AB234: 210.0362129 | AC234: 160.6777029 | AD234: 142.0390893 | AE234: 111.4460547 | AF234: 0 | AG234: 0 | AH234: 0 | AI234: 0 | AJ234: 0 | AK234: 0 | AL234: 0 | AM234: 0 | AN234: 0 | AO234: 0 | AP234: 0 | AQ234: 0 | AR234: 0 | AS234: 0 | AT234: 0 | AU234: 0 | AV234: 0 | AW234: 0 | AX234: 0
E235: =E166 -> Transport costs post-fiscal point, after ELT | G235: =Translate!E$10 -> US$ mn | I235: =SUM(K235:AX235) -> 63.27589863 | K235: =K166 * K$230 -> 0 | L235: 0 | M235: 0 | N235: 0 | O235: 0.27060804 | P235: 2.070151506 | Q235: 4.223109072 | R235: 4.307571254 | S235: 4.393722679 | T235: 4.481597132 | U235: 4.571229075 | V235: 4.662653656 | W235: 4.75590673 | X235: 4.851024864 | Y235: 4.948045361 | Z235: 5.047006269 | AA235: 4.289955328 | AB235: 3.500603548 | AC235: 2.677961714 | AD235: 2.367318155 | AE235: 1.857434245 | AF235: 0 | AG235: 0 | AH235: 0 | AI235: 0 | AJ235: 0 | AK235: 0 | AL235: 0 | AM235: 0 | AN235: 0 | AO235: 0 | AP235: 0 | AQ235: 0 | AR235: 0 | AS235: 0 | AT235: 0 | AU235: 0 | AV235: 0 | AW235: 0 | AX235: 0
E236: =E167 -> Sales revenues: net, after ELT | G236: =Translate!E$10 -> US$ mn | I236: =SUM(K236:AX236) -> 3733.278019 | K236: =K234 - K235 -> 0 | L236: 0 | M236: 0 | N236: 0 | O236: 15.96587436 | P236: 122.1389389 | Q236: 249.1634353 | R236: 254.146704 | S236: 259.229638 | T236: 264.4142308 | U236: 269.7025154 | V236: 275.0965657 | W236: 280.598497 | X236: 286.210467 | Y236: 291.9346763 | Z236: 297.7733699 | AA236: 253.1073644 | AB236: 206.5356093 | AC236: 157.9997411 | AD236: 139.6717712 | AE236: 109.5886205 | AF236: 0 | AG236: 0 | AH236: 0 | AI236: 0 | AJ236: 0 | AK236: 0 | AL236: 0 | AM236: 0 | AN236: 0 | AO236: 0 | AP236: 0 | AQ236: 0 | AR236: 0 | AS236: 0 | AT236: 0 | AU236: 0 | AV236: 0 | AW236: 0 | AX236: 0
E238: =E169 -> Exploration costs, after ELT | G238: =Translate!E$10 -> US$ mn | I238: =SUM(K238:AX238) -> 30.604 | K238: =K169 * K$230 -> 10 | L238: 10.2 | M238: 10.404 | N238: 0 | O238: 0 | P238: 0 | Q238: 0 | R238: 0 | S238: 0 | T238: 0 | U238: 0 | V238: 0 | W238: 0 | X238: 0 | Y238: 0 | Z238: 0 | AA238: 0 | AB238: 0 | AC238: 0 | AD238: 0 | AE238: 0 | AF238: 0 | AG238: 0 | AH238: 0 | AI238: 0 | AJ238: 0 | AK238: 0 | AL238: 0 | AM238: 0 | AN238: 0 | AO238: 0 | AP238: 0 | AQ238: 0 | AR238: 0 | AS238: 0 | AT238: 0 | AU238: 0 | AV238: 0 | AW238: 0 | AX238: 0
E239: Development costs, after ELT | G239: =Translate!E$10 -> US$ mn | I239: 434.0765203 | K239: =K170 * K$230 -> 0 | L239: 0 | M239: 0 | N239: 53.0604 | O239: 270.60804 | P239: 110.4080803 | Q239: 0 | R239: 0 | S239: 0 | T239: 0 | U239: 0 | V239: 0 | W239: 0 | X239: 0 | Y239: 0 | Z239: 0 | AA239: 0 | AB239: 0 | AC239: 0 | AD239: 0 | AE239: 0 | AF239: 0 | AG239: 0 | AH239: 0 | AI239: 0 | AJ239: 0 | AK239: 0 | AL239: 0 | AM239: 0 | AN239: 0 | AO239: 0 | AP239: 0 | AQ239: 0 | AR239: 0 | AS239: 0 | AT239: 0 | AU239: 0 | AV239: 0 | AW239: 0 | AX239: 0
E240: Replacement capital costs, after ELT | G240: =Translate!E$10 -> US$ mn | I240: 118.4642464 | K240: =K171 * K$230 -> 0 | L240: 0 | M240: 0 | N240: 0 | O240: 0 | P240: 8.832646426 | Q240: 9.009299354 | R240: 9.189485341 | S240: 9.373275048 | T240: 9.560740549 | U240: 9.75195536 | V240: 9.946994467 | W240: 10.14593436 | X240: 10.34885304 | Y240: 10.5558301 | Z240: 10.76694671 | AA240: 10.98228564 | AB240: 0 | AC240: 0 | AD240: 0 | AE240: 0 | AF240: 0 | AG240: 0 | AH240: 0 | AI240: 0 | AJ240: 0 | AK240: 0 | AL240: 0 | AM240: 0 | AN240: 0 | AO240: 0 | AP240: 0 | AQ240: 0 | AR240: 0 | AS240: 0 | AT240: 0 | AU240: 0 | AV240: 0 | AW240: 0 | AX240: 0
E241: Operating costs, after ELT | G241: =Translate!E$10 -> US$ mn | I241: 1138.966175 | K241: =K172 * K$230 -> 0 | L241: 0 | M241: 0 | N241: 0 | O241: 4.87094472 | P241: 37.26272711 | Q241: 76.0159633 | R241: 77.53628257 | S241: 79.08700822 | T241: 80.66874838 | U241: 82.28212335 | V241: 83.92776582 | W241: 85.60632113 | X241: 87.31844756 | Y241: 89.06481651 | Z241: 90.84611284 | AA241: 77.21919591 | AB241: 63.01086386 | AC241: 48.20331086 | AD241: 42.6117268 | AE241: 33.43381641 | AF241: 0 | AG241: 0 | AH241: 0 | AI241: 0 | AJ241: 0 | AK241: 0 | AL241: 0 | AM241: 0 | AN241: 0 | AO241: 0 | AP241: 0 | AQ241: 0 | AR241: 0 | AS241: 0 | AT241: 0 | AU241: 0 | AV241: 0 | AW241: 0 | AX241: 0
E242: Decommissioning costs, after ELT | G242: =Translate!E$10 -> US$ mn | I242: 30.31332688 | K242: =K173 * K$230 -> 0 | L242: 0 | M242: 0 | N242: 0 | O242: 0 | P242: 0 | Q242: 0 | R242: 0 | S242: 0 | T242: 0 | U242: 0 | V242: 0 | W242: 0 | X242: 0 | Y242: 0 | Z242: 0 | AA242: 0 | AB242: 0 | AC242: 0 | AD242: 0 | AE242: 0 | AF242: 30.31332688 | AG242: 0 | AH242: 0 | AI242: 0 | AJ242: 0 | AK242: 0 | AL242: 0 | AM242: 0 | AN242: 0 | AO242: 0 | AP242: 0 | AQ242: 0 | AR242: 0 | AS242: 0 | AT242: 0 | AU242: 0 | AV242: 0 | AW242: 0 | AX242: 0
E243: Project costs, after ELT | G243: =Translate!E$10 -> US$ mn | I243: 1752.424269 | K243: =SUM(K238:K242) -> 10 | L243: =SUM(L238:L242) -> 10.2 | M243: 10.404 | N243: 53.0604 | O243: 275.4789847 | P243: 156.5034539 | Q243: 85.02526265 | R243: 86.72576791 | S243: 88.46028327 | T243: 90.22948893 | U243: 92.03407871 | V243: 93.87476028 | W243: 95.75225549 | X243: 97.6673006 | Y243: 99.62064661 | Z243: 101.6130595 | AA243: 88.20148155 | AB243: 63.01086386 | AC243: 48.20331086 | AD243: 42.6117268 | AE243: 33.43381641 | AF243: 30.31332688 | AG243: 0 | AH243: 0 | AI243: 0 | AJ243: 0 | AK243: 0 | AL243: 0 | AM243: 0 | AN243: 0 | AO243: 0 | AP243: 0 | AQ243: 0 | AR243: 0 | AS243: 0 | AT243: 0 | AU243: 0 | AV243: 0 | AW243: 0 | AX243: 0
E245: =Translate!$E$428 -> Project cashflow before decommissioning fund | G245: =Translate!E$10 -> US$ mn | I245: =SUM(K245:AX245) -> 1980.85375 | K245: =K236-K243 -> -10 | L245: -10.2 | M245: -10.404 | N245: -53.0604 | O245: -259.5131104 | P245: -34.364515 | Q245: 164.1381726 | R245: 167.4209361 | S245: 170.7693548 | T245: 174.1847419 | U245: 177.6684367 | V245: 181.2218054 | W245: 184.8462416 | X245: 188.5431664 | Y245: 192.3140297 | Z245: 196.1603103 | AA245: 164.9058828 | AB245: 143.5247455 | AC245: 109.7964303 | AD245: 97.06004437 | AE245: 76.15480404 | AF245: -30.31332688 | AG245: 0 | AH245: 0 | AI245: 0 | AJ245: 0 | AK245: 0 | AL245: 0 | AM245: 0 | AN245: 0 | AO245: 0 | AP245: 0 | AQ245: 0 | AR245: 0 | AS245: 0 | AT245: 0 | AU245: 0 | AV245: 0 | AW245: 0 | AX245: 0
B247: =Translate!$E$429 -> Project benefits
E248: =E$236 -> Sales revenues: net, after ELT | F248: 0 | G248: US$ mn | H248: 0 | I248: 3733.278019 | J248: 0 | K248: 0 | L248: 0 | M248: 0 | N248: 0 | O248: 15.96587436 | P248: 122.1389389 | Q248: 249.1634353 | R248: 254.146704 | S248: 259.229638 | T248: 264.4142308 | U248: 269.7025154 | V248: 275.0965657 | W248: 280.598497 | X248: 286.210467 | Y248: 291.9346763 | Z248: 297.7733699 | AA248: 253.1073644 | AB248: 206.5356093 | AC248: 157.9997411 | AD248: 139.6717712 | AE248: 109.5886205 | AF248: 0 | AG248: 0 | AH248: 0 | AI248: 0 | AJ248: 0 | AK248: 0 | AL248: 0 | AM248: 0 | AN248: 0 | AO248: 0 | AP248: 0 | AQ248: 0 | AR248: 0 | AS248: 0 | AT248: 0 | AU248: 0 | AV248: 0 | AW248: 0 | AX248: 0
D249: =Translate!$E$606 -> less | E249: =E$240 -> Replacement capital costs, after ELT | F249: 0 | G249: US$ mn | H249: 0 | I249: 118.4642464 | J249: 0 | K249: 0 | L249: 0 | M249: 0 | N249: 0 | O249: 0 | P249: 8.832646426 | Q249: 9.009299354 | R249: 9.189485341 | S249: 9.373275048 | T249: 9.560740549 | U249: 9.75195536 | V249: 9.946994467 | W249: 10.14593436 | X249: 10.34885304 | Y249: 10.5558301 | Z249: 10.76694671 | AA249: 10.98228564 | AB249: 0 | AC249: 0 | AD249: 0 | AE249: 0 | AF249: 0 | AG249: 0 | AH249: 0 | AI249: 0 | AJ249: 0 | AK249: 0 | AL249: 0 | AM249: 0 | AN249: 0 | AO249: 0 | AP249: 0 | AQ249: 0 | AR249: 0 | AS249: 0 | AT249: 0 | AU249: 0 | AV249: 0 | AW249: 0 | AX249: 0
D250: =Translate!$E$606 -> less | E250: =E$241 -> Operating costs, after ELT | F250: 0 | G250: US$ mn | H250: 0 | I250: 1138.966175 | J250: 0 | K250: 0 | L250: 0 | M250: 0 | N250: 0 | O250: 4.87094472 | P250: 37.26272711 | Q250: 76.0159633 | R250: 77.53628257 | S250: 79.08700822 | T250: 80.66874838 | U250: 82.28212335 | V250: 83.92776582 | W250: 85.60632113 | X250: 87.31844756 | Y250: 89.06481651 | Z250: 90.84611284 | AA250: 77.21919591 | AB250: 63.01086386 | AC250: 48.20331086 | AD250: 42.6117268 | AE250: 33.43381641 | AF250: 0 | AG250: 0 | AH250: 0 | AI250: 0 | AJ250: 0 | AK250: 0 | AL250: 0 | AM250: 0 | AN250: 0 | AO250: 0 | AP250: 0 | AQ250: 0 | AR250: 0 | AS250: 0 | AT250: 0 | AU250: 0 | AV250: 0 | AW250: 0 | AX250: 0
D251: =Translate!$E$606 -> less | E251: =E$242 -> Decommissioning costs, after ELT | F251: 0 | G251: US$ mn | H251: 0 | I251: 30.31332688 | J251: 0 | K251: 0 | L251: 0 | M251: 0 | N251: 0 | O251: 0 | P251: 0 | Q251: 0 | R251: 0 | S251: 0 | T251: 0 | U251: 0 | V251: 0 | W251: 0 | X251: 0 | Y251: 0 | Z251: 0 | AA251: 0 | AB251: 0 | AC251: 0 | AD251: 0 | AE251: 0 | AF251: 30.31332688 | AG251: 0 | AH251: 0 | AI251: 0 | AJ251: 0 | AK251: 0 | AL251: 0 | AM251: 0 | AN251: 0 | AO251: 0 | AP251: 0 | AQ251: 0 | AR251: 0 | AS251: 0 | AT251: 0 | AU251: 0 | AV251: 0 | AW251: 0 | AX251: 0
E252: =Translate!$E$429 -> Project benefits | G252: =Translate!E$10 -> US$ mn | H252: =Translate!E$625 -> cashflows excluding exploration & development costs | I252: =SUM(K252:AX252) -> 2445.534271 | K252: =K248 - K249 - K250 - K251 -> 0 | L252: 0 | M252: 0 | N252: 0 | O252: 11.09492964 | P252: 76.04356532 | Q252: 164.1381726 | R252: 167.4209361 | S252: 170.7693548 | T252: 174.1847419 | U252: 177.6684367 | V252: 181.2218054 | W252: 184.8462416 | X252: 188.5431664 | Y252: 192.3140297 | Z252: 196.1603103 | AA252: 164.9058828 | AB252: 143.5247455 | AC252: 109.7964303 | AD252: 97.06004437 | AE252: 76.15480404 | AF252: -30.31332688 | AG252: 0 | AH252: 0 | AI252: 0 | AJ252: 0 | AK252: 0 | AL252: 0 | AM252: 0 | AN252: 0 | AO252: 0 | AP252: 0 | AQ252: 0 | AR252: 0 | AS252: 0 | AT252: 0 | AU252: 0 | AV252: 0 | AW252: 0 | AX252: 0
B254: =Translate!E$15 & ": " & Translate!$E$19 -> Project cashflows: Total
E255: =E234 & ", " & Translate!$E$19 -> Sales revenues: gross, after ELT, Total | F255: =SUM(K234:AX234) -> 3796.553918 | G255: =G234 -> US$ mn
E256: =E235 & ", " & Translate!$E$19 -> Transport costs post-fiscal point, after ELT, Total | F256: =SUM(K235:AX235) -> 63.27589863 | G256: =G235 -> US$ mn
E258: =E238 & ", " & Translate!$E$19 -> Exploration costs, after ELT, Total | F258: =SUM(K238:AX238) -> 30.604 | G258: =G238 -> US$ mn
E259: =E239 & ", " & Translate!$E$19 -> Development costs, after ELT, Total | F259: =SUM(K239:AX239) -> 434.0765203 | G259: =G239 -> US$ mn
E260: =E240 & ", " & Translate!$E$19 -> Replacement capital costs, after ELT, Total | F260: =SUM(K240:AX240) -> 118.4642464 | G260: =G240 -> US$ mn
E261: =E241 & ", " & Translate!$E$19 -> Operating costs, after ELT, Total | F261: =SUM(K241:AX241) -> 1138.966175 | G261: =G241 -> US$ mn
E262: =E242 & ", " & Translate!$E$19 -> Decommissioning costs, after ELT, Total | F262: =SUM(K242:AX242) -> 30.31332688 | G262: =G242 -> US$ mn
... 20 more rows

Sheet Analysis
A1: =RIGHT( CELL("filename",$A$1), LEN( CELL("filename",$A$1)) - SEARCH("]", CELL("filename",$A$1))) ->  | K1: =ProjectCashflows!K$48 -> 2021 | L1: =ProjectCashflows!L$48 -> 2022 | M1: =ProjectCashflows!M$48 -> 2023 | N1: =ProjectCashflows!N$48 -> 2024 | O1: =ProjectCashflows!O$48 -> 2025 | P1: =ProjectCashflows!P$48 -> 2026 | Q1: =ProjectCashflows!Q$48 -> 2027 | R1: =ProjectCashflows!R$48 -> 2028 | S1: =ProjectCashflows!S$48 -> 2029 | T1: =ProjectCashflows!T$48 -> 2030 | U1: =ProjectCashflows!U$48 -> 2031 | V1: =ProjectCashflows!V$48 -> 2032 | W1: =ProjectCashflows!W$48 -> 2033 | X1: =ProjectCashflows!X$48 -> 2034 | Y1: =ProjectCashflows!Y$48 -> 2035 | Z1: =ProjectCashflows!Z$48 -> 2036 | AA1: =ProjectCashflows!AA$48 -> 2037 | AB1: =ProjectCashflows!AB$48 -> 2038 | AC1: =ProjectCashflows!AC$48 -> 2039 | AD1: =ProjectCashflows!AD$48 -> 2040 | AE1: =ProjectCashflows!AE$48 -> 2041 | AF1: =ProjectCashflows!AF$48 -> 2042 | AG1: =ProjectCashflows!AG$48 -> 2043 | AH1: =ProjectCashflows!AH$48 -> 2044 | AI1: =ProjectCashflows!AI$48 -> 2045 | AJ1: =ProjectCashflows!AJ$48 -> 2046 | AK1: =ProjectCashflows!AK$48 -> 2047 | AL1: =ProjectCashflows!AL$48 -> 2048 | AM1: =ProjectCashflows!AM$48 -> 2049 | AN1: =ProjectCashflows!AN$48 -> 2050 | AO1: =ProjectCashflows!AO$48 -> 2051 | AP1: =ProjectCashflows!AP$48 -> 2052 | AQ1: =ProjectCashflows!AQ$48 -> 2053 | AR1: =ProjectCashflows!AR$48 -> 2054 | AS1: =ProjectCashflows!AS$48 -> 2055 | AT1: =ProjectCashflows!AT$48 -> 2056 | AU1: =ProjectCashflows!AU$48 -> 2057 | AV1: =ProjectCashflows!AV$48 -> 2058 | AW1: =ProjectCashflows!AW$48 -> 2059 | AX1: =ProjectCashflows!AX$48 -> 2060
E2: =Translate!$E$391 -> Row description | F2: =Translate!E$554 -> Constant | G2: =Translate!E$445 -> Units | H2: =Translate!$E$280 -> Comments | I2: =Translate!E$19 -> Total
F3: =ReadMe!$D$7 -> 0 | G3: =ReadMe!$E$7 -> Checks | K3: =Track!$F$1 -> 0 | L3: =Track!$G$1 -> Track changes
A4: =Translate!E$11 & ": " & Inputs!F$86 & ", " & Inputs!F$83 -> Analysis: nominal, full-cycle
B6: =Translate!E$12 & ": " & Inputs!F$83 & ", " & Inputs!F$86 -> Cashflows: full-cycle, nominal
C7: =Translate!E15 & ": " & Inputs!F$83 & ", " & Inputs!F$86 -> Project cashflows: full-cycle, nominal
E8: =ProjectCashflows!E$234 -> Sales revenues: gross, after ELT | F8: =ProjectCashflows!F$234 -> 0 | G8: =ProjectCashflows!G$234 -> US$ mn | H8: =ProjectCashflows!H$234 -> 0 | I8: =ProjectCashflows!I$234 -> 3796.553918 | J8: =ProjectCashflows!J$234 -> 0 | K8: =ProjectCashflows!K$234 -> 0 | L8: =ProjectCashflows!L$234 -> 0 | M8: =ProjectCashflows!M$234 -> 0 | N8: =ProjectCashflows!N$234 -> 0 | O8: =ProjectCashflows!O$234 -> 16.2364824 | P8: =ProjectCashflows!P$234 -> 124.2090904 | Q8: =ProjectCashflows!Q$234 -> 253.3865443 | R8: =ProjectCashflows!R$234 -> 258.4542752 | S8: =ProjectCashflows!S$234 -> 263.6233607 | T8: =ProjectCashflows!T$234 -> 268.8958279 | U8: =ProjectCashflows!U$234 -> 274.2737445 | V8: =ProjectCashflows!V$234 -> 279.7592194 | W8: =ProjectCashflows!W$234 -> 285.3544038 | X8: =ProjectCashflows!X$234 -> 291.0614919 | Y8: =ProjectCashflows!Y$234 -> 296.8827217 | Z8: =ProjectCashflows!Z$234 -> 302.8203761 | AA8: =ProjectCashflows!AA$234 -> 257.3973197 | AB8: =ProjectCashflows!AB$234 -> 210.0362129 | AC8: =ProjectCashflows!AC$234 -> 160.6777029 | AD8: =ProjectCashflows!AD$234 -> 142.0390893 | AE8: =ProjectCashflows!AE$234 -> 111.4460547 | AF8: =ProjectCashflows!AF$234 -> 0 | AG8: =ProjectCashflows!AG$234 -> 0 | AH8: =ProjectCashflows!AH$234 -> 0 | AI8: =ProjectCashflows!AI$234 -> 0 | AJ8: =ProjectCashflows!AJ$234 -> 0 | AK8: =ProjectCashflows!AK$234 -> 0 | AL8: =ProjectCashflows!AL$234 -> 0 | AM8: =ProjectCashflows!AM$234 -> 0 | AN8: =ProjectCashflows!AN$234 -> 0 | AO8: =ProjectCashflows!AO$234 -> 0 | AP8: =ProjectCashflows!AP$234 -> 0 | AQ8: =ProjectCashflows!AQ$234 -> 0 | AR8: =ProjectCashflows!AR$234 -> 0 | AS8: =ProjectCashflows!AS$234 -> 0 | AT8: =ProjectCashflows!AT$234 -> 0 | AU8: =ProjectCashflows!AU$234 -> 0 | AV8: =ProjectCashflows!AV$234 -> 0 | AW8: =ProjectCashflows!AW$234 -> 0 | AX8: =ProjectCashflows!AX$234 -> 0
E9: =ProjectCashflows!E$235 -> Transport costs post-fiscal point, after ELT | F9: =ProjectCashflows!F$235 -> 0 | G9: =ProjectCashflows!G$235 -> US$ mn | H9: =ProjectCashflows!H$235 -> 0 | I9: =ProjectCashflows!I$235 -> 63.27589863 | J9: =ProjectCashflows!J$235 -> 0 | K9: =ProjectCashflows!K$235 -> 0 | L9: =ProjectCashflows!L$235 -> 0 | M9: =ProjectCashflows!M$235 -> 0 | N9: =ProjectCashflows!N$235 -> 0 | O9: =ProjectCashflows!O$235 -> 0.27060804 | P9: =ProjectCashflows!P$235 -> 2.070151506 | Q9: =ProjectCashflows!Q$235 -> 4.223109072 | R9: =ProjectCashflows!R$235 -> 4.307571254 | S9: =ProjectCashflows!S$235 -> 4.393722679 | T9: =ProjectCashflows!T$235 -> 4.481597132 | U9: =ProjectCashflows!U$235 -> 4.571229075 | V9: =ProjectCashflows!V$235 -> 4.662653656 | W9: =ProjectCashflows!W$235 -> 4.75590673 | X9: =ProjectCashflows!X$235 -> 4.851024864 | Y9: =ProjectCashflows!Y$235 -> 4.948045361 | Z9: =ProjectCashflows!Z$235 -> 5.047006269 | AA9: =ProjectCashflows!AA$235 -> 4.289955328 | AB9: =ProjectCashflows!AB$235 -> 3.500603548 | AC9: =ProjectCashflows!AC$235 -> 2.677961714 | AD9: =ProjectCashflows!AD$235 -> 2.367318155 | AE9: =ProjectCashflows!AE$235 -> 1.857434245 | AF9: =ProjectCashflows!AF$235 -> 0 | AG9: =ProjectCashflows!AG$235 -> 0 | AH9: =ProjectCashflows!AH$235 -> 0 | AI9: =ProjectCashflows!AI$235 -> 0 | AJ9: =ProjectCashflows!AJ$235 -> 0 | AK9: =ProjectCashflows!AK$235 -> 0 | AL9: =ProjectCashflows!AL$235 -> 0 | AM9: =ProjectCashflows!AM$235 -> 0 | AN9: =ProjectCashflows!AN$235 -> 0 | AO9: =ProjectCashflows!AO$235 -> 0 | AP9: =ProjectCashflows!AP$235 -> 0 | AQ9: =ProjectCashflows!AQ$235 -> 0 | AR9: =ProjectCashflows!AR$235 -> 0 | AS9: =ProjectCashflows!AS$235 -> 0 | AT9: =ProjectCashflows!AT$235 -> 0 | AU9: =ProjectCashflows!AU$235 -> 0 | AV9: =ProjectCashflows!AV$235 -> 0 | AW9: =ProjectCashflows!AW$235 -> 0 | AX9: =ProjectCashflows!AX$235 -> 0
E10: =ProjectCashflows!E$236 -> Sales revenues: net, after ELT | F10: =ProjectCashflows!F$236 -> 0 | G10: =ProjectCashflows!G$236 -> US$ mn | H10: =ProjectCashflows!H$236 -> 0 | I10: =ProjectCashflows!I$236 -> 3733.278019 | J10: =ProjectCashflows!J$236 -> 0 | K10: =ProjectCashflows!K$236 -> 0 | L10: =ProjectCashflows!L$236 -> 0 | M10: =ProjectCashflows!M$236 -> 0 | N10: =ProjectCashflows!N$236 -> 0 | O10: =ProjectCashflows!O$236 -> 15.96587436 | P10: =ProjectCashflows!P$236 -> 122.1389389 | Q10: =ProjectCashflows!Q$236 -> 249.1634353 | R10: =ProjectCashflows!R$236 -> 254.146704 | S10: =ProjectCashflows!S$236 -> 259.229638 | T10: =ProjectCashflows!T$236 -> 264.4142308 | U10: =ProjectCashflows!U$236 -> 269.7025154 | V10: =ProjectCashflows!V$236 -> 275.0965657 | W10: =ProjectCashflows!W$236 -> 280.598497 | X10: =ProjectCashflows!X$236 -> 286.210467 | Y10: =ProjectCashflows!Y$236 -> 291.9346763 | Z10: =ProjectCashflows!Z$236 -> 297.7733699 | AA10: =ProjectCashflows!AA$236 -> 253.1073644 | AB10: =ProjectCashflows!AB$236 -> 206.5356093 | AC10: =ProjectCashflows!AC$236 -> 157.9997411 | AD10: =ProjectCashflows!AD$236 -> 139.6717712 | AE10: =ProjectCashflows!AE$236 -> 109.5886205 | AF10: =ProjectCashflows!AF$236 -> 0 | AG10: =ProjectCashflows!AG$236 -> 0 | AH10: =ProjectCashflows!AH$236 -> 0 | AI10: =ProjectCashflows!AI$236 -> 0 | AJ10: =ProjectCashflows!AJ$236 -> 0 | AK10: =ProjectCashflows!AK$236 -> 0 | AL10: =ProjectCashflows!AL$236 -> 0 | AM10: =ProjectCashflows!AM$236 -> 0 | AN10: =ProjectCashflows!AN$236 -> 0 | AO10: =ProjectCashflows!AO$236 -> 0 | AP10: =ProjectCashflows!AP$236 -> 0 | AQ10: =ProjectCashflows!AQ$236 -> 0 | AR10: =ProjectCashflows!AR$236 -> 0 | AS10: =ProjectCashflows!AS$236 -> 0 | AT10: =ProjectCashflows!AT$236 -> 0 | AU10: =ProjectCashflows!AU$236 -> 0 | AV10: =ProjectCashflows!AV$236 -> 0 | AW10: =ProjectCashflows!AW$236 -> 0 | AX10: =ProjectCashflows!AX$236 -> 0
E12: =ProjectCashflows!E$238 -> Exploration costs, after ELT | F12: =ProjectCashflows!F$238 -> 0 | G12: =ProjectCashflows!G$238 -> US$ mn | H12: =ProjectCashflows!H$238 -> 0 | I12: =ProjectCashflows!I$238 -> 30.604 | J12: =ProjectCashflows!J$238 -> 0 | K12: =ProjectCashflows!K$238 -> 10 | L12: =ProjectCashflows!L$238 -> 10.2 | M12: =ProjectCashflows!M$238 -> 10.404 | N12: =ProjectCashflows!N$238 -> 0 | O12: =ProjectCashflows!O$238 -> 0 | P12: =ProjectCashflows!P$238 -> 0 | Q12: =ProjectCashflows!Q$238 -> 0 | R12: =ProjectCashflows!R$238 -> 0 | S12: =ProjectCashflows!S$238 -> 0 | T12: =ProjectCashflows!T$238 -> 0 | U12: =ProjectCashflows!U$238 -> 0 | V12: =ProjectCashflows!V$238 -> 0 | W12: =ProjectCashflows!W$238 -> 0 | X12: =ProjectCashflows!X$238 -> 0 | Y12: =ProjectCashflows!Y$238 -> 0 | Z12: =ProjectCashflows!Z$238 -> 0 | AA12: =ProjectCashflows!AA$238 -> 0 | AB12: =ProjectCashflows!AB$238 -> 0 | AC12: =ProjectCashflows!AC$238 -> 0 | AD12: =ProjectCashflows!AD$238 -> 0 | AE12: =ProjectCashflows!AE$238 -> 0 | AF12: =ProjectCashflows!AF$238 -> 0 | AG12: =ProjectCashflows!AG$238 -> 0 | AH12: =ProjectCashflows!AH$238 -> 0 | AI12: =ProjectCashflows!AI$238 -> 0 | AJ12: =ProjectCashflows!AJ$238 -> 0 | AK12: =ProjectCashflows!AK$238 -> 0 | AL12: =ProjectCashflows!AL$238 -> 0 | AM12: =ProjectCashflows!AM$238 -> 0 | AN12: =ProjectCashflows!AN$238 -> 0 | AO12: =ProjectCashflows!AO$238 -> 0 | AP12: =ProjectCashflows!AP$238 -> 0 | AQ12: =ProjectCashflows!AQ$238 -> 0 | AR12: =ProjectCashflows!AR$238 -> 0 | AS12: =ProjectCashflows!AS$238 -> 0 | AT12: =ProjectCashflows!AT$238 -> 0 | AU12: =ProjectCashflows!AU$238 -> 0 | AV12: =ProjectCashflows!AV$238 -> 0 | AW12: =ProjectCashflows!AW$238 -> 0 | AX12: =ProjectCashflows!AX$238 -> 0
E13: =ProjectCashflows!E$239 -> Development costs, after ELT | F13: =ProjectCashflows!F$239 -> 0 | G13: =ProjectCashflows!G$239 -> US$ mn | H13: =ProjectCashflows!H$239 -> 0 | I13: =ProjectCashflows!I$239 -> 434.0765203 | J13: =ProjectCashflows!J$239 -> 0 | K13: =ProjectCashflows!K$239 -> 0 | L13: =ProjectCashflows!L$239 -> 0 | M13: =ProjectCashflows!M$239 -> 0 | N13: =ProjectCashflows!N$239 -> 53.0604 | O13: =ProjectCashflows!O$239 -> 270.60804 | P13: =ProjectCashflows!P$239 -> 110.4080803 | Q13: =ProjectCashflows!Q$239 -> 0 | R13: =ProjectCashflows!R$239 -> 0 | S13: =ProjectCashflows!S$239 -> 0 | T13: =ProjectCashflows!T$239 -> 0 | U13: =ProjectCashflows!U$239 -> 0 | V13: =ProjectCashflows!V$239 -> 0 | W13: =ProjectCashflows!W$239 -> 0 | X13: =ProjectCashflows!X$239 -> 0 | Y13: =ProjectCashflows!Y$239 -> 0 | Z13: =ProjectCashflows!Z$239 -> 0 | AA13: =ProjectCashflows!AA$239 -> 0 | AB13: =ProjectCashflows!AB$239 -> 0 | AC13: =ProjectCashflows!AC$239 -> 0 | AD13: =ProjectCashflows!AD$239 -> 0 | AE13: =ProjectCashflows!AE$239 -> 0 | AF13: =ProjectCashflows!AF$239 -> 0 | AG13: =ProjectCashflows!AG$239 -> 0 | AH13: =ProjectCashflows!AH$239 -> 0 | AI13: =ProjectCashflows!AI$239 -> 0 | AJ13: =ProjectCashflows!AJ$239 -> 0 | AK13: =ProjectCashflows!AK$239 -> 0 | AL13: =ProjectCashflows!AL$239 -> 0 | AM13: =ProjectCashflows!AM$239 -> 0 | AN13: =ProjectCashflows!AN$239 -> 0 | AO13: =ProjectCashflows!AO$239 -> 0 | AP13: =ProjectCashflows!AP$239 -> 0 | AQ13: =ProjectCashflows!AQ$239 -> 0 | AR13: =ProjectCashflows!AR$239 -> 0 | AS13: =ProjectCashflows!AS$239 -> 0 | AT13: =ProjectCashflows!AT$239 -> 0 | AU13: =ProjectCashflows!AU$239 -> 0 | AV13: =ProjectCashflows!AV$239 -> 0 | AW13: =ProjectCashflows!AW$239 -> 0 | AX13: =ProjectCashflows!AX$239 -> 0
E14: =ProjectCashflows!E$240 -> Replacement capital costs, after ELT | F14: =ProjectCashflows!F$240 -> 0 | G14: =ProjectCashflows!G$240 -> US$ mn | H14: =ProjectCashflows!H$240 -> 0 | I14: =ProjectCashflows!I$240 -> 118.4642464 | J14: =ProjectCashflows!J$240 -> 0 | K14: =ProjectCashflows!K$240 -> 0 | L14: =ProjectCashflows!L$240 -> 0 | M14: =ProjectCashflows!M$240 -> 0 | N14: =ProjectCashflows!N$240 -> 0 | O14: =ProjectCashflows!O$240 -> 0 | P14: =ProjectCashflows!P$240 -> 8.832646426 | Q14: =ProjectCashflows!Q$240 -> 9.009299354 | R14: =ProjectCashflows!R$240 -> 9.189485341 | S14: =ProjectCashflows!S$240 -> 9.373275048 | T14: =ProjectCashflows!T$240 -> 9.560740549 | U14: =ProjectCashflows!U$240 -> 9.75195536 | V14: =ProjectCashflows!V$240 -> 9.946994467 | W14: =ProjectCashflows!W$240 -> 10.14593436 | X14: =ProjectCashflows!X$240 -> 10.34885304 | Y14: =ProjectCashflows!Y$240 -> 10.5558301 | Z14: =ProjectCashflows!Z$240 -> 10.76694671 | AA14: =ProjectCashflows!AA$240 -> 10.98228564 | AB14: =ProjectCashflows!AB$240 -> 0 | AC14: =ProjectCashflows!AC$240 -> 0 | AD14: =ProjectCashflows!AD$240 -> 0 | AE14: =ProjectCashflows!AE$240 -> 0 | AF14: =ProjectCashflows!AF$240 -> 0 | AG14: =ProjectCashflows!AG$240 -> 0 | AH14: =ProjectCashflows!AH$240 -> 0 | AI14: =ProjectCashflows!AI$240 -> 0 | AJ14: =ProjectCashflows!AJ$240 -> 0 | AK14: =ProjectCashflows!AK$240 -> 0 | AL14: =ProjectCashflows!AL$240 -> 0 | AM14: =ProjectCashflows!AM$240 -> 0 | AN14: =ProjectCashflows!AN$240 -> 0 | AO14: =ProjectCashflows!AO$240 -> 0 | AP14: =ProjectCashflows!AP$240 -> 0 | AQ14: =ProjectCashflows!AQ$240 -> 0 | AR14: =ProjectCashflows!AR$240 -> 0 | AS14: =ProjectCashflows!AS$240 -> 0 | AT14: =ProjectCashflows!AT$240 -> 0 | AU14: =ProjectCashflows!AU$240 -> 0 | AV14: =ProjectCashflows!AV$240 -> 0 | AW14: =ProjectCashflows!AW$240 -> 0 | AX14: =ProjectCashflows!AX$240 -> 0
E15: =ProjectCashflows!E$241 -> Operating costs, after ELT | F15: =ProjectCashflows!F$241 -> 0 | G15: =ProjectCashflows!G$241 -> US$ mn | H15: =ProjectCashflows!H$241 -> 0 | I15: =ProjectCashflows!I$241 -> 1138.966175 | J15: =ProjectCashflows!J$241 -> 0 | K15: =ProjectCashflows!K$241 -> 0 | L15: =ProjectCashflows!L$241 -> 0 | M15: =ProjectCashflows!M$241 -> 0 | N15: =ProjectCashflows!N$241 -> 0 | O15: =ProjectCashflows!O$241 -> 4.87094472 | P15: =ProjectCashflows!P$241 -> 37.26272711 | Q15: =ProjectCashflows!Q$241 -> 76.0159633 | R15: =ProjectCashflows!R$241 -> 77.53628257 | S15: =ProjectCashflows!S$241 -> 79.08700822 | T15: =ProjectCashflows!T$241 -> 80.66874838 | U15: =ProjectCashflows!U$241 -> 82.28212335 | V15: =ProjectCashflows!V$241 -> 83.92776582 | W15: =ProjectCashflows!W$241 -> 85.60632113 | X15: =ProjectCashflows!X$241 -> 87.31844756 | Y15: =ProjectCashflows!Y$241 -> 89.06481651 | Z15: =ProjectCashflows!Z$241 -> 90.84611284 | AA15: =ProjectCashflows!AA$241 -> 77.21919591 | AB15: =ProjectCashflows!AB$241 -> 63.01086386 | AC15: =ProjectCashflows!AC$241 -> 48.20331086 | AD15: =ProjectCashflows!AD$241 -> 42.6117268 | AE15: =ProjectCashflows!AE$241 -> 33.43381641 | AF15: =ProjectCashflows!AF$241 -> 0 | AG15: =ProjectCashflows!AG$241 -> 0 | AH15: =ProjectCashflows!AH$241 -> 0 | AI15: =ProjectCashflows!AI$241 -> 0 | AJ15: =ProjectCashflows!AJ$241 -> 0 | AK15: =ProjectCashflows!AK$241 -> 0 | AL15: =ProjectCashflows!AL$241 -> 0 | AM15: =ProjectCashflows!AM$241 -> 0 | AN15: =ProjectCashflows!AN$241 -> 0 | AO15: =ProjectCashflows!AO$241 -> 0 | AP15: =ProjectCashflows!AP$241 -> 0 | AQ15: =ProjectCashflows!AQ$241 -> 0 | AR15: =ProjectCashflows!AR$241 -> 0 | AS15: =ProjectCashflows!AS$241 -> 0 | AT15: =ProjectCashflows!AT$241 -> 0 | AU15: =ProjectCashflows!AU$241 -> 0 | AV15: =ProjectCashflows!AV$241 -> 0 | AW15: =ProjectCashflows!AW$241 -> 0 | AX15: =ProjectCashflows!AX$241 -> 0
E16: =ProjectCashflows!E$242 -> Decommissioning costs, after ELT | F16: =ProjectCashflows!F$242 -> 0 | G16: =ProjectCashflows!G$242 -> US$ mn | H16: =ProjectCashflows!H$242 -> 0 | I16: =ProjectCashflows!I$242 -> 30.31332688 | J16: =ProjectCashflows!J$242 -> 0 | K16: =ProjectCashflows!K$242 -> 0 | L16: =ProjectCashflows!L$242 -> 0 | M16: =ProjectCashflows!M$242 -> 0 | N16: =ProjectCashflows!N$242 -> 0 | O16: =ProjectCashflows!O$242 -> 0 | P16: =ProjectCashflows!P$242 -> 0 | Q16: =ProjectCashflows!Q$242 -> 0 | R16: =ProjectCashflows!R$242 -> 0 | S16: =ProjectCashflows!S$242 -> 0 | T16: =ProjectCashflows!T$242 -> 0 | U16: =ProjectCashflows!U$242 -> 0 | V16: =ProjectCashflows!V$242 -> 0 | W16: =ProjectCashflows!W$242 -> 0 | X16: =ProjectCashflows!X$242 -> 0 | Y16: =ProjectCashflows!Y$242 -> 0 | Z16: =ProjectCashflows!Z$242 -> 0 | AA16: =ProjectCashflows!AA$242 -> 0 | AB16: =ProjectCashflows!AB$242 -> 0 | AC16: =ProjectCashflows!AC$242 -> 0 | AD16: =ProjectCashflows!AD$242 -> 0 | AE16: =ProjectCashflows!AE$242 -> 0 | AF16: =ProjectCashflows!AF$242 -> 30.31332688 | AG16: =ProjectCashflows!AG$242 -> 0 | AH16: =ProjectCashflows!AH$242 -> 0 | AI16: =ProjectCashflows!AI$242 -> 0 | AJ16: =ProjectCashflows!AJ$242 -> 0 | AK16: =ProjectCashflows!AK$242 -> 0 | AL16: =ProjectCashflows!AL$242 -> 0 | AM16: =ProjectCashflows!AM$242 -> 0 | AN16: =ProjectCashflows!AN$242 -> 0 | AO16: =ProjectCashflows!AO$242 -> 0 | AP16: =ProjectCashflows!AP$242 -> 0 | AQ16: =ProjectCashflows!AQ$242 -> 0 | AR16: =ProjectCashflows!AR$242 -> 0 | AS16: =ProjectCashflows!AS$242 -> 0 | AT16: =ProjectCashflows!AT$242 -> 0 | AU16: =ProjectCashflows!AU$242 -> 0 | AV16: =ProjectCashflows!AV$242 -> 0 | AW16: =ProjectCashflows!AW$242 -> 0 | AX16: =ProjectCashflows!AX$242 -> 0
